Workbook

Sheet LDC Info
AA3: Algoma Power Inc.
AA4: Atikokan Hydro Inc.
AA5: Attawapiskat Power Corporation
AA6: Bluewater Power Distribution Corp.
AA7: Brant County Power
AA8: Brantford Power Inc.
AA9: Burlington Hydro Inc.
AA10: Cambridge and North Dumfries Hydro
AA11: Canadian Niagara Power Inc. – Eastern Ontario Power/Fort Erie/Port Colborne
AA12: Centre Wellington Hydro Ltd.
AA13: Chapleau Public Utilities Corporation
D14: Utility Name | E14: Ottawa River Power Corporation | AA14: COLLUS Power Corp.
AA15: Cooperative Hydro Embrun Inc.
D16: Assigned EB Number | E16: EB-2014-0105 | AA16: E.L.K. Energy Inc.
AA17: Enersource Hydro Mississauga Inc.
D18: Name of Contact and Title | E18: Jane Wilkinson-Donnelly | AA18: Entegrus Powerlines Inc.
AA19: ENWIN Utilities Ltd.
D20: Phone Number | E20: 613-732-3687 ext. 34 | AA20: Erie Thames Powerlines Corp.
AA21: Espanola Regional Hydro Distribution Corporation
D22: Email Address | E22: jwilkinson@orpowercorp.com | AA22: Essex Powerlines Corporation
AA23: Festival Hydro Inc.
D24: Test Year | E24: 2015 | AA24: Fort Albany Power Corporation
AA25: Fort Frances Power Corporation
D26: Bridge Year | E26: =IF(ISBLANK(E24), "", E24-1) -> 2014 | AA26: Greater Sudbury Hydro Inc.
AA27: Grimsby Power Inc.
D28: Last Rebasing Year | E28: 2010 | AA28: Guelph Hydro Electric Systems Inc.
AA29: Haldimand County Hydro Inc.
A30: Identify the accounting standard used for the test year
E31: MIFRS
A33: Did you update your depreciation and capitalization policies?
E34: Yes
A36: When did you update your depreciation and capitalization policies?
E37: 2001-01-01 | F37: 2013
A39: Identify the year that the applicant has adopted or is expected to adopt IFRS for financial reporting purposes
E40: 2015 or Later
A43: Are you applying for cost recovery for the test and/or future year(s) for Green Energy initiatives?
E44: No
A46: ="Is " & E14 & " an embedded distributor?" -> Is Ottawa River Power Corporation an embedded distributor? | E46: Yes
B49: Notes | AA49: Guelph Hydro Electric Systems Inc.
AA50: Halton Hills Hydro Inc.
C51: Pale green cells represent input cells. | AA51: Hearst Power Distribution Co. Ltd.
AA52: Horizon Utilities Corporation
C53: Pale blue cells represent drop-down lists. The applicant should select the appropriate item from the drop-down list. | AA53: Hydro 2000 Inc.
AA54: Hydro Hawkesbury Inc.
C55: White cells contain fixed values, automatically generated values or formulae. | AA55: Hydro One Brampton Networks Inc.
AA56: Hydro One Networks Inc.
AA57: Hydro One Remote Communities Inc.
AA58: Hydro Ottawa Limited
AA59: Innisfil Hydro Dist. Systems Limited
AA60: Kashechewan Power Corporation
AA61: Kenora Hydro Electric Corporation Ltd.
AA62: Kingston Hydro Corporation
AA63: Kitchener-Wilmot Hydro Inc.
AA64: Lakefront Utilities Inc.
AA65: Lakeland Power Distribution Ltd.
AA66: London Hydro Inc.
AA67: Midland Power Utility Corporation
AA68: Milton Hydro Distribution Inc.
AA69: Newmarket – Tay Power Distribution Ltd.
AA70: Niagara Peninsula Energy Inc.
AA71: Niagara-on-the-Lake Hydro Inc.
AA72: Norfolk Power Distribution Ltd.
AA73: North Bay Hydro Distribution Limited
AA74: Northern Ontario Wires Inc.
AA75: Oakville Hydro Distribution Inc.
AA76: Orangeville Hydro Limited
AA77: Orillia Power Distribution Corp.
AA78: Oshawa PUC Networks Inc.
AA79: Ottawa River Power Corporation
AA80: Parry Sound Power Corporation
AA81: Peterborough Distribution Inc.
AA82: PowerStream Inc.
AA83: PUC Distribution Inc.
AA84: Renfrew Hydro Inc.
AA85: Rideau St. Lawrence Distribution Inc.
AA86: St. Thomas Energy Inc.
AA87: Sioux Lookout Hydro Inc.
AA88: Thunder Bay Hydro Electricity Distribution
AA89: Tillsonburg Hydro Inc.
AA90: Toronto Hydro-Electric System Limited
AA91: Veridian Connections Inc.
AA92: Wasaga Distribution Inc.
AA93: Waterloo North Hydro Inc.
AA94: Welland Hydro Electric System Corp.
AA95: Wellington North Power Inc.
AA96: West Coast Huron Energy Inc.
AA97: Westario Power Inc.
AA98: Whitby Hydro Electric Corporation
AA99: Woodstock Hydro Services Inc.

Sheet App.2-B_Acct Instructions
A1: General Instructions to MIFRS Appendices
A2: Types of Schedules to File
A4: The purpose of this tab is to provide general instructions. The specific instructions to each appendix are listed in footnotes of each appendix.
A6: The typical applicant is expected to have made capitalization and depreciation policy changes under CGAAP as permitted by the Board on January 1, 2012 or mandated by the Board by January 1, 2013, and adopts IFRS for reporting purposes on January 1, 2015 (transition date January 1, 2014). In general, applicants under the two scenarios should provide the following information in the appendices:
E9: Accounting Policy Changes in 2012 and Adopts IFRS in 2015 | F9: Accounting Policy Changes in 2013 and Adopts IFRS in 2015
E10: (Date of Transition to IFRS 2014)
A11: Information to be filed in 2015 CoS Application | B11: 2015 | C11: Test | E11: MIFRS | F11: MIFRS
B12: 2014 | C12: Bridge | E12: MIFRS and Revised CGAAP* | F12: MIFRS and Revised CGAAP*
B13: 2013 | C13: Historical | E13: Revised CGAAP | F13: CGAAP and Revised CGAAP
B14: 2012 | C14: Historical | E14: CGAAP and Revised CGAAP | F14: CGAAP
B15: 2011 and Prior | C15: Historical | E15: CGAAP | F15: CGAAP
A17: 1) For the year that the applicant implemented changes to its capitalization and depreciation policies (2012 or 2013), the applicant must file two appendices, one before and one after the policy changes.
A20: 2) For the transition year (2014), the applicant may file two appendices, one under Revised CGAAP and one under MIFRS depending, on the materiality of impacts. See the specific instructions under each appendix below for further details.
A25: Appendix 2-BA - Fixed Asset Schedule
A27: Applicants are to provide Appendix 2-BA in accordance with the years and corresponding accounting standards noted in the above table to provide a year over year continuity in fixed assets.
A28: *For the transition year (2014), the applicant should file two appendices, one under Revised CGAAP and one under MIFRS if the change between Revised CGAAP and MIFRS is material. If the change from the accounting standards is not material, the applicant may choose to only provide one appendix under MIFRS. The applicant must also indicate the fixed asset net book value balance under Revised CGAAP, the total dollar value of the change and explain why it is not material.
A32: Regulatory Gross Assets of Property, Plant and Equipment
A34: For an applicant that is adopting IFRS on January 1, 2015 for financial reporting purposes, the applicant must establish the continuity of historic cost by using the December 31, 2013 regulatory gross assets of property, plant and equipment as the opening January 1, 2014 regulatory gross assets. The applicant must provide schedules (including Appendix 2-BA, Fixed Asset Continuity Schedule) which must identify the following details to substantiate the continuity of historic cost for regulatory purposes:
A37: · December 31, 2013 regulatory gross assets of property, plant and equipment, by asset class; and
A38: · January 1, 2014 regulatory gross assets of property, plant and equipment, by asset class.
A40: Accumulated Depreciation
A42: For an applicant that is adopting IFRS on January 1, 2015 for financial reporting purposes, the applicant must establish the continuity of historic cost by using the December 31, 2013 regulatory accumulated depreciation as the opening January 1, 2014 regulatory accumulated depreciation. The applicant must provide schedules (including Appendix 2-BA, Fixed Asset Continuity Schedule) which must identify the following details to substantiate the continuity of historic cost for regulatory purposes:
A45: · December 31, 2013 regulatory accumulated depreciation, by asset class; and
A46: · January 1, 2014 regulatory accumulated depreciation, by asset class.
A48: Appendix 2-C - Depreciation and Amortization
A50: Applicants are to provide Appendix 2-C starting in the year capitalization and depreciation policy changes were implemented in accordance with the years and corresponding accounting standards listed in the above table.
A51: If an applicant changed capitalization and depreciation policies effective January 1, 2012 and will adopt IFRS for reporting purposes effective January 1, 2015, the applicant must complete Appendix 2-CA to 2-CE (inclusive).
A52: If an applicant changed capitalization and depreciation policies effective January 1, 2013 and will adopt IFRS for reporting purposes effective January 1, 2015, the applicant must complete Appendix 2-CF to 2-CI (inclusive).
A53: *Depreciation accounting policy changes were mandated by the Board by January 1, 2013. These accounting changes should be implemented consistent with the Board’s regulatory accounting policies as set out for MIFRS as contained in the Report of the Board, Transition to International Financial Reporting Standards (EB-2008-0408), the Depreciation Study for Use by Electricity Distributors (EB-2010-0178) and the Revised 2012 Accounting Procedures Handbook for Electricity Distributors. In general, no further changes to an applicant's depreciation policy (i.e. assets' service lives) are expected after the Board mandated changes by January 1, 2013. The set of Appendix CA to CI assumes this to be the case. If the applicant has made any changes to its depreciation policy subsequent to the Board mandated changes, applicants must identify the change, explain the nature of the change, the reason for the change, quantify the impact of the change, and quantify the depreciation expense before and after the change.
A56: Appendix 2-E - Account 1575, IFRS-CGAAP Transitional PP&E Amounts (2-EA), Account 1576, Accounting Changes Under CGAAP (2-EB, 2-EC)
A58: If an applicant changed capitalization and depreciation policies effective January 1, 2012 and will adopt IFRS for reporting purposes effective January 1, 2015, the applicant must complete Appendix 2-EA and 2-EB. If the applicant does not make any further PP&E accounting policy changes beyond the capitalization and depreciation policy changes as permitted by the Board on January 1, 2012 (i.e. no further changes made on transition to IFRS), the applicant must indicate this and does not need to complete Appendix 2-EA.
A60: If an applicant changed capitalization and depreciation policies effective January 1, 2013 and will adopt IFRS for reporting purposes effective January 1, 2015, the applicant must complete Appendix 2-EA and 2-EC. If the applicant does not make any further PP&E accounting policy changes beyond the capitalization and depreciation policy changes as mandated by the Board by January 1, 2013 (i.e. no further changes made on transition to IFRS), the applicant must indicate this and does not need to complete Appendix 2-EA.
A62: Please refer to section 2.12.4 and 2.12.5 of the Filing Requirements for further details.
A64: Appendix 2-YA - Summary of Impacts to Revenue Requirement from Transition to MIFRS
A66: For applicants adopting MIFRS, the applicants must provide a summary of the dollar impacts of MIFRS to each component of the revenue requirement (e.g. rate base, operating costs, etc), including the overall impact on the proposed revenue requirement. Accordingly, the applicants must identify financial differences and resulting revenue requirement impacts arising from the adoption of MIFRS as compared to CGAAP prior to capitalization and depreciation policy changes.

Sheet Sheet2
B2: Fixed Assets
B3: 2009
A6: Opening balance

Sheet App.2-BA_FA Cont 2010 OldCGAAP
L1: File Number: | M1: =EBNUMBER -> 
L2: Exhibit:
L3: Tab:
L4: Schedule:
L5: Page:
L7: Date:
A9: Appendix 2-BA
A10: Fixed Asset Continuity Schedule
E12: Accounting Standard | F12: CGAAP | G12: Old CGAAP
E13: Year | F13: 2010
D15: Cost | J15: Accumulated Depreciation
A16: CCA Class | B16: OEB | C16: Description | D16: Opening Balance | E16: Additions | F16: Disposals | G16: Closing Balance | I16: Opening Balance | J16: Additions | K16: Disposals | L16: Closing Balance | M16: Net Book Value
A17: 12 | B17: 1611 | C17: Computer Software (Formally known as Account 1925) | D17: 293410.74 | E17: 12194 | G17: =D17+E17+F17 -> 305604.74 | I17: -193749.62 | J17: -99860.87 | L17: =I17+J17+K17 -> -293610.49 | M17: =G17+L17 -> 11994.25
A18: CEC | B18: 1612 | C18: Land Rights (Formally known as Account 1906) | D18: 10808.84 | G18: =D18+E18+F18 -> 10808.84 | I18: -6721 | J18: -335 | L18: =I18+J18+K18 -> -7056 | M18: =G18+L18 -> 3752.84
A19: N/A | B19: 1805 | C19: Land | D19: 130499.26 | G19: =D19+E19+F19 -> 130499.26 | L19: =I19+J19+K19 -> 0 | M19: =G19+L19 -> 130499.26
A20: 47 | B20: 1808 | C20: Buildings | D20: 453549.71 | E20: 14386 | G20: =D20+E20+F20 -> 467935.71 | I20: -247903 | J20: =-7852.81-744.23-55.48 -> -8652.52 | L20: =I20+J20+K20 -> -256555.52 | M20: =G20+L20 -> 211380.19
A21: 13 | B21: 1810 | C21: Leasehold Improvements | G21: 0 | L21: 0 | M21: 0
A22: 47 | B22: 1815 | C22: Transformer Station Equipment >50 kV | G22: 0 | L22: 0 | M22: 0
A23: 47 | B23: 1820 | C23: Distribution Station Equipment <50 kV | D23: 2563070.89 | E23: 166448 | G23: 2729518.89 | I23: -1644838.69 | J23: =-54616.18+177.27 -> -54438.91 | L23: -1699277.6 | M23: 1030241.29
A24: 47 | B24: 1825 | C24: Storage Battery Equipment | G24: 0 | L24: 0 | M24: 0
A25: 47 | B25: 1830 | C25: Poles, Towers & Fixtures | D25: 8107720.38 | E25: 117217.95 | G25: 8224938.33 | I25: -5835293 | J25: -262546 | L25: -6097839 | M25: 2127099.33
A26: 47 | B26: 1835 | C26: Overhead Conductors & Devices | D26: 2430844.33 | E26: 145586.4 | G26: 2576430.73 | I26: -545720 | J26: =-100988.98+20218.6 -> -80770.38 | L26: -626490.38 | M26: 1949940.35
A27: 47 | B27: 1840 | C27: Underground Conduit | D27: 2933508.47 | E27: 40594 | G27: 2974102.47 | I27: -1985939.84 | J27: =-109502.44+1185.66-671.72-1874.82 -> -110863.32 | L27: -2096803.16 | M27: 877299.31
A28: 47 | B28: 1845 | C28: Underground Conductors & Devices | D28: 330338.84 | E28: 75749 | G28: 406087.84 | I28: -57662.48 | J28: -14728.55 | L28: -72391.03 | M28: 333696.81
A29: 47 | B29: 1850 | C29: Line Transformers | D29: =3200351.67+322420.2 -> 3522771.87 | E29: 60897 | G29: 3583668.87 | I29: -1988166.77 | J29: =-118744.44+4537.07+4010.74-17312.38 -> -127509.01 | L29: -2115675.78 | M29: 1467993.09
A30: 47 | B30: 1855 | C30: Services (Overhead & Underground) | D30: 875350.1 | E30: 103019 | G30: 978369.1 | I30: -160436.77 | J30: =-37198.64+1009.05+1034.62+860.63 -> -34294.34 | L30: -194731.11 | M30: 783637.99
A31: 47 | B31: 1860 | C31: Meters | D31: 671911.43 | E31: 10436 | F31: =-571953-16747.34 -> -588700.34 | G31: 93647.09 | I31: -391108.94 | J31: -2226.35 | K31: 357001.04 | L31: -36334.25 | M31: 57312.84
A32: 47 | B32: 1860 | C32: Meters (Smart Meters) | G32: 0 | L32: 0 | M32: 0
A33: N/A | B33: 1905 | C33: Land | G33: 0 | L33: 0 | M33: 0
A34: 47 | B34: 1908 | C34: Buildings & Fixtures | G34: 0 | L34: 0 | M34: 0
A35: 13 | B35: 1910 | C35: Leasehold Improvements | G35: 0 | L35: 0 | M35: 0
A36: 8 | B36: 1915 | C36: Office Furniture & Equipment (10 years) | D36: 122774.43 | E36: 5883 | F36: -668 | G36: 127989.43 | I36: -116712.13 | J36: =-2439.07+236.17 -> -2202.9 | K36: 668.52 | L36: -118246.51 | M36: 9742.92
A37: 8 | B37: 1915 | C37: Office Furniture & Equipment (5 years) | G37: 0 | L37: 0 | M37: 0
A38: 10 | B38: 1920 | C38: Computer Equipment - Hardware | G38: 0 | L38: 0 | M38: 0
A39: 45 | B39: 1920 | C39: Computer Equip.-Hardware(Post Mar. 22/04) | G39: 0 | L39: 0 | M39: 0
A40: 45.1 | B40: 1920 | C40: Computer Equip.-Hardware(Post Mar. 19/07) | D40: 320010.29 | E40: 2297 | G40: 322307.29 | I40: -296709.61 | J40: =-23357.41+2148.45 -> -21208.96 | L40: -317918.57 | M40: 4388.72
A41: 10 | B41: 1930 | C41: Transportation Equipment | D41: 1593934.71 | E41: 277694 | F41: -178877 | G41: 1692751.71 | I41: -1322217.21 | J41: =-83893.06+1632.31 -> -82260.75 | K41: 178877.46 | L41: -1225600.5 | M41: 467151.21
A42: 8 | B42: 1935 | C42: Stores Equipment | D42: 1761.26 | G42: 1761.26 | I42: -1761 | L42: -1761 | M42: 0.26
A43: 8 | B43: 1940 | C43: Tools, Shop & Garage Equipment | D43: 234048.66 | E43: 2335 | G43: 236383.66 | I43: -205669.75 | J43: =-6652.22-627.78 -> -7280 | L43: -212949.75 | M43: 23433.91
A44: 8 | B44: 1945 | C44: Measurement & Testing Equipment | G44: 0 | L44: 0 | M44: 0
A45: 8 | B45: 1950 | C45: Power Operated Equipment | G45: 0 | L45: 0 | M45: 0
A46: 8 | B46: 1955 | C46: Communications Equipment | D46: 29543.89 | E46: 5658 | G46: 35201.89 | I46: -29543.89 | J46: -565.81 | L46: -30109.7 | M46: 5092.19
A47: 8 | B47: 1955 | C47: Communication Equipment (Smart Meters) | G47: 0 | L47: 0 | M47: 0
A48: 8 | B48: 1960 | C48: Miscellaneous Equipment | G48: 0 | L48: 0 | M48: 0
A49: 47 | B49: 1970 | C49: Load Management Controls Customer Premises | D49: 254912 | G49: 254912 | I49: -251593.73 | J49: -839.35 | L49: -252433.08 | M49: 2478.92
A50: 47 | B50: 1975 | C50: Load Management Controls Utility Premises | D50: 64873.19 | G50: 64873.19 | I50: -64873 | L50: -64873 | M50: 0.19
A51: 47 | B51: 1980 | C51: System Supervisor Equipment | D51: 502268.44 | E51: 64230 | G51: 566498.44 | I51: -480823.79 | J51: -16225.59 | L51: -497049.38 | M51: 69449.06
A52: 47 | B52: 1985 | C52: Miscellaneous Fixed Assets | D52: 0 | E52: 0 | F52: 0 | G52: 0 | L52: 0 | M52: 0
A53: 47 | B53: 1990 | C53: Other Tangible Property | G53: 0 | L53: 0 | M53: 0
A54: 47 | B54: 1995 | C54: Contributions & Grants | D54: =-1257312-21179.21 -> -1278491.21 | E54: -125254.7 | G54: -1403745.91 | I54: 245977 | J54: =52763+21179.21 -> 73942.21 | L54: 319919.21 | M54: -1083826.7
A55: 47 | B55: 2440 | C55: Deferred Revenue5
G56: 0 | L56: 0 | M56: 0
C57: Sub-Total | D57: =SUM(D17:D56) -> 24169420.52 | E57: =SUM(E17:E56) -> 979369.65 | F57: =SUM(F17:F56) -> -768245.34 | G57: =SUM(G17:G56) -> 24380544.83 | I57: =SUM(I17:I56) -> -15581467.22 | J57: =SUM(J17:J56) -> -852866.4 | K57: =SUM(K17:K56) -> 536547.02 | L57: =SUM(L17:L56) -> -15897786.6 | M57: =SUM(M17:M56) -> 8482758.23
C58: Less Socialized Renewable Energy Generation Investments (input as negative) | G58: =D58+E58+F58 -> 0 | L58: =I58+J58+K58 -> 0 | M58: =G58+L58 -> 0
C59: Less Other Non Rate-Regulated Utility Assets (input as negative) | G59: 0 | L59: 0 | M59: 0
C60: Total PP&E | D60: =SUM(D57:D59) -> 24169420.52 | E60: =SUM(E57:E59) -> 979369.65 | F60: -768245.34 | G60: 24380544.83 | I60: =SUM(I57:I59) -> -15581467.22 | J60: -852866.4 | K60: 536547.02 | L60: -15897786.6 | M60: 8482758.23
C61: Depreciation Expense adj. from gain or loss on the retirement of assets (pool of like assets), if applicable6
C62: Total | J62: =J60+J61 -> -852866.4
I64: Less: Fully Allocated Depreciation
A65: 10 | C65: Transportation | I65: Transportation | K65: -79521.97
A66: 8 | C66: Stores Equipment | I66: Stores Equipment
I67: Net Depreciation | K67: =J62-K65-K66 -> -773344.43
A69: Notes:
A71: 1 | B71: Tables in the format outlined above covering all fixed asset accounts should be submitted for the Test Year, Bridge Year and all relevant historical years. At a minimum , the applicant must provide data for the earlier of: 1) all historical years back to its last rebasing; or 2) at least three years of historical actuals, in addition to Bridge Year and Test Year forecasts.
A74: 2 | B74: The "CCA Class" for fixed assets should agree with the CCA Class used for tax purposes in Tax Returns. Fixed Assets sub-components may be used where the underlying asset components are classified under multiple CCA Classes for tax purposes. If an applicant uses any different classes from those shown in the table, an explanation should be provided. (also see note 3 below).
A77: 3 | B77: The table may need to be customized for a utility's asset categories or for any new asset accounts announced or authorized by the Board.
A79: 4 | B79: The additions column (E) must not include construction work in progress (CWIP).
A81: 5 | B81: Effective on the date of IFRS adoption, customer contributions will no longer be recorded in Account 1995 Contributions & Grants, but will be recorded in Account 2440, Deferred Revenues.
A83: 6 | B83: Where a distributor for general financial reporting purposes under IFRS has accounted for the amount of gain or loss on the retirement of assets in a pool of like assets as a charge or credit to income, for reporting and rate application filings the distributor shall reclassify such gains and losses as depreciation expense, and disclose the amount separately.

Sheet App.2-BA_FA Cont 2011 OldCGAAP
L1: File Number: | M1: =EBNUMBER -> 
L2: Exhibit:
L3: Tab:
L4: Schedule:
L5: Page:
L7: Date:
A9: Appendix 2-BA
A10: Fixed Asset Continuity Schedule
E12: Accounting Standard | F12: CGAAP | G12: Old CGAAP
E13: Year | F13: 2011
D15: Cost | J15: Accumulated Depreciation
A16: CCA Class | B16: OEB | C16: Description | D16: Opening Balance | E16: Additions | F16: Disposals | G16: Closing Balance | I16: Opening Balance | J16: Additions | K16: Disposals | L16: Closing Balance | M16: Net Book Value
A17: 12 | B17: 1611 | C17: Computer Software (Formally known as Account 1925) | D17: ='App.2-BA_FA Cont 2010 OldCGAAP'!G17 -> 305604.74 | E17: 8648 | G17: =D17+E17+F17 -> 314252.74 | I17: ='App.2-BA_FA Cont 2010 OldCGAAP'!L17 -> -293610.49 | J17: -7338.48 | L17: =I17+J17+K17 -> -300948.97 | M17: =G17+L17 -> 13303.77
A18: CEC | B18: 1612 | C18: Land Rights (Formally known as Account 1906) | D18: ='App.2-BA_FA Cont 2010 OldCGAAP'!G18 -> 10808.84 | G18: =D18+E18+F18 -> 10808.84 | I18: ='App.2-BA_FA Cont 2010 OldCGAAP'!L18 -> -7056 | J18: -335 | L18: =I18+J18+K18 -> -7391 | M18: =G18+L18 -> 3417.84
A19: N/A | B19: 1805 | C19: Land | D19: ='App.2-BA_FA Cont 2010 OldCGAAP'!G19 -> 130499.26 | G19: =D19+E19+F19 -> 130499.26 | I19: ='App.2-BA_FA Cont 2010 OldCGAAP'!L19 -> 0 | L19: =I19+J19+K19 -> 0 | M19: =G19+L19 -> 130499.26
A20: 47 | B20: 1808 | C20: Buildings | D20: ='App.2-BA_FA Cont 2010 OldCGAAP'!G20 -> 467935.71 | E20: 18607 | G20: =D20+E20+F20 -> 486542.71 | I20: ='App.2-BA_FA Cont 2010 OldCGAAP'!L20 -> -256555.52 | J20: -8512.69 | L20: =I20+J20+K20 -> -265068.21 | M20: =G20+L20 -> 221474.5
A21: 13 | B21: 1810 | C21: Leasehold Improvements | D21: ='App.2-BA_FA Cont 2010 OldCGAAP'!G21 -> 0 | G21: 0 | I21: ='App.2-BA_FA Cont 2010 OldCGAAP'!L21 -> 0 | L21: 0 | M21: 0
A22: 47 | B22: 1815 | C22: Transformer Station Equipment >50 kV | D22: ='App.2-BA_FA Cont 2010 OldCGAAP'!G22 -> 0 | G22: 0 | I22: ='App.2-BA_FA Cont 2010 OldCGAAP'!L22 -> 0 | L22: 0 | M22: 0
A23: 47 | B23: 1820 | C23: Distribution Station Equipment <50 kV | D23: ='App.2-BA_FA Cont 2010 OldCGAAP'!G23 -> 2729518.89 | E23: 90613 | G23: 2820131.89 | I23: ='App.2-BA_FA Cont 2010 OldCGAAP'!L23 -> -1699277.6 | J23: -58620.62 | L23: -1757898.22 | M23: 1062233.67
A24: 47 | B24: 1825 | C24: Storage Battery Equipment | D24: ='App.2-BA_FA Cont 2010 OldCGAAP'!G24 -> 0 | G24: 0 | I24: ='App.2-BA_FA Cont 2010 OldCGAAP'!L24 -> 0 | L24: 0 | M24: 0
A25: 47 | B25: 1830 | C25: Poles, Towers & Fixtures | D25: ='App.2-BA_FA Cont 2010 OldCGAAP'!G25 -> 8224938.33 | E25: 70412 | G25: 8295350.33 | I25: ='App.2-BA_FA Cont 2010 OldCGAAP'!L25 -> -6097839 | J25: -232996.87 | L25: -6330835.87 | M25: 1964514.46
A26: 47 | B26: 1835 | C26: Overhead Conductors & Devices | D26: ='App.2-BA_FA Cont 2010 OldCGAAP'!G26 -> 2576430.73 | E26: 121027 | G26: 2697457.73 | I26: ='App.2-BA_FA Cont 2010 OldCGAAP'!L26 -> -626490.38 | J26: -104944.9 | L26: -731435.28 | M26: 1966022.45
A27: 47 | B27: 1840 | C27: Underground Conduit | D27: ='App.2-BA_FA Cont 2010 OldCGAAP'!G27 -> 2974102.47 | E27: 58881 | G27: 3032983.47 | I27: ='App.2-BA_FA Cont 2010 OldCGAAP'!L27 -> -2096803.16 | J27: -104470.73 | L27: -2201273.89 | M27: 831709.58
A28: 47 | B28: 1845 | C28: Underground Conductors & Devices | D28: ='App.2-BA_FA Cont 2010 OldCGAAP'!G28 -> 406087.84 | E28: 99504 | G28: 505591.84 | I28: ='App.2-BA_FA Cont 2010 OldCGAAP'!L28 -> -72391.03 | J28: -17487 | L28: -89878.03 | M28: 415713.81
A29: 47 | B29: 1850 | C29: Line Transformers | D29: ='App.2-BA_FA Cont 2010 OldCGAAP'!G29 -> 3583668.87 | E29: 129496.48 | G29: 3713165.35 | I29: ='App.2-BA_FA Cont 2010 OldCGAAP'!L29 -> -2115675.78 | J29: -108607 | L29: -2224282.78 | M29: 1488882.57
A30: 47 | B30: 1855 | C30: Services (Overhead & Underground) | D30: ='App.2-BA_FA Cont 2010 OldCGAAP'!G30 -> 978369.1 | E30: 95630 | G30: 1073999.1 | I30: ='App.2-BA_FA Cont 2010 OldCGAAP'!L30 -> -194731.11 | J30: -40330 | L30: -235061.11 | M30: 838937.99
A31: 47 | B31: 1860 | C31: Meters | D31: ='App.2-BA_FA Cont 2010 OldCGAAP'!G31 -> 93647.09 | E31: =13749-2459.68 -> 11289.32 | F31: -39732 | G31: 65204.41 | I31: ='App.2-BA_FA Cont 2010 OldCGAAP'!L31 -> -36334.25 | J31: -1500 | K31: 28655 | L31: -9179.25 | M31: 56025.16
A32: 47 | B32: 1860 | C32: Meters (Smart Meters) | D32: ='App.2-BA_FA Cont 2010 OldCGAAP'!G32 -> 0 | G32: 0 | I32: ='App.2-BA_FA Cont 2010 OldCGAAP'!L32 -> 0 | L32: 0 | M32: 0
A33: N/A | B33: 1905 | C33: Land | D33: ='App.2-BA_FA Cont 2010 OldCGAAP'!G33 -> 0 | G33: 0 | I33: ='App.2-BA_FA Cont 2010 OldCGAAP'!L33 -> 0 | L33: 0 | M33: 0
A34: 47 | B34: 1908 | C34: Buildings & Fixtures | D34: ='App.2-BA_FA Cont 2010 OldCGAAP'!G34 -> 0 | G34: 0 | I34: ='App.2-BA_FA Cont 2010 OldCGAAP'!L34 -> 0 | L34: 0 | M34: 0
A35: 13 | B35: 1910 | C35: Leasehold Improvements | D35: ='App.2-BA_FA Cont 2010 OldCGAAP'!G35 -> 0 | G35: 0 | I35: ='App.2-BA_FA Cont 2010 OldCGAAP'!L35 -> 0 | L35: 0 | M35: 0
A36: 8 | B36: 1915 | C36: Office Furniture & Equipment (10 years) | D36: ='App.2-BA_FA Cont 2010 OldCGAAP'!G36 -> 127989.43 | E36: 2572 | G36: 130561.43 | I36: ='App.2-BA_FA Cont 2010 OldCGAAP'!L36 -> -118246.51 | J36: -2682.68 | L36: -120929.19 | M36: 9632.24
A37: 8 | B37: 1915 | C37: Office Furniture & Equipment (5 years) | D37: ='App.2-BA_FA Cont 2010 OldCGAAP'!G37 -> 0 | G37: 0 | I37: ='App.2-BA_FA Cont 2010 OldCGAAP'!L37 -> 0 | L37: 0 | M37: 0
A38: 10 | B38: 1920 | C38: Computer Equipment - Hardware | D38: ='App.2-BA_FA Cont 2010 OldCGAAP'!G38 -> 0 | G38: 0 | I38: ='App.2-BA_FA Cont 2010 OldCGAAP'!L38 -> 0 | L38: 0 | M38: 0
A39: 45 | B39: 1920 | C39: Computer Equip.-Hardware(Post Mar. 22/04) | D39: ='App.2-BA_FA Cont 2010 OldCGAAP'!G39 -> 0 | G39: 0 | I39: ='App.2-BA_FA Cont 2010 OldCGAAP'!L39 -> 0 | L39: 0 | M39: 0
A40: 45.1 | B40: 1920 | C40: Computer Equip.-Hardware(Post Mar. 19/07) | D40: ='App.2-BA_FA Cont 2010 OldCGAAP'!G40 -> 322307.29 | E40: 8336 | G40: 330643.29 | I40: ='App.2-BA_FA Cont 2010 OldCGAAP'!L40 -> -317918.57 | J40: -4629 | L40: -322547.57 | M40: 8095.72
A41: 10 | B41: 1930 | C41: Transportation Equipment | D41: ='App.2-BA_FA Cont 2010 OldCGAAP'!G41 -> 1692751.71 | E41: 28088 | F41: -21450 | G41: 1699389.71 | I41: ='App.2-BA_FA Cont 2010 OldCGAAP'!L41 -> -1225600.5 | J41: -103527 | K41: 21449.88 | L41: -1307677.62 | M41: 391712.09
A42: 8 | B42: 1935 | C42: Stores Equipment | D42: ='App.2-BA_FA Cont 2010 OldCGAAP'!G42 -> 1761.26 | G42: 1761.26 | I42: ='App.2-BA_FA Cont 2010 OldCGAAP'!L42 -> -1761 | L42: -1761 | M42: 0.26
A43: 8 | B43: 1940 | C43: Tools, Shop & Garage Equipment | D43: ='App.2-BA_FA Cont 2010 OldCGAAP'!G43 -> 236383.66 | E43: 5114 | G43: 241497.66 | I43: ='App.2-BA_FA Cont 2010 OldCGAAP'!L43 -> -212949.75 | J43: -6648 | L43: -219597.75 | M43: 21899.91
A44: 8 | B44: 1945 | C44: Measurement & Testing Equipment | D44: ='App.2-BA_FA Cont 2010 OldCGAAP'!G44 -> 0 | G44: 0 | I44: ='App.2-BA_FA Cont 2010 OldCGAAP'!L44 -> 0 | L44: 0 | M44: 0
A45: 8 | B45: 1950 | C45: Power Operated Equipment | D45: ='App.2-BA_FA Cont 2010 OldCGAAP'!G45 -> 0 | G45: 0 | I45: ='App.2-BA_FA Cont 2010 OldCGAAP'!L45 -> 0 | L45: 0 | M45: 0
A46: 8 | B46: 1955 | C46: Communications Equipment | D46: ='App.2-BA_FA Cont 2010 OldCGAAP'!G46 -> 35201.89 | G46: 35201.89 | I46: ='App.2-BA_FA Cont 2010 OldCGAAP'!L46 -> -30109.7 | J46: -1131.62 | L46: -31241.32 | M46: 3960.57
A47: 8 | B47: 1955 | C47: Communication Equipment (Smart Meters) | D47: ='App.2-BA_FA Cont 2010 OldCGAAP'!G47 -> 0 | G47: 0 | I47: ='App.2-BA_FA Cont 2010 OldCGAAP'!L47 -> 0 | L47: 0 | M47: 0
A48: 8 | B48: 1960 | C48: Miscellaneous Equipment | D48: ='App.2-BA_FA Cont 2010 OldCGAAP'!G48 -> 0 | G48: 0 | I48: ='App.2-BA_FA Cont 2010 OldCGAAP'!L48 -> 0 | L48: 0 | M48: 0
A49: 47 | B49: 1970 | C49: Load Management Controls Customer Premises | D49: ='App.2-BA_FA Cont 2010 OldCGAAP'!G49 -> 254912 | G49: 254912 | I49: ='App.2-BA_FA Cont 2010 OldCGAAP'!L49 -> -252433.08 | J49: -839.35 | L49: -253272.43 | M49: 1639.57
A50: 47 | B50: 1975 | C50: Load Management Controls Utility Premises | D50: ='App.2-BA_FA Cont 2010 OldCGAAP'!G50 -> 64873.19 | G50: 64873.19 | I50: ='App.2-BA_FA Cont 2010 OldCGAAP'!L50 -> -64873 | L50: -64873 | M50: 0.19
A51: 47 | B51: 1980 | C51: System Supervisor Equipment | D51: ='App.2-BA_FA Cont 2010 OldCGAAP'!G51 -> 566498.44 | G51: 566498.44 | I51: ='App.2-BA_FA Cont 2010 OldCGAAP'!L51 -> -497049.38 | J51: -26710 | L51: -523759.38 | M51: 42739.06
A52: 47 | B52: 1985 | C52: Miscellaneous Fixed Assets | D52: ='App.2-BA_FA Cont 2010 OldCGAAP'!G52 -> 0 | G52: 0 | I52: ='App.2-BA_FA Cont 2010 OldCGAAP'!L52 -> 0 | L52: 0 | M52: 0
A53: 47 | B53: 1990 | C53: Other Tangible Property | D53: ='App.2-BA_FA Cont 2010 OldCGAAP'!G53 -> 0 | G53: 0 | I53: ='App.2-BA_FA Cont 2010 OldCGAAP'!L53 -> 0 | L53: 0 | M53: 0
A54: 47 | B54: 1995 | C54: Contributions & Grants | D54: ='App.2-BA_FA Cont 2010 OldCGAAP'!G54 -> -1403745.91 | E54: -254011.49 | G54: -1657757.4 | I54: ='App.2-BA_FA Cont 2010 OldCGAAP'!L54 -> 319919.21 | J54: 58443.5 | L54: 378362.71 | M54: -1279394.69
A55: 47 | B55: 2440 | C55: Deferred Revenue5 | D55: ='App.2-BA_FA Cont 2010 OldCGAAP'!G55 -> 0 | I55: ='App.2-BA_FA Cont 2010 OldCGAAP'!L55 -> 0
D56: ='App.2-BA_FA Cont 2010 OldCGAAP'!G56 -> 0 | G56: 0 | L56: 0 | M56: 0
C57: Sub-Total | D57: =SUM(D17:D56) -> 24380544.83 | E57: =SUM(E17:E56) -> 494206.31 | F57: =SUM(F17:F56) -> -61182 | G57: =SUM(G17:G56) -> 24813569.14 | I57: =SUM(I17:I56) -> -15897786.6 | J57: =SUM(J17:J56) -> -772867.44 | K57: =SUM(K17:K56) -> 50104.88 | L57: =SUM(L17:L56) -> -16620549.16 | M57: =SUM(M17:M56) -> 8193019.98
C58: Less Socialized Renewable Energy Generation Investments (input as negative) | G58: =D58+E58+F58 -> 0 | L58: =I58+J58+K58 -> 0 | M58: =G58+L58 -> 0
C59: Less Other Non Rate-Regulated Utility Assets (input as negative) | G59: 0 | L59: 0 | M59: 0
C60: Total PP&E | D60: =SUM(D57:D59) -> 24380544.83 | E60: =SUM(E57:E59) -> 494206.31 | F60: -61182 | G60: 24813569.14 | I60: =SUM(I57:I59) -> -15897786.6 | J60: -772867.44 | K60: 50104.88 | L60: -16620549.16 | M60: 8193019.98
C61: Depreciation Expense adj. from gain or loss on the retirement of assets (pool of like assets), if applicable6
C62: Total | J62: =J60+J61 -> -772867.44
I64: Less: Fully Allocated Depreciation
A65: 10 | C65: Transportation | I65: Transportation | K65: -100658.98
A66: 8 | C66: Stores Equipment | I66: Stores Equipment
I67: Net Depreciation | K67: =J62-K65-K66 -> -672208.46
A69: Notes:
A71: 1 | B71: Tables in the format outlined above covering all fixed asset accounts should be submitted for the Test Year, Bridge Year and all relevant historical years. At a minimum , the applicant must provide data for the earlier of: 1) all historical years back to its last rebasing; or 2) at least three years of historical actuals, in addition to Bridge Year and Test Year forecasts.
A74: 2 | B74: The "CCA Class" for fixed assets should agree with the CCA Class used for tax purposes in Tax Returns. Fixed Assets sub-components may be used where the underlying asset components are classified under multiple CCA Classes for tax purposes. If an applicant uses any different classes from those shown in the table, an explanation should be provided. (also see note 3 below).
A77: 3 | B77: The table may need to be customized for a utility's asset categories or for any new asset accounts announced or authorized by the Board.
A79: 4 | B79: The additions column (E) must not include construction work in progress (CWIP).
A81: 5 | B81: Effective on the date of IFRS adoption, customer contributions will no longer be recorded in Account 1995 Contributions & Grants, but will be recorded in Account 2440, Deferred Revenues.
A83: 6 | B83: Where a distributor for general financial reporting purposes under IFRS has accounted for the amount of gain or loss on the retirement of assets in a pool of like assets as a charge or credit to income, for reporting and rate application filings the distributor shall reclassify such gains and losses as depreciation expense, and disclose the amount separately.

Sheet App.2-BA_FA 2012 OldCGAAP
L1: File Number: | M1: =EBNUMBER -> 
L2: Exhibit:
L3: Tab:
L4: Schedule:
L5: Page:
L7: Date:
A9: Appendix 2-BA
A10: Fixed Asset Continuity Schedule
E12: Accounting Standard | F12: CGAAP | G12: Old CGAAP
E13: Year | F13: 2012
D15: Cost | J15: Accumulated Depreciation
A16: CCA Class | B16: OEB | C16: Description | D16: Opening Balance | E16: Additions | F16: Disposals | G16: Closing Balance | I16: Opening Balance | J16: Additions | K16: Disposals | L16: Closing Balance | M16: Net Book Value
A17: 12 | B17: 1611 | C17: Computer Software (Formally known as Account 1925) | D17: ='App.2-BA_FA Cont 2011 OldCGAAP'!G17 -> 314252.74 | E17: 0 | F17: 0 | G17: =D17+E17+F17 -> 314252.74 | I17: ='App.2-BA_FA Cont 2011 OldCGAAP'!L17 -> -300948.97 | J17: =-1499.99-5447.25-25.2 -> -6972.44 | L17: =I17+J17+K17 -> -307921.41 | M17: =G17+L17 -> 6331.33
A18: CEC | B18: 1612 | C18: Land Rights (Formally known as Account 1906) | D18: ='App.2-BA_FA Cont 2011 OldCGAAP'!G18 -> 10808.84 | E18: 0 | F18: 0 | G18: =D18+E18+F18 -> 10808.84 | I18: ='App.2-BA_FA Cont 2011 OldCGAAP'!L18 -> -7391 | J18: -335 | L18: =I18+J18+K18 -> -7726 | M18: =G18+L18 -> 3082.84
A19: N/A | B19: 1805 | C19: Land | D19: ='App.2-BA_FA Cont 2011 OldCGAAP'!G19 -> 130499.26 | E19: 0 | F19: 0 | G19: =D19+E19+F19 -> 130499.26 | I19: ='App.2-BA_FA Cont 2011 OldCGAAP'!L19 -> 0 | J19: 0 | L19: =I19+J19+K19 -> 0 | M19: =G19+L19 -> 130499.26
A20: 47 | B20: 1808 | C20: Buildings | D20: ='App.2-BA_FA Cont 2011 OldCGAAP'!G20 -> 486542.71 | E20: 60160 | G20: =D20+E20+F20 -> 546702.71 | I20: ='App.2-BA_FA Cont 2011 OldCGAAP'!L20 -> -265068.21 | J20: -10088.04 | L20: =I20+J20+K20 -> -275156.25 | M20: =G20+L20 -> 271546.46
A21: 13 | B21: 1810 | C21: Leasehold Improvements | D21: ='App.2-BA_FA Cont 2011 OldCGAAP'!G21 -> 0 | G21: 0 | I21: ='App.2-BA_FA Cont 2011 OldCGAAP'!L21 -> 0 | L21: 0 | M21: 0
A22: 47 | B22: 1815 | C22: Transformer Station Equipment >50 kV | D22: ='App.2-BA_FA Cont 2011 OldCGAAP'!G22 -> 0 | G22: 0 | I22: ='App.2-BA_FA Cont 2011 OldCGAAP'!L22 -> 0 | L22: 0 | M22: 0
A23: 47 | B23: 1820 | C23: Distribution Station Equipment <50 kV | D23: ='App.2-BA_FA Cont 2011 OldCGAAP'!G23 -> 2820131.89 | E23: 6177 | G23: 2826308.89 | I23: ='App.2-BA_FA Cont 2011 OldCGAAP'!L23 -> -1757898.22 | J23: -59953.03 | L23: -1817851.25 | M23: 1008457.64
A24: 47 | B24: 1825 | C24: Storage Battery Equipment | D24: ='App.2-BA_FA Cont 2011 OldCGAAP'!G24 -> 0 | G24: 0 | I24: ='App.2-BA_FA Cont 2011 OldCGAAP'!L24 -> 0 | L24: 0 | M24: 0
A25: 47 | B25: 1830 | C25: Poles, Towers & Fixtures | D25: ='App.2-BA_FA Cont 2011 OldCGAAP'!G25 -> 8295350.33 | E25: 88303 | G25: 8383653.33 | I25: ='App.2-BA_FA Cont 2011 OldCGAAP'!L25 -> -6330835.87 | J25: =-208134.15+2062.18 -> -206071.97 | L25: -6536907.84 | M25: 1846745.49
A26: 47 | B26: 1835 | C26: Overhead Conductors & Devices | D26: ='App.2-BA_FA Cont 2011 OldCGAAP'!G26 -> 2697457.73 | E26: 239543.24 | G26: 2937000.97 | I26: ='App.2-BA_FA Cont 2011 OldCGAAP'!L26 -> -731435.28 | J26: =-112689.18+4636.71 -> -108052.47 | L26: -839487.75 | M26: 2097513.22
A27: 47 | B27: 1840 | C27: Underground Conduit | D27: ='App.2-BA_FA Cont 2011 OldCGAAP'!G27 -> 3032983.47 | E27: 3645 | G27: 3036628.47 | I27: ='App.2-BA_FA Cont 2011 OldCGAAP'!L27 -> -2201273.89 | J27: =-100628.65-1361.42 -> -101990.07 | L27: -2303263.96 | M27: 733364.51
A28: 47 | B28: 1845 | C28: Underground Conductors & Devices | D28: ='App.2-BA_FA Cont 2011 OldCGAAP'!G28 -> 505591.84 | E28: 43959 | G28: 549550.84 | I28: ='App.2-BA_FA Cont 2011 OldCGAAP'!L28 -> -89878.03 | J28: =-21102.84+1822 -> -19280.84 | L28: -109158.87 | M28: 440391.97
A29: 47 | B29: 1850 | C29: Line Transformers | D29: ='App.2-BA_FA Cont 2011 OldCGAAP'!G29 -> 3713165.35 | E29: 119724.37 | G29: 3832889.72 | I29: ='App.2-BA_FA Cont 2011 OldCGAAP'!L29 -> -2224282.78 | J29: =-109078.79+1074.69 -> -108004.1 | L29: -2332286.88 | M29: 1500602.84
A30: 47 | B30: 1855 | C30: Services (Overhead & Underground) | D30: ='App.2-BA_FA Cont 2011 OldCGAAP'!G30 -> 1073999.1 | E30: 50079 | G30: 1124078.1 | I30: ='App.2-BA_FA Cont 2011 OldCGAAP'!L30 -> -235061.11 | J30: =-43961.54+2019.73 -> -41941.81 | L30: -277002.92 | M30: 847075.18
A31: 47 | B31: 1860 | C31: Meters | D31: ='App.2-BA_FA Cont 2011 OldCGAAP'!G31 -> 65204.41 | E31: =23542+1054 -> 24596 | G31: 89800.41 | I31: ='App.2-BA_FA Cont 2011 OldCGAAP'!L31 -> -9179.25 | J31: -2189.23 | L31: -11368.48 | M31: 78431.93
A32: 47 | B32: 1860 | C32: Meters (Smart Meters) | D32: ='App.2-BA_FA Cont 2011 OldCGAAP'!G32 -> 0 | G32: 0 | I32: ='App.2-BA_FA Cont 2011 OldCGAAP'!L32 -> 0 | L32: 0 | M32: 0
A33: N/A | B33: 1905 | C33: Land | D33: ='App.2-BA_FA Cont 2011 OldCGAAP'!G33 -> 0 | G33: 0 | I33: ='App.2-BA_FA Cont 2011 OldCGAAP'!L33 -> 0 | L33: 0 | M33: 0
A34: 47 | B34: 1908 | C34: Buildings & Fixtures | D34: ='App.2-BA_FA Cont 2011 OldCGAAP'!G34 -> 0 | G34: 0 | I34: ='App.2-BA_FA Cont 2011 OldCGAAP'!L34 -> 0 | L34: 0 | M34: 0
A35: 13 | B35: 1910 | C35: Leasehold Improvements | D35: ='App.2-BA_FA Cont 2011 OldCGAAP'!G35 -> 0 | G35: 0 | I35: ='App.2-BA_FA Cont 2011 OldCGAAP'!L35 -> 0 | L35: 0 | M35: 0
A36: 8 | B36: 1915 | C36: Office Furniture & Equipment (10 years) | D36: ='App.2-BA_FA Cont 2011 OldCGAAP'!G36 -> 130561.43 | G36: 130561.43 | I36: ='App.2-BA_FA Cont 2011 OldCGAAP'!L36 -> -120929.19 | J36: -2538.7 | L36: -123467.89 | M36: 7093.54
A37: 8 | B37: 1915 | C37: Office Furniture & Equipment (5 years) | D37: ='App.2-BA_FA Cont 2011 OldCGAAP'!G37 -> 0 | G37: 0 | I37: ='App.2-BA_FA Cont 2011 OldCGAAP'!L37 -> 0 | L37: 0 | M37: 0
A38: 10 | B38: 1920 | C38: Computer Equipment - Hardware | D38: ='App.2-BA_FA Cont 2011 OldCGAAP'!G38 -> 0 | G38: 0 | I38: ='App.2-BA_FA Cont 2011 OldCGAAP'!L38 -> 0 | L38: 0 | M38: 0
A39: 45 | B39: 1920 | C39: Computer Equip.-Hardware(Post Mar. 22/04) | D39: ='App.2-BA_FA Cont 2011 OldCGAAP'!G39 -> 0 | G39: 0 | I39: ='App.2-BA_FA Cont 2011 OldCGAAP'!L39 -> 0 | L39: 0 | M39: 0
A40: 45.1 | B40: 1920 | C40: Computer Equip.-Hardware(Post Mar. 19/07) | D40: ='App.2-BA_FA Cont 2011 OldCGAAP'!G40 -> 330643.29 | E40: 5308 | G40: 335951.29 | I40: ='App.2-BA_FA Cont 2011 OldCGAAP'!L40 -> -322547.57 | J40: -4428.93 | L40: -326976.5 | M40: 8974.79
A41: 10 | B41: 1930 | C41: Transportation Equipment | D41: ='App.2-BA_FA Cont 2011 OldCGAAP'!G41 -> 1699389.71 | E41: 145403 | F41: -24248 | G41: 1820544.71 | I41: ='App.2-BA_FA Cont 2011 OldCGAAP'!L41 -> -1307677.62 | J41: -90647.9 | K41: 24248 | L41: -1374077.52 | M41: 446467.19
A42: 8 | B42: 1935 | C42: Stores Equipment | D42: ='App.2-BA_FA Cont 2011 OldCGAAP'!G42 -> 1761.26 | G42: 1761.26 | I42: ='App.2-BA_FA Cont 2011 OldCGAAP'!L42 -> -1761 | L42: -1761 | M42: 0.26
A43: 8 | B43: 1940 | C43: Tools, Shop & Garage Equipment | D43: ='App.2-BA_FA Cont 2011 OldCGAAP'!G43 -> 241497.66 | E43: 12399 | G43: 253896.66 | I43: ='App.2-BA_FA Cont 2011 OldCGAAP'!L43 -> -219597.75 | J43: -7117.93 | L43: -226715.68 | M43: 27180.98
A44: 8 | B44: 1945 | C44: Measurement & Testing Equipment | D44: ='App.2-BA_FA Cont 2011 OldCGAAP'!G44 -> 0 | G44: 0 | I44: ='App.2-BA_FA Cont 2011 OldCGAAP'!L44 -> 0 | L44: 0 | M44: 0
A45: 8 | B45: 1950 | C45: Power Operated Equipment | D45: ='App.2-BA_FA Cont 2011 OldCGAAP'!G45 -> 0 | G45: 0 | I45: ='App.2-BA_FA Cont 2011 OldCGAAP'!L45 -> 0 | L45: 0 | M45: 0
A46: 8 | B46: 1955 | C46: Communications Equipment | D46: ='App.2-BA_FA Cont 2011 OldCGAAP'!G46 -> 35201.89 | E46: 1574 | G46: 36775.89 | I46: ='App.2-BA_FA Cont 2011 OldCGAAP'!L46 -> -31241.32 | J46: -1289.05 | L46: -32530.37 | M46: 4245.52
A47: 8 | B47: 1955 | C47: Communication Equipment (Smart Meters) | D47: ='App.2-BA_FA Cont 2011 OldCGAAP'!G47 -> 0 | G47: 0 | I47: ='App.2-BA_FA Cont 2011 OldCGAAP'!L47 -> 0 | L47: 0 | M47: 0
A48: 8 | B48: 1960 | C48: Miscellaneous Equipment | D48: ='App.2-BA_FA Cont 2011 OldCGAAP'!G48 -> 0 | G48: 0 | I48: ='App.2-BA_FA Cont 2011 OldCGAAP'!L48 -> 0 | L48: 0 | M48: 0
A49: 47 | B49: 1970 | C49: Load Management Controls Customer Premises | D49: ='App.2-BA_FA Cont 2011 OldCGAAP'!G49 -> 254912 | G49: 254912 | I49: ='App.2-BA_FA Cont 2011 OldCGAAP'!L49 -> -253272.43 | J49: -839 | L49: -254111.43 | M49: 800.57
A50: 47 | B50: 1975 | C50: Load Management Controls Utility Premises | D50: ='App.2-BA_FA Cont 2011 OldCGAAP'!G50 -> 64873.19 | G50: 64873.19 | I50: ='App.2-BA_FA Cont 2011 OldCGAAP'!L50 -> -64873 | L50: -64873 | M50: 0.19
A51: 47 | B51: 1980 | C51: System Supervisor Equipment | D51: ='App.2-BA_FA Cont 2011 OldCGAAP'!G51 -> 566498.44 | E51: 4116 | G51: 570614.44 | I51: ='App.2-BA_FA Cont 2011 OldCGAAP'!L51 -> -523759.38 | J51: -23613.62 | L51: -547373 | M51: 23241.44
A52: 47 | B52: 1985 | C52: Miscellaneous Fixed Assets | D52: ='App.2-BA_FA Cont 2011 OldCGAAP'!G52 -> 0 | G52: 0 | I52: ='App.2-BA_FA Cont 2011 OldCGAAP'!L52 -> 0 | L52: 0 | M52: 0
A53: 47 | B53: 1990 | C53: Other Tangible Property | D53: ='App.2-BA_FA Cont 2011 OldCGAAP'!G53 -> 0 | E53: 0 | F53: 0 | G53: 0 | I53: ='App.2-BA_FA Cont 2011 OldCGAAP'!L53 -> 0 | L53: 0 | M53: 0
A54: 47 | B54: 1995 | C54: Contributions & Grants | D54: ='App.2-BA_FA Cont 2011 OldCGAAP'!G54 -> -1657757.4 | E54: -347303.89 | G54: -2005061.29 | I54: ='App.2-BA_FA Cont 2011 OldCGAAP'!L54 -> 378362.71 | J54: 65959.95 | L54: 444322.66 | M54: -1560738.63
A55: 47 | B55: 2440 | C55: Deferred Revenue5 | D55: ='App.2-BA_FA Cont 2011 OldCGAAP'!G55 -> 0 | I55: ='App.2-BA_FA Cont 2011 OldCGAAP'!L55 -> 0
G56: 0 | L56: 0 | M56: 0
C57: Sub-Total | D57: =SUM(D17:D56) -> 24813569.14 | E57: =SUM(E17:E56) -> 457682.72 | F57: =SUM(F17:F56) -> -24248 | G57: =SUM(G17:G56) -> 25247003.86 | I57: =SUM(I17:I56) -> -16620549.16 | J57: =SUM(J17:J56) -> -729394.18 | K57: =SUM(K17:K56) -> 24248 | L57: =SUM(L17:L56) -> -17325695.34 | M57: =SUM(M17:M56) -> 7921308.52
C58: Less Socialized Renewable Energy Generation Investments (input as negative) | G58: =D58+E58+F58 -> 0 | L58: =I58+J58+K58 -> 0 | M58: =G58+L58 -> 0
C59: Less Other Non Rate-Regulated Utility Assets (input as negative) | G59: 0 | L59: 0 | M59: 0
C60: Total PP&E | D60: =SUM(D57:D59) -> 24813569.14 | E60: =SUM(E57:E59) -> 457682.72 | F60: -24248 | G60: 25247003.86 | I60: =SUM(I57:I59) -> -16620549.16 | J60: -729394.18 | K60: 24248 | L60: -17325695.34 | M60: 7921308.52
C61: Depreciation Expense adj. from gain or loss on the retirement of assets (pool of like assets), if applicable6
C62: Total | J62: =J60+J61 -> -729394.18
I64: Less: Fully Allocated Depreciation
A65: 10 | C65: Transportation | I65: Transportation | K65: -81511.49
A66: 8 | C66: Stores Equipment | I66: Stores Equipment
I67: Net Depreciation | K67: =J62-K65-K66 -> -647882.69
A69: Notes:
A71: 1 | B71: Tables in the format outlined above covering all fixed asset accounts should be submitted for the Test Year, Bridge Year and all relevant historical years. At a minimum , the applicant must provide data for the earlier of: 1) all historical years back to its last rebasing; or 2) at least three years of historical actuals, in addition to Bridge Year and Test Year forecasts.
A74: 2 | B74: The "CCA Class" for fixed assets should agree with the CCA Class used for tax purposes in Tax Returns. Fixed Assets sub-components may be used where the underlying asset components are classified under multiple CCA Classes for tax purposes. If an applicant uses any different classes from those shown in the table, an explanation should be provided. (also see note 3 below).
A77: 3 | B77: The table may need to be customized for a utility's asset categories or for any new asset accounts announced or authorized by the Board.
A79: 4 | B79: The additions column (E) must not include construction work in progress (CWIP).
A81: 5 | B81: Effective on the date of IFRS adoption, customer contributions will no longer be recorded in Account 1995 Contributions & Grants, but will be recorded in Account 2440, Deferred Revenues.
A83: 6 | B83: Where a distributor for general financial reporting purposes under IFRS has accounted for the amount of gain or loss on the retirement of assets in a pool of like assets as a charge or credit to income, for reporting and rate application filings the distributor shall reclassify such gains and losses as depreciation expense, and disclose the amount separately.

Sheet App.2-BA_FA Cont 2013 OldCGAAP
L1: File Number: | M1: =EBNUMBER -> 
L2: Exhibit:
L3: Tab:
L4: Schedule:
L5: Page:
L7: Date:
A9: Appendix 2-BA
A10: Fixed Asset Continuity Schedule
E12: Accounting Standard | F12: CGAAP | G12: Old CGAAP
E13: Year | F13: 2013
D15: Cost | J15: Accumulated Depreciation
A16: CCA Class | B16: OEB | C16: Description | D16: Opening Balance | E16: Additions | F16: Disposals | G16: Closing Balance | I16: Opening Balance | J16: Additions | K16: Disposals | L16: Closing Balance | M16: Net Book Value
A17: 12 | B17: 1611 | C17: Computer Software (Formally known as Account 1925) | D17: =+'App.2-BA_FA 2012 OldCGAAP'!G17 -> 314252.74 | E17: 46620 | F17: 0 | G17: =D17+E17+F17 -> 360872.74 | I17: ='App.2-BA_FA 2012 OldCGAAP'!L17 -> -307921.41 | J17: -12684.96 | K17: 0 | L17: =I17+J17+K17 -> -320606.37 | M17: =G17+L17 -> 40266.37
A18: CEC | B18: 1612 | C18: Land Rights (Formally known as Account 1906) | D18: =+'App.2-BA_FA 2012 OldCGAAP'!G18 -> 10808.84 | F18: 0 | G18: =D18+E18+F18 -> 10808.84 | I18: ='App.2-BA_FA 2012 OldCGAAP'!L18 -> -7726 | J18: -335 | K18: 0 | L18: =I18+J18+K18 -> -8061 | M18: =G18+L18 -> 2747.84
A19: N/A | B19: 1805 | C19: Land | D19: =+'App.2-BA_FA 2012 OldCGAAP'!G19 -> 130499.26 | F19: 0 | G19: =D19+E19+F19 -> 130499.26 | I19: ='App.2-BA_FA 2012 OldCGAAP'!L19 -> 0 | K19: 0 | L19: =I19+J19+K19 -> 0 | M19: =G19+L19 -> 130499.26
A20: 47 | B20: 1808 | C20: Buildings | D20: =+'App.2-BA_FA 2012 OldCGAAP'!G20 -> 546702.71 | E20: 93745 | G20: =D20+E20+F20 -> 640447.71 | I20: ='App.2-BA_FA 2012 OldCGAAP'!L20 -> -275156.25 | J20: -13163.54 | L20: =I20+J20+K20 -> -288319.79 | M20: =G20+L20 -> 352127.92
A21: 13 | B21: 1810 | C21: Leasehold Improvements | D21: =+'App.2-BA_FA 2012 OldCGAAP'!G21 -> 0 | G21: 0 | I21: ='App.2-BA_FA 2012 OldCGAAP'!L21 -> 0 | L21: 0 | M21: 0
A22: 47 | B22: 1815 | C22: Transformer Station Equipment >50 kV | D22: =+'App.2-BA_FA 2012 OldCGAAP'!G22 -> 0 | G22: 0 | I22: ='App.2-BA_FA 2012 OldCGAAP'!L22 -> 0 | L22: 0 | M22: 0
A23: 47 | B23: 1820 | C23: Distribution Station Equipment <50 kV | D23: =+'App.2-BA_FA 2012 OldCGAAP'!G23 -> 2826308.89 | E23: 40093 | G23: 2866401.89 | I23: ='App.2-BA_FA 2012 OldCGAAP'!L23 -> -1817851.25 | J23: -60502.47 | L23: -1878353.72 | M23: 988048.17
A25: 47 | B25: 1825 | C25: Storage Battery Equipment | D25: =+'App.2-BA_FA 2012 OldCGAAP'!G24 -> 0 | G25: 0 | I25: ='App.2-BA_FA 2012 OldCGAAP'!L24 -> 0 | L25: 0 | M25: 0
A26: 47 | B26: 1830 | C26: Poles, Towers & Fixtures | D26: =+'App.2-BA_FA 2012 OldCGAAP'!G25 -> 8383653.33 | E26: 161461 | G26: 8545114.33 | I26: ='App.2-BA_FA 2012 OldCGAAP'!L25 -> -6536907.84 | J26: -197547 | L26: -6734454.84 | M26: 1810659.49
A27: 47 | B27: 1835 | C27: Overhead Conductors & Devices | D27: =+'App.2-BA_FA 2012 OldCGAAP'!G26 -> 2937000.97 | E27: 224632 | G27: 3161632.97 | I27: ='App.2-BA_FA 2012 OldCGAAP'!L26 -> -839487.75 | J27: -121673 | L27: -961160.75 | M27: 2200472.22
A28: 47 | B28: 1840 | C28: Underground Conduit | D28: =+'App.2-BA_FA 2012 OldCGAAP'!G27 -> 3036628.47 | E28: 2064 | G28: 3038692.47 | I28: ='App.2-BA_FA 2012 OldCGAAP'!L27 -> -2303263.96 | J28: =-97006.25-3073.88 -> -100080.13 | L28: -2403344.09 | M28: 635348.38
A29: 47 | B29: 1845 | C29: Underground Conductors & Devices | D29: =+'App.2-BA_FA 2012 OldCGAAP'!G28 -> 549550.84 | E29: 33860 | G29: 583410.84 | I29: ='App.2-BA_FA 2012 OldCGAAP'!L28 -> -109158.87 | J29: -22228 | L29: -131386.87 | M29: 452023.97
A30: 47 | B30: 1850 | C30: Line Transformers | D30: =+'App.2-BA_FA 2012 OldCGAAP'!G29 -> 3832889.72 | E30: 119766.48 | G30: 3952656.2 | I30: ='App.2-BA_FA 2012 OldCGAAP'!L29 -> -2332286.88 | J30: =-102650.99-6564.48-2572.13 -> -111787.6 | L30: -2444074.48 | M30: 1508581.72
A31: 47 | B31: 1855 | C31: Services (Overhead & Underground) | D31: =+'App.2-BA_FA 2012 OldCGAAP'!G30 -> 1124078.1 | E31: 118992 | G31: 1243070.1 | I31: ='App.2-BA_FA 2012 OldCGAAP'!L30 -> -277002.92 | J31: -47342.96 | L31: -324345.88 | M31: 918724.22
A32: 47 | B32: 1860 | C32: Meters | D32: =+'App.2-BA_FA 2012 OldCGAAP'!G31 -> 89800.41 | E32: =17449-8171 -> 9278 | G32: 99078.41 | I32: ='App.2-BA_FA 2012 OldCGAAP'!L31 -> -11368.48 | J32: -3555 | L32: -14923.48 | M32: 84154.93
A33: 47 | B33: 1860 | C33: Meters (Smart Meters) | D33: =+'App.2-BA_FA 2012 OldCGAAP'!G32 -> 0 | G33: 0 | I33: ='App.2-BA_FA 2012 OldCGAAP'!L32 -> 0 | L33: 0 | M33: 0
A34: N/A | B34: 1905 | C34: Land | D34: =+'App.2-BA_FA 2012 OldCGAAP'!G33 -> 0 | G34: 0 | I34: ='App.2-BA_FA 2012 OldCGAAP'!L33 -> 0 | L34: 0 | M34: 0
A35: 47 | B35: 1908 | C35: Buildings & Fixtures | D35: =+'App.2-BA_FA 2012 OldCGAAP'!G34 -> 0 | G35: 0 | I35: ='App.2-BA_FA 2012 OldCGAAP'!L34 -> 0 | L35: 0 | M35: 0
A36: 13 | B36: 1910 | C36: Leasehold Improvements | D36: =+'App.2-BA_FA 2012 OldCGAAP'!G35 -> 0 | G36: 0 | I36: ='App.2-BA_FA 2012 OldCGAAP'!L35 -> 0 | L36: 0 | M36: 0
A37: 8 | B37: 1915 | C37: Office Furniture & Equipment (10 years) | D37: =+'App.2-BA_FA 2012 OldCGAAP'!G36 -> 130561.43 | E37: 1388 | G37: 131949.43 | I37: ='App.2-BA_FA 2012 OldCGAAP'!L36 -> -123467.89 | J37: -1409.66 | L37: -124877.55 | M37: 7071.88
A38: 8 | B38: 1915 | C38: Office Furniture & Equipment (5 years) | D38: =+'App.2-BA_FA 2012 OldCGAAP'!G37 -> 0 | G38: 0 | I38: ='App.2-BA_FA 2012 OldCGAAP'!L37 -> 0 | L38: 0 | M38: 0
A39: 10 | B39: 1920 | C39: Computer Equipment - Hardware | D39: =+'App.2-BA_FA 2012 OldCGAAP'!G38 -> 0 | G39: 0 | I39: ='App.2-BA_FA 2012 OldCGAAP'!L38 -> 0 | L39: 0 | M39: 0
A40: 45 | B40: 1920 | C40: Computer Equip.-Hardware(Post Mar. 22/04) | D40: =+'App.2-BA_FA 2012 OldCGAAP'!G39 -> 0 | G40: 0 | I40: ='App.2-BA_FA 2012 OldCGAAP'!L39 -> 0 | L40: 0 | M40: 0
A41: 45.1 | B41: 1920 | C41: Computer Equip.-Hardware(Post Mar. 19/07) | D41: =+'App.2-BA_FA 2012 OldCGAAP'!G40 -> 335951.29 | E41: 28127 | G41: 364078.29 | I41: ='App.2-BA_FA 2012 OldCGAAP'!L40 -> -326976.5 | J41: -9618.64 | L41: -336595.14 | M41: 27483.15
A42: 10 | B42: 1930 | C42: Transportation Equipment | D42: =+'App.2-BA_FA 2012 OldCGAAP'!G41 -> 1820544.71 | E42: 457242 | F42: -51998.71 | G42: 2225788 | I42: ='App.2-BA_FA 2012 OldCGAAP'!L41 -> -1374077.52 | J42: -125582.76 | K42: 51998.71 | L42: -1447661.57 | M42: 778126.43
A43: 8 | B43: 1935 | C43: Stores Equipment | D43: =+'App.2-BA_FA 2012 OldCGAAP'!G42 -> 1761.26 | G43: 1761.26 | I43: ='App.2-BA_FA 2012 OldCGAAP'!L42 -> -1761 | L43: -1761 | M43: 0.26
A44: 8 | B44: 1940 | C44: Tools, Shop & Garage Equipment | D44: =+'App.2-BA_FA 2012 OldCGAAP'!G43 -> 253896.66 | E44: 6273 | G44: 260169.66 | I44: ='App.2-BA_FA 2012 OldCGAAP'!L43 -> -226715.68 | J44: -6673.37 | L44: -233389.05 | M44: 26780.61
A45: 8 | B45: 1945 | C45: Measurement & Testing Equipment | D45: =+'App.2-BA_FA 2012 OldCGAAP'!G44 -> 0 | E45: 18090 | G45: 18090 | I45: ='App.2-BA_FA 2012 OldCGAAP'!L44 -> 0 | J45: -904.5 | L45: -904.5 | M45: 17185.5
A46: 8 | B46: 1950 | C46: Power Operated Equipment | D46: =+'App.2-BA_FA 2012 OldCGAAP'!G45 -> 0 | G46: 0 | I46: ='App.2-BA_FA 2012 OldCGAAP'!L45 -> 0 | L46: 0 | M46: 0
A47: 8 | B47: 1955 | C47: Communications Equipment | D47: =+'App.2-BA_FA 2012 OldCGAAP'!G46 -> 36775.89 | G47: 36775.89 | I47: ='App.2-BA_FA 2012 OldCGAAP'!L46 -> -32530.37 | J47: -1446.49 | L47: -33976.86 | M47: 2799.03
A48: 8 | B48: 1955 | C48: Communication Equipment (Smart Meters) | D48: =+'App.2-BA_FA 2012 OldCGAAP'!G47 -> 0 | G48: 0 | I48: ='App.2-BA_FA 2012 OldCGAAP'!L47 -> 0 | L48: 0 | M48: 0
A49: 8 | B49: 1960 | C49: Miscellaneous Equipment | D49: =+'App.2-BA_FA 2012 OldCGAAP'!G48 -> 0 | E49: 12104 | G49: 12104 | I49: ='App.2-BA_FA 2012 OldCGAAP'!L48 -> 0 | J49: -605.2 | L49: -605.2 | M49: 11498.8
A50: 47 | B50: 1970 | C50: Load Management Controls Customer Premises | D50: =+'App.2-BA_FA 2012 OldCGAAP'!G49 -> 254912 | G50: 254912 | I50: ='App.2-BA_FA 2012 OldCGAAP'!L49 -> -254111.43 | J50: -801 | L50: -254912.43 | M50: -0.43
A51: 47 | B51: 1975 | C51: Load Management Controls Utility Premises | D51: =+'App.2-BA_FA 2012 OldCGAAP'!G50 -> 64873.19 | G51: 64873.19 | I51: ='App.2-BA_FA 2012 OldCGAAP'!L50 -> -64873 | L51: -64873 | M51: 0.19
A52: 47 | B52: 1980 | C52: System Supervisor Equipment | D52: =+'App.2-BA_FA 2012 OldCGAAP'!G51 -> 570614.44 | E52: 503 | G52: 571117.44 | I52: ='App.2-BA_FA 2012 OldCGAAP'!L51 -> -547373 | J52: -13678.56 | L52: -561051.56 | M52: 10065.88
A53: 47 | B53: 1985 | C53: Miscellaneous Fixed Assets | D53: =+'App.2-BA_FA 2012 OldCGAAP'!G52 -> 0 | G53: 0 | I53: ='App.2-BA_FA 2012 OldCGAAP'!L52 -> 0 | L53: 0 | M53: 0
A54: 47 | B54: 1990 | C54: Other Tangible Property | D54: =+'App.2-BA_FA 2012 OldCGAAP'!G53 -> 0 | G54: 0 | I54: ='App.2-BA_FA 2012 OldCGAAP'!L53 -> 0 | L54: 0 | M54: 0
A55: 47 | B55: 1995 | C55: Contributions & Grants | D55: =+'App.2-BA_FA 2012 OldCGAAP'!G54 -> -2005061.29 | E55: -35216.9 | G55: -2040278.19 | I55: ='App.2-BA_FA 2012 OldCGAAP'!L54 -> 444322.66 | J55: 69166 | L55: 513488.66 | M55: -1526789.53
A56: 47 | B56: 2440 | C56: Deferred Revenue5 | D56: =+'App.2-BA_FA 2012 OldCGAAP'!G55 -> 0 | I56: ='App.2-BA_FA 2012 OldCGAAP'!L55 -> 0
G57: 0 | I57: ='App.2-BA_FA Cont 2011 OldCGAAP'!L56 -> 0 | L57: 0 | M57: 0
C58: Sub-Total | D58: =SUM(D17:D57) -> 25247003.86 | E58: =SUM(E17:E57) -> 1339021.58 | F58: =SUM(F17:F57) -> -51998.71 | G58: =SUM(G17:G57) -> 26534026.73 | I58: =SUM(I17:I57) -> -17325695.34 | J58: =SUM(J17:J57) -> -782453.84 | K58: =SUM(K17:K57) -> 51998.71 | L58: =SUM(L17:L57) -> -18056150.47 | M58: =SUM(M17:M57) -> 8477876.26
C59: Less Socialized Renewable Energy Generation Investments (input as negative) | G59: =D59+E59+F59 -> 0 | L59: =I59+J59+K59 -> 0 | M59: =G59+L59 -> 0
C60: Less Other Non Rate-Regulated Utility Assets (input as negative) | G60: 0 | L60: 0 | M60: 0
C61: Total PP&E | D61: =SUM(D58:D60) -> 25247003.86 | E61: =SUM(E58:E60) -> 1339021.58 | F61: -51998.71 | G61: 26534026.73 | I61: =SUM(I58:I60) -> -17325695.34 | J61: -782453.84 | K61: 51998.71 | L61: -18056150.47 | M61: 8477876.26
C62: Depreciation Expense adj. from gain or loss on the retirement of assets (pool of like assets), if applicable6
C63: Total | J63: =J61+J62 -> -782453.84
I65: Less: Fully Allocated Depreciation
A66: 10 | C66: Transportation | I66: Transportation | K66: -109895.88
A67: 8 | C67: Stores Equipment | I67: Stores Equipment
I68: Net Depreciation | K68: =J63-K66-K67 -> -672557.96
A70: Notes:
A72: 1 | B72: Tables in the format outlined above covering all fixed asset accounts should be submitted for the Test Year, Bridge Year and all relevant historical years. At a minimum , the applicant must provide data for the earlier of: 1) all historical years back to its last rebasing; or 2) at least three years of historical actuals, in addition to Bridge Year and Test Year forecasts.
A75: 2 | B75: The "CCA Class" for fixed assets should agree with the CCA Class used for tax purposes in Tax Returns. Fixed Assets sub-components may be used where the underlying asset components are classified under multiple CCA Classes for tax purposes. If an applicant uses any different classes from those shown in the table, an explanation should be provided. (also see note 3 below).
A78: 3 | B78: The table may need to be customized for a utility's asset categories or for any new asset accounts announced or authorized by the Board.
A80: 4 | B80: The additions column (E) must not include construction work in progress (CWIP).
A82: 5 | B82: Effective on the date of IFRS adoption, customer contributions will no longer be recorded in Account 1995 Contributions & Grants, but will be recorded in Account 2440, Deferred Revenues.
A84: 6 | B84: Where a distributor for general financial reporting purposes under IFRS has accounted for the amount of gain or loss on the retirement of assets in a pool of like assets as a charge or credit to income, for reporting and rate application filings the distributor shall reclassify such gains and losses as depreciation expense, and disclose the amount separately.

Sheet App.2-BA_FA Cont 2013 NewCGAAP
L1: File Number: | M1: =EBNUMBER -> 
L2: Exhibit:
L3: Tab:
L4: Schedule:
L5: Page:
L7: Date:
A9: Appendix 2-BA
A10: Fixed Asset Continuity Schedule
E12: Accounting Standard | F12: CGAAP | G12: New CGAAP
E13: Year | F13: 2013
D15: Cost | J15: Accumulated Depreciation
A16: CCA Class | B16: OEB | C16: Description | D16: Opening Balance | E16: Additions | F16: Disposals | G16: Closing Balance | I16: Opening Balance | J16: Additions | K16: Disposals | L16: Closing Balance | M16: Net Book Value
A17: 12 | B17: 1611 | C17: Computer Software (Formally known as Account 1925) | D17: =+'App.2-BA_FA 2012 OldCGAAP'!G17 -> 314252.74 | E17: 46620 | G17: =D17+E17+F17 -> 360872.74 | I17: =+'App.2-BA_FA 2012 OldCGAAP'!L17 -> -307921.41 | J17: -12684.96 | L17: =I17+J17+K17 -> -320606.37 | M17: =G17+L17 -> 40266.37
A18: CEC | B18: 1612 | C18: Land Rights (Formally known as Account 1906) | D18: =+'App.2-BA_FA 2012 OldCGAAP'!G18 -> 10808.84 | G18: =D18+E18+F18 -> 10808.84 | I18: =+'App.2-BA_FA 2012 OldCGAAP'!L18 -> -7726 | J18: -335 | L18: =I18+J18+K18 -> -8061 | M18: =G18+L18 -> 2747.84
A19: N/A | B19: 1805 | C19: Land | D19: =+'App.2-BA_FA 2012 OldCGAAP'!G19 -> 130499.26 | G19: =D19+E19+F19 -> 130499.26 | I19: ='App.2-BA_FA Cont 2013 OldCGAAP'!L19 -> 0 | L19: =I19+J19+K19 -> 0 | M19: =G19+L19 -> 130499.26
A20: 47 | B20: 1808 | C20: Buildings | D20: =+'App.2-BA_FA 2012 OldCGAAP'!G20 -> 546702.71 | E20: 93745 | G20: =D20+E20+F20 -> 640447.71 | I20: =+'App.2-BA_FA 2012 OldCGAAP'!L20 -> -275156.25 | J20: =-9706-3458 -> -13164 | L20: =I20+J20+K20 -> -288320.25 | M20: =G20+L20 -> 352127.46
A21: 13 | B21: 1810 | C21: Leasehold Improvements | D21: =+'App.2-BA_FA 2012 OldCGAAP'!G21 -> 0 | G21: 0 | I21: ='App.2-BA_FA Cont 2013 OldCGAAP'!L21 -> 0 | L21: 0 | M21: 0
A22: 47 | B22: 1815 | C22: Transformer Station Equipment >50 kV | D22: =+'App.2-BA_FA 2012 OldCGAAP'!G22 -> 0 | G22: 0 | I22: ='App.2-BA_FA Cont 2013 OldCGAAP'!L22 -> 0 | L22: 0 | M22: 0
A23: 47 | B23: 1820 | C23: Distribution Station Equipment <50 kV | D23: =+'App.2-BA_FA 2012 OldCGAAP'!G23 -> 2826308.89 | E23: 40093 | G23: 2866401.89 | I23: =+'App.2-BA_FA 2012 OldCGAAP'!L23 -> -1817851.25 | J23: -60502.57 | L23: -1878353.82 | M23: 988048.07
A24: 47 | B24: 1825 | C24: Storage Battery Equipment | D24: =+'App.2-BA_FA 2012 OldCGAAP'!G24 -> 0 | G24: 0 | I24: ='App.2-BA_FA Cont 2013 OldCGAAP'!L25 -> 0 | L24: 0 | M24: 0
A25: 47 | B25: 1830 | C25: Poles, Towers & Fixtures | D25: =+'App.2-BA_FA 2012 OldCGAAP'!G25 -> 8383653.33 | E25: 161461 | G25: 8545114.33 | I25: =+'App.2-BA_FA 2012 OldCGAAP'!L25 -> -6536907.84 | J25: -184628.03 | L25: -6721535.87 | M25: 1823578.46
A26: 47 | B26: 1835 | C26: Overhead Conductors & Devices | D26: =+'App.2-BA_FA 2012 OldCGAAP'!G26 -> 2937000.97 | E26: 224632 | G26: 3161632.97 | I26: =+'App.2-BA_FA 2012 OldCGAAP'!L26 -> -839487.75 | J26: -112036.68 | L26: -951524.43 | M26: 2210108.54
A27: 47 | B27: 1840 | C27: Underground Conduit | D27: =+'App.2-BA_FA 2012 OldCGAAP'!G27 -> 3036628.47 | E27: 2064 | G27: 3038692.47 | I27: =+'App.2-BA_FA 2012 OldCGAAP'!L27 -> -2303263.96 | J27: -97006.25 | L27: -2400270.21 | M27: 638422.26
A28: 47 | B28: 1845 | C28: Underground Conductors & Devices | D28: =+'App.2-BA_FA 2012 OldCGAAP'!G28 -> 549550.84 | E28: 33860 | G28: 583410.84 | I28: =+'App.2-BA_FA 2012 OldCGAAP'!L28 -> -109158.87 | J28: -20253.36 | L28: -129412.23 | M28: 453998.61
A29: 47 | B29: 1850 | C29: Line Transformers | D29: =+'App.2-BA_FA 2012 OldCGAAP'!G29 -> 3832889.72 | E29: 119766 | G29: 3952655.72 | I29: =+'App.2-BA_FA 2012 OldCGAAP'!L29 -> -2332286.88 | J29: -102650.99 | L29: -2434937.87 | M29: 1517717.85
A30: 47 | B30: 1855 | C30: Services (Overhead & Underground) | D30: =+'App.2-BA_FA 2012 OldCGAAP'!G30 -> 1124078.1 | E30: 118992 | G30: 1243070.1 | I30: =+'App.2-BA_FA 2012 OldCGAAP'!L30 -> -277002.92 | J30: -43918.05 | L30: -320920.97 | M30: 922149.13
A31: 47 | B31: 1860 | C31: Meters | D31: =+'App.2-BA_FA 2012 OldCGAAP'!G31 -> 89800.41 | E31: 9278 | G31: 99078.41 | I31: =+'App.2-BA_FA 2012 OldCGAAP'!L31 -> -11368.48 | J31: -2968.93 | L31: -14337.41 | M31: 84741
A32: 47 | B32: 1860 | C32: Meters (Smart Meters) | D32: =+'App.2-BA_FA 2012 OldCGAAP'!G32 -> 0 | G32: 0 | I32: ='App.2-BA_FA Cont 2013 OldCGAAP'!L33 -> 0 | L32: 0 | M32: 0
A33: N/A | B33: 1905 | C33: Land | D33: =+'App.2-BA_FA 2012 OldCGAAP'!G33 -> 0 | G33: 0 | I33: ='App.2-BA_FA Cont 2013 OldCGAAP'!L34 -> 0 | L33: 0 | M33: 0
A34: 47 | B34: 1908 | C34: Buildings & Fixtures | D34: =+'App.2-BA_FA 2012 OldCGAAP'!G34 -> 0 | G34: 0 | I34: ='App.2-BA_FA Cont 2013 OldCGAAP'!L35 -> 0 | L34: 0 | M34: 0
A35: 13 | B35: 1910 | C35: Leasehold Improvements | D35: =+'App.2-BA_FA 2012 OldCGAAP'!G35 -> 0 | G35: 0 | I35: ='App.2-BA_FA Cont 2013 OldCGAAP'!L36 -> 0 | L35: 0 | M35: 0
A36: 8 | B36: 1915 | C36: Office Furniture & Equipment (10 years) | D36: =+'App.2-BA_FA 2012 OldCGAAP'!G36 -> 130561.43 | E36: 1388 | G36: 131949.43 | I36: =+'App.2-BA_FA 2012 OldCGAAP'!L36 -> -123467.89 | J36: -1409.66 | L36: -124877.55 | M36: 7071.88
A37: 8 | B37: 1915 | C37: Office Furniture & Equipment (5 years) | D37: =+'App.2-BA_FA 2012 OldCGAAP'!G37 -> 0 | G37: 0 | I37: ='App.2-BA_FA Cont 2013 OldCGAAP'!L38 -> 0 | L37: 0 | M37: 0
A38: 10 | B38: 1920 | C38: Computer Equipment - Hardware | D38: =+'App.2-BA_FA 2012 OldCGAAP'!G38 -> 0 | G38: 0 | I38: ='App.2-BA_FA Cont 2013 OldCGAAP'!L39 -> 0 | L38: 0 | M38: 0
A39: 45 | B39: 1920 | C39: Computer Equip.-Hardware(Post Mar. 22/04) | D39: =+'App.2-BA_FA 2012 OldCGAAP'!G39 -> 0 | G39: 0 | I39: ='App.2-BA_FA Cont 2013 OldCGAAP'!L40 -> 0 | L39: 0 | M39: 0
A40: 45.1 | B40: 1920 | C40: Computer Equip.-Hardware(Post Mar. 19/07) | D40: =+'App.2-BA_FA 2012 OldCGAAP'!G40 -> 335951.29 | E40: 28127 | G40: 364078.29 | I40: =+'App.2-BA_FA 2012 OldCGAAP'!L40 -> -326976.5 | J40: -9618.64 | L40: -336595.14 | M40: 27483.15
A41: 10 | B41: 1930 | C41: Transportation Equipment | D41: =+'App.2-BA_FA 2012 OldCGAAP'!G41 -> 1820544.71 | E41: 457242 | F41: -51999 | G41: 2225787.71 | I41: =+'App.2-BA_FA 2012 OldCGAAP'!L41 -> -1374077.52 | J41: -125582.76 | K41: 51998.71 | L41: -1447661.57 | M41: 778126.14
A42: 8 | B42: 1935 | C42: Stores Equipment | D42: =+'App.2-BA_FA 2012 OldCGAAP'!G42 -> 1761.26 | G42: 1761.26 | I42: =+'App.2-BA_FA 2012 OldCGAAP'!L42 -> -1761 | L42: -1761 | M42: 0.26
A43: 8 | B43: 1940 | C43: Tools, Shop & Garage Equipment | D43: =+'App.2-BA_FA 2012 OldCGAAP'!G43 -> 253896.66 | E43: 6273 | G43: 260169.66 | I43: =+'App.2-BA_FA 2012 OldCGAAP'!L43 -> -226715.68 | J43: -6673.37 | L43: -233389.05 | M43: 26780.61
A44: 8 | B44: 1945 | C44: Measurement & Testing Equipment | D44: =+'App.2-BA_FA 2012 OldCGAAP'!G44 -> 0 | E44: 18090 | G44: 18090 | I44: =+'App.2-BA_FA 2012 OldCGAAP'!L44 -> 0 | J44: -905 | L44: -905 | M44: 17185
A45: 8 | B45: 1950 | C45: Power Operated Equipment | D45: =+'App.2-BA_FA 2012 OldCGAAP'!G45 -> 0 | G45: 0 | I45: ='App.2-BA_FA Cont 2013 OldCGAAP'!L46 -> 0 | L45: 0 | M45: 0
A46: 8 | B46: 1955 | C46: Communications Equipment | D46: =+'App.2-BA_FA 2012 OldCGAAP'!G46 -> 36775.89 | G46: 36775.89 | I46: =+'App.2-BA_FA 2012 OldCGAAP'!L46 -> -32530.37 | J46: -1446.49 | L46: -33976.86 | M46: 2799.03
A47: 8 | B47: 1955 | C47: Communication Equipment (Smart Meters) | D47: =+'App.2-BA_FA 2012 OldCGAAP'!G47 -> 0 | G47: 0 | I47: ='App.2-BA_FA Cont 2013 OldCGAAP'!L48 -> 0 | L47: 0 | M47: 0
A48: 8 | B48: 1960 | C48: Miscellaneous Equipment | D48: =+'App.2-BA_FA 2012 OldCGAAP'!G48 -> 0 | E48: 12104 | G48: 12104 | I48: =+'App.2-BA_FA 2012 OldCGAAP'!L48 -> 0 | J48: -605.2 | L48: -605.2 | M48: 11498.8
A49: 47 | B49: 1970 | C49: Load Management Controls Customer Premises | D49: =+'App.2-BA_FA 2012 OldCGAAP'!G49 -> 254912 | G49: 254912 | I49: =+'App.2-BA_FA 2012 OldCGAAP'!L49 -> -254111.43 | J49: -800.22 | L49: -254911.65 | M49: 0.35
A50: 47 | B50: 1975 | C50: Load Management Controls Utility Premises | D50: =+'App.2-BA_FA 2012 OldCGAAP'!G50 -> 64873.19 | G50: 64873.19 | I50: =+'App.2-BA_FA 2012 OldCGAAP'!L50 -> -64873 | L50: -64873 | M50: 0.19
A51: 47 | B51: 1980 | C51: System Supervisor Equipment | D51: =+'App.2-BA_FA 2012 OldCGAAP'!G51 -> 570614.44 | E51: 503 | G51: 571117.44 | I51: =+'App.2-BA_FA 2012 OldCGAAP'!L51 -> -547373 | J51: -13679 | L51: -561052 | M51: 10065.44
A52: 47 | B52: 1985 | C52: Miscellaneous Fixed Assets | D52: =+'App.2-BA_FA 2012 OldCGAAP'!G52 -> 0 | E52: 0 | F52: 0 | G52: 0 | I52: =+'App.2-BA_FA 2012 OldCGAAP'!L52 -> 0 | J52: 0 | K52: 0 | L52: 0 | M52: 0
A53: 47 | B53: 1990 | C53: Other Tangible Property | D53: =+'App.2-BA_FA 2012 OldCGAAP'!G53 -> 0 | G53: 0 | I53: =+'App.2-BA_FA 2012 OldCGAAP'!L53 -> 0 | L53: 0 | M53: 0
A54: 47 | B54: 1995 | C54: Contributions & Grants | D54: =+'App.2-BA_FA 2012 OldCGAAP'!G54 -> -2005061.29 | E54: -35216.9 | G54: -2040278.19 | I54: =+'App.2-BA_FA 2012 OldCGAAP'!L54 -> 444322.66 | J54: 69166 | L54: 513488.66 | M54: -1526789.53
A55: 47 | B55: 2440 | C55: Deferred Revenue5 | D55: =+'App.2-BA_FA 2012 OldCGAAP'!G55 -> 0 | I55: =+'App.2-BA_FA 2012 OldCGAAP'!L55 -> 0
G56: 0 | L56: 0 | M56: 0
C57: Sub-Total | D57: =SUM(D17:D56) -> 25247003.86 | E57: =SUM(E17:E56) -> 1339021.1 | F57: =SUM(F17:F56) -> -51999 | G57: =SUM(G17:G56) -> 26534025.96 | I57: =SUM(I17:I56) -> -17325695.34 | J57: =SUM(J17:J56) -> -741703.16 | K57: =SUM(K17:K56) -> 51998.71 | L57: =SUM(L17:L56) -> -18015399.79 | M57: =SUM(M17:M56) -> 8518626.17
C58: Less Socialized Renewable Energy Generation Investments (input as negative) | G58: =D58+E58+F58 -> 0 | L58: =I58+J58+K58 -> 0 | M58: =G58+L58 -> 0
C59: Less Other Non Rate-Regulated Utility Assets (input as negative) | G59: 0 | L59: 0 | M59: 0
C60: Total PP&E | D60: =SUM(D57:D59) -> 25247003.86 | E60: =SUM(E57:E59) -> 1339021.1 | F60: -51999 | G60: 26534025.96 | I60: =SUM(I57:I59) -> -17325695.34 | J60: -741703.16 | K60: 51998.71 | L60: -18015399.79 | M60: 8518626.17
C61: Depreciation Expense adj. from gain or loss on the retirement of assets (pool of like assets), if applicable6
C62: Total | J62: =J60+J61 -> -741703.16
I64: Less: Fully Allocated Depreciation
A65: 10 | C65: Transportation | I65: Transportation | K65: -109896
A66: 8 | C66: Stores Equipment | I66: Stores Equipment
I67: Net Depreciation | K67: =J62-K65-K66 -> -631807.16
A69: Notes:
A71: 1 | B71: Tables in the format outlined above covering all fixed asset accounts should be submitted for the Test Year, Bridge Year and all relevant historical years. At a minimum , the applicant must provide data for the earlier of: 1) all historical years back to its last rebasing; or 2) at least three years of historical actuals, in addition to Bridge Year and Test Year forecasts.
A74: 2 | B74: The "CCA Class" for fixed assets should agree with the CCA Class used for tax purposes in Tax Returns. Fixed Assets sub-components may be used where the underlying asset components are classified under multiple CCA Classes for tax purposes. If an applicant uses any different classes from those shown in the table, an explanation should be provided. (also see note 3 below).
A77: 3 | B77: The table may need to be customized for a utility's asset categories or for any new asset accounts announced or authorized by the Board.
A79: 4 | B79: The additions column (E) must not include construction work in progress (CWIP).
A81: 5 | B81: Effective on the date of IFRS adoption, customer contributions will no longer be recorded in Account 1995 Contributions & Grants, but will be recorded in Account 2440, Deferred Revenues.
A83: 6 | B83: Where a distributor for general financial reporting purposes under IFRS has accounted for the amount of gain or loss on the retirement of assets in a pool of like assets as a charge or credit to income, for reporting and rate application filings the distributor shall reclassify such gains and losses as depreciation expense, and disclose the amount separately.

Sheet App.2-BA_FA Cont 2014 OldCGAAP
L1: File Number: | M1: =EBNUMBER -> 
L2: Exhibit:
L3: Tab:
L4: Schedule:
L5: Page:
L7: Date:
A9: Appendix 2-BA
A10: Fixed Asset Continuity Schedule
E12: Accounting Standard | F12: CGAAP | G12: New CGAAP
E13: Year | F13: 2014
D15: Cost | J15: Accumulated Depreciation
A16: CCA Class | B16: OEB | C16: Description | D16: Opening Balance | E16: Additions | F16: Disposals | G16: Closing Balance | I16: Opening Balance | J16: Additions | K16: Disposals | L16: Closing Balance | M16: Net Book Value
A17: 12 | B17: 1611 | C17: Computer Software (Formally known as Account 1925) | D17: ='App.2-BA_FA Cont 2013 NewCGAAP'!G17 -> 360872.74 | E17: 40967 | G17: =D17+E17+F17 -> 401839.74 | I17: =+'App.2-BA_FA Cont 2013 OldCGAAP'!L17 -> -320606.37 | J17: =-23809-4135.57 -> -27944.57 | L17: =I17+J17+K17 -> -348550.94 | M17: =G17+L17 -> 53288.8
A18: CEC | B18: 1612 | C18: Land Rights (Formally known as Account 1906) | D18: ='App.2-BA_FA Cont 2013 NewCGAAP'!G18 -> 10808.84 | G18: =D18+E18+F18 -> 10808.84 | I18: =+'App.2-BA_FA Cont 2013 OldCGAAP'!L18 -> -8061 | J18: -335 | L18: =I18+J18+K18 -> -8396 | M18: =G18+L18 -> 2412.84
A19: N/A | B19: 1805 | C19: Land | D19: ='App.2-BA_FA Cont 2013 NewCGAAP'!G19 -> 130499.26 | G19: =D19+E19+F19 -> 130499.26 | I19: ='App.2-BA_FA Cont 2013 NewCGAAP'!L19 -> 0 | L19: =I19+J19+K19 -> 0 | M19: =G19+L19 -> 130499.26
A20: 47 | B20: 1808 | C20: Buildings | D20: ='App.2-BA_FA Cont 2013 NewCGAAP'!G20 -> 640447.71 | E20: 24730 | G20: =D20+E20+F20 -> 665177.71 | I20: =+'App.2-BA_FA Cont 2013 OldCGAAP'!L20 -> -288319.79 | J20: =-11445-3953 -> -15398 | L20: =I20+J20+K20 -> -303717.79 | M20: =G20+L20 -> 361459.92
A21: 13 | B21: 1810 | C21: Leasehold Improvements | D21: ='App.2-BA_FA Cont 2013 NewCGAAP'!G21 -> 0 | G21: 0 | I21: ='App.2-BA_FA Cont 2013 NewCGAAP'!L21 -> 0 | L21: 0 | M21: 0
A22: 47 | B22: 1815 | C22: Transformer Station Equipment >50 kV | D22: ='App.2-BA_FA Cont 2013 NewCGAAP'!G22 -> 0 | G22: 0 | I22: ='App.2-BA_FA Cont 2013 NewCGAAP'!L22 -> 0 | L22: 0 | M22: 0
A23: 47 | B23: 1820 | C23: Distribution Station Equipment <50 kV | D23: ='App.2-BA_FA Cont 2013 NewCGAAP'!G23 -> 2866401.89 | E23: =2203+84326+20935 -> 107464 | G23: 2973865.89 | I23: =+'App.2-BA_FA Cont 2013 OldCGAAP'!L23 -> -1878353.72 | J23: =-29760-13438-18705-698+574.51 -> -62026.49 | L23: -1940380.21 | M23: 1033485.68
A24: 47 | B24: 1825 | C24: Storage Battery Equipment | D24: ='App.2-BA_FA Cont 2013 NewCGAAP'!G24 -> 0 | G24: 0 | I24: ='App.2-BA_FA Cont 2013 NewCGAAP'!L24 -> 0 | L24: 0 | M24: 0
A25: 47 | B25: 1830 | C25: Poles, Towers & Fixtures | D25: ='App.2-BA_FA Cont 2013 NewCGAAP'!G25 -> 8545114.33 | E25: 74730 | G25: 8619844.33 | I25: =+'App.2-BA_FA Cont 2013 OldCGAAP'!L26 -> -6734454.84 | J25: =-173813-830-4992.75-1363.55 -> -180999.3 | L25: -6915454.14 | M25: 1704390.19
A26: 47 | B26: 1835 | C26: Overhead Conductors & Devices | D26: ='App.2-BA_FA Cont 2013 NewCGAAP'!G26 -> 3161632.97 | E26: =313555+28281+2763 -> 344599 | G26: 3506231.97 | I26: =+'App.2-BA_FA Cont 2013 OldCGAAP'!L27 -> -961160.75 | J26: =-110116-6076-663-63-13588.46-3693.68 -> -134200.14 | L26: -1095360.89 | M26: 2410871.08
A27: 47 | B27: 1840 | C27: Underground Conduit | D27: ='App.2-BA_FA Cont 2013 NewCGAAP'!G27 -> 3038692.47 | E27: 43881 | G27: 3082573.47 | I27: =+'App.2-BA_FA Cont 2013 OldCGAAP'!L28 -> -2403344.09 | J27: =-92782-590-1730.62 -> -95102.62 | L27: -2498446.71 | M27: 584126.76
A28: 47 | B28: 1845 | C28: Underground Conductors & Devices | D28: ='App.2-BA_FA Cont 2013 NewCGAAP'!G28 -> 583410.84 | E28: 176031 | G28: 759441.84 | I28: =+'App.2-BA_FA Cont 2013 OldCGAAP'!L29 -> -131386.87 | J28: =-19830-3047-3980.07 -> -26857.07 | L28: -158243.94 | M28: 601197.9
A29: 47 | B29: 1850 | C29: Line Transformers | D29: ='App.2-BA_FA Cont 2013 NewCGAAP'!G29 -> 3952655.72 | E29: 158090 | G29: 4110745.72 | I29: =+'App.2-BA_FA Cont 2013 OldCGAAP'!L30 -> -2444074.48 | J29: =-92057-3824-4066.7-2488.98 -> -102436.68 | L29: -2546511.16 | M29: 1564234.56
A30: 47 | B30: 1855 | C30: Services (Overhead & Underground) | D30: ='App.2-BA_FA Cont 2013 NewCGAAP'!G30 -> 1243070.1 | E30: =13559+66725 -> 80284 | G30: 1323354.1 | I30: =+'App.2-BA_FA Cont 2013 OldCGAAP'!L31 -> -324345.88 | J30: =-42483-323-3493-1624.44-3528.37 -> -51451.81 | L30: -375797.69 | M30: 947556.41
A31: 47 | B31: 1860 | C31: Meters | D31: ='App.2-BA_FA Cont 2013 NewCGAAP'!G31 -> 99078.41 | G31: 99078.41 | I31: =+'App.2-BA_FA Cont 2013 OldCGAAP'!L32 -> -14923.48 | J31: =-74-2783 -> -2857 | L31: -17780.48 | M31: 81297.93
A32: 47 | B32: 1860 | C32: Meters (Smart Meters) | D32: ='App.2-BA_FA Cont 2013 NewCGAAP'!G32 -> 0 | E32: 31909 | G32: 31909 | I32: ='App.2-BA_FA Cont 2013 NewCGAAP'!L32 -> 0 | J32: -1064 | L32: -1064 | M32: 30845
A33: N/A | B33: 1905 | C33: Land | D33: ='App.2-BA_FA Cont 2013 NewCGAAP'!G33 -> 0 | G33: 0 | I33: ='App.2-BA_FA Cont 2013 NewCGAAP'!L33 -> 0 | L33: 0 | M33: 0
A34: 47 | B34: 1908 | C34: Buildings & Fixtures | D34: ='App.2-BA_FA Cont 2013 NewCGAAP'!G34 -> 0 | G34: 0 | I34: ='App.2-BA_FA Cont 2013 NewCGAAP'!L34 -> 0 | L34: 0 | M34: 0
A35: 13 | B35: 1910 | C35: Leasehold Improvements | D35: ='App.2-BA_FA Cont 2013 NewCGAAP'!G35 -> 0 | G35: 0 | I35: ='App.2-BA_FA Cont 2013 NewCGAAP'!L35 -> 0 | L35: 0 | M35: 0
A36: 8 | B36: 1915 | C36: Office Furniture & Equipment (10 years) | D36: ='App.2-BA_FA Cont 2013 NewCGAAP'!G36 -> 131949.43 | E36: 3337 | G36: 135286.43 | I36: ='App.2-BA_FA Cont 2013 NewCGAAP'!L36 -> -124877.55 | J36: -1151 | L36: -126028.55 | M36: 9257.88
A37: 8 | B37: 1915 | C37: Office Furniture & Equipment (5 years) | D37: ='App.2-BA_FA Cont 2013 NewCGAAP'!G37 -> 0 | G37: 0 | I37: ='App.2-BA_FA Cont 2013 NewCGAAP'!L37 -> 0 | L37: 0 | M37: 0
A38: 10 | B38: 1920 | C38: Computer Equipment - Hardware | D38: ='App.2-BA_FA Cont 2013 NewCGAAP'!G38 -> 0 | G38: 0 | I38: ='App.2-BA_FA Cont 2013 NewCGAAP'!L38 -> 0 | L38: 0 | M38: 0
A39: 45 | B39: 1920 | C39: Computer Equip.-Hardware(Post Mar. 22/04) | D39: ='App.2-BA_FA Cont 2013 NewCGAAP'!G39 -> 0 | G39: 0 | I39: ='App.2-BA_FA Cont 2013 NewCGAAP'!L39 -> 0 | L39: 0 | M39: 0
A40: 45.1 | B40: 1920 | C40: Computer Equip.-Hardware(Post Mar. 19/07) | D40: ='App.2-BA_FA Cont 2013 NewCGAAP'!G40 -> 364078.29 | E40: 10557 | G40: 374635.29 | I40: ='App.2-BA_FA Cont 2013 NewCGAAP'!L40 -> -336595.14 | J40: -14294 | L40: -350889.14 | M40: 23746.15
A41: 10 | B41: 1930 | C41: Transportation Equipment | D41: ='App.2-BA_FA Cont 2013 NewCGAAP'!G41 -> 2225787.71 | E41: =28236+30643 -> 58879 | F41: -27759.62 | G41: 2256907.09 | I41: ='App.2-BA_FA Cont 2013 NewCGAAP'!L41 -> -1447661.57 | J41: =-50166-14007-96966 -> -161139 | K41: 27759.62 | L41: -1581040.95 | M41: 675866.14
A42: 8 | B42: 1935 | C42: Stores Equipment | D42: ='App.2-BA_FA Cont 2013 NewCGAAP'!G42 -> 1761.26 | G42: 1761.26 | I42: ='App.2-BA_FA Cont 2013 NewCGAAP'!L42 -> -1761 | L42: -1761 | M42: 0.26
A43: 8 | B43: 1940 | C43: Tools, Shop & Garage Equipment | D43: ='App.2-BA_FA Cont 2013 NewCGAAP'!G43 -> 260169.66 | E43: 39977 | G43: 300146.66 | I43: ='App.2-BA_FA Cont 2013 NewCGAAP'!L43 -> -233389.05 | J43: -7521 | L43: -240910.05 | M43: 59236.61
A44: 8 | B44: 1945 | C44: Measurement & Testing Equipment | D44: ='App.2-BA_FA Cont 2013 NewCGAAP'!G44 -> 18090 | G44: 18090 | I44: ='App.2-BA_FA Cont 2013 NewCGAAP'!L44 -> -905 | J44: -1809 | L44: -2714 | M44: 15376
A45: 8 | B45: 1950 | C45: Power Operated Equipment | D45: ='App.2-BA_FA Cont 2013 NewCGAAP'!G45 -> 0 | G45: 0 | I45: ='App.2-BA_FA Cont 2013 NewCGAAP'!L45 -> 0 | L45: 0 | M45: 0
A46: 8 | B46: 1955 | C46: Communications Equipment | D46: ='App.2-BA_FA Cont 2013 NewCGAAP'!G46 -> 36775.89 | E46: 2148 | G46: 38923.89 | I46: ='App.2-BA_FA Cont 2013 NewCGAAP'!L46 -> -33976.86 | J46: -1661 | L46: -35637.86 | M46: 3286.03
A47: 8 | B47: 1955 | C47: Communication Equipment (Smart Meters) | D47: ='App.2-BA_FA Cont 2013 NewCGAAP'!G47 -> 0 | G47: 0 | I47: ='App.2-BA_FA Cont 2013 NewCGAAP'!L47 -> 0 | L47: 0 | M47: 0
A48: 8 | B48: 1960 | C48: Miscellaneous Equipment | D48: ='App.2-BA_FA Cont 2013 NewCGAAP'!G48 -> 12104 | G48: 12104 | I48: ='App.2-BA_FA Cont 2013 NewCGAAP'!L48 -> -605.2 | J48: -1210.4 | L48: -1815.6 | M48: 10288.4
A49: 47 | B49: 1970 | C49: Load Management Controls Customer Premises | D49: ='App.2-BA_FA Cont 2013 NewCGAAP'!G49 -> 254912 | F49: -254912 | G49: 0 | I49: ='App.2-BA_FA Cont 2013 NewCGAAP'!L49 -> -254911.65 | K49: 254912 | L49: 0.35 | M49: 0.35
A50: 47 | B50: 1975 | C50: Load Management Controls Utility Premises | D50: ='App.2-BA_FA Cont 2013 NewCGAAP'!G50 -> 64873.19 | G50: 64873.19 | I50: ='App.2-BA_FA Cont 2013 NewCGAAP'!L50 -> -64873 | L50: -64873 | M50: 0.19
A51: 47 | B51: 1980 | C51: System Supervisor Equipment | D51: ='App.2-BA_FA Cont 2013 NewCGAAP'!G51 -> 571117.44 | E51: 611 | F51: -186720.42 | G51: 385008.02 | I51: ='App.2-BA_FA Cont 2013 NewCGAAP'!L51 -> -561052 | J51: -1645 | K51: 179131.78 | L51: -383565.22 | M51: 1442.8
A52: 47 | B52: 1985 | C52: Miscellaneous Fixed Assets | D52: ='App.2-BA_FA Cont 2013 NewCGAAP'!G52 -> 0 | E52: 0 | G52: 0 | I52: ='App.2-BA_FA Cont 2013 NewCGAAP'!L52 -> 0 | L52: 0 | M52: 0
A53: 47 | B53: 1990 | C53: Other Tangible Property | D53: ='App.2-BA_FA Cont 2013 NewCGAAP'!G53 -> 0 | E53: 0 | G53: 0 | I53: ='App.2-BA_FA Cont 2013 NewCGAAP'!L53 -> 0 | L53: 0 | M53: 0
A54: 47 | B54: 1995 | C54: Contributions & Grants | D54: ='App.2-BA_FA Cont 2013 NewCGAAP'!G54 -> -2040278.19 | E54: =-114792-34000 -> -148792 | G54: -2189070.19 | I54: ='App.2-BA_FA Cont 2013 NewCGAAP'!L54 -> 513488.66 | J54: =71181+1435+5667 -> 78283 | L54: 591771.66 | M54: -1597298.53
A55: 47 | B55: 2440 | C55: Deferred Revenue5 | D55: ='App.2-BA_FA Cont 2013 NewCGAAP'!G55 -> 0 | I55: ='App.2-BA_FA Cont 2013 NewCGAAP'!L55 -> 0
G56: 0 | I56: ='App.2-BA_FA Cont 2013 NewCGAAP'!L56 -> 0 | L56: 0 | M56: 0
C57: Sub-Total | D57: =SUM(D17:D56) -> 26534025.96 | E57: =SUM(E17:E56) -> 1049402 | F57: =SUM(F17:F56) -> -469392.04 | G57: =SUM(G17:G56) -> 27114035.92 | I57: =SUM(I17:I56) -> -18056150.63 | J57: =SUM(J17:J56) -> -812820.08 | K57: =SUM(K17:K56) -> 461803.4 | L57: =SUM(L17:L56) -> -18407167.31 | M57: =SUM(M17:M56) -> 8706868.61
C58: Less Socialized Renewable Energy Generation Investments (input as negative) | G58: =D58+E58+F58 -> 0 | L58: =I58+J58+K58 -> 0 | M58: =G58+L58 -> 0
C59: Less Other Non Rate-Regulated Utility Assets (input as negative) | G59: 0 | L59: 0 | M59: 0
C60: Total PP&E | D60: =SUM(D57:D59) -> 26534025.96 | E60: =SUM(E57:E59) -> 1049402 | F60: -469392.04 | G60: 27114035.92 | I60: =SUM(I57:I59) -> -18056150.63 | J60: -812820.08 | K60: 461803.4 | L60: -18407167.31 | M60: 8706868.61
C61: Depreciation Expense adj. from gain or loss on the retirement of assets (pool of like assets), if applicable6
C62: Total | J62: =J60+J61 -> -812820.08
I64: Less: Fully Allocated Depreciation
A65: 10 | C65: Transportation | I65: Transportation | K65: -144099.87
A66: 8 | C66: Stores Equipment | I66: Stores Equipment
I67: Net Depreciation | K67: =J62-K65-K66 -> -668720.21
A69: Notes:
A71: 1 | B71: Tables in the format outlined above covering all fixed asset accounts should be submitted for the Test Year, Bridge Year and all relevant historical years. At a minimum , the applicant must provide data for the earlier of: 1) all historical years back to its last rebasing; or 2) at least three years of historical actuals, in addition to Bridge Year and Test Year forecasts.
A74: 2 | B74: The "CCA Class" for fixed assets should agree with the CCA Class used for tax purposes in Tax Returns. Fixed Assets sub-components may be used where the underlying asset components are classified under multiple CCA Classes for tax purposes. If an applicant uses any different classes from those shown in the table, an explanation should be provided. (also see note 3 below).
A77: 3 | B77: The table may need to be customized for a utility's asset categories or for any new asset accounts announced or authorized by the Board.
A79: 4 | B79: The additions column (E) must not include construction work in progress (CWIP).
A81: 5 | B81: Effective on the date of IFRS adoption, customer contributions will no longer be recorded in Account 1995 Contributions & Grants, but will be recorded in Account 2440, Deferred Revenues.
A83: 6 | B83: Where a distributor for general financial reporting purposes under IFRS has accounted for the amount of gain or loss on the retirement of assets in a pool of like assets as a charge or credit to income, for reporting and rate application filings the distributor shall reclassify such gains and losses as depreciation expense, and disclose the amount separately.

Sheet App.2-BA_FA Cont 2014 NewCGAAP
L1: File Number: | M1: =EBNUMBER -> 
L2: Exhibit:
L3: Tab:
L4: Schedule:
L5: Page:
L7: Date:
A9: Appendix 2-BA
A10: Fixed Asset Continuity Schedule
E12: Accounting Standard | F12: CGAAP | G12: New CGAAP
E13: Year | F13: 2014
D15: Cost | J15: Accumulated Depreciation
A16: CCA Class | B16: OEB | C16: Description | D16: Opening Balance | E16: Additions | F16: Disposals | G16: Closing Balance | I16: Opening Balance | J16: Additions | K16: Disposals | L16: Closing Balance | M16: Net Book Value
A17: 12 | B17: 1611 | C17: Computer Software (Formally known as Account 1925) | D17: ='App.2-BA_FA Cont 2013 NewCGAAP'!G17 -> 360872.74 | E17: 40967 | G17: =D17+E17+F17 -> 401839.74 | I17: ='App.2-BA_FA Cont 2013 NewCGAAP'!L17 -> -320606.37 | J17: -23809 | L17: =I17+J17+K17 -> -344415.37 | M17: =G17+L17 -> 57424.37
A18: CEC | B18: 1612 | C18: Land Rights (Formally known as Account 1906) | D18: ='App.2-BA_FA Cont 2013 NewCGAAP'!G18 -> 10808.84 | G18: =D18+E18+F18 -> 10808.84 | I18: ='App.2-BA_FA Cont 2013 NewCGAAP'!L18 -> -8061 | J18: -335 | L18: =I18+J18+K18 -> -8396 | M18: =G18+L18 -> 2412.84
A19: N/A | B19: 1805 | C19: Land | D19: ='App.2-BA_FA Cont 2013 NewCGAAP'!G19 -> 130499.26 | G19: =D19+E19+F19 -> 130499.26 | I19: ='App.2-BA_FA Cont 2013 NewCGAAP'!L19 -> 0 | L19: =I19+J19+K19 -> 0 | M19: =G19+L19 -> 130499.26
A20: 47 | B20: 1808 | C20: Buildings | D20: ='App.2-BA_FA Cont 2013 NewCGAAP'!G20 -> 640447.71 | E20: 24730 | G20: =D20+E20+F20 -> 665177.71 | I20: =+'App.2-BA_FA Cont 2013 NewCGAAP'!L20 -> -288320.25 | J20: =-11445-3953 -> -15398 | L20: =I20+J20+K20 -> -303718.25 | M20: =G20+L20 -> 361459.46
A21: 13 | B21: 1810 | C21: Leasehold Improvements | D21: ='App.2-BA_FA Cont 2013 NewCGAAP'!G21 -> 0 | G21: 0 | I21: ='App.2-BA_FA Cont 2013 NewCGAAP'!L21 -> 0 | L21: 0 | M21: 0
A22: 47 | B22: 1815 | C22: Transformer Station Equipment >50 kV | D22: ='App.2-BA_FA Cont 2013 NewCGAAP'!G22 -> 0 | G22: 0 | I22: ='App.2-BA_FA Cont 2013 NewCGAAP'!L22 -> 0 | L22: 0 | M22: 0
A23: 47 | B23: 1820 | C23: Distribution Station Equipment <50 kV | D23: ='App.2-BA_FA Cont 2013 NewCGAAP'!G23 -> 2866401.89 | E23: =2203+84326+20935 -> 107464 | G23: 2973865.89 | I23: ='App.2-BA_FA Cont 2013 NewCGAAP'!L23 -> -1878353.82 | J23: =-29760-13438-18705-698 -> -62601 | L23: -1940954.82 | M23: 1032911.07
A24: 47 | B24: 1825 | C24: Storage Battery Equipment | D24: ='App.2-BA_FA Cont 2013 NewCGAAP'!G24 -> 0 | G24: 0 | I24: ='App.2-BA_FA Cont 2013 NewCGAAP'!L24 -> 0 | L24: 0 | M24: 0
A25: 47 | B25: 1830 | C25: Poles, Towers & Fixtures | D25: ='App.2-BA_FA Cont 2013 NewCGAAP'!G25 -> 8545114.33 | E25: 74730 | G25: 8619844.33 | I25: ='App.2-BA_FA Cont 2013 NewCGAAP'!L25 -> -6721535.87 | J25: =-173813-830 -> -174643 | L25: -6896178.87 | M25: 1723665.46
A26: 47 | B26: 1835 | C26: Overhead Conductors & Devices | D26: ='App.2-BA_FA Cont 2013 NewCGAAP'!G26 -> 3161632.97 | E26: =313555+28281+2763 -> 344599 | G26: 3506231.97 | I26: ='App.2-BA_FA Cont 2013 NewCGAAP'!L26 -> -951524.43 | J26: =-110116-6076-663-63 -> -116918 | L26: -1068442.43 | M26: 2437789.54
A27: 47 | B27: 1840 | C27: Underground Conduit | D27: ='App.2-BA_FA Cont 2013 NewCGAAP'!G27 -> 3038692.47 | E27: 43881 | G27: 3082573.47 | I27: ='App.2-BA_FA Cont 2013 NewCGAAP'!L27 -> -2400270.21 | J27: =-92782-590 -> -93372 | L27: -2493642.21 | M27: 588931.26
A28: 47 | B28: 1845 | C28: Underground Conductors & Devices | D28: ='App.2-BA_FA Cont 2013 NewCGAAP'!G28 -> 583410.84 | E28: 176031 | G28: 759441.84 | I28: ='App.2-BA_FA Cont 2013 NewCGAAP'!L28 -> -129412.23 | J28: =-19830-3047 -> -22877 | L28: -152289.23 | M28: 607152.61
A29: 47 | B29: 1850 | C29: Line Transformers | D29: ='App.2-BA_FA Cont 2013 NewCGAAP'!G29 -> 3952655.72 | E29: 158090 | G29: 4110745.72 | I29: ='App.2-BA_FA Cont 2013 NewCGAAP'!L29 -> -2434937.87 | J29: =-92057-3824 -> -95881 | L29: -2530818.87 | M29: 1579926.85
A30: 47 | B30: 1855 | C30: Services (Overhead & Underground) | D30: ='App.2-BA_FA Cont 2013 NewCGAAP'!G30 -> 1243070.1 | E30: =13559+66725 -> 80284 | G30: 1323354.1 | I30: ='App.2-BA_FA Cont 2013 NewCGAAP'!L30 -> -320920.97 | J30: =-42483-323-3493 -> -46299 | L30: -367219.97 | M30: 956134.13
A31: 47 | B31: 1860 | C31: Meters | D31: ='App.2-BA_FA Cont 2013 NewCGAAP'!G31 -> 99078.41 | G31: 99078.41 | I31: ='App.2-BA_FA Cont 2013 NewCGAAP'!L31 -> -14337.41 | J31: =-74-2783 -> -2857 | L31: -17194.41 | M31: 81884
A32: 47 | B32: 1860 | C32: Meters (Smart Meters) | D32: ='App.2-BA_FA Cont 2013 NewCGAAP'!G32 -> 0 | E32: 31909 | G32: 31909 | I32: ='App.2-BA_FA Cont 2013 NewCGAAP'!L32 -> 0 | J32: -1064 | L32: -1064 | M32: 30845
A33: N/A | B33: 1905 | C33: Land | D33: ='App.2-BA_FA Cont 2013 NewCGAAP'!G33 -> 0 | G33: 0 | I33: ='App.2-BA_FA Cont 2013 NewCGAAP'!L33 -> 0 | L33: 0 | M33: 0
A34: 47 | B34: 1908 | C34: Buildings & Fixtures | D34: ='App.2-BA_FA Cont 2013 NewCGAAP'!G34 -> 0 | G34: 0 | I34: ='App.2-BA_FA Cont 2013 NewCGAAP'!L34 -> 0 | L34: 0 | M34: 0
A35: 13 | B35: 1910 | C35: Leasehold Improvements | D35: ='App.2-BA_FA Cont 2013 NewCGAAP'!G35 -> 0 | G35: 0 | I35: ='App.2-BA_FA Cont 2013 NewCGAAP'!L35 -> 0 | L35: 0 | M35: 0
A36: 8 | B36: 1915 | C36: Office Furniture & Equipment (10 years) | D36: ='App.2-BA_FA Cont 2013 NewCGAAP'!G36 -> 131949.43 | E36: 3337 | G36: 135286.43 | I36: ='App.2-BA_FA Cont 2013 NewCGAAP'!L36 -> -124877.55 | J36: -1151 | L36: -126028.55 | M36: 9257.88
A37: 8 | B37: 1915 | C37: Office Furniture & Equipment (5 years) | D37: ='App.2-BA_FA Cont 2013 NewCGAAP'!G37 -> 0 | G37: 0 | I37: ='App.2-BA_FA Cont 2013 NewCGAAP'!L37 -> 0 | L37: 0 | M37: 0
A38: 10 | B38: 1920 | C38: Computer Equipment - Hardware | D38: ='App.2-BA_FA Cont 2013 NewCGAAP'!G38 -> 0 | G38: 0 | I38: ='App.2-BA_FA Cont 2013 NewCGAAP'!L38 -> 0 | L38: 0 | M38: 0
A39: 45 | B39: 1920 | C39: Computer Equip.-Hardware(Post Mar. 22/04) | D39: ='App.2-BA_FA Cont 2013 NewCGAAP'!G39 -> 0 | G39: 0 | I39: ='App.2-BA_FA Cont 2013 NewCGAAP'!L39 -> 0 | L39: 0 | M39: 0
A40: 45.1 | B40: 1920 | C40: Computer Equip.-Hardware(Post Mar. 19/07) | D40: ='App.2-BA_FA Cont 2013 NewCGAAP'!G40 -> 364078.29 | E40: 10557 | G40: 374635.29 | I40: ='App.2-BA_FA Cont 2013 NewCGAAP'!L40 -> -336595.14 | J40: -14294 | L40: -350889.14 | M40: 23746.15
A41: 10 | B41: 1930 | C41: Transportation Equipment | D41: ='App.2-BA_FA Cont 2013 NewCGAAP'!G41 -> 2225787.71 | E41: =28236+30643 -> 58879 | F41: -27759.62 | G41: 2256907.09 | I41: ='App.2-BA_FA Cont 2013 NewCGAAP'!L41 -> -1447661.57 | J41: =-50166-14007-96966 -> -161139 | K41: 27759.62 | L41: -1581040.95 | M41: 675866.14
A42: 8 | B42: 1935 | C42: Stores Equipment | D42: ='App.2-BA_FA Cont 2013 NewCGAAP'!G42 -> 1761.26 | G42: 1761.26 | I42: ='App.2-BA_FA Cont 2013 NewCGAAP'!L42 -> -1761 | L42: -1761 | M42: 0.26
A43: 8 | B43: 1940 | C43: Tools, Shop & Garage Equipment | D43: ='App.2-BA_FA Cont 2013 NewCGAAP'!G43 -> 260169.66 | E43: 39977 | G43: 300146.66 | I43: ='App.2-BA_FA Cont 2013 NewCGAAP'!L43 -> -233389.05 | J43: -7521 | L43: -240910.05 | M43: 59236.61
A44: 8 | B44: 1945 | C44: Measurement & Testing Equipment | D44: ='App.2-BA_FA Cont 2013 NewCGAAP'!G44 -> 18090 | G44: 18090 | I44: ='App.2-BA_FA Cont 2013 NewCGAAP'!L44 -> -905 | J44: -1809 | L44: -2714 | M44: 15376
A45: 8 | B45: 1950 | C45: Power Operated Equipment | D45: ='App.2-BA_FA Cont 2013 NewCGAAP'!G45 -> 0 | G45: 0 | I45: ='App.2-BA_FA Cont 2013 NewCGAAP'!L45 -> 0 | L45: 0 | M45: 0
A46: 8 | B46: 1955 | C46: Communications Equipment | D46: ='App.2-BA_FA Cont 2013 NewCGAAP'!G46 -> 36775.89 | E46: 2148 | G46: 38923.89 | I46: ='App.2-BA_FA Cont 2013 NewCGAAP'!L46 -> -33976.86 | J46: -1661 | L46: -35637.86 | M46: 3286.03
A47: 8 | B47: 1955 | C47: Communication Equipment (Smart Meters) | D47: ='App.2-BA_FA Cont 2013 NewCGAAP'!G47 -> 0 | G47: 0 | I47: ='App.2-BA_FA Cont 2013 NewCGAAP'!L47 -> 0 | L47: 0 | M47: 0
A48: 8 | B48: 1960 | C48: Miscellaneous Equipment | D48: ='App.2-BA_FA Cont 2013 NewCGAAP'!G48 -> 12104 | G48: 12104 | I48: ='App.2-BA_FA Cont 2013 NewCGAAP'!L48 -> -605.2 | J48: -1210.4 | L48: -1815.6 | M48: 10288.4
A49: 47 | B49: 1970 | C49: Load Management Controls Customer Premises | D49: ='App.2-BA_FA Cont 2013 NewCGAAP'!G49 -> 254912 | F49: -254912 | G49: 0 | I49: ='App.2-BA_FA Cont 2013 NewCGAAP'!L49 -> -254911.65 | K49: 254912 | L49: 0.35 | M49: 0.35
A50: 47 | B50: 1975 | C50: Load Management Controls Utility Premises | D50: ='App.2-BA_FA Cont 2013 NewCGAAP'!G50 -> 64873.19 | G50: 64873.19 | I50: ='App.2-BA_FA Cont 2013 NewCGAAP'!L50 -> -64873 | L50: -64873 | M50: 0.19
A51: 47 | B51: 1980 | C51: System Supervisor Equipment | D51: ='App.2-BA_FA Cont 2013 NewCGAAP'!G51 -> 571117.44 | E51: 611 | F51: -186720.42 | G51: 385008.02 | I51: ='App.2-BA_FA Cont 2013 NewCGAAP'!L51 -> -561052 | J51: -1645 | K51: 179131.78 | L51: -383565.22 | M51: 1442.8
A52: 47 | B52: 1985 | C52: Miscellaneous Fixed Assets | D52: ='App.2-BA_FA Cont 2013 NewCGAAP'!G52 -> 0 | E52: 0 | G52: 0 | I52: ='App.2-BA_FA Cont 2013 NewCGAAP'!L52 -> 0 | L52: 0 | M52: 0
A53: 47 | B53: 1990 | C53: Other Tangible Property | D53: ='App.2-BA_FA Cont 2013 NewCGAAP'!G53 -> 0 | E53: 0 | G53: 0 | I53: ='App.2-BA_FA Cont 2013 NewCGAAP'!L53 -> 0 | L53: 0 | M53: 0
A54: 47 | B54: 1995 | C54: Contributions & Grants | D54: ='App.2-BA_FA Cont 2013 NewCGAAP'!G54 -> -2040278.19 | E54: =-114792-34000 -> -148792 | G54: -2189070.19 | I54: ='App.2-BA_FA Cont 2013 NewCGAAP'!L54 -> 513488.66 | J54: =71181+1435+5667 -> 78283 | L54: 591771.66 | M54: -1597298.53
A55: 47 | B55: 2440 | C55: Deferred Revenue5 | D55: ='App.2-BA_FA Cont 2013 NewCGAAP'!G55 -> 0 | I55: ='App.2-BA_FA Cont 2013 NewCGAAP'!L55 -> 0
G56: 0 | I56: ='App.2-BA_FA Cont 2013 NewCGAAP'!L56 -> 0 | L56: 0 | M56: 0
C57: Sub-Total | D57: =SUM(D17:D56) -> 26534025.96 | E57: =SUM(E17:E56) -> 1049402 | F57: =SUM(F17:F56) -> -469392.04 | G57: =SUM(G17:G56) -> 27114035.92 | I57: =SUM(I17:I56) -> -18015399.79 | J57: =SUM(J17:J56) -> -768201.4 | K57: =SUM(K17:K56) -> 461803.4 | L57: =SUM(L17:L56) -> -18321797.79 | M57: =SUM(M17:M56) -> 8792238.13
C58: Less Socialized Renewable Energy Generation Investments (input as negative) | G58: =D58+E58+F58 -> 0 | L58: =I58+J58+K58 -> 0 | M58: =G58+L58 -> 0
C59: Less Other Non Rate-Regulated Utility Assets (input as negative) | G59: 0 | L59: 0 | M59: 0
C60: Total PP&E | D60: =SUM(D57:D59) -> 26534025.96 | E60: =SUM(E57:E59) -> 1049402 | F60: -469392.04 | G60: 27114035.92 | I60: =SUM(I57:I59) -> -18015399.79 | J60: -768201.4 | K60: 461803.4 | L60: -18321797.79 | M60: 8792238.13
C61: Depreciation Expense adj. from gain or loss on the retirement of assets (pool of like assets), if applicable6
C62: Total | J62: =J60+J61 -> -768201.4
I64: Less: Fully Allocated Depreciation
A65: 10 | C65: Transportation | I65: Transportation | K65: -144100
A66: 8 | C66: Stores Equipment | I66: Stores Equipment
I67: Net Depreciation | K67: =J62-K65-K66 -> -624101.4
A69: Notes:
A71: 1 | B71: Tables in the format outlined above covering all fixed asset accounts should be submitted for the Test Year, Bridge Year and all relevant historical years. At a minimum , the applicant must provide data for the earlier of: 1) all historical years back to its last rebasing; or 2) at least three years of historical actuals, in addition to Bridge Year and Test Year forecasts.
A74: 2 | B74: The "CCA Class" for fixed assets should agree with the CCA Class used for tax purposes in Tax Returns. Fixed Assets sub-components may be used where the underlying asset components are classified under multiple CCA Classes for tax purposes. If an applicant uses any different classes from those shown in the table, an explanation should be provided. (also see note 3 below).
A77: 3 | B77: The table may need to be customized for a utility's asset categories or for any new asset accounts announced or authorized by the Board.
A79: 4 | B79: The additions column (E) must not include construction work in progress (CWIP).
A81: 5 | B81: Effective on the date of IFRS adoption, customer contributions will no longer be recorded in Account 1995 Contributions & Grants, but will be recorded in Account 2440, Deferred Revenues.
A83: 6 | B83: Where a distributor for general financial reporting purposes under IFRS has accounted for the amount of gain or loss on the retirement of assets in a pool of like assets as a charge or credit to income, for reporting and rate application filings the distributor shall reclassify such gains and losses as depreciation expense, and disclose the amount separately.

Sheet App.2-BA_FA Cont 2014 MIFRS
L1: File Number: | M1: =EBNUMBER -> 
L2: Exhibit:
L3: Tab:
L4: Schedule:
L5: Page:
L7: Date:
A9: Appendix 2-BA
A10: Fixed Asset Continuity Schedule
E12: Accounting Standard | F12: MIFRS
E13: Year | F13: 2014
D15: Cost | J15: Accumulated Depreciation
A16: CCA Class | B16: OEB | C16: Description | D16: Opening Balance | E16: Additions | F16: Disposals | G16: Closing Balance | I16: Opening Balance | J16: Additions | K16: Disposals | L16: Closing Balance | M16: Net Book Value
A17: 12 | B17: 1611 | C17: Computer Software (Formally known as Account 1925) | D17: ='App.2-BA_FA Cont 2013 NewCGAAP'!G17 -> 360872.74 | E17: 40967 | G17: =D17+E17+F17 -> 401839.74 | I17: ='App.2-BA_FA Cont 2013 NewCGAAP'!L17 -> -320606.37 | J17: -23809 | L17: =I17+J17+K17 -> -344415.37 | M17: =G17+L17 -> 57424.37
A18: CEC | B18: 1612 | C18: Land Rights (Formally known as Account 1906) | D18: ='App.2-BA_FA Cont 2013 NewCGAAP'!G18 -> 10808.84 | G18: 10808.84 | I18: ='App.2-BA_FA Cont 2013 NewCGAAP'!L18 -> -8061 | J18: -335 | L18: =I18+J18+K18 -> -8396 | M18: =G18+L18 -> 2412.84
A19: N/A | B19: 1805 | C19: Land | D19: ='App.2-BA_FA Cont 2013 NewCGAAP'!G19 -> 130499.26 | G19: 130499.26 | I19: ='App.2-BA_FA Cont 2013 NewCGAAP'!L19 -> 0 | L19: =I19+J19+K19 -> 0 | M19: =G19+L19 -> 130499.26
A20: 47 | B20: 1808 | C20: Buildings | D20: ='App.2-BA_FA Cont 2013 NewCGAAP'!G20 -> 640447.71 | E20: 24730 | G20: 665177.71 | I20: ='App.2-BA_FA Cont 2013 NewCGAAP'!L20 -> -288320.25 | J20: =-11445-3953 -> -15398 | L20: =I20+J20+K20 -> -303718.25 | M20: =G20+L20 -> 361459.46
A21: 13 | B21: 1810 | C21: Leasehold Improvements | D21: ='App.2-BA_FA Cont 2013 NewCGAAP'!G21 -> 0 | G21: 0 | I21: ='App.2-BA_FA Cont 2013 NewCGAAP'!L21 -> 0 | L21: 0 | M21: 0
A22: 47 | B22: 1815 | C22: Transformer Station Equipment >50 kV | D22: ='App.2-BA_FA Cont 2013 NewCGAAP'!G22 -> 0 | G22: 0 | I22: ='App.2-BA_FA Cont 2013 NewCGAAP'!L22 -> 0 | L22: 0 | M22: 0
A23: 47 | B23: 1820 | C23: Distribution Station Equipment <50 kV | D23: ='App.2-BA_FA Cont 2013 NewCGAAP'!G23 -> 2866401.89 | E23: =2203+84326+20935 -> 107464 | G23: 2973865.89 | I23: ='App.2-BA_FA Cont 2013 NewCGAAP'!L23 -> -1878353.82 | J23: =-29760-13438-18705-698 -> -62601 | L23: -1940954.82 | M23: 1032911.07
A24: 47 | B24: 1825 | C24: Storage Battery Equipment | D24: ='App.2-BA_FA Cont 2013 NewCGAAP'!G24 -> 0 | G24: 0 | I24: ='App.2-BA_FA Cont 2013 NewCGAAP'!L24 -> 0 | L24: 0 | M24: 0
A25: 47 | B25: 1830 | C25: Poles, Towers & Fixtures | D25: ='App.2-BA_FA Cont 2013 NewCGAAP'!G25 -> 8545114.33 | E25: 74730 | G25: 8619844.33 | I25: ='App.2-BA_FA Cont 2013 NewCGAAP'!L25 -> -6721535.87 | J25: =-173813-830 -> -174643 | L25: -6896178.87 | M25: 1723665.46
A26: 47 | B26: 1835 | C26: Overhead Conductors & Devices | D26: ='App.2-BA_FA Cont 2013 NewCGAAP'!G26 -> 3161632.97 | E26: =313555+28281+2763 -> 344599 | G26: 3506231.97 | I26: ='App.2-BA_FA Cont 2013 NewCGAAP'!L26 -> -951524.43 | J26: =-110116-6076-663-63 -> -116918 | L26: -1068442.43 | M26: 2437789.54
A27: 47 | B27: 1840 | C27: Underground Conduit | D27: ='App.2-BA_FA Cont 2013 NewCGAAP'!G27 -> 3038692.47 | E27: 43881 | G27: 3082573.47 | I27: ='App.2-BA_FA Cont 2013 NewCGAAP'!L27 -> -2400270.21 | J27: =-92782-590 -> -93372 | L27: -2493642.21 | M27: 588931.26
A28: 47 | B28: 1845 | C28: Underground Conductors & Devices | D28: ='App.2-BA_FA Cont 2013 NewCGAAP'!G28 -> 583410.84 | E28: 176031 | G28: 759441.84 | I28: ='App.2-BA_FA Cont 2013 NewCGAAP'!L28 -> -129412.23 | J28: =-19830-3047 -> -22877 | L28: -152289.23 | M28: 607152.61
A29: 47 | B29: 1850 | C29: Line Transformers | D29: ='App.2-BA_FA Cont 2013 NewCGAAP'!G29 -> 3952655.72 | E29: 158090 | G29: 4110745.72 | I29: ='App.2-BA_FA Cont 2013 NewCGAAP'!L29 -> -2434937.87 | J29: =-92057-3824 -> -95881 | L29: -2530818.87 | M29: 1579926.85
A30: 47 | B30: 1855 | C30: Services (Overhead & Underground) | D30: ='App.2-BA_FA Cont 2013 NewCGAAP'!G30 -> 1243070.1 | E30: =13559+66725 -> 80284 | G30: 1323354.1 | I30: ='App.2-BA_FA Cont 2013 NewCGAAP'!L30 -> -320920.97 | J30: =-42483-323-3493 -> -46299 | L30: -367219.97 | M30: 956134.13
A31: 47 | B31: 1860 | C31: Meters | D31: ='App.2-BA_FA Cont 2013 NewCGAAP'!G31 -> 99078.41 | G31: 99078.41 | I31: ='App.2-BA_FA Cont 2013 NewCGAAP'!L31 -> -14337.41 | J31: =-74-2783 -> -2857 | L31: -17194.41 | M31: 81884
A32: 47 | B32: 1860 | C32: Meters (Smart Meters) | D32: ='App.2-BA_FA Cont 2013 NewCGAAP'!G32 -> 0 | E32: 31909 | G32: 31909 | I32: ='App.2-BA_FA Cont 2013 NewCGAAP'!L32 -> 0 | J32: -1064 | L32: -1064 | M32: 30845
A33: N/A | B33: 1905 | C33: Land | D33: ='App.2-BA_FA Cont 2013 NewCGAAP'!G33 -> 0 | G33: 0 | I33: ='App.2-BA_FA Cont 2013 NewCGAAP'!L33 -> 0 | L33: 0 | M33: 0
A34: 47 | B34: 1908 | C34: Buildings & Fixtures | D34: ='App.2-BA_FA Cont 2013 NewCGAAP'!G34 -> 0 | G34: 0 | I34: ='App.2-BA_FA Cont 2013 NewCGAAP'!L34 -> 0 | L34: 0 | M34: 0
A35: 13 | B35: 1910 | C35: Leasehold Improvements | D35: ='App.2-BA_FA Cont 2013 NewCGAAP'!G35 -> 0 | G35: 0 | I35: ='App.2-BA_FA Cont 2013 NewCGAAP'!L35 -> 0 | L35: 0 | M35: 0
A36: 8 | B36: 1915 | C36: Office Furniture & Equipment (10 years) | D36: ='App.2-BA_FA Cont 2013 NewCGAAP'!G36 -> 131949.43 | E36: 3337 | G36: 135286.43 | I36: ='App.2-BA_FA Cont 2013 NewCGAAP'!L36 -> -124877.55 | J36: -1151 | L36: -126028.55 | M36: 9257.88
A37: 8 | B37: 1915 | C37: Office Furniture & Equipment (5 years) | D37: ='App.2-BA_FA Cont 2013 NewCGAAP'!G37 -> 0 | G37: 0 | I37: ='App.2-BA_FA Cont 2013 NewCGAAP'!L37 -> 0 | L37: 0 | M37: 0
A38: 10 | B38: 1920 | C38: Computer Equipment - Hardware | D38: ='App.2-BA_FA Cont 2013 NewCGAAP'!G38 -> 0 | G38: 0 | I38: ='App.2-BA_FA Cont 2013 NewCGAAP'!L38 -> 0 | L38: 0 | M38: 0
A39: 45 | B39: 1920 | C39: Computer Equip.-Hardware(Post Mar. 22/04) | D39: ='App.2-BA_FA Cont 2013 NewCGAAP'!G39 -> 0 | G39: 0 | I39: ='App.2-BA_FA Cont 2013 NewCGAAP'!L39 -> 0 | L39: 0 | M39: 0
A40: 45.1 | B40: 1920 | C40: Computer Equip.-Hardware(Post Mar. 19/07) | D40: ='App.2-BA_FA Cont 2013 NewCGAAP'!G40 -> 364078.29 | E40: 10557 | G40: 374635.29 | I40: ='App.2-BA_FA Cont 2013 NewCGAAP'!L40 -> -336595.14 | J40: -14294 | L40: -350889.14 | M40: 23746.15
A41: 10 | B41: 1930 | C41: Transportation Equipment | D41: ='App.2-BA_FA Cont 2013 NewCGAAP'!G41 -> 2225787.71 | E41: =28236+30643 -> 58879 | F41: -27759.62 | G41: 2256907.09 | I41: ='App.2-BA_FA Cont 2013 NewCGAAP'!L41 -> -1447661.57 | J41: =-50166-14007-96966 -> -161139 | K41: 27759.62 | L41: -1581040.95 | M41: 675866.14
A42: 8 | B42: 1935 | C42: Stores Equipment | D42: ='App.2-BA_FA Cont 2013 NewCGAAP'!G42 -> 1761.26 | G42: 1761.26 | I42: ='App.2-BA_FA Cont 2013 NewCGAAP'!L42 -> -1761 | L42: -1761 | M42: 0.26
A43: 8 | B43: 1940 | C43: Tools, Shop & Garage Equipment | D43: ='App.2-BA_FA Cont 2013 NewCGAAP'!G43 -> 260169.66 | E43: 39977 | G43: 300146.66 | I43: ='App.2-BA_FA Cont 2013 NewCGAAP'!L43 -> -233389.05 | J43: -7521 | L43: -240910.05 | M43: 59236.61
A44: 8 | B44: 1945 | C44: Measurement & Testing Equipment | D44: ='App.2-BA_FA Cont 2013 NewCGAAP'!G44 -> 18090 | G44: 18090 | I44: ='App.2-BA_FA Cont 2013 NewCGAAP'!L44 -> -905 | J44: -1809 | L44: -2714 | M44: 15376
A45: 8 | B45: 1950 | C45: Power Operated Equipment | D45: ='App.2-BA_FA Cont 2013 NewCGAAP'!G45 -> 0 | G45: 0 | I45: ='App.2-BA_FA Cont 2013 NewCGAAP'!L45 -> 0 | L45: 0 | M45: 0
A46: 8 | B46: 1955 | C46: Communications Equipment | D46: ='App.2-BA_FA Cont 2013 NewCGAAP'!G46 -> 36775.89 | E46: 2148 | G46: 38923.89 | I46: ='App.2-BA_FA Cont 2013 NewCGAAP'!L46 -> -33976.86 | J46: -1661 | L46: -35637.86 | M46: 3286.03
A47: 8 | B47: 1955 | C47: Communication Equipment (Smart Meters) | D47: ='App.2-BA_FA Cont 2013 NewCGAAP'!G47 -> 0 | G47: 0 | I47: ='App.2-BA_FA Cont 2013 NewCGAAP'!L47 -> 0 | L47: 0 | M47: 0
A48: 8 | B48: 1960 | C48: Miscellaneous Equipment | D48: ='App.2-BA_FA Cont 2013 NewCGAAP'!G48 -> 12104 | G48: 12104 | I48: ='App.2-BA_FA Cont 2013 NewCGAAP'!L48 -> -605.2 | J48: -1210.4 | L48: -1815.6 | M48: 10288.4
A49: 47 | B49: 1970 | C49: Load Management Controls Customer Premises | D49: ='App.2-BA_FA Cont 2013 NewCGAAP'!G49 -> 254912 | F49: -254912 | G49: 0 | I49: ='App.2-BA_FA Cont 2013 NewCGAAP'!L49 -> -254911.65 | K49: 254912 | L49: 0.35 | M49: 0.35
A50: 47 | B50: 1975 | C50: Load Management Controls Utility Premises | D50: ='App.2-BA_FA Cont 2013 NewCGAAP'!G50 -> 64873.19 | G50: 64873.19 | I50: ='App.2-BA_FA Cont 2013 NewCGAAP'!L50 -> -64873 | L50: -64873 | M50: 0.19
A51: 47 | B51: 1980 | C51: System Supervisor Equipment | D51: ='App.2-BA_FA Cont 2013 NewCGAAP'!G51 -> 571117.44 | E51: 611 | F51: -186720.42 | G51: 385008.02 | I51: ='App.2-BA_FA Cont 2013 NewCGAAP'!L51 -> -561052 | J51: -1645 | K51: 179131.78 | L51: -383565.22 | M51: 1442.8
A52: 47 | B52: 1985 | C52: Miscellaneous Fixed Assets | D52: ='App.2-BA_FA Cont 2013 NewCGAAP'!G52 -> 0 | E52: 0 | G52: 0 | I52: ='App.2-BA_FA Cont 2013 NewCGAAP'!L52 -> 0 | L52: 0 | M52: 0
A53: 47 | B53: 1990 | C53: Other Tangible Property | D53: ='App.2-BA_FA Cont 2013 NewCGAAP'!G53 -> 0 | E53: 0 | G53: 0 | I53: ='App.2-BA_FA Cont 2013 NewCGAAP'!L53 -> 0 | L53: 0 | M53: 0
A54: 47 | B54: 1995 | C54: Contributions & Grants | D54: ='App.2-BA_FA Cont 2013 NewCGAAP'!G54 -> -2040278.19 | G54: -2040278.19 | I54: ='App.2-BA_FA Cont 2013 NewCGAAP'!L54 -> 513488.66 | J54: =71181+1435+5667 -> 78283 | L54: 591771.66 | M54: -1448506.53
A55: 47 | B55: 2440 | C55: Deferred Revenue5 | D55: ='App.2-BA_FA Cont 2013 NewCGAAP'!G55 -> 0 | E55: -148792 | G55: -148792 | I55: ='App.2-BA_FA Cont 2013 NewCGAAP'!L55 -> 0 | L55: 0 | M55: -148792
D56: ='App.2-BA_FA Cont 2013 NewCGAAP'!G56 -> 0 | G56: =D56+E56+F56 -> 0 | L56: 0 | M56: 0
C57: Sub-Total | D57: =SUM(D17:D56) -> 26534025.96 | E57: =SUM(E17:E56) -> 1049402 | F57: =SUM(F17:F56) -> -469392.04 | G57: =SUM(G17:G56) -> 27114035.92 | I57: =SUM(I17:I56) -> -18015399.79 | J57: =SUM(J17:J56) -> -768201.4 | K57: =SUM(K17:K56) -> 461803.4 | L57: =SUM(L17:L56) -> -18321797.79 | M57: =SUM(M17:M56) -> 8792238.13
C58: Less Socialized Renewable Energy Generation Investments (input as negative) | G58: =D58+E58+F58 -> 0 | L58: =I58+J58+K58 -> 0 | M58: =G58+L58 -> 0
C59: Less Other Non Rate-Regulated Utility Assets (input as negative) | G59: =D59+E59+F59 -> 0 | L59: 0 | M59: 0
C60: Total PP&E | D60: =SUM(D57:D59) -> 26534025.96 | E60: =SUM(E57:E59) -> 1049402 | F60: -469392.04 | G60: 27114035.92 | I60: =SUM(I57:I59) -> -18015399.79 | J60: -768201.4 | K60: 461803.4 | L60: -18321797.79 | M60: 8792238.13
C61: Depreciation Expense adj. from gain or loss on the retirement of assets (pool of like assets), if applicable6
C62: Total | J62: =J60+J61 -> -768201.4
I64: Less: Fully Allocated Depreciation
A65: 10 | C65: Transportation | I65: Transportation | K65: -144100
A66: 8 | C66: Stores Equipment | I66: Stores Equipment
I67: Net Depreciation | K67: =J62-K65-K66 -> -624101.4
A69: Notes:
A71: 1 | B71: Tables in the format outlined above covering all fixed asset accounts should be submitted for the Test Year, Bridge Year and all relevant historical years. At a minimum , the applicant must provide data for the earlier of: 1) all historical years back to its last rebasing; or 2) at least three years of historical actuals, in addition to Bridge Year and Test Year forecasts.
A74: 2 | B74: The "CCA Class" for fixed assets should agree with the CCA Class used for tax purposes in Tax Returns. Fixed Assets sub-components may be used where the underlying asset components are classified under multiple CCA Classes for tax purposes. If an applicant uses any different classes from those shown in the table, an explanation should be provided. (also see note 3 below).
A77: 3 | B77: The table may need to be customized for a utility's asset categories or for any new asset accounts announced or authorized by the Board.
A79: 4 | B79: The additions column (E) must not include construction work in progress (CWIP).
A81: 5 | B81: Effective on the date of IFRS adoption, customer contributions will no longer be recorded in Account 1995 Contributions & Grants, but will be recorded in Account 2440, Deferred Revenues.
A83: 6 | B83: Where a distributor for general financial reporting purposes under IFRS has accounted for the amount of gain or loss on the retirement of assets in a pool of like assets as a charge or credit to income, for reporting and rate application filings the distributor shall reclassify such gains and losses as depreciation expense, and disclose the amount separately.

Sheet App.2-BA_FA PreCont2015OldCGAAP
L1: File Number: | M1: =EBNUMBER -> 
L2: Exhibit:
L3: Tab:
L4: Schedule:
L5: Page:
L7: Date:
A9: Appendix 2-BA
A10: Fixed Asset Continuity Schedule
E12: Accounting Standard | F12: CGAAP | G12: New CGAAP
E13: Year | F13: 2015
D15: Cost | J15: Accumulated Depreciation
A16: CCA Class | B16: OEB | C16: Description | D16: Opening Balance | E16: Additions | F16: Disposals | G16: Closing Balance | I16: Opening Balance | J16: Additions | K16: Disposals | L16: Closing Balance | M16: Net Book Value
A17: 12 | B17: 1611 | C17: Computer Software (Formally known as Account 1925) | D17: ='App.2-BA_FA Cont 2014 OldCGAAP'!G17 -> 401839.74 | E17: 18666 | G17: =D17+E17+F17 -> 420505.74 | I17: ='App.2-BA_FA Cont 2014 OldCGAAP'!L17 -> -348550.94 | J17: =-28171-4135.57 -> -32306.57 | L17: =I17+J17+K17 -> -380857.51 | M17: =G17+L17 -> 39648.23
A18: CEC | B18: 1612 | C18: Land Rights (Formally known as Account 1906) | D18: ='App.2-BA_FA Cont 2014 OldCGAAP'!G18 -> 10808.84 | G18: =D18+E18+F18 -> 10808.84 | I18: ='App.2-BA_FA Cont 2014 OldCGAAP'!L18 -> -8396 | J18: -335 | L18: =I18+J18+K18 -> -8731 | M18: =G18+L18 -> 2077.84
A19: N/A | B19: 1805 | C19: Land | D19: ='App.2-BA_FA Cont 2014 OldCGAAP'!G19 -> 130499.26 | G19: =D19+E19+F19 -> 130499.26 | I19: ='App.2-BA_FA Cont 2014 OldCGAAP'!L19 -> 0 | L19: =I19+J19+K19 -> 0 | M19: =G19+L19 -> 130499.26
A20: 47 | B20: 1808 | C20: Buildings | D20: ='App.2-BA_FA Cont 2014 OldCGAAP'!G20 -> 665177.71 | E20: 10151 | G20: =D20+E20+F20 -> 675328.71 | I20: ='App.2-BA_FA Cont 2014 OldCGAAP'!L20 -> -303717.79 | J20: -16094.94 | L20: =I20+J20+K20 -> -319812.73 | M20: =G20+L20 -> 355515.98
A21: 13 | B21: 1810 | C21: Leasehold Improvements | D21: ='App.2-BA_FA Cont 2014 OldCGAAP'!G21 -> 0 | G21: 0 | I21: ='App.2-BA_FA Cont 2014 OldCGAAP'!L21 -> 0 | L21: 0 | M21: 0
A22: 47 | B22: 1815 | C22: Transformer Station Equipment >50 kV | D22: ='App.2-BA_FA Cont 2014 OldCGAAP'!G22 -> 0 | G22: 0 | I22: ='App.2-BA_FA Cont 2014 OldCGAAP'!L22 -> 0 | L22: 0 | M22: 0
A23: 47 | B23: 1820 | C23: Distribution Station Equipment <50 kV | D23: ='App.2-BA_FA Cont 2014 OldCGAAP'!G23 -> 2973865.89 | E23: =92955+24000 -> 116955 | G23: 3090820.89 | I23: ='App.2-BA_FA Cont 2014 OldCGAAP'!L23 -> -1940380.21 | J23: -67219.5 | L23: -2007599.71 | M23: 1083221.18
A24: 47 | B24: 1825 | C24: Storage Battery Equipment | D24: ='App.2-BA_FA Cont 2014 OldCGAAP'!G24 -> 0 | G24: 0 | I24: ='App.2-BA_FA Cont 2014 OldCGAAP'!L24 -> 0 | L24: 0 | M24: 0
A25: 47 | B25: 1830 | C25: Poles, Towers & Fixtures | D25: ='App.2-BA_FA Cont 2014 OldCGAAP'!G25 -> 8619844.33 | E25: 103610 | G25: 8723454.33 | I25: ='App.2-BA_FA Cont 2014 OldCGAAP'!L25 -> -6915454.14 | J25: -172912.04 | L25: -7088366.18 | M25: 1635088.15
A26: 47 | B26: 1835 | C26: Overhead Conductors & Devices | D26: ='App.2-BA_FA Cont 2014 OldCGAAP'!G26 -> 3506231.97 | E26: =185675-50 -> 185625 | G26: 3691856.97 | I26: ='App.2-BA_FA Cont 2014 OldCGAAP'!L26 -> -1095360.89 | J26: -144805.29 | L26: -1240166.18 | M26: 2451690.79
A27: 47 | B27: 1840 | C27: Underground Conduit | D27: ='App.2-BA_FA Cont 2014 OldCGAAP'!G27 -> 3082573.47 | E27: 2573 | G27: 3085146.47 | I27: ='App.2-BA_FA Cont 2014 OldCGAAP'!L27 -> -2498446.71 | J27: -81870 | L27: -2580316.71 | M27: 504829.76
A28: 47 | B28: 1845 | C28: Underground Conductors & Devices | D28: ='App.2-BA_FA Cont 2014 OldCGAAP'!G28 -> 759441.84 | E28: 87120 | G28: 846561.84 | I28: ='App.2-BA_FA Cont 2014 OldCGAAP'!L28 -> -158243.94 | J28: -32120.09 | L28: -190364.03 | M28: 656197.81
A29: 47 | B29: 1850 | C29: Line Transformers | D29: ='App.2-BA_FA Cont 2014 OldCGAAP'!G29 -> 4110745.72 | E29: =35732+20584+60152 -> 116468 | G29: 4227213.72 | I29: ='App.2-BA_FA Cont 2014 OldCGAAP'!L29 -> -2546511.16 | J29: -97248.44 | L29: -2643759.6 | M29: 1583454.12
A30: 47 | B30: 1855 | C30: Services (Overhead & Underground) | D30: ='App.2-BA_FA Cont 2014 OldCGAAP'!G30 -> 1323354.1 | E30: 113823 | G30: 1437177.1 | I30: ='App.2-BA_FA Cont 2014 OldCGAAP'!L30 -> -375797.69 | J30: -55334.88 | L30: -431132.57 | M30: 1006044.53
A31: 47 | B31: 1860 | C31: Meters | D31: ='App.2-BA_FA Cont 2014 OldCGAAP'!G31 -> 99078.41 | G31: 99078.41 | I31: ='App.2-BA_FA Cont 2014 OldCGAAP'!L31 -> -17780.48 | J31: -2857 | L31: -20637.48 | M31: 78440.93
A32: 47 | B32: 1860 | C32: Meters (Smart Meters) | D32: ='App.2-BA_FA Cont 2014 OldCGAAP'!G32 -> 31909 | E32: =22011+20000 -> 42011 | G32: 73920 | I32: ='App.2-BA_FA Cont 2014 OldCGAAP'!L32 -> -1064 | J32: -2495 | L32: -3559 | M32: 70361
A33: N/A | B33: 1905 | C33: Land | D33: ='App.2-BA_FA Cont 2014 OldCGAAP'!G33 -> 0 | G33: 0 | I33: ='App.2-BA_FA Cont 2014 OldCGAAP'!L33 -> 0 | L33: 0 | M33: 0
A34: 47 | B34: 1908 | C34: Buildings & Fixtures | D34: ='App.2-BA_FA Cont 2014 OldCGAAP'!G34 -> 0 | G34: 0 | I34: ='App.2-BA_FA Cont 2014 OldCGAAP'!L34 -> 0 | L34: 0 | M34: 0
A35: 13 | B35: 1910 | C35: Leasehold Improvements | D35: ='App.2-BA_FA Cont 2014 OldCGAAP'!G35 -> 0 | G35: 0 | I35: ='App.2-BA_FA Cont 2014 OldCGAAP'!L35 -> 0 | L35: 0 | M35: 0
A36: 8 | B36: 1915 | C36: Office Furniture & Equipment (10 years) | D36: ='App.2-BA_FA Cont 2014 OldCGAAP'!G36 -> 135286.43 | E36: 2737 | G36: 138023.43 | I36: ='App.2-BA_FA Cont 2014 OldCGAAP'!L36 -> -126028.55 | J36: -1455 | L36: -127483.55 | M36: 10539.88
A37: 8 | B37: 1915 | C37: Office Furniture & Equipment (5 years) | D37: ='App.2-BA_FA Cont 2014 OldCGAAP'!G37 -> 0 | G37: 0 | I37: ='App.2-BA_FA Cont 2014 OldCGAAP'!L37 -> 0 | L37: 0 | M37: 0
A38: 10 | B38: 1920 | C38: Computer Equipment - Hardware | D38: ='App.2-BA_FA Cont 2014 OldCGAAP'!G38 -> 0 | G38: 0 | I38: ='App.2-BA_FA Cont 2014 OldCGAAP'!L38 -> 0 | L38: 0 | M38: 0
A39: 45 | B39: 1920 | C39: Computer Equip.-Hardware(Post Mar. 22/04) | D39: ='App.2-BA_FA Cont 2014 OldCGAAP'!G39 -> 0 | G39: 0 | I39: ='App.2-BA_FA Cont 2014 OldCGAAP'!L39 -> 0 | L39: 0 | M39: 0
A40: 45.1 | B40: 1920 | C40: Computer Equip.-Hardware(Post Mar. 19/07) | D40: ='App.2-BA_FA Cont 2014 OldCGAAP'!G40 -> 374635.29 | E40: 7982 | G40: 382617.29 | I40: ='App.2-BA_FA Cont 2014 OldCGAAP'!L40 -> -350889.14 | J40: -15110 | L40: -365999.14 | M40: 16618.15
A41: 10 | B41: 1930 | C41: Transportation Equipment | D41: ='App.2-BA_FA Cont 2014 OldCGAAP'!G41 -> 2256907.09 | E41: 33246 | F41: -22100 | G41: 2268053.09 | I41: ='App.2-BA_FA Cont 2014 OldCGAAP'!L41 -> -1581040.95 | J41: -160551 | K41: 22100 | L41: -1719491.95 | M41: 548561.14
A42: 8 | B42: 1935 | C42: Stores Equipment | D42: ='App.2-BA_FA Cont 2014 OldCGAAP'!G42 -> 1761.26 | G42: 1761.26 | I42: ='App.2-BA_FA Cont 2014 OldCGAAP'!L42 -> -1761 | L42: -1761 | M42: 0.26
A43: 8 | B43: 1940 | C43: Tools, Shop & Garage Equipment | D43: ='App.2-BA_FA Cont 2014 OldCGAAP'!G43 -> 300146.66 | E43: 14101 | G43: 314247.66 | I43: ='App.2-BA_FA Cont 2014 OldCGAAP'!L43 -> -240910.05 | J43: =-8349.58-774.52 -> -9124.1 | L43: -250034.15 | M43: 64213.51
A44: 8 | B44: 1945 | C44: Measurement & Testing Equipment | D44: ='App.2-BA_FA Cont 2014 OldCGAAP'!G44 -> 18090 | G44: 18090 | I44: ='App.2-BA_FA Cont 2014 OldCGAAP'!L44 -> -2714 | J44: -1809 | L44: -4523 | M44: 13567
A45: 8 | B45: 1950 | C45: Power Operated Equipment | D45: ='App.2-BA_FA Cont 2014 OldCGAAP'!G45 -> 0 | G45: 0 | I45: ='App.2-BA_FA Cont 2014 OldCGAAP'!L45 -> 0 | L45: 0 | M45: 0
A46: 8 | B46: 1955 | C46: Communications Equipment | D46: ='App.2-BA_FA Cont 2014 OldCGAAP'!G46 -> 38923.89 | E46: 17644 | G46: 56567.89 | I46: ='App.2-BA_FA Cont 2014 OldCGAAP'!L46 -> -35637.86 | J46: -3074.59 | L46: -38712.45 | M46: 17855.44
A47: 8 | B47: 1955 | C47: Communication Equipment (Smart Meters) | D47: ='App.2-BA_FA Cont 2014 OldCGAAP'!G47 -> 0 | G47: 0 | I47: ='App.2-BA_FA Cont 2014 OldCGAAP'!L47 -> 0 | L47: 0 | M47: 0
A48: 8 | B48: 1960 | C48: Miscellaneous Equipment | D48: ='App.2-BA_FA Cont 2014 OldCGAAP'!G48 -> 12104 | G48: 12104 | I48: ='App.2-BA_FA Cont 2014 OldCGAAP'!L48 -> -1815.6 | J48: -1210 | L48: -3025.6 | M48: 9078.4
A49: 47 | B49: 1970 | C49: Load Management Controls Customer Premises | D49: ='App.2-BA_FA Cont 2014 OldCGAAP'!G49 -> 0 | G49: 0 | I49: ='App.2-BA_FA Cont 2014 OldCGAAP'!L49 -> 0.35 | L49: 0.35 | M49: 0.35
A50: 47 | B50: 1975 | C50: Load Management Controls Utility Premises | D50: ='App.2-BA_FA Cont 2014 OldCGAAP'!G50 -> 64873.19 | G50: 64873.19 | I50: ='App.2-BA_FA Cont 2014 OldCGAAP'!L50 -> -64873 | L50: -64873 | M50: 0.19
A51: 47 | B51: 1980 | C51: System Supervisor Equipment | D51: ='App.2-BA_FA Cont 2014 OldCGAAP'!G51 -> 385008.02 | E51: 12050 | G51: 397058.02 | I51: ='App.2-BA_FA Cont 2014 OldCGAAP'!L51 -> -383565.22 | J51: =-3065-1517.73-1517.73 -> -6100.46 | L51: -389665.68 | M51: 7392.34
A52: 47 | B52: 1985 | C52: Miscellaneous Fixed Assets | D52: ='App.2-BA_FA Cont 2014 OldCGAAP'!G52 -> 0 | G52: 0 | I52: ='App.2-BA_FA Cont 2014 OldCGAAP'!L52 -> 0 | L52: 0 | M52: 0
A53: 47 | B53: 1990 | C53: Other Tangible Property | D53: ='App.2-BA_FA Cont 2014 OldCGAAP'!G53 -> 0 | G53: 0 | I53: ='App.2-BA_FA Cont 2014 OldCGAAP'!L53 -> 0 | L53: 0 | M53: 0
A54: 47 | B54: 1995 | C54: Contributions & Grants | D54: ='App.2-BA_FA Cont 2014 OldCGAAP'!G54 -> -2189070.19 | E54: -173516 | G54: -2362586.19 | I54: ='App.2-BA_FA Cont 2014 OldCGAAP'!L54 -> 591771.66 | L54: 591771.66 | M54: -1770814.53
A55: 47 | B55: 2440 | C55: Deferred Revenue5 | D55: ='App.2-BA_FA Cont 2013 NewCGAAP'!G55 -> 0 | I55: ='App.2-BA_FA Cont 2013 NewCGAAP'!L55 -> 0
G56: 0 | I56: ='App.2-BA_FA Cont 2013 NewCGAAP'!L56 -> 0 | L56: 0 | M56: 0
C57: Sub-Total | D57: =SUM(D17:D56) -> 27114035.92 | E57: =SUM(E17:E56) -> 711246 | F57: =SUM(F17:F56) -> -22100 | G57: =SUM(G17:G56) -> 27803181.92 | I57: =SUM(I17:I56) -> -18407167.31 | J57: =SUM(J17:J56) -> -904032.9 | K57: =SUM(K17:K56) -> 22100 | L57: =SUM(L17:L56) -> -19289100.21 | M57: =SUM(M17:M56) -> 8514081.71
C58: Less Socialized Renewable Energy Generation Investments (input as negative) | G58: =D58+E58+F58 -> 0 | L58: =I58+J58+K58 -> 0 | M58: =G58+L58 -> 0
C59: Less Other Non Rate-Regulated Utility Assets (input as negative) | G59: 0 | L59: 0 | M59: 0
C60: Total PP&E | D60: =SUM(D57:D59) -> 27114035.92 | E60: =SUM(E57:E59) -> 711246 | F60: -22100 | G60: 27803181.92 | I60: =SUM(I57:I59) -> -18407167.31 | J60: -904032.9 | K60: 22100 | L60: -19289100.21 | M60: 8514081.71
C61: Depreciation Expense adj. from gain or loss on the retirement of assets (pool of like assets), if applicable6
C62: Total | J62: =J60+J61 -> -904032.9
I64: Less: Fully Allocated Depreciation
A65: 10 | C65: Transportation | I65: Transportation
A66: 8 | C66: Stores Equipment | I66: Stores Equipment
I67: Net Depreciation | K67: =J62-K65-K66 -> -904032.9
A69: Notes:
A71: 1 | B71: Tables in the format outlined above covering all fixed asset accounts should be submitted for the Test Year, Bridge Year and all relevant historical years. At a minimum , the applicant must provide data for the earlier of: 1) all historical years back to its last rebasing; or 2) at least three years of historical actuals, in addition to Bridge Year and Test Year forecasts.
A74: 2 | B74: The "CCA Class" for fixed assets should agree with the CCA Class used for tax purposes in Tax Returns. Fixed Assets sub-components may be used where the underlying asset components are classified under multiple CCA Classes for tax purposes. If an applicant uses any different classes from those shown in the table, an explanation should be provided. (also see note 3 below).
A77: 3 | B77: The table may need to be customized for a utility's asset categories or for any new asset accounts announced or authorized by the Board.
A79: 4 | B79: The additions column (E) must not include construction work in progress (CWIP).
A81: 5 | B81: Effective on the date of IFRS adoption, customer contributions will no longer be recorded in Account 1995 Contributions & Grants, but will be recorded in Account 2440, Deferred Revenues.
A83: 6 | B83: Where a distributor for general financial reporting purposes under IFRS has accounted for the amount of gain or loss on the retirement of assets in a pool of like assets as a charge or credit to income, for reporting and rate application filings the distributor shall reclassify such gains and losses as depreciation expense, and disclose the amount separately.

Sheet App.2-BA_FA PreCont2015NewC
L1: File Number: | M1: =EBNUMBER -> 
L2: Exhibit:
L3: Tab:
L4: Schedule:
L5: Page:
L7: Date:
A9: Appendix 2-BA
A10: Fixed Asset Continuity Schedule
E12: Accounting Standard | F12: CGAAP | G12: New CGAAP
E13: Year | F13: 2015
D15: Cost | J15: Accumulated Depreciation
A16: CCA Class | B16: OEB | C16: Description | D16: Opening Balance | E16: Additions | F16: Disposals | G16: Closing Balance | I16: Opening Balance | J16: Additions | K16: Disposals | L16: Closing Balance | M16: Net Book Value
A17: 12 | B17: 1611 | C17: Computer Software (Formally known as Account 1925) | D17: =+'App.2-BA_FA Cont 2014 NewCGAAP'!G17 -> 401839.74 | E17: 18666 | G17: =D17+E17+F17 -> 420505.74 | I17: =+'App.2-BA_FA Cont 2014 NewCGAAP'!L17 -> -344415.37 | J17: =-28171-4135.57 -> -32306.57 | L17: =I17+J17+K17 -> -376721.94 | M17: =G17+L17 -> 43783.8
A18: CEC | B18: 1612 | C18: Land Rights (Formally known as Account 1906) | D18: =+'App.2-BA_FA Cont 2014 NewCGAAP'!G18 -> 10808.84 | G18: =D18+E18+F18 -> 10808.84 | I18: =+'App.2-BA_FA Cont 2014 NewCGAAP'!L18 -> -8396 | J18: -335 | L18: =I18+J18+K18 -> -8731 | M18: =G18+L18 -> 2077.84
A19: N/A | B19: 1805 | C19: Land | D19: =+'App.2-BA_FA Cont 2014 NewCGAAP'!G19 -> 130499.26 | G19: =D19+E19+F19 -> 130499.26 | I19: =+'App.2-BA_FA Cont 2014 NewCGAAP'!L19 -> 0 | L19: =I19+J19+K19 -> 0 | M19: =G19+L19 -> 130499.26
A20: 47 | B20: 1808 | C20: Buildings | D20: =+'App.2-BA_FA Cont 2014 NewCGAAP'!G20 -> 665177.71 | E20: 10151 | G20: =D20+E20+F20 -> 675328.71 | I20: =+'App.2-BA_FA Cont 2014 NewCGAAP'!L20 -> -303718.25 | J20: -16094.94 | L20: =I20+J20+K20 -> -319813.19 | M20: =G20+L20 -> 355515.52
A21: 13 | B21: 1810 | C21: Leasehold Improvements | D21: =+'App.2-BA_FA Cont 2014 NewCGAAP'!G21 -> 0 | G21: 0 | I21: =+'App.2-BA_FA Cont 2014 NewCGAAP'!L21 -> 0 | L21: 0 | M21: 0
A22: 47 | B22: 1815 | C22: Transformer Station Equipment >50 kV | D22: =+'App.2-BA_FA Cont 2014 NewCGAAP'!G22 -> 0 | G22: 0 | I22: =+'App.2-BA_FA Cont 2014 NewCGAAP'!L22 -> 0 | L22: 0 | M22: 0
A23: 47 | B23: 1820 | C23: Distribution Station Equipment <50 kV | D23: =+'App.2-BA_FA Cont 2014 NewCGAAP'!G23 -> 2973865.89 | E23: =92955+24000 -> 116955 | G23: 3090820.89 | I23: =+'App.2-BA_FA Cont 2014 NewCGAAP'!L23 -> -1940954.82 | J23: =-67219.5+2294.92 -> -64924.58 | L23: -2005879.4 | M23: 1084941.49
A24: 47 | B24: 1825 | C24: Storage Battery Equipment | D24: =+'App.2-BA_FA Cont 2014 NewCGAAP'!G24 -> 0 | G24: 0 | I24: =+'App.2-BA_FA Cont 2014 NewCGAAP'!L24 -> 0 | L24: 0 | M24: 0
A25: 47 | B25: 1830 | C25: Poles, Towers & Fixtures | D25: =+'App.2-BA_FA Cont 2014 NewCGAAP'!G25 -> 8619844.33 | E25: 103610 | G25: 8723454.33 | I25: =+'App.2-BA_FA Cont 2014 NewCGAAP'!L25 -> -6896178.87 | J25: =-172912.04+6324.22+1617.34 -> -164970.48 | L25: -7061149.35 | M25: 1662304.98
A26: 47 | B26: 1835 | C26: Overhead Conductors & Devices | D26: =+'App.2-BA_FA Cont 2014 NewCGAAP'!G26 -> 3506231.97 | E26: =185675-50 -> 185625 | G26: 3691856.97 | I26: =+'App.2-BA_FA Cont 2014 NewCGAAP'!L26 -> -1068442.43 | J26: =-144805.29+18842.63+4481.23 -> -121481.43 | L26: -1189923.86 | M26: 2501933.11
A27: 47 | B27: 1840 | C27: Underground Conduit | D27: =+'App.2-BA_FA Cont 2014 NewCGAAP'!G27 -> 3082573.47 | E27: 2573 | G27: 3085146.47 | I27: =+'App.2-BA_FA Cont 2014 NewCGAAP'!L27 -> -2493642.21 | J27: =-81870+2195.16 -> -79674.84 | L27: -2573317.05 | M27: 511829.42
A28: 47 | B28: 1845 | C28: Underground Conductors & Devices | D28: =+'App.2-BA_FA Cont 2014 NewCGAAP'!G28 -> 759441.84 | E28: 87120 | G28: 846561.84 | I28: =+'App.2-BA_FA Cont 2014 NewCGAAP'!L28 -> -152289.23 | J28: =-32120.09+5953.71 -> -26166.38 | L28: -178455.61 | M28: 668106.23
A29: 47 | B29: 1850 | C29: Line Transformers | D29: =+'App.2-BA_FA Cont 2014 NewCGAAP'!G29 -> 4110745.72 | E29: =35732+20584+60152 -> 116468 | G29: 4227213.72 | I29: =+'App.2-BA_FA Cont 2014 NewCGAAP'!L29 -> -2530818.87 | J29: =-97248.44+5620.6 -> -91627.84 | L29: -2622446.71 | M29: 1604767.01
A30: 47 | B30: 1855 | C30: Services (Overhead & Underground) | D30: =+'App.2-BA_FA Cont 2014 NewCGAAP'!G30 -> 1323354.1 | E30: 113823 | G30: 1437177.1 | I30: =+'App.2-BA_FA Cont 2014 NewCGAAP'!L30 -> -367219.97 | J30: =-55334.88+2196.88+5595.11 -> -47542.89 | L30: -414762.86 | M30: 1022414.24
A31: 47 | B31: 1860 | C31: Meters | D31: =+'App.2-BA_FA Cont 2014 NewCGAAP'!G31 -> 99078.41 | G31: 99078.41 | I31: =+'App.2-BA_FA Cont 2014 NewCGAAP'!L31 -> -17194.41 | J31: -2857 | L31: -20051.41 | M31: 79027
A32: 47 | B32: 1860 | C32: Meters (Smart Meters) | D32: =+'App.2-BA_FA Cont 2014 NewCGAAP'!G32 -> 31909 | E32: =22011+20000 -> 42011 | G32: 73920 | I32: =+'App.2-BA_FA Cont 2014 NewCGAAP'!L32 -> -1064 | J32: -2495 | L32: -3559 | M32: 70361
A33: N/A | B33: 1905 | C33: Land | D33: =+'App.2-BA_FA Cont 2014 NewCGAAP'!G33 -> 0 | G33: 0 | I33: =+'App.2-BA_FA Cont 2014 NewCGAAP'!L33 -> 0 | L33: 0 | M33: 0
A34: 47 | B34: 1908 | C34: Buildings & Fixtures | D34: =+'App.2-BA_FA Cont 2014 NewCGAAP'!G34 -> 0 | G34: 0 | I34: =+'App.2-BA_FA Cont 2014 NewCGAAP'!L34 -> 0 | L34: 0 | M34: 0
A35: 13 | B35: 1910 | C35: Leasehold Improvements | D35: =+'App.2-BA_FA Cont 2014 NewCGAAP'!G35 -> 0 | G35: 0 | I35: =+'App.2-BA_FA Cont 2014 NewCGAAP'!L35 -> 0 | L35: 0 | M35: 0
A36: 8 | B36: 1915 | C36: Office Furniture & Equipment (10 years) | D36: =+'App.2-BA_FA Cont 2014 NewCGAAP'!G36 -> 135286.43 | E36: 2737 | G36: 138023.43 | I36: =+'App.2-BA_FA Cont 2014 NewCGAAP'!L36 -> -126028.55 | J36: -1455 | L36: -127483.55 | M36: 10539.88
A37: 8 | B37: 1915 | C37: Office Furniture & Equipment (5 years) | D37: =+'App.2-BA_FA Cont 2014 NewCGAAP'!G37 -> 0 | G37: 0 | I37: =+'App.2-BA_FA Cont 2014 NewCGAAP'!L37 -> 0 | L37: 0 | M37: 0
A38: 10 | B38: 1920 | C38: Computer Equipment - Hardware | D38: =+'App.2-BA_FA Cont 2014 NewCGAAP'!G38 -> 0 | G38: 0 | I38: =+'App.2-BA_FA Cont 2014 NewCGAAP'!L38 -> 0 | L38: 0 | M38: 0
A39: 45 | B39: 1920 | C39: Computer Equip.-Hardware(Post Mar. 22/04) | D39: =+'App.2-BA_FA Cont 2014 NewCGAAP'!G39 -> 0 | G39: 0 | I39: =+'App.2-BA_FA Cont 2014 NewCGAAP'!L39 -> 0 | L39: 0 | M39: 0
A40: 45.1 | B40: 1920 | C40: Computer Equip.-Hardware(Post Mar. 19/07) | D40: =+'App.2-BA_FA Cont 2014 NewCGAAP'!G40 -> 374635.29 | E40: 7982 | G40: 382617.29 | I40: =+'App.2-BA_FA Cont 2014 NewCGAAP'!L40 -> -350889.14 | J40: -15110 | L40: -365999.14 | M40: 16618.15
A41: 10 | B41: 1930 | C41: Transportation Equipment | D41: =+'App.2-BA_FA Cont 2014 NewCGAAP'!G41 -> 2256907.09 | E41: 33246 | F41: -22100 | G41: 2268053.09 | I41: =+'App.2-BA_FA Cont 2014 NewCGAAP'!L41 -> -1581040.95 | J41: -160551 | K41: 22100 | L41: -1719491.95 | M41: 548561.14
A42: 8 | B42: 1935 | C42: Stores Equipment | D42: =+'App.2-BA_FA Cont 2014 NewCGAAP'!G42 -> 1761.26 | G42: 1761.26 | I42: =+'App.2-BA_FA Cont 2014 NewCGAAP'!L42 -> -1761 | L42: -1761 | M42: 0.26
A43: 8 | B43: 1940 | C43: Tools, Shop & Garage Equipment | D43: =+'App.2-BA_FA Cont 2014 NewCGAAP'!G43 -> 300146.66 | E43: 14101 | G43: 314247.66 | I43: =+'App.2-BA_FA Cont 2014 NewCGAAP'!L43 -> -240910.05 | J43: =-8349.58-774.52 -> -9124.1 | L43: -250034.15 | M43: 64213.51
A44: 8 | B44: 1945 | C44: Measurement & Testing Equipment | D44: =+'App.2-BA_FA Cont 2014 NewCGAAP'!G44 -> 18090 | G44: 18090 | I44: =+'App.2-BA_FA Cont 2014 NewCGAAP'!L44 -> -2714 | J44: -1809 | L44: -4523 | M44: 13567
A45: 8 | B45: 1950 | C45: Power Operated Equipment | D45: =+'App.2-BA_FA Cont 2014 NewCGAAP'!G45 -> 0 | G45: 0 | I45: =+'App.2-BA_FA Cont 2014 NewCGAAP'!L45 -> 0 | L45: 0 | M45: 0
A46: 8 | B46: 1955 | C46: Communications Equipment | D46: =+'App.2-BA_FA Cont 2014 NewCGAAP'!G46 -> 38923.89 | E46: 17644 | G46: 56567.89 | I46: =+'App.2-BA_FA Cont 2014 NewCGAAP'!L46 -> -35637.86 | J46: -3074.59 | L46: -38712.45 | M46: 17855.44
A47: 8 | B47: 1955 | C47: Communication Equipment (Smart Meters) | D47: =+'App.2-BA_FA Cont 2014 NewCGAAP'!G47 -> 0 | G47: 0 | I47: =+'App.2-BA_FA Cont 2014 NewCGAAP'!L47 -> 0 | L47: 0 | M47: 0
A48: 8 | B48: 1960 | C48: Miscellaneous Equipment | D48: =+'App.2-BA_FA Cont 2014 NewCGAAP'!G48 -> 12104 | G48: 12104 | I48: =+'App.2-BA_FA Cont 2014 NewCGAAP'!L48 -> -1815.6 | J48: -1210 | L48: -3025.6 | M48: 9078.4
A49: 47 | B49: 1970 | C49: Load Management Controls Customer Premises | D49: =+'App.2-BA_FA Cont 2014 NewCGAAP'!G49 -> 0 | G49: 0 | I49: =+'App.2-BA_FA Cont 2014 NewCGAAP'!L49 -> 0.35 | L49: 0.35 | M49: 0.35
A50: 47 | B50: 1975 | C50: Load Management Controls Utility Premises | D50: =+'App.2-BA_FA Cont 2014 NewCGAAP'!G50 -> 64873.19 | G50: 64873.19 | I50: =+'App.2-BA_FA Cont 2014 NewCGAAP'!L50 -> -64873 | L50: -64873 | M50: 0.19
A51: 47 | B51: 1980 | C51: System Supervisor Equipment | D51: =+'App.2-BA_FA Cont 2014 NewCGAAP'!G51 -> 385008.02 | E51: 12050 | G51: 397058.02 | I51: =+'App.2-BA_FA Cont 2014 NewCGAAP'!L51 -> -383565.22 | J51: =-3065-1517.73-1517.73 -> -6100.46 | L51: -389665.68 | M51: 7392.34
A52: 47 | B52: 1985 | C52: Miscellaneous Fixed Assets | D52: =+'App.2-BA_FA Cont 2014 NewCGAAP'!G52 -> 0 | G52: 0 | I52: =+'App.2-BA_FA Cont 2014 NewCGAAP'!L52 -> 0 | L52: 0 | M52: 0
A53: 47 | B53: 1990 | C53: Other Tangible Property | D53: =+'App.2-BA_FA Cont 2014 NewCGAAP'!G53 -> 0 | G53: 0 | I53: =+'App.2-BA_FA Cont 2014 NewCGAAP'!L53 -> 0 | L53: 0 | M53: 0
A54: 47 | B54: 1995 | C54: Contributions & Grants | D54: =+'App.2-BA_FA Cont 2014 NewCGAAP'!G54 -> -2189070.19 | E54: -173516 | G54: -2362586.19 | I54: =+'App.2-BA_FA Cont 2014 NewCGAAP'!L54 -> 591771.66 | L54: 591771.66 | M54: -1770814.53
A55: 47 | B55: 2440 | C55: Deferred Revenue5 | D55: ='App.2-BA_FA Cont 2013 NewCGAAP'!G55 -> 0 | I55: ='App.2-BA_FA Cont 2013 NewCGAAP'!L55 -> 0
G56: 0 | I56: ='App.2-BA_FA Cont 2013 NewCGAAP'!L56 -> 0 | L56: 0 | M56: 0
C57: Sub-Total | D57: =SUM(D17:D56) -> 27114035.92 | E57: =SUM(E17:E56) -> 711246 | F57: =SUM(F17:F56) -> -22100 | G57: =SUM(G17:G56) -> 27803181.92 | I57: =SUM(I17:I56) -> -18321797.79 | J57: =SUM(J17:J56) -> -848911.1 | K57: =SUM(K17:K56) -> 22100 | L57: =SUM(L17:L56) -> -19148608.89 | M57: =SUM(M17:M56) -> 8654573.03
C58: Less Socialized Renewable Energy Generation Investments (input as negative) | G58: =D58+E58+F58 -> 0 | L58: =I58+J58+K58 -> 0 | M58: =G58+L58 -> 0
C59: Less Other Non Rate-Regulated Utility Assets (input as negative) | G59: 0 | L59: 0 | M59: 0
C60: Total PP&E | D60: =SUM(D57:D59) -> 27114035.92 | E60: =SUM(E57:E59) -> 711246 | F60: -22100 | G60: 27803181.92 | I60: =SUM(I57:I59) -> -18321797.79 | J60: -848911.1 | K60: 22100 | L60: -19148608.89 | M60: 8654573.03
C61: Depreciation Expense adj. from gain or loss on the retirement of assets (pool of like assets), if applicable6
C62: Total | J62: =J60+J61 -> -848911.1
I64: Less: Fully Allocated Depreciation
A65: 10 | C65: Transportation | I65: Transportation
A66: 8 | C66: Stores Equipment | I66: Stores Equipment
I67: Net Depreciation | K67: =J62-K65-K66 -> -848911.1
A69: Notes:
A71: 1 | B71: Tables in the format outlined above covering all fixed asset accounts should be submitted for the Test Year, Bridge Year and all relevant historical years. At a minimum , the applicant must provide data for the earlier of: 1) all historical years back to its last rebasing; or 2) at least three years of historical actuals, in addition to Bridge Year and Test Year forecasts.
A74: 2 | B74: The "CCA Class" for fixed assets should agree with the CCA Class used for tax purposes in Tax Returns. Fixed Assets sub-components may be used where the underlying asset components are classified under multiple CCA Classes for tax purposes. If an applicant uses any different classes from those shown in the table, an explanation should be provided. (also see note 3 below).
A77: 3 | B77: The table may need to be customized for a utility's asset categories or for any new asset accounts announced or authorized by the Board.
A79: 4 | B79: The additions column (E) must not include construction work in progress (CWIP).
A81: 5 | B81: Effective on the date of IFRS adoption, customer contributions will no longer be recorded in Account 1995 Contributions & Grants, but will be recorded in Account 2440, Deferred Revenues.
A83: 6 | B83: Where a distributor for general financial reporting purposes under IFRS has accounted for the amount of gain or loss on the retirement of assets in a pool of like assets as a charge or credit to income, for reporting and rate application filings the distributor shall reclassify such gains and losses as depreciation expense, and disclose the amount separately.

Sheet App.2-BA_FA Cont 2015 MIFRS
L1: File Number: | M1: =EBNUMBER -> 
L2: Exhibit:
L3: Tab:
L4: Schedule:
L5: Page:
L7: Date:
A9: Appendix 2-BA
A10: Fixed Asset Continuity Schedule
E12: Accounting Standard | F12: MIFRS
E13: Year | F13: 2015
D15: Cost | J15: Accumulated Depreciation
A16: CCA Class | B16: OEB | C16: Description | D16: Opening Balance | E16: Additions | F16: Disposals | G16: Closing Balance | I16: Opening Balance | J16: Additions | K16: Disposals | L16: Closing Balance | M16: Net Book Value
A17: 12 | B17: 1611 | C17: Computer Software (Formally known as Account 1925) | D17: ='App.2-BA_FA Cont 2014 MIFRS'!G17 -> 401839.74 | E17: 34000 | G17: =D17+E17+F17 -> 435839.74 | I17: ='App.2-BA_FA Cont 2014 MIFRS'!L17 -> -344415.37 | J17: -34862 | L17: =I17+J17+K17 -> -379277.37 | M17: =G17+L17 -> 56562.37
A18: 12 | B18: 1611 | C18: Computer Software (Formally known as Account 1925) from acct 1555 | D18: 103008 | G18: =D18+E18+F18 -> 103008 | I18: -103008 | J18: 0 | L18: =I18+J18+K18 -> -103008 | M18: =G18+L18 -> 0
A19: CEC | B19: 1612 | C19: Land Rights (Formally known as Account 1906) | D19: ='App.2-BA_FA Cont 2014 MIFRS'!G18 -> 10808.84 | G19: =D19+E19+F19 -> 10808.84 | I19: ='App.2-BA_FA Cont 2014 MIFRS'!L18 -> -8396 | J19: -335 | L19: =I19+J19+K19 -> -8731 | M19: =G19+L19 -> 2077.84
A20: N/A | B20: 1805 | C20: Land | D20: ='App.2-BA_FA Cont 2014 MIFRS'!G19 -> 130499.26 | G20: =D20+E20+F20 -> 130499.26 | I20: ='App.2-BA_FA Cont 2014 MIFRS'!L19 -> 0 | L20: =I20+J20+K20 -> 0 | M20: =G20+L20 -> 130499.26
A21: 47 | B21: 1808 | C21: Buildings | D21: ='App.2-BA_FA Cont 2014 MIFRS'!G20 -> 665177.71 | E21: 106000 | G21: =D21+E21+F21 -> 771177.71 | I21: ='App.2-BA_FA Cont 2014 MIFRS'!L20 -> -303718.25 | J21: =-13566-4447 -> -18013 | L21: =I21+J21+K21 -> -321731.25 | M21: =G21+L21 -> 449446.46
A22: 13 | B22: 1810 | C22: Leasehold Improvements | D22: ='App.2-BA_FA Cont 2014 MIFRS'!G21 -> 0 | G22: 0 | I22: ='App.2-BA_FA Cont 2014 MIFRS'!L21 -> 0 | L22: 0 | M22: 0
A23: 47 | B23: 1815 | C23: Transformer Station Equipment >50 kV | D23: ='App.2-BA_FA Cont 2014 MIFRS'!G22 -> 0 | G23: 0 | I23: ='App.2-BA_FA Cont 2014 MIFRS'!L22 -> 0 | L23: 0 | M23: 0
A24: 47 | B24: 1820 | C24: Distribution Station Equipment <50 kV | D24: ='App.2-BA_FA Cont 2014 MIFRS'!G23 -> 2973865.89 | E24: 139500 | G24: 3113365.89 | I24: ='App.2-BA_FA Cont 2014 MIFRS'!L23 -> -1940954.82 | J24: =-32085-13465-19652 -> -65202 | L24: -2006156.82 | M24: 1107209.07
A25: 47 | B25: 1825 | C25: Storage Battery Equipment | D25: ='App.2-BA_FA Cont 2014 MIFRS'!G24 -> 0 | G25: 0 | I25: ='App.2-BA_FA Cont 2014 MIFRS'!L24 -> 0 | L25: 0 | M25: 0
A26: 47 | B26: 1830 | C26: Poles, Towers & Fixtures | D26: ='App.2-BA_FA Cont 2014 MIFRS'!G25 -> 8619844.33 | E26: 154820 | G26: 8774664.33 | I26: ='App.2-BA_FA Cont 2014 MIFRS'!L25 -> -6896178.87 | J26: =-163244-1661 -> -164905 | L26: -7061083.87 | M26: 1713580.46
A27: 47 | B27: 1835 | C27: Overhead Conductors & Devices | D27: ='App.2-BA_FA Cont 2014 MIFRS'!G26 -> 3506231.97 | E27: 210000 | G27: 3716231.97 | I27: ='App.2-BA_FA Cont 2014 MIFRS'!L26 -> -1068442.43 | J27: =-122-1188-10265-110116 -> -121691 | L27: -1190133.43 | M27: 2526098.54
A28: 47 | B28: 1840 | C28: Underground Conduit | D28: ='App.2-BA_FA Cont 2014 MIFRS'!G27 -> 3082573.47 | E28: 73000 | G28: 3155573.47 | I28: ='App.2-BA_FA Cont 2014 MIFRS'!L27 -> -2493642.21 | J28: =-79241-1138 -> -80379 | L28: -2574021.21 | M28: 581552.26
A29: 47 | B29: 1845 | C29: Underground Conductors & Devices | D29: ='App.2-BA_FA Cont 2014 MIFRS'!G28 -> 759441.84 | E29: 243650 | G29: 1003091.84 | I29: ='App.2-BA_FA Cont 2014 MIFRS'!L28 -> -152289.23 | J29: =-24229-3892 -> -28121 | L29: -180410.23 | M29: 822681.61
A30: 47 | B30: 1850 | C30: Line Transformers | D30: ='App.2-BA_FA Cont 2014 MIFRS'!G29 -> 4110745.72 | E30: 187000 | G30: 4297745.72 | I30: ='App.2-BA_FA Cont 2014 MIFRS'!L29 -> -2530818.87 | J30: =-81377-8138 -> -89515 | L30: -2620333.87 | M30: 1677411.85
A31: 47 | B31: 1855 | C31: Services (Overhead & Underground) | D31: ='App.2-BA_FA Cont 2014 MIFRS'!G30 -> 1323354.1 | E31: 101000 | G31: 1424354.1 | I31: ='App.2-BA_FA Cont 2014 MIFRS'!L30 -> -367219.97 | J31: =-42483-1152-4438 -> -48073 | L31: -415292.97 | M31: 1009061.13
A32: 47 | B32: 1860 | C32: Meters | D32: ='App.2-BA_FA Cont 2014 MIFRS'!G31 -> 99078.41 | E32: 10000 | G32: 109078.41 | I32: ='App.2-BA_FA Cont 2014 MIFRS'!L31 -> -17194.41 | J32: =-74-2783 -> -2857 | L32: -20051.41 | M32: 89027
A33: 47 | B33: 1860 | C33: Meters (Smart Meters) | D33: ='App.2-BA_FA Cont 2014 MIFRS'!G32 -> 31909 | E33: 65000 | G33: 96909 | I33: ='App.2-BA_FA Cont 2014 MIFRS'!L32 -> -1064 | J33: -4294 | L33: -5358 | M33: 91551
A34: 47 | B34: 1860 | C34: Meters (Smart Meters) from account 1555 | D34: 1645232 | G34: 1645232 | I34: -553128 | J34: -102942 | L34: =I34+J34+K34 -> -656070 | M34: =G34+L34 -> 989162
A35: N/A | B35: 1905 | C35: Land | D35: ='App.2-BA_FA Cont 2014 MIFRS'!G33 -> 0 | G35: 0 | I35: ='App.2-BA_FA Cont 2014 MIFRS'!L33 -> 0 | L35: 0 | M35: 0
A36: 47 | B36: 1908 | C36: Buildings & Fixtures | D36: ='App.2-BA_FA Cont 2014 MIFRS'!G34 -> 0 | G36: 0 | I36: ='App.2-BA_FA Cont 2014 MIFRS'!L34 -> 0 | L36: 0 | M36: 0
A37: 13 | B37: 1910 | C37: Leasehold Improvements | D37: ='App.2-BA_FA Cont 2014 MIFRS'!G35 -> 0 | G37: 0 | I37: ='App.2-BA_FA Cont 2014 MIFRS'!L35 -> 0 | L37: 0 | M37: 0
A38: 8 | B38: 1915 | C38: Office Furniture & Equipment (10 years) | D38: ='App.2-BA_FA Cont 2014 MIFRS'!G36 -> 135286.43 | E38: 5000 | G38: 140286.43 | I38: ='App.2-BA_FA Cont 2014 MIFRS'!L36 -> -126028.55 | J38: -1568 | L38: -127596.55 | M38: 12689.88
A39: 8 | B39: 1915 | C39: Office Furniture & Equipment (5 years) | D39: ='App.2-BA_FA Cont 2014 MIFRS'!G37 -> 0 | G39: 0 | I39: ='App.2-BA_FA Cont 2014 MIFRS'!L37 -> 0 | L39: 0 | M39: 0
A40: 10 | B40: 1920 | C40: Computer Equipment - Hardware | D40: ='App.2-BA_FA Cont 2014 MIFRS'!G38 -> 0 | G40: 0 | I40: ='App.2-BA_FA Cont 2014 MIFRS'!L38 -> 0 | L40: 0 | M40: 0
A41: 45 | B41: 1920 | C41: Computer Equip.-Hardware(Post Mar. 22/04) | D41: ='App.2-BA_FA Cont 2014 MIFRS'!G39 -> 0 | G41: 0 | I41: ='App.2-BA_FA Cont 2014 MIFRS'!L39 -> 0 | L41: 0 | M41: 0
A42: 45.1 | B42: 1920 | C42: Computer Equip.-Hardware(Post Mar. 19/07) | D42: ='App.2-BA_FA Cont 2014 MIFRS'!G40 -> 374635.29 | E42: 10000 | G42: 384635.29 | I42: ='App.2-BA_FA Cont 2014 MIFRS'!L40 -> -350889.14 | J42: -15446 | L42: -366335.14 | M42: 18300.15
A43: 45.1 | B43: 1920 | C43: Computer Equip.-Hardware(Post Mar. 19/07) from acct 1555 | D43: 25493 | G43: 25493 | I43: -22821 | J43: -1781.6 | L43: -24602.6 | M43: 890.4
A44: 10 | B44: 1930 | C44: Transportation Equipment | D44: ='App.2-BA_FA Cont 2014 MIFRS'!G41 -> 2256907.09 | E44: 61000 | G44: 2317907.09 | I44: ='App.2-BA_FA Cont 2014 MIFRS'!L41 -> -1581040.95 | J44: =-53978-16830-88489 -> -159297 | L44: -1740337.95 | M44: 577569.14
A45: 8 | B45: 1935 | C45: Stores Equipment | D45: ='App.2-BA_FA Cont 2014 MIFRS'!G42 -> 1761.26 | G45: 1761.26 | I45: ='App.2-BA_FA Cont 2014 MIFRS'!L42 -> -1761 | L45: -1761 | M45: 0.26
A46: 8 | B46: 1940 | C46: Tools, Shop & Garage Equipment | D46: ='App.2-BA_FA Cont 2014 MIFRS'!G43 -> 300146.66 | E46: 10000 | G46: 310146.66 | I46: ='App.2-BA_FA Cont 2014 MIFRS'!L43 -> -240910.05 | J46: -8919 | L46: -249829.05 | M46: 60317.61
A47: 8 | B47: 1945 | C47: Measurement & Testing Equipment | D47: ='App.2-BA_FA Cont 2014 MIFRS'!G44 -> 18090 | G47: 18090 | I47: ='App.2-BA_FA Cont 2014 MIFRS'!L44 -> -2714 | J47: -1809 | L47: -4523 | M47: 13567
A48: 8 | B48: 1950 | C48: Power Operated Equipment | D48: ='App.2-BA_FA Cont 2014 MIFRS'!G45 -> 0 | G48: 0 | I48: ='App.2-BA_FA Cont 2014 MIFRS'!L45 -> 0 | L48: 0 | M48: 0
A49: 8 | B49: 1955 | C49: Communications Equipment | D49: ='App.2-BA_FA Cont 2014 MIFRS'!G46 -> 38923.89 | E49: 1200 | G49: 40123.89 | I49: ='App.2-BA_FA Cont 2014 MIFRS'!L46 -> -35637.86 | J49: -1430 | L49: -37067.86 | M49: 3056.03
A50: 8 | B50: 1955 | C50: Communication Equipment (Smart Meters) | D50: ='App.2-BA_FA Cont 2014 MIFRS'!G47 -> 0 | G50: 0 | I50: ='App.2-BA_FA Cont 2014 MIFRS'!L47 -> 0 | L50: 0 | M50: 0
A51: 8 | B51: 1960 | C51: Miscellaneous Equipment | D51: ='App.2-BA_FA Cont 2014 MIFRS'!G48 -> 12104 | G51: 12104 | I51: ='App.2-BA_FA Cont 2014 MIFRS'!L48 -> -1815.6 | J51: -1210.4 | L51: -3026 | M51: 9078
A52: 47 | B52: 1970 | C52: Load Management Controls Customer Premises | D52: ='App.2-BA_FA Cont 2014 MIFRS'!G49 -> 0 | G52: 0 | I52: ='App.2-BA_FA Cont 2014 MIFRS'!L49 -> 0.35 | L52: 0.35 | M52: 0.35
A53: 47 | B53: 1975 | C53: Load Management Controls Utility Premises | D53: ='App.2-BA_FA Cont 2014 MIFRS'!G50 -> 64873.19 | G53: 64873.19 | I53: ='App.2-BA_FA Cont 2014 MIFRS'!L50 -> -64873 | L53: -64873 | M53: 0.19
A54: 47 | B54: 1980 | C54: System Supervisor Equipment | D54: ='App.2-BA_FA Cont 2014 MIFRS'!G51 -> 385008.02 | E54: 22500 | G54: 407508.02 | I54: ='App.2-BA_FA Cont 2014 MIFRS'!L51 -> -383565.22 | J54: -4812 | L54: -388377.22 | M54: 19130.8
A55: 47 | B55: 1985 | C55: Miscellaneous Fixed Assets | D55: ='App.2-BA_FA Cont 2014 MIFRS'!G52 -> 0 | E55: 0 | G55: 0 | I55: ='App.2-BA_FA Cont 2014 MIFRS'!L52 -> 0 | L55: 0 | M55: 0
A56: 47 | B56: 1990 | C56: Other Tangible Property | D56: ='App.2-BA_FA Cont 2014 MIFRS'!G53 -> 0 | E56: 0 | G56: 0 | I56: ='App.2-BA_FA Cont 2014 MIFRS'!L53 -> 0 | L56: 0 | M56: 0
A57: 47 | B57: 1995 | C57: Contributions & Grants | D57: ='App.2-BA_FA Cont 2014 MIFRS'!G54 -> -2040278.19 | G57: -2040278.19 | I57: ='App.2-BA_FA Cont 2014 MIFRS'!L54 -> 591771.66 | J57: =71181+11334 -> 82515 | L57: 674286.66 | M57: -1365991.53
A58: 47 | B58: 2440 | C58: Deferred Revenue5 | D58: ='App.2-BA_FA Cont 2014 MIFRS'!G55 -> -148792 | E58: -324000 | G58: -472792 | I58: ='App.2-BA_FA Cont 2014 MIFRS'!L55 -> 0 | J58: 6920 | L58: 6920 | M58: -465872
D59: ='App.2-BA_FA Cont 2014 MIFRS'!G56 -> 0 | G59: 0 | I59: ='App.2-BA_FA Cont 2014 MIFRS'!L56 -> 0 | L59: 0 | M59: 0
C60: Sub-Total | D60: =SUM(D17:D59) -> 28887768.92 | E60: =SUM(E17:E59) -> 1109670 | F60: =SUM(F17:F59) -> 0 | G60: =SUM(G17:G59) -> 29997438.92 | I60: =SUM(I17:I59) -> -19000754.79 | J60: =SUM(J17:J59) -> -868027 | K60: =SUM(K17:K59) -> 0 | L60: =SUM(L17:L59) -> -19868781.79 | M60: =SUM(M17:M59) -> 10128657.13
C61: Less Socialized Renewable Energy Generation Investments (input as negative) | G61: =D61+E61+F61 -> 0 | L61: =I61+J61+K61 -> 0 | M61: =G61+L61 -> 0
C62: Less Other Non Rate-Regulated Utility Assets (input as negative) | G62: 0 | L62: 0 | M62: 0
C63: Total PP&E | D63: =SUM(D60:D62) -> 28887768.92 | E63: =SUM(E60:E62) -> 1109670 | F63: 0 | G63: 29997438.92 | I63: =SUM(I60:I62) -> -19000754.79 | J63: -868027 | K63: 0 | L63: -19868781.79 | M63: 10128657.13
C64: Depreciation Expense adj. from gain or loss on the retirement of assets (pool of like assets), if applicable6
C65: Total | J65: =J63+J64 -> -868027
I67: Less: Fully Allocated Depreciation
A68: 10 | C68: Transportation | I68: Transportation | K68: -141609.61
A69: 8 | C69: Stores Equipment | I69: Stores Equipment
I70: Net Depreciation | K70: =J65-K68-K69 -> -726417.39
A72: Notes:
A74: 1 | B74: Tables in the format outlined above covering all fixed asset accounts should be submitted for the Test Year, Bridge Year and all relevant historical years. At a minimum , the applicant must provide data for the earlier of: 1) all historical years back to its last rebasing; or 2) at least three years of historical actuals, in addition to Bridge Year and Test Year forecasts.
A77: 2 | B77: The "CCA Class" for fixed assets should agree with the CCA Class used for tax purposes in Tax Returns. Fixed Assets sub-components may be used where the underlying asset components are classified under multiple CCA Classes for tax purposes. If an applicant uses any different classes from those shown in the table, an explanation should be provided. (also see note 3 below).
A80: 3 | B80: The table may need to be customized for a utility's asset categories or for any new asset accounts announced or authorized by the Board.
A82: 4 | B82: The additions column (E) must not include construction work in progress (CWIP).
A84: 5 | B84: Effective on the date of IFRS adoption, customer contributions will no longer be recorded in Account 1995 Contributions & Grants, but will be recorded in Account 2440, Deferred Revenues.
A86: 6 | B86: Where a distributor for general financial reporting purposes under IFRS has accounted for the amount of gain or loss on the retirement of assets in a pool of like assets as a charge or credit to income, for reporting and rate application filings the distributor shall reclassify such gains and losses as depreciation expense, and disclose the amount separately.

Sheet App.2-BA_FA Cont 2016 MIFRS
L1: File Number: | M1: =EBNUMBER -> 
L2: Exhibit:
L3: Tab:
L4: Schedule:
L5: Page:
L7: Date:
A9: Appendix 2-BA
A10: Fixed Asset Continuity Schedule
E12: Accounting Standard | F12: MIFRS
E13: Year | F13: 2016
D15: Cost | J15: Accumulated Depreciation
A16: CCA Class | B16: OEB | C16: Description | D16: Opening Balance | E16: Additions | F16: Disposals | G16: Closing Balance | I16: Opening Balance | J16: Additions | K16: Disposals | L16: Closing Balance | M16: Net Book Value
A17: 12 | B17: 1611 | C17: Computer Software (Formally known as Account 1925) | D17: ='App.2-BA_FA Cont 2015 MIFRS'!G17 -> 435839.74 | E17: 19000 | G17: =D17+E17+F17 -> 454839.74 | I17: ='App.2-BA_FA Cont 2015 MIFRS'!L17 -> -379277.37 | J17: -35926 | L17: =I17+J17+K17 -> -415203.37 | M17: =G17+L17 -> 39636.37
A18: 12 | B18: 1611 | C18: Computer Software (Formally known as Account 1925) from acct 1555 | D18: ='App.2-BA_FA Cont 2015 MIFRS'!G18 -> 103008 | G18: =D18+E18+F18 -> 103008 | I18: ='App.2-BA_FA Cont 2015 MIFRS'!L18 -> -103008 | L18: =I18+J18+K18 -> -103008 | M18: =G18+L18 -> 0
A19: CEC | B19: 1612 | C19: Land Rights (Formally known as Account 1906) | D19: ='App.2-BA_FA Cont 2015 MIFRS'!G19 -> 10808.84 | G19: =D19+E19+F19 -> 10808.84 | I19: ='App.2-BA_FA Cont 2015 MIFRS'!L19 -> -8731 | J19: -335 | L19: =I19+J19+K19 -> -9066 | M19: =G19+L19 -> 1742.84
A20: N/A | B20: 1805 | C20: Land | D20: ='App.2-BA_FA Cont 2015 MIFRS'!G20 -> 130499.26 | G20: =D20+E20+F20 -> 130499.26 | I20: ='App.2-BA_FA Cont 2015 MIFRS'!L20 -> 0 | L20: =I20+J20+K20 -> 0 | M20: =G20+L20 -> 130499.26
A21: 47 | B21: 1808 | C21: Buildings | D21: ='App.2-BA_FA Cont 2015 MIFRS'!G21 -> 771177.71 | E21: 38000 | G21: =D21+E21+F21 -> 809177.71 | I21: ='App.2-BA_FA Cont 2015 MIFRS'!L21 -> -321731.25 | J21: =-16446-4447 -> -20893 | L21: =I21+J21+K21 -> -342624.25 | M21: =G21+L21 -> 466553.46
A22: 13 | B22: 1810 | C22: Leasehold Improvements | D22: ='App.2-BA_FA Cont 2015 MIFRS'!G22 -> 0 | G22: 0 | I22: ='App.2-BA_FA Cont 2015 MIFRS'!L22 -> 0 | L22: 0 | M22: 0
A23: 47 | B23: 1815 | C23: Transformer Station Equipment >50 kV | D23: ='App.2-BA_FA Cont 2015 MIFRS'!G23 -> 0 | G23: 0 | I23: ='App.2-BA_FA Cont 2015 MIFRS'!L23 -> 0 | L23: 0 | M23: 0
A24: 47 | B24: 1820 | C24: Distribution Station Equipment <50 kV | D24: ='App.2-BA_FA Cont 2015 MIFRS'!G24 -> 3113365.89 | E24: 193500 | G24: 3306865.89 | I24: ='App.2-BA_FA Cont 2015 MIFRS'!L24 -> -2006156.82 | J24: =-37635-13465-19652 -> -70752 | L24: -2076908.82 | M24: 1229957.07
A25: 47 | B25: 1825 | C25: Storage Battery Equipment | D25: ='App.2-BA_FA Cont 2015 MIFRS'!G25 -> 0 | G25: 0 | I25: ='App.2-BA_FA Cont 2015 MIFRS'!L25 -> 0 | L25: 0 | M25: 0
A26: 47 | B26: 1830 | C26: Poles, Towers & Fixtures | D26: ='App.2-BA_FA Cont 2015 MIFRS'!G26 -> 8774664.33 | E26: 137700 | G26: 8912364.33 | I26: ='App.2-BA_FA Cont 2015 MIFRS'!L26 -> -7061083.87 | J26: =-157385-1661 -> -159046 | L26: -7220129.87 | M26: 1692234.46
A27: 47 | B27: 1835 | C27: Overhead Conductors & Devices | D27: ='App.2-BA_FA Cont 2015 MIFRS'!G27 -> 3716231.97 | E27: =172080+17208+1912 -> 191200 | G27: 3907431.97 | I27: ='App.2-BA_FA Cont 2015 MIFRS'!L27 -> -1190133.43 | J27: =-110116-13275-1589-171 -> -125151 | L27: -1315284.43 | M27: 2592147.54
A28: 47 | B28: 1840 | C28: Underground Conduit | D28: ='App.2-BA_FA Cont 2015 MIFRS'!G28 -> 3155573.47 | E28: 0 | G28: 3155573.47 | I28: ='App.2-BA_FA Cont 2015 MIFRS'!L28 -> -2574021.21 | J28: =-76782-1138 -> -77920 | L28: -2651941.21 | M28: 503632.26
A29: 47 | B29: 1845 | C29: Underground Conductors & Devices | D29: ='App.2-BA_FA Cont 2015 MIFRS'!G29 -> 1003091.84 | E29: 163650 | G29: 1166741.84 | I29: ='App.2-BA_FA Cont 2015 MIFRS'!L29 -> -180410.23 | J29: =-22185-8983 -> -31168 | L29: -211578.23 | M29: 955163.61
A30: 47 | B30: 1850 | C30: Line Transformers | D30: ='App.2-BA_FA Cont 2015 MIFRS'!G30 -> 4297745.72 | E30: 172000 | G30: 4469745.72 | I30: ='App.2-BA_FA Cont 2015 MIFRS'!L30 -> -2620333.87 | J30: =-78795-12625 -> -91420 | L30: -2711753.87 | M30: 1757991.85
A31: 47 | B31: 1855 | C31: Services (Overhead & Underground) | D31: ='App.2-BA_FA Cont 2015 MIFRS'!G31 -> 1424354.1 | E31: =15150+85850 -> 101000 | G31: 1525354.1 | I31: ='App.2-BA_FA Cont 2015 MIFRS'!L31 -> -415292.97 | J31: =-36396-1993-5700 -> -44089 | L31: -459381.97 | M31: 1065972.13
A32: 47 | B32: 1860 | C32: Meters | D32: ='App.2-BA_FA Cont 2015 MIFRS'!G32 -> 109078.41 | E32: 7500 | G32: 116578.41 | I32: ='App.2-BA_FA Cont 2015 MIFRS'!L32 -> -20051.41 | J32: =-74-2933 -> -3007 | L32: -23058.41 | M32: 93520
A33: 47 | B33: 1860 | C33: Meters (Smart Meters) | D33: ='App.2-BA_FA Cont 2015 MIFRS'!G33 -> 96909 | E33: 35200 | G33: 132109 | I33: ='App.2-BA_FA Cont 2015 MIFRS'!L33 -> -5358 | J33: -7634 | L33: -12992 | M33: 119117
A34: 47 | B34: 1860 | C34: Meters (Smart Meters) from account 1555 | D34: ='App.2-BA_FA Cont 2015 MIFRS'!G34 -> 1645232 | G34: 1645232 | I34: -656070 | J34: -102942 | L34: -759012 | M34: 886220
A35: N/A | B35: 1905 | C35: Land | D35: ='App.2-BA_FA Cont 2015 MIFRS'!G35 -> 0 | G35: 0 | I35: ='App.2-BA_FA Cont 2015 MIFRS'!L35 -> 0 | L35: 0 | M35: 0
A36: 47 | B36: 1908 | C36: Buildings & Fixtures | D36: ='App.2-BA_FA Cont 2015 MIFRS'!G36 -> 0 | G36: 0 | I36: ='App.2-BA_FA Cont 2015 MIFRS'!L36 -> 0 | L36: 0 | M36: 0
A37: 13 | B37: 1910 | C37: Leasehold Improvements | D37: ='App.2-BA_FA Cont 2015 MIFRS'!G37 -> 0 | G37: 0 | I37: ='App.2-BA_FA Cont 2015 MIFRS'!L37 -> 0 | L37: 0 | M37: 0
A38: 8 | B38: 1915 | C38: Office Furniture & Equipment (10 years) | D38: ='App.2-BA_FA Cont 2015 MIFRS'!G38 -> 140286.43 | E38: 8000 | G38: 148286.43 | I38: ='App.2-BA_FA Cont 2015 MIFRS'!L38 -> -127596.55 | J38: -2218 | L38: -129814.55 | M38: 18471.88
A39: 8 | B39: 1915 | C39: Office Furniture & Equipment (5 years) | D39: ='App.2-BA_FA Cont 2015 MIFRS'!G39 -> 0 | G39: 0 | I39: ='App.2-BA_FA Cont 2015 MIFRS'!L39 -> 0 | L39: 0 | M39: 0
A40: 10 | B40: 1920 | C40: Computer Equipment - Hardware | D40: ='App.2-BA_FA Cont 2015 MIFRS'!G40 -> 0 | G40: 0 | I40: ='App.2-BA_FA Cont 2015 MIFRS'!L40 -> 0 | L40: 0 | M40: 0
A41: 45 | B41: 1920 | C41: Computer Equip.-Hardware(Post Mar. 22/04) | D41: ='App.2-BA_FA Cont 2015 MIFRS'!G41 -> 0 | G41: 0 | I41: ='App.2-BA_FA Cont 2015 MIFRS'!L41 -> 0 | L41: 0 | M41: 0
A42: 45.1 | B42: 1920 | C42: Computer Equip.-Hardware(Post Mar. 19/07) | D42: ='App.2-BA_FA Cont 2015 MIFRS'!G42 -> 384635.29 | E42: 10000 | G42: 394635.29 | I42: ='App.2-BA_FA Cont 2015 MIFRS'!L42 -> -366335.14 | J42: -13206 | L42: -379541.14 | M42: 15094.15
A43: 45.1 | B43: 1920 | C43: Computer Equip.-Hardware(Post Mar. 19/07) from acct 1555 | D43: ='App.2-BA_FA Cont 2015 MIFRS'!G43 -> 25493 | G43: 25493 | I43: ='App.2-BA_FA Cont 2015 MIFRS'!L43 -> -24602.6 | J43: -890 | L43: -25492.6 | M43: 0.4
A44: 10 | B44: 1930 | C44: Transportation Equipment | D44: ='App.2-BA_FA Cont 2015 MIFRS'!G44 -> 2317907.09 | E44: 328000 | G44: 2645907.09 | I44: ='App.2-BA_FA Cont 2015 MIFRS'!L44 -> -1740337.95 | J44: =-78291-16830-62622 -> -157743 | L44: -1898080.95 | M44: 747826.14
A45: 8 | B45: 1935 | C45: Stores Equipment | D45: ='App.2-BA_FA Cont 2015 MIFRS'!G45 -> 1761.26 | G45: 1761.26 | I45: ='App.2-BA_FA Cont 2015 MIFRS'!L45 -> -1761 | L45: -1761 | M45: 0.26
A46: 8 | B46: 1940 | C46: Tools, Shop & Garage Equipment | D46: ='App.2-BA_FA Cont 2015 MIFRS'!G46 -> 310146.66 | E46: 10000 | G46: 320146.66 | I46: ='App.2-BA_FA Cont 2015 MIFRS'!L46 -> -249829.05 | J46: -8319 | L46: -258148.05 | M46: 61998.61
A47: 8 | B47: 1945 | C47: Measurement & Testing Equipment | D47: ='App.2-BA_FA Cont 2015 MIFRS'!G47 -> 18090 | G47: 18090 | I47: ='App.2-BA_FA Cont 2015 MIFRS'!L47 -> -4523 | J47: -1809 | L47: -6332 | M47: 11758
A48: 8 | B48: 1950 | C48: Power Operated Equipment | D48: ='App.2-BA_FA Cont 2015 MIFRS'!G48 -> 0 | G48: 0 | I48: ='App.2-BA_FA Cont 2015 MIFRS'!L48 -> 0 | L48: 0 | M48: 0
A49: 8 | B49: 1955 | C49: Communications Equipment | D49: ='App.2-BA_FA Cont 2015 MIFRS'!G49 -> 40123.89 | E49: 1200 | G49: 41323.89 | I49: ='App.2-BA_FA Cont 2015 MIFRS'!L49 -> -37067.86 | J49: -1104 | L49: -38171.86 | M49: 3152.03
A50: 8 | B50: 1955 | C50: Communication Equipment (Smart Meters) | D50: ='App.2-BA_FA Cont 2015 MIFRS'!G50 -> 0 | G50: 0 | I50: ='App.2-BA_FA Cont 2015 MIFRS'!L50 -> 0 | L50: 0 | M50: 0
A51: 8 | B51: 1960 | C51: Miscellaneous Equipment | D51: ='App.2-BA_FA Cont 2015 MIFRS'!G51 -> 12104 | G51: 12104 | I51: ='App.2-BA_FA Cont 2015 MIFRS'!L51 -> -3026 | J51: -1210 | L51: -4236 | M51: 7868
A52: 47 | B52: 1970 | C52: Load Management Controls Customer Premises | D52: ='App.2-BA_FA Cont 2015 MIFRS'!G52 -> 0 | G52: 0 | I52: ='App.2-BA_FA Cont 2015 MIFRS'!L52 -> 0.35 | L52: 0.35 | M52: 0.35
A53: 47 | B53: 1975 | C53: Load Management Controls Utility Premises | D53: ='App.2-BA_FA Cont 2015 MIFRS'!G53 -> 64873.19 | G53: 64873.19 | I53: ='App.2-BA_FA Cont 2015 MIFRS'!L53 -> -64873 | L53: -64873 | M53: 0.19
A54: 47 | B54: 1980 | C54: System Supervisor Equipment | D54: ='App.2-BA_FA Cont 2015 MIFRS'!G54 -> 407508.02 | E54: 130000 | G54: 537508.02 | I54: ='App.2-BA_FA Cont 2015 MIFRS'!L54 -> -388377.22 | J54: -30229 | L54: -418606.22 | M54: 118901.8
A55: 47 | B55: 1985 | C55: Miscellaneous Fixed Assets | D55: ='App.2-BA_FA Cont 2015 MIFRS'!G55 -> 0 | G55: 0 | I55: ='App.2-BA_FA Cont 2015 MIFRS'!L55 -> 0 | L55: 0 | M55: 0
A56: 47 | B56: 1990 | C56: Other Tangible Property | D56: ='App.2-BA_FA Cont 2015 MIFRS'!G56 -> 0 | G56: 0 | I56: ='App.2-BA_FA Cont 2015 MIFRS'!L56 -> 0 | L56: 0 | M56: 0
A57: 47 | B57: 1995 | C57: Contributions & Grants | D57: ='App.2-BA_FA Cont 2015 MIFRS'!G57 -> -2040278.19 | G57: -2040278.19 | I57: ='App.2-BA_FA Cont 2015 MIFRS'!L57 -> 674286.66 | J57: 71181 | L57: 745467.66 | M57: -1294810.53
A58: 47 | B58: 2440 | C58: Deferred Revenue5 | D58: ='App.2-BA_FA Cont 2015 MIFRS'!G58 -> -472792 | E58: -300000 | G58: -772792 | I58: ='App.2-BA_FA Cont 2015 MIFRS'!L58 -> 6920 | J58: 26054 | L58: 32974 | M58: -739818
D59: ='App.2-BA_FA Cont 2015 MIFRS'!G59 -> 0 | G59: 0 | I59: ='App.2-BA_FA Cont 2015 MIFRS'!L59 -> 0 | L59: 0 | M59: 0
C60: Sub-Total | D60: =SUM(D17:D59) -> 29997438.92 | E60: =SUM(E17:E59) -> 1245950 | F60: =SUM(F17:F59) -> 0 | G60: =SUM(G17:G59) -> 31243388.92 | I60: =SUM(I17:I59) -> -19868781.79 | J60: =SUM(J17:J59) -> -889776 | K60: =SUM(K17:K59) -> 0 | L60: =SUM(L17:L59) -> -20758557.79 | M60: =SUM(M17:M59) -> 10484831.13
C61: Less Socialized Renewable Energy Generation Investments (input as negative) | G61: =D61+E61+F61 -> 0 | L61: =I61+J61+K61 -> 0 | M61: =G61+L61 -> 0
C62: Less Other Non Rate-Regulated Utility Assets (input as negative) | G62: 0 | L62: 0 | M62: 0
C63: Total PP&E | D63: =SUM(D60:D62) -> 29997438.92 | E63: =SUM(E60:E62) -> 1245950 | F63: 0 | G63: 31243388.92 | I63: =SUM(I60:I62) -> -19868781.79 | J63: -889776 | K63: 0 | L63: -20758557.79 | M63: 10484831.13
C64: Depreciation Expense adj. from gain or loss on the retirement of assets (pool of like assets), if applicable6
C65: Total | J65: =J63+J64 -> -889776
I67: Less: Fully Allocated Depreciation
A68: 10 | C68: Transportation | I68: Transportation | K68: -140055.61
A69: 8 | C69: Stores Equipment | I69: Stores Equipment
I70: Net Depreciation | K70: =J65-K68-K69 -> -749720.39
A72: Notes:
A74: 1 | B74: Tables in the format outlined above covering all fixed asset accounts should be submitted for the Test Year, Bridge Year and all relevant historical years. At a minimum , the applicant must provide data for the earlier of: 1) all historical years back to its last rebasing; or 2) at least three years of historical actuals, in addition to Bridge Year and Test Year forecasts.
A77: 2 | B77: The "CCA Class" for fixed assets should agree with the CCA Class used for tax purposes in Tax Returns. Fixed Assets sub-components may be used where the underlying asset components are classified under multiple CCA Classes for tax purposes. If an applicant uses any different classes from those shown in the table, an explanation should be provided. (also see note 3 below).
A80: 3 | B80: The table may need to be customized for a utility's asset categories or for any new asset accounts announced or authorized by the Board.
A82: 4 | B82: The additions column (E) must not include construction work in progress (CWIP).
A84: 5 | B84: Effective on the date of IFRS adoption, customer contributions will no longer be recorded in Account 1995 Contributions & Grants, but will be recorded in Account 2440, Deferred Revenues.
A86: 6 | B86: Where a distributor for general financial reporting purposes under IFRS has accounted for the amount of gain or loss on the retirement of assets in a pool of like assets as a charge or credit to income, for reporting and rate application filings the distributor shall reclassify such gains and losses as depreciation expense, and disclose the amount separately.

Sheet Appendix 2-BB Service Life
M1: File Number: | O1: 0
M2: Exhibit:
M3: Tab:
M4: Schedule:
M5: Page:
M7: Date:
A9: Appendix 2-BB
A10: Service Life Comparison
A11: Table F-1 from Kinetrics Report1
C15: Asset Details | F15: Useful Life | J15: USoA Account Number | K15: USoA Account Description | L15: Current | N15: Proposed | P15: Outside Range of Min, Max TUL?
A16: Parent* | B16: # | C16: Category| Component | Type | F16: MIN UL | G16: TUL | H16: MAX UL | L16: Years | M16: Rate | N16: Years | O16: Rate | P16: Below Min TUL | Q16: Above Max TUL
A17: OH | B17: 1 | C17: Fully Dressed Wood Poles | D17: Overall | F17: 35 | G17: 45 | H17: 75 | J17: 1830 | L17: 45 | M17: =IF(ISERROR(1/L17), "", 1/L17) -> 0.02222222222 | O17: =IF(ISERROR(1/N17), "", 1/N17) ->  | P17: =IF(ISBLANK(N17),"",IF(N17<F17,"Yes","No")) ->  | Q17: =IF(ISBLANK(N17),"",IF(N17>H17,"Yes","No")) -> 
D18: Cross Arm | E18: Wood | F18: 20 | G18: 40 | H18: 55 | M18: =IF(ISERROR(1/L18), "", 1/L18) ->  | O18: =IF(ISERROR(1/N18), "", 1/N18) ->  | P18: =IF(ISBLANK(N18),"",IF(N18<F18,"Yes","No")) ->  | Q18: =IF(ISBLANK(N18),"",IF(N18>H18,"Yes","No")) -> 
E19: Steel | F19: 30 | G19: 70 | H19: 95
B20: 2 | C20: Fully Dressed Concrete Poles | D20: Overall | F20: 50 | G20: 60 | H20: 80 | J20: 1830 | L20: 60 | M20: 0.01666666667
D21: Cross Arm | E21: Wood | F21: 20 | G21: 40 | H21: 55
E22: Steel | F22: 30 | G22: 70 | H22: 95
B23: 3 | C23: Fully Dressed Steel Poles | D23: Overall | F23: 60 | G23: 60 | H23: 80 | J23: 1830 | L23: 60 | M23: 0.01666666667
D24: Cross Arm | E24: Wood | F24: 20 | G24: 40 | H24: 55
E25: Steel | F25: 30 | G25: 70 | H25: 95
B26: 4 | C26: OH Line Switch | F26: 30 | G26: 45 | H26: 55 | J26: 1835
B27: 5 | C27: OH Line Switch Motor | F27: 15 | G27: 25 | H27: 25 | J27: 1835
B28: 6 | C28: OH Line Switch RTU | F28: 15 | G28: 20 | H28: 20 | J28: 1835
B29: 7 | C29: OH Integral Switches | F29: 35 | G29: 45 | H29: 60 | J29: 1835
B30: 8 | C30: OH Conductors | F30: 50 | G30: 60 | H30: 75 | J30: 1835
B31: 9 | C31: OH Transformers & Voltage Regulators | F31: 30 | G31: 40 | H31: 60 | J31: 1835 | L31: 40 | M31: 0.025
B32: 10 | C32: OH Shunt Capacitor Banks | F32: 25 | G32: 30 | H32: 40 | J32: 1835
B33: 11 | C33: Reclosers | F33: 25 | G33: 40 | H33: 55 | J33: 1835
A34: TS & MS | B34: 12 | C34: Power Transformers | D34: Overall | F34: 30 | G34: 45 | H34: 60 | L34: 45 | M34: 0.02222222222
D35: Bushing | F35: 10 | G35: 20 | H35: 30
D36: Tap Changer | F36: 20 | G36: 30 | H36: 60
B37: 13 | C37: Station Service Transformer | F37: 30 | G37: 45 | H37: 55
B38: 14 | C38: Station Grounding Transformer | F38: 30 | G38: 40 | H38: 40
B39: 15 | C39: Station DC System | D39: Overall | F39: 10 | G39: 20 | H39: 30
D40: Battery Bank | F40: 10 | G40: 15 | H40: 15
D41: Charger | F41: 20 | G41: 20 | H41: 30
B42: 16 | C42: Station Metal Clad Switchgear | D42: Overall | F42: 30 | G42: 40 | H42: 60 | L42: 40 | M42: 0.025
D43: Removable Breaker | F43: 25 | G43: 40 | H43: 60
B44: 17 | C44: Station Independent Breakers | F44: 35 | G44: 45 | H44: 65
B45: 18 | C45: Station Switch | F45: 30 | G45: 50 | H45: 60
B46: 19 | C46: Electromechanical Relays | F46: 25 | G46: 35 | H46: 50 | L46: 30 | M46: 0.03333333333
B47: 20 | C47: Solid State Relays | F47: 10 | G47: 30 | H47: 45
B48: 21 | C48: Digital & Numeric Relays | F48: 15 | G48: 20 | H48: 20
B49: 22 | C49: Rigid Busbars | F49: 30 | G49: 55 | H49: 60
B50: 23 | C50: Steel Structure | F50: 35 | G50: 50 | H50: 90
A51: UG | B51: 24 | C51: Primary Paper Insulated Lead Covered (PILC) Cables | F51: 60 | G51: 65 | H51: 75
B52: 25 | C52: Primary Ethylene-Propylene Rubber (EPR) Cables | F52: 20 | G52: 25 | H52: 25
B53: 26 | C53: Primary Non-Tree Retardant (TR) Cross Linked Polyethylene (XLPE) Cables Direct Buried | F53: 20 | G53: 25 | H53: 30
B54: 27 | C54: Primary Non-TR XLPE Cables in Duct | F54: 20 | G54: 25 | H54: 30
B55: 30 | C55: Secondary PILC Cables | F55: 70 | G55: 75 | H55: 80
B56: 31 | C56: Secondary Cables Direct Buried | F56: 25 | G56: 35 | H56: 40
B57: 32 | C57: Secondary Cables in Duct | F57: 35 | G57: 40 | H57: 60
B58: 33 | C58: Network Tranformers | D58: Overall | F58: 20 | G58: 35 | H58: 50
D59: Protector | F59: 20 | G59: 35 | H59: 40
B60: 34 | C60: Pad-Mounted Transformers | F60: 25 | G60: 40 | H60: 45 | L60: 40 | M60: 0.025
B61: 35 | C61: Submersible/Vault Transformers | F61: 25 | G61: 35 | H61: 45
B62: 36 | C62: UG Foundation | F62: 35 | G62: 55 | H62: 70
B63: 37 | C63: UG Vaults | D63: Overall | F63: 40 | G63: 60 | H63: 80
D64: Roof | F64: 20 | G64: 30 | H64: 45
B65: 38 | C65: UG Vault Switches | F65: 20 | G65: 35 | H65: 50
B66: 39 | C66: Pad-Mounted Switchgear | F66: 20 | G66: 30 | H66: 45
B67: 40 | C67: Ducts | F67: 30 | G67: 50 | H67: 85
B68: 41 | C68: Concrete Encased Duct Banks | F68: 35 | G68: 55 | H68: 80
B69: 42 | C69: Cable Chambers | F69: 50 | G69: 60 | H69: 80
A70: S | B70: 43 | C70: Remote SCADA | F70: 15 | G70: 20 | H70: 30 | L70: 15 | M70: 0.06666666667
A73: Table F-2 from Kinetrics Report1
C75: Asset Details | F75: Useful Life Range | J75: USoA Account Number | K75: USoA Account Description | L75: Current | N75: Proposed | P75: Outside Range of Min, Max TUL?
B76: # | C76: Category| Component | Type | L76: Years | M76: Rate | N76: Years | O76: Rate | P76: Below Min Range | Q76: Above Max Range
B77: 1 | C77: Office Equipment | F77: 5 | G77: 15 | M77: =IF(ISERROR(1/L77), "", 1/L77) ->  | O77: =IF(ISERROR(1/N77), "", 1/N77) ->  | P77: =IF(ISBLANK(N77),"",IF(N77<F77,"Yes","No")) ->  | Q77: =IF(ISBLANK(N77),"",IF(N77>G77,"Yes","No")) -> 
B78: 2 | C78: Vehicles | D78: Trucks & Buckets | F78: 5 | G78: 15 | L78: 8 | M78: =IF(ISERROR(1/L78), "", 1/L78) -> 0.125 | O78: =IF(ISERROR(1/N78), "", 1/N78) ->  | P78: =IF(ISBLANK(N78),"",IF(N78<F78,"Yes","No")) ->  | Q78: =IF(ISBLANK(N78),"",IF(N78>G78,"Yes","No")) -> 
D79: Trailers | F79: 5 | G79: 20 | L79: 8 | M79: 0.125
D80: Vans | F80: 5 | G80: 10 | L80: 5 | M80: 0.2
B81: 3 | C81: Administrative Buildings | F81: 50 | G81: 75 | L81: 50 | M81: 0.02
B82: 4 | C82: Leasehold Improvements | F82: Lease dependent | L82: 25 | M82: 0.04
B83: 5 | C83: Station Buildings | D83: Station Buildings | F83: 50 | G83: 75
D84: Parking | F84: 25 | G84: 30
D85: Fence | F85: 25 | G85: 60
D86: Roof | F86: 20 | G86: 30
B87: 6 | C87: Computer Equipment | D87: Hardware | F87: 3 | G87: 5 | L87: 3 | M87: 0.3333333333
D88: Software | F88: 2 | G88: 5 | L88: 3 | M88: 0.3333333333
B89: 7 | C89: Equipment | D89: Power Operated | F89: 5 | G89: 10
D90: Stores | F90: 5 | G90: 10
D91: Tools, Shop, Garage Equipment | F91: 5 | G91: 10 | L91: 10 | M91: 0.1
D92: Measurement & Testing Equipment | F92: 5 | G92: 10 | L92: 10 | M92: 0.1
B93: 8 | C93: Communication | D93: Towers | F93: 60 | G93: 70
D94: Wireless | F94: 2 | G94: 10
B95: 9 | C95: Residential Energy Meters | F95: 25 | G95: 35
B96: 10 | C96: Industrial/Commercial Energy Meters | F96: 25 | G96: 35 | L96: 25 | M96: 0.04
B97: 11 | C97: Wholesale Energy Meters | F97: 15 | G97: 30
B98: 12 | C98: Current & Potential Transformer (CT & PT) | F98: 35 | G98: 50
B99: 13 | C99: Smart Meters | F99: 5 | G99: 15 | L99: 15 | M99: 0.06666666667
B100: 14 | C100: Repeaters - Smart Metering | F100: 10 | G100: 15 | L100: 15 | M100: 0.06666666667
B101: 15 | C101: Data Collectors - Smart Metering | F101: 15 | G101: 20 | L101: 15 | M101: 0.06666666667
A104: * TS & MS = Transformer and Municipal Stations UG = Underground Systems S = Monitoring and Control Systems
A106: Note 1: | B106: Tables F-1 and F-2 above are to be used as a reference in order to complete columns J, K, L and N.
B107: See pages 17-19 of Kinetrics Report

Sheet App.2-CA_OldCGAAP_DepExp_2010
K1: File Number: | L1: =EBNUMBER -> 
K2: Exhibit:
K3: Tab:
K4: Schedule:
K5: Page:
K7: Date:
A9: Appendix 2-CA
A10: Depreciation and Amortization Expense
B11: Assumes the applicant made capitalization and depreciation expense accounting policy changes under CGAAP effective January 1, 2013 and will adopt IFRS for financial reporting purposes effective January 1, 2015.
C13: Year | D13: 2010 | E13: Former CGAAP
A14: Account | B14: Description | C14: Opening Regulatory Gross PP&E as at Jan 1, 2010 | D14: Less Fully Depreciated | E14: Net for Depreciation | F14: Additions | G14: Total for Depreciation | H14: Years | I14: Depreciation Rate | J14: 2010 Depreciation Expense | K14: 2010 Depreciation Expense per Appendix 2-B Fixed Assets, Column K (l) | L14: Variance 2
C15: (a) | D15: (b) | E15: (c) | F15: (d) | G15: (e) = (c) + ½ x (d) 1 | H15: (f) | I15: (g) = 1 / (f) | J15: (h) = (e) / (f) | L15: (m) = (h) - (l)
A16: 1611 | B16: Computer Software (Formally known as Account 1925) | C16: 293410.74 | E16: =C16-D16 -> 293410.74 | F16: 12193.75 | G16: =E16+0.5*F16 -> 299507.615 | H16: 3 | I16: =IF(H16=0,"",1/H16) -> 0.3333333333 | J16: =IF(H16=0,0,G16/H16) -> 99835.87167 | K16: 99860.87 | L16: =IF(ISERROR(+J16-K16), "", +J16-K16) -> -24.99833333
A17: 1612 | B17: Land Rights (Formally known as Account 1906) | E17: =C17-D17 -> 0 | G17: =E17+0.5*F17 -> 0 | H17: 35 | I17: 0.02857142857 | J17: 0 | L17: =IF(ISERROR(+J17-K17), "", +J17-K17) -> 0
A18: 1612 | B18: Land Rights (Formally known as Account 1906) | C18: 10808.84 | D18: 2433.8 | E18: 8375.04 | G18: 8375.04 | H18: 25 | I18: 0.04 | J18: 335.0016 | K18: 335 | L18: 0.0016
A19: 1805 | B19: Land | C19: 130499.26 | E19: 130499.26 | G19: 130499.26 | H19: 0 | J19: 0 | L19: 0
A20: 1808 | B20: Buildings - Equipment | E20: 0 | G20: 0 | H20: 10 | I20: 0.1 | J20: 0 | L20: 0
A21: 1808 | B21: Buildings - Equipment | E21: 0 | G21: 0 | H21: 20 | I21: 0.05 | J21: 0
A22: 1808 | B22: Buildings - Major Repairs | E22: 0 | G22: 0 | H22: 25 | I22: 0.04 | J22: 0 | L22: 0
A23: 1808 | B23: Buildings - Major Repairs | E23: 0 | G23: 0 | H23: 30 | I23: 0.03333333333 | J23: 0 | L23: 0
A24: 1808 | B24: Buildings - Brick, Stone, Concrete and Steel | C24: 453549.71 | D24: 244418 | E24: 209131.71 | F24: 14386.46 | G24: 216324.94 | H24: 25 | I24: 0.04 | J24: 8652.9976 | K24: 8653 | L24: -0.002400000001
A25: 1810 | B25: Leasehold Improvements | E25: 0 | G25: 0 | J25: 0 | L25: 0
A26: 1815 | B26: Transformer Station Equipment >50 kV | E26: 0 | G26: 0 | J26: 0 | L26: 0
A27: 1820 | B27: Distribution Station Equipment <50 kV | C27: 2563070.89 | D27: 1013124.65 | E27: 1549946.24 | F27: 166447.78 | G27: 1633170.13 | H27: 30 | I27: 0.03333333333 | J27: 54439.00433 | K27: 54439 | L27: 0.004333333338
A28: 1825 | B28: Storage Battery Equipment | E28: 0 | G28: 0 | J28: 0 | L28: 0
A29: 1830 | B29: Poles, Towers & Fixtures | C29: 8107720.38 | D29: 1602679.28 | E29: 6505041.1 | F29: 117217.95 | G29: 6563650.075 | H29: 25 | I29: 0.04 | J29: 262546.003 | K29: 262546 | L29: 0.003000000026
A30: 1835 | B30: Overhead Conductors & Devices | C30: 2430844.33 | D30: 484387.45 | E30: 1946456.88 | F30: 145586.4 | G30: 2019250.08 | H30: 25 | I30: 0.04 | J30: 80770.0032 | K30: 80770 | L30: 0.003200000006
A31: 1840 | B31: Underground Conduit | C31: 2933508.47 | D31: 182230.5 | E31: 2751277.97 | F31: 40593.95 | G31: 2771574.945 | H31: 25 | I31: 0.04 | J31: 110862.9978 | K31: 110863 | L31: -0.002199999988
A32: 1845 | B32: Underground Conductors & Devices | C32: 330338.84 | E32: 330338.84 | F32: 75748.73 | G32: 368213.205 | H32: 25 | I32: 0.04 | J32: 14728.5282 | K32: 14728.53 | L32: -0.001800000002
A33: 1850 | B33: Line Transformers | C33: 3522771.87 | D33: 365495.5 | E33: 3157276.37 | F33: 60897.34 | G33: 3187725.04 | H33: 25 | I33: 0.04 | J33: 127509.0016 | K33: 127509 | L33: 0.001600000003
A34: 1855 | B34: Services (Overhead & Underground) | C34: 875350.1 | D34: 69509.43 | E34: 805840.67 | F34: 103018.64 | G34: 857349.99 | H34: 25 | I34: 0.04 | J34: 34293.9996 | K34: 34294 | L34: -0.0004000000044
A35: 1860 | B35: Meters | C35: 671911.43 | D35: 621470.6 | E35: 50440.83 | F35: 10435.96 | G35: 55658.81 | H35: 25 | I35: 0.04 | J35: 2226.3524 | K35: =1825.09+401.26 -> 2226.35 | L35: 0.002400000003
A36: 1860 | B36: Meters (Smart Meters) | E36: 0 | G36: 0 | J36: 0 | L36: 0
A37: 1905 | B37: Land | E37: 0 | G37: 0 | H37: 0 | J37: 0 | L37: 0
A38: 1908 | B38: Buildings & Fixtures - Equipment | E38: 0 | G38: 0 | H38: 10 | I38: 0.1 | J38: 0 | L38: 0
A39: 1908 | B39: Buildings & Fixtures - Driveways | E39: 0 | G39: 0 | H39: 20 | I39: 0.05 | J39: 0 | L39: 0
A40: 1908 | B40: Buildings & Fixtures - Major Repairs | E40: 0 | G40: 0 | H40: 25 | I40: 0.04 | J40: 0 | L40: 0
A41: 1908 | B41: Buildings & Fixtures - Brick Store etc | E41: 0 | G41: 0 | H41: 50 | I41: 0.02 | J41: 0 | L41: 0
A42: 1910 | B42: Leasehold Improvements | E42: 0 | G42: 0 | J42: 0 | L42: 0
A43: 1915 | B43: Office Furniture & Equipment (10 years) | C43: 122774.43 | D43: 103685.38 | E43: 19089.05 | F43: 5883.38 | G43: 22030.74 | H43: 10 | I43: 0.1 | J43: 2203.074 | K43: 2203.07 | L43: 0.004
A44: 1915 | B44: Office Furniture & Equipment (5 years) | E44: 0 | G44: 0 | J44: 0 | L44: 0
A45: 1920 | B45: Computer Equipment - Hardware | C45: 320010.29 | D45: 215113.62 | E45: 104896.67 | F45: 2296.7 | G45: 106045.02 | H45: 5 | I45: 0.2 | J45: 21209.004 | K45: 21209 | L45: 0.003999999997
A46: 1920 | B46: Computer Equip.-Hardware(Post Mar. 22/04) | E46: 0 | G46: 0 | J46: 0 | L46: 0
A47: 1920 | B47: Computer Equip.-Hardware(Post Mar. 19/07) | E47: 0 | G47: 0 | J47: 0 | L47: 0
A48: 1930 | B48: Transportation Equipment - under 3 Tons | C48: 193005.69 | D48: 178849.56 | E48: 14156.13 | G48: 14156.13 | H48: 5 | I48: 0.2 | J48: 2831.226 | K48: =82261-K49 -> 2831.23 | L48: -0.003999999995
A49: 1930 | B49: Transportation Equipment - 3 Tons & Over | C49: 1400929.02 | D49: 904338.25 | E49: 496590.77 | F49: 277694.84 | G49: 635438.19 | H49: 8 | J49: 79429.77375 | K49: 79429.77 | L49: 0.003750000003
A50: 1935 | B50: Stores Equipment | C50: 1761.26 | D50: 1761.26 | E50: 0 | G50: 0 | H50: 10 | I50: 0.1 | J50: 0 | L50: 0
A51: 1940 | B51: Tools, Shop & Garage Equipment | C51: 234048.66 | D51: 162416.15 | E51: 71632.51 | F51: 2334.9 | G51: 72799.96 | H51: 10 | I51: 0.1 | J51: 7279.996 | K51: 7280 | L51: -0.003999999999
A52: 1945 | B52: Measurement & Testing Equipment | E52: 0 | G52: 0 | H52: 10 | I52: 0.1 | J52: 0 | L52: 0
A53: 1950 | B53: Power Operated Equipment | E53: 0 | G53: 0 | J53: 0 | L53: 0
A54: 1955 | B54: Communications Equipment | C54: 29543.89 | D54: 29543.89 | E54: 0 | F54: 5658.09 | G54: 2829.045 | H54: 5 | I54: 0.2 | J54: 565.809 | K54: 565.81 | L54: -0.001
A55: 1955 | B55: Communication Equipment (Smart Meters) | E55: 0 | G55: 0 | J55: 0 | L55: 0
A56: 1960 | B56: Miscellaneous Equipment | E56: 0 | G56: 0 | J56: 0 | L56: 0
A57: 1970 | B57: Load Management Controls Customer Premises | C57: 254912 | D57: 246518.5 | E57: =C57-D57 -> 8393.5 | G57: =E57+0.5*F57 -> 8393.5 | H57: 10 | I57: =IF(H57=0,"",1/H57) -> 0.1 | J57: =IF(H57=0,0,G57/H57) -> 839.35 | K57: 839.35 | L57: =IF(ISERROR(+J57-K57), "", +J57-K57) -> 0
A58: 1975 | B58: Load Management Controls Utility Premises | C58: 64873.19 | D58: 64873.19 | E58: 0 | G58: =E58+0.5*F58 -> 0 | H58: 10 | I58: 0.1 | J58: 0 | L58: 0
A59: 1980 | B59: System Supervisor Equipment | C59: 502268.44 | D59: 290999.5 | E59: 211268.94 | F59: 64229.68 | G59: =E59+0.5*F59 -> 243383.78 | H59: 15 | I59: 0.06666666667 | J59: 16225.58533 | K59: =11949.07+4276.52 -> 16225.59 | L59: -0.004666666662
A60: 1985 | B60: Miscellaneous Fixed Assets | C60: 0 | D60: 0 | E60: 0 | F60: 0 | G60: 0 | J60: 0 | K60: 0 | L60: 0
A61: 1990 | B61: Other Tangible Property | C61: 0 | D61: 0 | E61: =C61-D61 -> 0 | F61: 0 | G61: =E61+0.5*F61 -> 0 | I61: =IF(H61=0,"",1/H61) ->  | J61: =IF(H61=0,0,G61/H61) -> 0 | K61: 0 | L61: =IF(ISERROR(+J61-K61), "", +J61-K61) -> 0
A62: 1995 | B62: Contributions & Grants | C62: =-1257311.91-21179.21 -> -1278491.12 | D62: 0 | E62: -1278491.12 | F62: =-125254.7 -> -125254.7 | G62: -1341118.47 | H62: 18.138 | I62: 0.05513287022 | J62: -73939.71055 | K62: -73942 | L62: 2.289447569
B74: Total | C74: =SUM(C16:C73) -> 24169420.61 | D74: =SUM(D16:D73) -> 6783848.51 | E74: =SUM(E16:E73) -> 17385572.1 | F74: =SUM(F16:F73) -> 979369.85 | G74: =SUM(G16:G73) -> 17875257.03 | J74: =SUM(J16:J73) -> 852843.8685 | K74: =SUM(K16:K73) -> 852866.57 | L74: =SUM(L16:L73) -> -22.7014691

Sheet App.2-CA_OldCGAAP_DepExp_2011
K1: File Number: | L1: =EBNUMBER -> 
K2: Exhibit:
K3: Tab:
K4: Schedule:
K5: Page:
K7: Date:
A9: Appendix 2-CA
A10: Depreciation and Amortization Expense
B11: Assumes the applicant made capitalization and depreciation expense accounting policy changes under CGAAP effective January 1, 2013 and will adopt IFRS for financial reporting purposes effective January 1, 2015.
C13: Year | D13: 2011 | E13: Former CGAAP
A14: Account | B14: Description | C14: Opening Regulatory Gross PP&E as at Jan 1, 2011 | D14: Less Fully Depreciated | E14: Net for Depreciation | F14: Additions | G14: Total for Depreciation | H14: Years | I14: Depreciation Rate | J14: 2011 Depreciation Expense | K14: 2011 Depreciation Expense per Appendix 2-B Fixed Assets, Column K (l) | L14: Variance 2
C15: (a) | D15: (b) | E15: (c) | F15: (d) | G15: (e) = (c) + ½ x (d) 1 | H15: (f) | I15: (g) = 1 / (f) | J15: (h) = (e) / (f) | L15: (m) = (h) - (l)
A16: 1611 | B16: Computer Software (Formally known as Account 1925) | C16: 305604.49 | D16: 287913.07 | E16: =C16-D16 -> 17691.42 | F16: =4500+4148.02 -> 8648.02 | G16: =E16+0.5*F16 -> 22015.43 | H16: 3 | I16: =IF(H16=0,"",1/H16) -> 0.3333333333 | J16: =IF(H16=0,0,G16/H16) -> 7338.476667 | K16: 7338.48 | L16: =IF(ISERROR(+J16-K16), "", +J16-K16) -> -0.003333333319
A17: 1612 | B17: Land Rights (Formally known as Account 1906) | E17: =C17-D17 -> 0 | G17: =E17+0.5*F17 -> 0 | H17: 35 | I17: 0.02857142857 | J17: 0 | L17: =IF(ISERROR(+J17-K17), "", +J17-K17) -> 0
A18: 1612 | B18: Land Rights (Formally known as Account 1906) | C18: 10808.84 | D18: 2433.75 | E18: 8375.09 | G18: 8375.09 | H18: 25 | I18: 0.04 | J18: 335.0036 | K18: 335 | L18: 0.0036
A19: 1805 | B19: Land | C19: 130499.26 | E19: 130499.26 | G19: 130499.26 | H19: 0 | J19: 0 | L19: 0
A20: 1808 | B20: Buildings - Equipment | E20: 0 | G20: 0 | H20: 10 | I20: 0.1 | J20: 0 | L20: 0
A21: 1808 | B21: Buildings - Equipment | E21: 0 | G21: =E21+0.5*F21 -> 0 | H21: 20 | I21: 0.05 | J21: 0
A22: 1808 | B22: Buildings - Equipment | E22: 0 | G22: =E22+0.5*F22 -> 0 | H22: 25 | I22: 0.04 | J22: 0
A23: 1808 | B23: Buildings - Major Repairs | E23: 0 | G23: 0 | H23: 30 | I23: 0.03333333333 | J23: 0 | L23: 0
A24: 1808 | B24: Buildings - Major Repairs | E24: 0 | G24: 0 | H24: 25 | I24: 0.04 | J24: 0
A25: 1808 | B25: Buildings - Brick, Stone, Concrete and Steel | C25: 467936.17 | D25: 264422.75 | E25: 203513.42 | F25: 18607.45 | G25: 212817.145 | H25: 25 | I25: 0.04 | J25: 8512.6858 | K25: 8512.69 | L25: -0.004200000001
A26: 1810 | B26: Leasehold Improvements | E26: 0 | G26: 0 | J26: 0 | L26: 0
A27: 1815 | B27: Transformer Station Equipment >50 kV | E27: 0 | G27: 0 | H27: 30 | I27: 0.03333333333 | J27: 0 | L27: 0
A28: 1820 | B28: Distribution Station Equipment <50 kV | C28: 2729518.67 | D28: 1016206.5 | E28: 1713312.17 | F28: 90612.98 | G28: 1758618.66 | H28: 30 | I28: 0.03333333333 | J28: 58620.622 | K28: 58620.62 | L28: 0.002000000008
A29: 1825 | B29: Storage Battery Equipment | E29: 0 | G29: 0 | J29: 0 | L29: 0
A30: 1830 | B30: Poles, Towers & Fixtures | C30: 8224938.33 | D30: 2435222.52 | E30: 5789715.81 | F30: 70411.71 | G30: 5824921.665 | H30: 25 | I30: 0.04 | J30: 232996.8666 | K30: =9863+140922.35+15830.72+27200.66+33991.44+5188.7 -> 232996.87 | L30: -0.003399999987
A31: 1835 | B31: Overhead Conductors & Devices | C31: 2576430.73 | D31: 13321.75 | E31: 2563108.98 | F31: 121026.95 | G31: 2623622.455 | H31: 25 | I31: 0.04 | J31: 104944.8982 | K31: =2899.82+83113.45+6229.19+10589.04+2113.4 -> 104944.9 | L31: -0.001799999998
A32: 1840 | B32: Underground Conduit | C32: 2974102.42 | D32: 391774.65 | E32: 2582327.77 | F32: 58881.17 | G32: 2611768.355 | H32: 25 | I32: 0.04 | J32: 104470.7342 | K32: =2576+79054.83+1343.44+21496.46 -> 104470.73 | L32: 0.00420000001
A33: 1845 | B33: Underground Conductors & Devices | C33: 406087.57 | D33: 18656.5 | E33: 387431.07 | F33: 99504.28 | G33: 437183.21 | H33: 25 | I33: 0.04 | J33: 17487.3284 | K33: =15831.93+1655.4 -> 17487.33 | L33: -0.0016
A34: 1850 | B34: Line Transformers | C34: 3583669.21 | D34: 933234.1 | E34: 2650435.11 | F34: 129496.48 | G34: 2715183.35 | H34: 25 | I34: 0.04 | J34: 108607.334 | K34: =2151+74267.89+17378.51+14809.93 -> 108607.33 | L34: 0.004000000015
A35: 1855 | B35: Services (Overhead & Underground) | C35: 978368.74 | D35: 17931.96 | E35: 960436.78 | F35: =29860.41+65769.42 -> 95629.83 | G35: 1008251.695 | H35: 25 | I35: 0.04 | J35: 40330.0678 | K35: =16926.55+17395.9+2492.22+3515.4 -> 40330.07 | L35: -0.002200000003
A36: 1860 | B36: Meters | C36: 93646.66 | D36: 61783 | E36: 31863.66 | F36: =13749.35-2460 -> 11289.35 | G36: 37508.335 | H36: 25 | I36: 0.04 | J36: 1500.3334 | K36: =1120.8+379.53 -> 1500.33 | L36: 0.0034
A37: 1860 | B37: Meters (Smart Meters) | E37: 0 | G37: 0 | J37: 0 | L37: 0
A38: 1905 | B38: Land | E38: 0 | G38: 0 | H38: 0 | J38: 0 | L38: 0
A39: 1908 | B39: Buildings & Fixtures - Equipment | E39: 0 | G39: 0 | H39: 10 | I39: 0.1 | J39: 0 | L39: 0
A40: 1908 | B40: Buildings & Fixtures - Equipment | G40: 0 | H40: 20 | I40: 0.05 | J40: 0
A41: 1908 | B41: Buildings & Fixtures - Driveways | E41: 0 | G41: 0 | H41: 25 | I41: 0.04 | J41: 0 | L41: 0
A42: 1908 | B42: Buildings & Fixtures - Major Repairs | E42: 0 | G42: 0 | H42: 50 | I42: 0.02 | J42: 0 | L42: 0
A43: 1908 | B43: Buildings & Fixtures - Brick Store etc | E43: 0 | G43: 0 | J43: 0 | L43: 0
A44: 1910 | B44: Leasehold Improvements | E44: 0 | G44: 0 | H44: 10 | I44: 0.1 | J44: 0 | L44: 0
A45: 1915 | B45: Office Furniture & Equipment (10 years) | C45: 127989.29 | D45: 102448.61 | E45: 25540.68 | F45: 2572.2 | G45: 26826.78 | H45: 10 | I45: 0.1 | J45: 2682.678 | K45: 2682.68 | L45: -0.002000000001
A46: 1915 | B46: Office Furniture & Equipment (5 years) | E46: 0 | G46: 0 | J46: 0 | L46: 0
A47: 1920 | B47: Computer Equipment - Hardware | C47: 322306.99 | D47: 303327.9 | E47: 18979.09 | F47: 8336.17 | G47: 23147.175 | H47: 5 | I47: 0.2 | J47: 4629.435 | K47: 4629.43 | L47: 0.004999999993
A48: 1920 | B48: Computer Equip.-Hardware(Post Mar. 22/04) | E48: 0 | G48: 0 | J48: 0 | L48: 0
A49: 1920 | B49: Computer Equip.-Hardware(Post Mar. 19/07) | E49: 0 | G49: 0 | J49: 0 | L49: 0
A50: 1930 | B50: Transportation Equipment - under 3 Tons | C50: 193005.69 | D50: 170687.05 | E50: 22318.64 | F50: 28088.01 | G50: 36362.645 | H50: 5 | I50: 0.2 | J50: 7272.529 | K50: 7272.53 | L50: -0.0009999999975
A51: 1930 | B51: Transportation Equipment - 3 Tons & Over | C51: 1499746.4 | D51: 729712.4 | E51: 770034 | G51: 770034 | H51: 8 | I51: 0.125 | J51: 96254.25 | K51: =103526.78-K50 -> 96254.25 | L51: -1.455191523e-11
A52: 1935 | B52: Stores Equipment | C52: 1761.26 | D52: 1761.26 | E52: 0 | G52: 0 | H52: 10 | I52: 0.1 | J52: 0 | L52: 0
A53: 1940 | B53: Tools, Shop & Garage Equipment | C53: 236383.56 | D53: 172462.9 | E53: 63920.66 | F53: 5113.61 | G53: 66477.465 | H53: 10 | I53: 0.1 | J53: 6647.7465 | K53: =4216.72+2431.03 -> 6647.75 | L53: -0.003500000001
A54: 1945 | B54: Measurement & Testing Equipment | E54: 0 | F54: 0 | G54: 0 | H54: 10 | I54: 0.1 | J54: 0 | L54: 0
A55: 1950 | B55: Power Operated Equipment | E55: 0 | F55: 0 | G55: 0 | J55: 0 | L55: 0
A56: 1955 | B56: Communications Equipment | C56: 35201.98 | D56: 29543.89 | E56: 5658.09 | F56: 0 | G56: 5658.09 | H56: 5 | I56: 0.2 | J56: 1131.618 | K56: 1131.62 | L56: -0.001999999999
A57: 1955 | B57: Communication Equipment (Smart Meters) | C57: 0 | D57: 0 | E57: 0 | F57: 0 | G57: 0 | J57: 0 | L57: 0
A58: 1960 | B58: Miscellaneous Equipment | C58: 0 | D58: 0 | E58: 0 | F58: 0 | G58: 0 | J58: 0 | L58: 0
A59: 1970 | B59: Load Management Controls Customer Premises | C59: 254912 | D59: 246512.5 | E59: =C59-D59 -> 8399.5 | F59: 0 | G59: =E59+0.5*F59 -> 8399.5 | H59: 10 | I59: =IF(H59=0,"",1/H59) -> 0.1 | J59: =IF(H59=0,0,G59/H59) -> 839.95 | K59: 839.95 | L59: =IF(ISERROR(+J59-K59), "", +J59-K59) -> 0
A60: 1975 | B60: Load Management Controls Utility Premises | C60: 64873.19 | D60: 64873.19 | E60: 0 | F60: 0 | G60: 0 | H60: 10 | I60: 0.1 | J60: 0 | L60: 0
A61: 1980 | B61: System Supervisor Equipment | C61: =379777.7+186720.42 -> 566498.12 | D61: 165851.1 | E61: 400647.02 | F61: 0 | G61: 400647.02 | H61: 15 | I61: 0.06666666667 | J61: 26709.80133 | K61: =22654+4055.8 -> 26709.8 | L61: 0.001333333334
A62: 1985 | B62: Miscellaneous Fixed Assets | C62: 0 | D62: 0 | E62: 0 | F62: 0 | G62: 0 | J62: 0 | K62: 0 | L62: 0
A63: 1990 | B63: Other Tangible Property | C63: 0 | D63: 0 | E63: =C63-D63 -> 0 | F63: 0 | G63: =E63+0.5*F63 -> 0 | I63: =IF(H63=0,"",1/H63) ->  | J63: =IF(H63=0,0,G63/H63) -> 0 | K63: 0 | L63: =IF(ISERROR(+J63-K63), "", +J63-K63) -> 0
A64: 1995 | B64: Contributions & Grants | C64: -1403746 | D64: -69664.2 | E64: -1334081.8 | F64: -254011.49 | G64: -1461087.545 | H64: 25 | I64: 0.04 | J64: -58443.5018 | K64: -58443.5 | L64: -0.001799999998
A65: 1609 | B65: Other Tangible Property | C65: 0 | D65: 0 | E65: 0 | F65: 0 | G65: 0 | J65: 0 | K65: 0 | L65: 0
E76: 0 | G76: 0 | J76: 0 | L76: 0
B77: Total | C77: =SUM(C16:C76) -> 24380543.57 | D77: =SUM(D16:D76) -> 7360417.15 | E77: =SUM(E16:E76) -> 17020126.42 | F77: =SUM(F16:F76) -> 494206.72 | G77: =SUM(G16:G76) -> 17267229.78 | J77: =SUM(J16:J76) -> 772868.8567 | K77: =SUM(K16:K76) -> 772868.86 | L77: =SUM(L16:L76) -> -0.003299999958

Sheet App.2-CA_OldCGAAP_DepExp_2012
K1: File Number: | L1: =EBNUMBER -> 
K2: Exhibit:
K3: Tab:
K4: Schedule:
K5: Page:
K7: Date:
A9: Appendix 2-CA
A10: Depreciation and Amortization Expense
B11: Assumes the applicant made capitalization and depreciation expense accounting policy changes under CGAAP effective January 1, 2013 and will adopt IFRS for financial reporting purposes effective January 1, 2015.
C13: Year | D13: 2012 | E13: Former CGAAP
A14: Account | B14: Description | C14: Opening Regulatory Gross PP&E as at Jan 1, 2012 | D14: Less Fully Depreciated | E14: Net for Depreciation | F14: Additions | G14: Total for Depreciation | H14: Years | I14: Depreciation Rate | J14: 2012 Depreciation Expense | K14: 2012 Depreciation Expense per Appendix 2-B Fixed Assets, Column K (l) | L14: Variance 2
C15: (a) | D15: (b) | E15: (c) | F15: (d) | G15: (e) = (c) + ½ x (d) 1 | H15: (f) | I15: (g) = 1 / (f) | J15: (h) = (e) / (f) | L15: (m) = (h) - (l)
A16: 1611 | B16: Computer Software (Formally known as Account 1925) | C16: 314253 | D16: 293337 | E16: =C16-D16 -> 20916 | G16: =E16+0.5*F16 -> 20916 | H16: 3 | I16: =IF(H16=0,"",1/H16) -> 0.3333333333 | J16: =IF(H16=0,0,G16/H16) -> 6972 | K16: 6972 | L16: =IF(ISERROR(+J16-K16), "", +J16-K16) -> 0
A17: 1612 | B17: Land Rights (Formally known as Account 1906) | E17: =C17-D17 -> 0 | G17: =E17+0.5*F17 -> 0 | J17: 0 | L17: =IF(ISERROR(+J17-K17), "", +J17-K17) -> 0
A18: 1612 | B18: Land Rights (Formally known as Account 1906) | C18: 10809 | D18: 2433.75 | E18: 8375.25 | G18: 8375.25 | H18: 25 | I18: 0.04 | J18: 335.01 | K18: 335 | L18: 0.01
A19: 1805 | B19: Land | C19: 130499 | E19: 130499 | G19: 130499 | H19: 0 | J19: 0 | L19: 0
A20: 1808 | B20: Buildings | E20: 0 | G20: 0 | J20: 0 | L20: 0
A21: 1808 | B21: Buildings | E21: 0 | G21: 0 | J21: 0 | L21: 0
A22: 1808 | B22: Buildings | E22: 0 | G22: 0 | J22: 0 | L22: 0
A23: 1808 | B23: Buildings | E23: 0 | G23: 0 | J23: 0 | L23: 0
A24: 1808 | B24: Buildings | C24: 486543 | D24: 264422.75 | E24: 222120.25 | F24: 60159.83 | G24: 252200.165 | H24: 25 | I24: 0.04 | J24: 10088.0066 | K24: =3457.94+6630.1 -> 10088.04 | L24: -0.0334
A25: 1808 | B25: Buildings | E25: 0 | G25: 0 | J25: 0 | L25: 0
A26: 1810 | B26: Leasehold Improvements | E26: 0 | G26: 0 | J26: 0 | L26: 0
A27: 1815 | B27: Transformer Station Equipment >50 kV | E27: 0 | G27: 0 | J27: 0 | L27: 0
A28: 1820 | B28: Distribution Station Equipment <50 kV | C28: 2820132 | D28: 1024630.65 | E28: 1795501.35 | F28: 6177.55 | G28: 1798590.125 | H28: 30 | I28: 0.03333333333 | J28: 59953.00417 | K28: 59953 | L28: 0.004166666666
A29: 1825 | B29: Storage Battery Equipment | E29: 0 | G29: 0 | J29: 0 | L29: 0
A30: 1830 | B30: Poles, Towers & Fixtures | C30: 8295350 | D30: 3187701.8 | E30: 5107648.2 | F30: =62283.37+26020.08 -> 88303.45 | G30: 5151799.925 | H30: 25 | I30: 0.04 | J30: 206071.997 | K30: 206072 | L30: -0.002999999997
A31: 1835 | B31: Overhead Conductors & Devices | C31: 2697458 | D31: 115929.6 | E31: 2581528.4 | F31: =226073.63+13469.61 -> 239543.24 | G31: 2701300.02 | H31: 25 | I31: 0.04 | J31: 108052.0008 | K31: 108052 | L31: 0.0007999999943
A32: 1840 | B32: Underground Conduit | C32: 3032983 | D32: 485055.6 | E32: 2547927.4 | F32: 3645.29 | G32: 2549750.045 | H32: 25 | I32: 0.04 | J32: 101990.0018 | K32: 101990 | L32: 0.001799999998
A33: 1845 | B33: Underground Conductors & Devices | C33: 505592 | D33: 45546.6 | E33: 460045.4 | F33: 43959.29 | G33: 482025.045 | H33: 25 | I33: 0.04 | J33: 19281.0018 | K33: 19281 | L33: 0.001800000002
A34: 1850 | B34: Line Transformers | C34: 3713165.69 | D34: 1072927.8 | E34: 2640237.89 | F34: 119724 | G34: 2700099.89 | H34: 25 | I34: 0.04 | J34: 108003.9956 | K34: 108004 | L34: -0.00440000002
A35: 1855 | B35: Services (Overhead & Underground) | C35: 1073999 | D35: 50488.5 | E35: 1023510.5 | F35: =20359.89+29719.19 -> 50079.08 | G35: 1048550.04 | H35: 25 | I35: 0.04 | J35: 41942.0016 | K35: 41942 | L35: 0.001600000003
A36: 1860 | B36: Meters | C36: 65204.32 | D36: 44667.3 | E36: 20537.02 | F36: 24596 | G36: 32835.02 | H36: 15 | I36: 0.06666666667 | J36: 2189.001333 | K36: 2189 | L36: 0.001333333333
A37: 1860 | B37: Meters (Smart Meters) | E37: 0 | G37: 0 | J37: 0 | L37: 0
A38: 1905 | B38: Land | E38: 0 | G38: 0 | H38: 0 | J38: 0 | L38: 0
A39: 1908 | B39: Buildings & Fixtures | E39: 0 | G39: 0 | J39: 0 | L39: 0
A40: 1908 | B40: Buildings & Fixtures | E40: 0 | G40: 0 | J40: 0 | L40: 0
A41: 1908 | B41: Buildings & Fixtures | E41: 0 | G41: 0 | J41: 0 | L41: 0
A42: 1908 | B42: Buildings & Fixtures | E42: 0 | G42: 0 | J42: 0 | L42: 0
A43: 1908 | B43: Buildings & Fixtures | E43: 0 | G43: 0 | J43: 0 | L43: 0
A44: 1908 | B44: Buildings & Fixtures | E44: 0 | G44: 0 | J44: 0 | L44: 0
A45: 1910 | B45: Leasehold Improvements | E45: 0 | G45: 0 | J45: 0 | L45: 0
A46: 1915 | B46: Office Furniture & Equipment (10 years) | C46: 130561 | D46: 105171 | E46: 25390 | G46: 25390 | H46: 10 | I46: 0.1 | J46: 2539 | K46: 2539 | L46: 0
A47: 1915 | B47: Office Furniture & Equipment (5 years) | E47: 0 | G47: 0 | J47: 0 | L47: 0
A48: 1920 | B48: Computer Equipment - Hardware | E48: 0 | G48: 0 | J48: 0 | L48: 0
A49: 1920 | B49: Computer Equip.-Hardware(Post Mar. 22/04) | E49: 0 | G49: 0 | J49: 0 | L49: 0
A50: 1920 | B50: Computer Equip.-Hardware(Post Mar. 19/07) | C50: 330643 | D50: 311151.9 | E50: 19491.1 | F50: 5307.82 | G50: 22145.01 | H50: 5 | I50: 0.2 | J50: 4429.002 | K50: 4429 | L50: 0.001999999995
A51: 1930 | B51: Transportation Equipment | E51: 0 | G51: 0 | J51: 0 | L51: 0
A52: 1930 | B52: Transportation Equipment | C52: 1699390 | D52: 1046907.52 | E52: 652482.48 | F52: 145403 | G52: 725183.98 | H52: 8 | I52: 0.125 | J52: 90647.9975 | K52: 90648 | L52: -0.002500000002
A53: 1935 | B53: Stores Equipment | C53: 1761 | D53: 1761 | E53: 0 | G53: 0 | J53: 0 | L53: 0
A54: 1940 | B54: Tools, Shop & Garage Equipment | C54: 241498 | D54: 176517.5 | E54: 64980.5 | F54: 12399 | G54: 71180 | H54: 10 | I54: 0.1 | J54: 7118 | K54: 7118 | L54: 0
A55: 1945 | B55: Measurement & Testing Equipment | E55: 0 | G55: 0 | J55: 0 | L55: 0
A56: 1950 | B56: Power Operated Equipment | E56: 0 | G56: 0 | J56: 0 | L56: 0
A57: 1955 | B57: Communications Equipment | C57: 35202 | D57: 29543.75 | E57: 5658.25 | F57: 1574 | G57: 6445.25 | H57: 5 | I57: 0.2 | J57: 1289.05 | K57: 1289.05 | L57: 0
A58: 1955 | B58: Communication Equipment (Smart Meters) | E58: 0 | G58: 0 | J58: 0 | L58: 0
A59: 1960 | B59: Miscellaneous Equipment | E59: 0 | G59: 0 | J59: 0 | L59: 0
A60: 1970 | B60: Load Management Controls Customer Premises | C60: 254912 | D60: 246518.5 | E60: =C60-D60 -> 8393.5 | G60: =E60+0.5*F60 -> 8393.5 | H60: 10 | I60: =IF(H60=0,"",1/H60) -> 0.1 | J60: =IF(H60=0,0,G60/H60) -> 839.35 | K60: 839.35 | L60: 0
A61: 1975 | B61: Load Management Controls Utility Premises | C61: 64873.19 | D61: 64873.19 | E61: 0 | G61: 0 | H61: 10 | I61: 0.1 | J61: 0 | L61: 0
A62: 1980 | B62: System Supervisor Equipment | C62: 566498 | D62: 214346 | E62: 352152 | F62: 4116 | G62: 354210 | H62: 15 | I62: 0.06666666667 | J62: 23614 | K62: 23614 | L62: 0
A63: 1985 | B63: Miscellaneous Fixed Assets | C63: 0 | D63: 0 | E63: 0 | F63: 0 | G63: 0 | J63: 0 | K63: 0 | L63: 0
A64: 1990 | B64: Other Tangible Property | C64: 0 | D64: 0 | E64: =C64-D64 -> 0 | F64: 0 | G64: =E64+0.5*F64 -> 0 | I64: =IF(H64=0,"",1/H64) ->  | J64: =IF(H64=0,0,G64/H64) -> 0 | K64: 0 | L64: 0
A65: 1995 | B65: Contributions & Grants | C65: -1657757 | D65: -182410.3 | E65: -1475346.7 | F65: -347303.89 | G65: -1648998.645 | H65: 25 | I65: 0.04 | J65: -65959.9458 | K65: -65959.95 | L65: 0.004199999996
A66: 1609 | B66: Other Tangible Property | C66: 0 | D66: 0 | E66: 0 | F66: 0 | G66: 0 | J66: 0 | K66: 0 | L66: 0
B78: Total | C78: =SUM(C16:C77) -> 24813569.2 | D78: =SUM(D16:D77) -> 8601521.41 | E78: =SUM(E16:E77) -> 16212047.79 | F78: =SUM(F16:F77) -> 457683.66 | G78: =SUM(G16:G77) -> 16440889.62 | J78: =SUM(J16:J77) -> 729394.4744 | K78: =SUM(K16:K77) -> 729394.49 | L78: =SUM(L16:L77) -> -0.01560000003

Sheet App.2-CB_OldCGAAP_DepExp_2013
K1: File Number: | L1: =EBNUMBER -> 
K2: Exhibit:
K3: Tab:
K4: Schedule:
K5: Page:
K7: Date:
A9: Appendix 2-CA
A10: Depreciation and Amortization Expense
B11: Assumes the applicant made capitalization and depreciation expense accounting policy changes under CGAAP effective January 1, 2013 and will adopt IFRS for financial reporting purposes effective January 1, 2015.
C13: Year | D13: 2013 | E13: Former CGAAP
A14: Account | B14: Description | C14: Opening Regulatory Gross PP&E as at Jan 1, 2013 | D14: Less Fully Depreciated | E14: Net for Depreciation | F14: Additions | G14: Total for Depreciation | H14: Years | I14: Depreciation Rate | J14: 2013 Depreciation Expense | K14: 2013 Depreciation Expense per Appendix 2-B Fixed Assets, Column K (l) | L14: Variance 2
C15: (a) | D15: (b) | E15: (c) | F15: (d) | G15: (e) = (c) + ½ x (d) 1 | H15: (f) | I15: (g) = 1 / (f) | J15: (h) = (e) / (f) | L15: (m) = (h) - (l)
A16: 1611 | B16: Computer Software (Formally known as Account 1925) | C16: 314253 | D16: 299508.12 | E16: =C16-D16 -> 14744.88 | F16: 46620 | G16: =E16+0.5*F16 -> 38054.88 | H16: 3 | I16: =IF(H16=0,"",1/H16) -> 0.3333333333 | J16: =IF(H16=0,0,G16/H16) -> 12684.96 | K16: =9270+3414.96 -> 12684.96 | L16: =IF(ISERROR(+J16-K16), "", +J16-K16) -> 1.818989404e-12
A17: 1612 | B17: Land Rights (Formally known as Account 1906) | E17: =C17-D17 -> 0 | G17: =E17+0.5*F17 -> 0 | J17: 0 | L17: =IF(ISERROR(+J17-K17), "", +J17-K17) -> 0
A18: 1612 | B18: Land Rights (Formally known as Account 1906) | C18: 10809 | D18: 2434 | E18: 8375 | G18: 8375 | H18: 25 | I18: 0.04 | J18: 335 | K18: 335 | L18: 0
A19: 1805 | B19: Land | C19: 130499 | E19: 130499 | G19: 130499 | H19: 0 | J19: 0 | L19: 0
A20: 1808 | B20: Buildings | E20: 0 | G20: 0 | J20: 0 | L20: 0
A21: 1808 | B21: Buildings | E21: 0 | G21: 0 | J21: 0 | L21: 0
A22: 1808 | B22: Buildings | E22: 0 | G22: 0 | J22: 0 | L22: 0
A23: 1808 | B23: Buildings | E23: 0 | G23: 0 | J23: 0 | L23: 0
A24: 1808 | B24: Buildings | C24: =486543+60159.83 -> 546702.83 | D24: 264486.82 | E24: 282216.01 | F24: 93745 | G24: 329088.51 | H24: 25 | I24: 0.04 | J24: 13163.5404 | K24: =3457.94+9705.6 -> 13163.54 | L24: 0.0003999999972
A25: 1808 | B25: Buildings | E25: 0 | G25: 0 | J25: 0 | L25: 0
A26: 1810 | B26: Leasehold Improvements | E26: 0 | G26: 0 | J26: 0 | L26: 0
A27: 1815 | B27: Transformer Station Equipment >50 kV | E27: 0 | G27: 0 | J27: 0 | L27: 0
A28: 1820 | B28: Distribution Station Equipment <50 kV | C28: =2820132+6177.55 -> 2826309.55 | D28: 1031295.9 | E28: 1795013.65 | F28: 40093 | G28: 1815060.15 | H28: 30 | I28: 0.03333333333 | J28: 60502.005 | K28: 60502 | L28: 0.004999999997
A29: 1825 | B29: Storage Battery Equipment | E29: 0 | G29: 0 | J29: 0 | L29: 0
A30: 1830 | B30: Poles, Towers & Fixtures | C30: =8295350+88303.45 -> 8383653.45 | D30: 3525709.03 | E30: 4857944.42 | F30: 161461 | G30: 4938674.92 | H30: 25 | I30: 0.04 | J30: 197546.9968 | K30: 197547 | L30: -0.003200000006
A31: 1835 | B31: Overhead Conductors & Devices | C31: =2697458+239543.24 -> 2937001.24 | D31: 7492.14 | E31: 2929509.1 | F31: 224632 | G31: 3041825.1 | H31: 25 | I31: 0.04 | J31: 121673.004 | K31: 121673 | L31: 0.004000000001
A32: 1840 | B32: Underground Conduit | C32: =3032983+3645.29 -> 3036628.29 | D32: =535660.2 -> 535660.2 | E32: 2500968.09 | F32: 2064 | G32: 2502000.09 | H32: 25 | I32: 0.04 | J32: 100080.0036 | K32: =100080 -> 100080 | L32: 0.003599999996
A33: 1845 | B33: Underground Conductors & Devices | C33: =505592+43959.29 -> 549551.29 | D33: 10781.2 | E33: 538770.09 | F33: 33860 | G33: 555700.09 | H33: 25 | I33: 0.04 | J33: 22228.0036 | K33: =25228-3000 -> 22228 | L33: 0.003600000004
A34: 1850 | B34: Line Transformers | C34: 3832890.06 | D34: 1098073 | E34: 2734817.06 | F34: 119766 | G34: 2794700.06 | H34: 25 | I34: 0.04 | J34: 111788.0024 | K34: =111788 -> 111788 | L34: 0.002399999998
A35: 1855 | B35: Services (Overhead & Underground) | C35: =1073999+50079.08 -> 1124078.08 | E35: 1124078.08 | F35: 118992 | G35: 1183574.08 | H35: 25 | I35: 0.04 | J35: 47342.9632 | K35: =50452-3109.04 -> 47342.96 | L35: 0.003200000006
A36: 1860 | B36: Meters | C36: 89799.87 | D36: 41108.2 | E36: 48691.67 | F36: 9278 | G36: 53330.67 | H36: 15 | I36: 0.06666666667 | J36: 3555.378 | K36: =3569-13.62 -> 3555.38 | L36: -0.002
A37: 1860 | B37: Meters (Smart Meters) | E37: 0 | G37: 0 | J37: 0 | L37: 0
A38: 1905 | B38: Land | E38: 0 | G38: 0 | H38: 0 | J38: 0 | L38: 0
A39: 1908 | B39: Buildings & Fixtures | E39: 0 | G39: 0 | J39: 0 | L39: 0
A40: 1908 | B40: Buildings & Fixtures | E40: 0 | G40: 0 | J40: 0 | L40: 0
A41: 1908 | B41: Buildings & Fixtures | E41: 0 | G41: 0 | J41: 0 | L41: 0
A42: 1908 | B42: Buildings & Fixtures | E42: 0 | G42: 0 | J42: 0 | L42: 0
A43: 1908 | B43: Buildings & Fixtures | E43: 0 | G43: 0 | J43: 0 | L43: 0
A44: 1908 | B44: Buildings & Fixtures | E44: 0 | G44: 0 | J44: 0 | L44: 0
A45: 1910 | B45: Leasehold Improvements | E45: 0 | G45: 0 | J45: 0 | L45: 0
A46: 1915 | B46: Office Furniture & Equipment (10 years) | C46: 130561 | D46: 117155 | E46: 13406 | F46: 1388 | G46: 14100 | H46: 10 | I46: 0.1 | J46: 1410 | K46: 1410 | L46: 0
A47: 1915 | B47: Office Furniture & Equipment (5 years) | E47: 0 | G47: 0 | J47: 0 | L47: 0
A48: 1920 | B48: Computer Equipment - Hardware | E48: 0 | G48: 0 | J48: 0 | L48: 0
A49: 1920 | B49: Computer Equip.-Hardware(Post Mar. 22/04) | E49: 0 | G49: 0 | J49: 0 | L49: 0
A50: 1920 | B50: Computer Equip.-Hardware(Post Mar. 19/07) | C50: =330643+5307.82 -> 335950.82 | D50: 301919.3 | E50: 34031.52 | F50: 28127 | G50: 48095.02 | H50: 5 | I50: 0.2 | J50: 9619.004 | K50: 9619 | L50: 0.004000000004
A51: 1930 | B51: Transportation Equipment | E51: 0 | G51: 0 | J51: 0 | L51: 0
A52: 1930 | B52: Transportation Equipment | C52: 1820545 | D52: 1044502 | E52: 776043 | F52: 457242 | G52: 1004664 | H52: 8 | I52: 0.125 | J52: 125583 | K52: 125583 | L52: 0
A53: 1935 | B53: Stores Equipment | C53: 1761 | D53: 1761 | E53: 0 | G53: 0 | H53: 10 | I53: 0.1 | J53: 0 | L53: 0
A54: 1940 | B54: Tools, Shop & Garage Equipment | C54: =241498+12399 -> 253897 | D54: 190303.5 | E54: 63593.5 | F54: 6273 | G54: 66730 | H54: 10 | I54: 0.1 | J54: 6673 | K54: 6673 | L54: 0
A55: 1945 | B55: Measurement & Testing Equipment | E55: 0 | F55: 18090 | G55: 9045 | H55: 10 | I55: 0.1 | J55: 904.5 | K55: 904.5 | L55: 0
A56: 1950 | B56: Power Operated Equipment | E56: 0 | G56: 0 | J56: 0 | L56: 0
A57: 1955 | B57: Communications Equipment | C57: =35202+1574 -> 36776 | D57: 29546 | E57: 7230 | G57: 7230 | H57: 5 | I57: 0.2 | J57: 1446 | K57: 1446 | L57: 0
A58: 1955 | B58: Communication Equipment (Smart Meters) | E58: 0 | G58: 0 | J58: 0 | L58: 0
A59: 1960 | B59: Miscellaneous Equipment | E59: 0 | F59: 12104 | G59: 6052 | H59: 10 | I59: 0.1 | J59: 605.2 | K59: 605.2 | L59: 0
A60: 1970 | B60: Load Management Controls Customer Premises | C60: 254912 | D60: 246902 | E60: =C60-D60 -> 8010 | G60: =E60+0.5*F60 -> 8010 | H60: 10 | I60: =IF(H60=0,"",1/H60) -> 0.1 | J60: =IF(H60=0,0,G60/H60) -> 801 | K60: 801 | L60: 0
A61: 1975 | B61: Load Management Controls Utility Premises | C61: 64873.19 | D61: 64873.19 | E61: 0 | G61: 0 | H61: 10 | I61: 0.1 | J61: 0 | L61: 0
A62: 1980 | B62: System Supervisor Equipment | C62: 570614 | D62: 502471 | E62: 68143 | F62: 504 | G62: 68395 | H62: 5 | I62: 0.2 | J62: 13679 | K62: 13679 | L62: 0
A63: 1985 | B63: Miscellaneous Fixed Assets | C63: 0 | E63: 0 | F63: 0 | G63: 0 | J63: 0 | K63: 0 | L63: 0
A64: 1990 | B64: Other Tangible Property | C64: 0 | D64: 0 | E64: =C64-D64 -> 0 | F64: 0 | G64: =E64+0.5*F64 -> 0 | I64: =IF(H64=0,"",1/H64) ->  | J64: =IF(H64=0,0,G64/H64) -> 0 | K64: 0 | L64: 0
A65: 1995 | B65: Contributions & Grants | C65: -2005061 | D65: -293508.5 | E65: -1711552.5 | F65: -35216.98 | G65: -1729160.99 | H65: 25 | I65: 0.04 | J65: -69166.4396 | K65: -69166.44 | L65: 0.0004000000044
A66: 1609 | B66: Other Tangible Property | C66: 0 | D66: 0 | E66: 0 | F66: 0 | G66: 0 | J66: 0 | K66: 0 | L66: 0
B78: Total | C78: =SUM(C16:C77) -> 25247004.67 | D78: =SUM(D16:D77) -> 9022473.1 | E78: =SUM(E16:E77) -> 16224531.57 | F78: =SUM(F16:F77) -> 1339022.02 | G78: =SUM(G16:G77) -> 16894042.58 | J78: =SUM(J16:J77) -> 782454.1214 | K78: =SUM(K16:K77) -> 782454.1 | L78: =SUM(L16:L77) -> 0.0214

Sheet App.2-CC_NewCGAAP_DepExp_2013
N1: File Number: | O1: =EBNUMBER -> 
N2: Exhibit:
N3: Tab:
N4: Schedule:
N5: Page:
N7: Date:
A9: Appendix 2-CB
A10: Depreciation and Amortization Expense
A11: Assumes the applicant made capitalization and depreciation expense accounting policy changes under CGAAP effective January 1, 2013 and will adopt IFRS for financial reporting purposes effective January 1, 2015.
C13: Year | D13: 2013 | E13: Revised CGAAP
A15: Account | B15: Description | C15: Opening NBV as at Jan 1, 2013 5 | D15: Additions | E15: Average Remaining Life of Opening NBV 4 | F15: Years (new additions only) 3 | G15: Depreciation Rate on New Additions | H15: Depreciation Expense on Opening NBV | I15: Depreciation Expense on Additions 1 | J15: 2013 Depreciation Expense | K15: 2013 Depreciation Expense per Appendix 2-BA Fixed Assets, Column J (l) | L15: Variance 2 | M15: Depreciation Expense on 2013 Full Year Additions | N15: Less Depreciation Expense on Assets Fully Depreciated during the year (o) | O15: 2013 Full Year Depreciation 6
C16: (a) | D16: (d) | E16: (i) | F16: (f) | G16: (g) = 1 / (f) | H16: (j) = (a) / (i) | I16: (h)=((d)*0.5)/(f) | J16: (k) = (j) + (h) | L16: (m) = (k) - (l) | M16: (n) = (d)/(f) | O16: (p) = (j) + (n) - (o)
A17: 1611 | B17: Computer Software (Formally known as Account 1925) | C17: 6331 | D17: 46620 | E17: 1.288 | F17: 3 | G17: =IF(F17=0,0,1/F17) -> 0.3333333333 | H17: =IF(E17=0,0,+C17/E17) -> 4915.372671 | I17: =IF(F17=0,0,+(D17*0.5)/F17) -> 7770 | J17: =IF(ISERROR(+H17+I17), 0, +H17+I17) -> 12685.37267 | K17: 12685 | L17: =IF(ISERROR(+J17-K17), 0, +J17-K17) -> 0.3726708075 | M17: =IF(F17=0,0,+(D17)/F17) -> 15540 | N17: 3475 | O17: =IF(ISERROR(+M17+H17-N17), 0, +M17+H17-N17) -> 16980.37267
A18: 1612 | B18: Land Rights (Formally known as Account 1906) | C18: 3083 | E18: 9.2 | F18: 25 | G18: 0.04 | H18: 335.1086957 | I18: 0 | J18: 335.1086957 | K18: 335 | L18: 0.1086956522 | M18: 0 | O18: =IF(ISERROR(+M18+H18-N18), 0, +M18+H18-N18) -> 335.1086957
A19: 1805 | B19: Land | C19: 130499 | G19: 0 | H19: 0 | I19: 0 | J19: 0 | L19: 0 | M19: 0 | O19: 0
A20: 1808 | B20: Buildings - Other | C20: 164452 | D20: 93745 | E20: 21 | F20: 25 | G20: 0.04 | H20: 7831.047619 | I20: 1874.9 | J20: 9705.947619 | K20: 9705.6 | L20: 0.3476190476 | M20: 3749.8 | N20: 135 | O20: 11445.84762
A21: 1808 | B21: Buildings - Brick and Stone | C21: 107094 | E21: 30.97 | F21: 50 | G21: =IF(F21=0,0,1/F21) -> 0.02 | H21: =IF(E21=0,0,+C21/E21) -> 3457.991605 | I21: =IF(F21=0,0,+(D21*0.5)/F21) -> 0 | J21: =IF(ISERROR(+H21+I21), 0, +H21+I21) -> 3457.991605 | K21: 3457.94 | L21: =IF(ISERROR(+J21-K21), 0, +J21-K21) -> 0.05160477882 | M21: =IF(F21=0,0,+(D21)/F21) -> 0 | O21: =IF(ISERROR(+M21+H21-N21), 0, +M21+H21-N21) -> 3457.991605
A22: 1810 | B22: Leasehold Improvements | G22: 0 | H22: 0 | I22: 0 | J22: 0 | L22: 0 | M22: 0 | O22: 0
A23: 1815 | B23: Transformer Station Equipment >50 kV | G23: 0 | H23: 0 | I23: 0 | J23: 0 | L23: 0 | M23: 0 | O23: 0
A24: 1820 | B24: Distribution Station Equipment <50 kV | C24: =239149+493152 -> 732301 | E24: 24.607 | F24: 30 | G24: 0.03333333333 | H24: 29759.86508 | I24: 0 | J24: 29759.86508 | K24: 29759.47 | L24: 0.3950790425 | M24: 0 | O24: 29759.86508
A25: 1820 | B25: Distribution Station Equipment <50 kV | C25: 107283 | E25: 8 | F25: 40 | G25: 0.025 | H25: 13410.375 | I25: 0 | J25: 13410.375 | K25: 13410 | L25: 0.375 | M25: 0 | O25: 13410.375
A26: 1820 | B26: Distribution Station Equipment <50 kV | C26: 168874 | D26: 40093 | E26: 10 | F26: 45 | G26: 0.02222222222 | H26: 16887.4 | I26: 445.4777778 | J26: 17332.87778 | K26: 17333 | L26: -0.1222222222 | M26: 890.9555556 | O26: 17778.35556
A27: 1825 | B27: Storage Battery Equipment | G27: 0 | H27: 0 | I27: 0 | J27: 0 | L27: 0 | M27: 0 | O27: 0
A28: 1830 | B28: Poles, Towers & Fixtures | C28: 1846745 | E28: 10.1006 | G28: 0 | H28: 182835.1781 | I28: 0 | J28: 182835.1781 | K28: 182835 | L28: 0.1781082312 | M28: 0 | N28: 9022 | O28: 173813.1781
A29: 1830 | B29: Poles, Towers & Fixtures | D29: 161461 | F29: 45 | G29: 0.02222222222 | H29: 0 | I29: =IF(F29=0,0,+(D29*0.5)/F29) -> 1794.011111 | J29: =IF(ISERROR(+H29+I29), 0, +H29+I29) -> 1794.011111 | K29: 1794 | L29: 0.01111111111 | M29: 3588.022222
A30: 1835 | B30: Overhead Conductors & Devices | C30: 2097513 | E30: 19.0482 | H30: 110116.074 | J30: 110116.074 | K30: 110116 | L30: 0.07395974422 | M30: 0 | O30: 110116.074
A31: 1835 | B31: Overhead Conductors & Devices | D31: =100847.87+106950.46 -> 207798.33 | F31: 60 | G31: 0.01666666667 | H31: 0 | I31: 1731.65275 | J31: 1731.65275 | K31: 1732 | L31: -0.34725 | M31: 3463.3055 | O31: 3463.3055
A32: 1835 | B32: Overhead Conductors & Devices | D32: =10084.79+5628.97 -> 15713.76 | F32: 45 | G32: =IF(F32=0,0,1/F32) -> 0.02222222222 | H32: =IF(E32=0,0,+C32/E32) -> 0 | I32: =IF(F32=0,0,+(D32*0.5)/F32) -> 174.5973333 | J32: =IF(ISERROR(+H32+I32), 0, +H32+I32) -> 174.5973333 | K32: 175 | L32: =IF(ISERROR(+J32-K32), 0, +J32-K32) -> -0.4026666667 | M32: =IF(F32=0,0,+(D32)/F32) -> 349.1946667 | O32: =IF(ISERROR(+M32+H32-N32), 0, +M32+H32-N32) -> 349.1946667
A33: 1835 | B33: Overhead Conductors & Devices | D33: 1120.53 | F33: 40 | G33: 0.025 | I33: 14.006625 | J33: =IF(ISERROR(+H33+I33), 0, +H33+I33) -> 14.006625 | K33: 14 | L33: 0.006625 | M33: 28.01325 | O33: 28.01325
A34: 1840 | B34: Underground Conduit | C34: 733365 | E34: 7.56155 | F34: 50 | G34: 0.02 | H34: 96986.06767 | I34: 0 | J34: 96986.06767 | K34: =97007-21 -> 96986 | L34: 0.06767131077 | M34: 0 | N34: 4204 | O34: 92782.06767
A35: 1840 | B35: Underground Conduit | D35: 2064 | F35: 50 | G35: 0.02 | H35: =IF(E35=0,0,+C35/E35) -> 0 | I35: =IF(F35=0,0,+(D35*0.5)/F35) -> 20.64 | J35: =IF(ISERROR(+H35+I35), 0, +H35+I35) -> 20.64 | K35: 21 | L35: =IF(ISERROR(+J35-K35), 0, +J35-K35) -> -0.36 | M35: =IF(F35=0,0,+(D35)/F35) -> 41.28 | O35: =IF(ISERROR(+M35+H35-N35), 0, +M35+H35-N35) -> 41.28
A36: 1845 | B36: Underground Conductors & Devices | C36: 440392 | E36: 22.21 | F36: 40 | G36: 0.025 | H36: 19828.5457 | I36: 0 | J36: 19828.5457 | K36: 19829 | L36: -0.4542998649 | M36: 0 | O36: 19828.5457
A37: 1845 | B37: Underground Conductors & Devices | D37: 33860 | F37: 40 | G37: =IF(F37=0,0,1/F37) -> 0.025 | H37: =IF(E37=0,0,+C37/E37) -> 0 | I37: =IF(F37=0,0,+(D37*0.5)/F37) -> 423.25 | J37: =IF(ISERROR(+H37+I37), 0, +H37+I37) -> 423.25 | K37: 423 | L37: =IF(ISERROR(+J37-K37), 0, +J37-K37) -> 0.25 | M37: =IF(F37=0,0,+(D37)/F37) -> 846.5 | O37: =IF(ISERROR(+M37+H37-N37), 0, +M37+H37-N37) -> 846.5
A38: 1850 | B38: Line Transformers | C38: 1500603 | D38: 45855 | E38: 14.8347 | F38: 40 | G38: 0.025 | H38: 101154.9273 | I38: 573.1875 | J38: 101728.1148 | K38: 101728 | L38: 0.1147988331 | M38: 1146.375 | N38: 10244 | O38: 92057.3023
A39: 1850 | B39: Line Transformers | D39: 73911 | F39: 40 | G39: =IF(F39=0,0,1/F39) -> 0.025 | H39: =IF(E39=0,0,+C39/E39) -> 0 | I39: =IF(F39=0,0,+(D39*0.5)/F39) -> 923.8875 | J39: =IF(ISERROR(+H39+I39), 0, +H39+I39) -> 923.8875 | K39: 924 | L39: =IF(ISERROR(+J39-K39), 0, +J39-K39) -> -0.1125 | M39: =IF(F39=0,0,+(D39)/F39) -> 1847.775 | O39: =IF(ISERROR(+M39+H39-N39), 0, +M39+H39-N39) -> 1847.775
A40: 1855 | B40: Services (Overhead & Underground) | C40: 847075 | E40: 19.939 | F40: 40 | G40: 0.025 | H40: 42483.32414 | I40: 0 | J40: 42483.32414 | K40: =43918-105-1330 -> 42483 | L40: 0.3241386228 | M40: 0 | O40: 42483.32414
A41: 1855 | B41: Services (Overhead & Underground) | D41: 12618 | F41: 60 | G41: =IF(F41=0,0,1/F41) -> 0.01666666667 | H41: =IF(E41=0,0,+C41/E41) -> 0 | I41: =IF(F41=0,0,+(D41*0.5)/F41) -> 105.15 | J41: =IF(ISERROR(+H41+I41), 0, +H41+I41) -> 105.15 | K41: 105 | L41: =IF(ISERROR(+J41-K41), 0, +J41-K41) -> 0.15 | M41: =IF(F41=0,0,+(D41)/F41) -> 210.3 | O41: =IF(ISERROR(+M41+H41-N41), 0, +M41+H41-N41) -> 210.3
A42: 1855 | B42: Services (Overhead & Underground) | D42: 106373 | F42: 40 | G42: =IF(F42=0,0,1/F42) -> 0.025 | H42: =IF(E42=0,0,+C42/E42) -> 0 | I42: =IF(F42=0,0,+(D42*0.5)/F42) -> 1329.6625 | J42: =IF(ISERROR(+H42+I42), 0, +H42+I42) -> 1329.6625 | K42: 1330 | L42: =IF(ISERROR(+J42-K42), 0, +J42-K42) -> -0.3375 | M42: =IF(F42=0,0,+(D42)/F42) -> 2659.325 | O42: =IF(ISERROR(+M42+H42-N42), 0, +M42+H42-N42) -> 2659.325
A43: 1860 | B43: Meters | D43: 9278 | F43: 25 | G43: 0.04 | H43: 0 | I43: 185.56 | J43: 185.56 | K43: 186 | L43: -0.44 | M43: 371.12 | N43: 297 | O43: 74.12
A44: 1860 | B44: Meters | C44: 78432 | E44: 28.18 | F44: 25 | G44: 0.04 | H44: 2783.250532 | I44: 0 | J44: 2783.250532 | K44: 2783 | L44: 0.2505322924 | M44: 0 | O44: 2783.250532
A45: 1860 | B45: Meters (Smart Meters) | G45: 0 | H45: 0 | I45: 0 | J45: 0 | L45: 0 | M45: 0 | O45: 0
A46: 1905 | B46: Land | G46: 0 | H46: 0 | I46: 0 | J46: 0 | L46: 0 | M46: 0 | O46: 0
A47: 1908 | B47: Buildings & Fixtures | G47: 0 | H47: 0 | I47: 0 | J47: 0 | L47: 0 | M47: 0 | O47: 0
A48: 1910 | B48: Leasehold Improvements | G48: 0 | H48: 0 | I48: 0 | J48: 0 | L48: 0 | M48: 0 | O48: 0
A49: 1915 | B49: Office Furniture & Equipment (10 years) | C49: 7094 | D49: 1388 | E49: 5.29 | F49: 10 | G49: 0.1 | H49: 1341.020794 | I49: 69.4 | J49: 1410.420794 | K49: 1410 | L49: 0.4207939509 | M49: 138.8 | N49: 496 | O49: 983.820794
A50: 1915 | B50: Office Furniture & Equipment (5 years) | G50: 0 | H50: 0 | I50: 0 | J50: 0 | L50: 0 | M50: 0 | O50: 0
A51: 1920 | B51: Computer Equipment - Hardware | G51: 0 | H51: 0 | I51: 0 | J51: 0 | L51: 0 | M51: 0 | O51: 0
A52: 1920 | B52: Computer Equip.-Hardware(Post Mar. 22/04) | G52: 0 | H52: 0 | I52: 0 | J52: 0 | L52: 0 | M52: 0 | O52: 0
A53: 1920 | B53: Computer Equip.-Hardware(Post Mar. 19/07) | C53: 8975 | D53: 28127 | E53: 1.82 | F53: 3 | G53: 0.3333333333 | H53: 4931.318681 | I53: 4687.833333 | J53: 9619.152015 | K53: 9619 | L53: 0.152014652 | M53: 9375.666667 | N53: 1773 | O53: 12533.98535
A54: 1930 | B54: Transportation Equipment | D54: =457242-55916 -> 401326 | F54: 8 | G54: 0.125 | H54: 0 | I54: 25082.875 | J54: 25082.875 | K54: 25083 | L54: -0.125 | M54: 50165.75 | O54: 50165.75
A55: 1930 | B55: Transportation Equipment | D55: 55916 | F55: 5 | G55: =IF(F55=0,0,1/F55) -> 0.2 | H55: =IF(E55=0,0,+C55/E55) -> 0 | I55: =IF(F55=0,0,+(D55*0.5)/F55) -> 5591.6 | J55: =IF(ISERROR(+H55+I55), 0, +H55+I55) -> 5591.6 | K55: 5592 | L55: =IF(ISERROR(+J55-K55), 0, +J55-K55) -> -0.4 | M55: =IF(F55=0,0,+(D55)/F55) -> 11183.2 | O55: =IF(ISERROR(+M55+H55-N55), 0, +M55+H55-N55) -> 11183.2
A56: 1930 | B56: Transportation Equipment | C56: 446467 | E56: 4.70419 | F56: 8 | G56: 0.125 | H56: 94908.36892 | I56: 0 | J56: 94908.36892 | K56: =119991-25083 -> 94908 | L56: 0.3689221736 | M56: 0 | O56: 94908.36892
A57: 1935 | B57: Stores Equipment | G57: 0 | H57: 0 | I57: 0 | J57: 0 | L57: 0 | M57: 0 | O57: 0
A58: 1940 | B58: Tools, Shop & Garage Equipment | C58: 27181 | D58: 6273 | E58: 4.274 | F58: 10 | G58: 0.1 | H58: 6359.616285 | I58: 313.65 | J58: 6673.266285 | K58: 6673 | L58: 0.266284511 | M58: 627.3 | N58: 1465 | O58: 5521.916285
A59: 1945 | B59: Measurement & Testing Equipment | D59: 18090 | F59: 10 | G59: 0.1 | H59: 0 | I59: 904.5 | J59: 904.5 | K59: 905 | L59: -0.5 | M59: 1809 | O59: 1809
A60: 1950 | B60: Power Operated Equipment | G60: 0 | H60: 0 | I60: 0 | J60: 0 | L60: 0 | M60: 0 | O60: 0
A61: 1955 | B61: Communications Equipment | C61: 4246 | E61: 2.935 | F61: 5 | G61: 0.2 | H61: 1446.678024 | I61: 0 | J61: 1446.678024 | K61: 1446.4 | L61: 0.2780238501 | M61: 0 | O61: 1446.678024
A62: 1955 | B62: Communication Equipment (Smart Meters) | G62: 0 | H62: 0 | I62: 0 | J62: 0 | L62: 0 | M62: 0 | O62: 0
A63: 1960 | B63: Miscellaneous Equipment | D63: 12104 | F63: 10 | G63: 0.1 | H63: 0 | I63: 605.2 | J63: 605.2 | K63: 605 | L63: 0.2 | M63: 1210.4 | O63: 1210.4
A64: 1970 | B64: Load Management Controls Customer Premises | C64: 801 | E64: 1 | F64: 10 | G64: 0.1 | H64: 801 | I64: 0 | J64: 801 | K64: 800 | L64: 1 | M64: 0 | N64: 801 | O64: 0
A65: 1975 | B65: Load Management Controls Utility Premises | C65: 0 | E65: 0 | F65: 10 | G65: 0.1 | H65: 0 | I65: 0 | J65: 0 | L65: 0 | M65: 0 | O65: 0
A66: 1980 | B66: System Supervisor Equipment | C66: 23241 | D66: 504 | E66: 1.7095 | F66: 3 | G66: 0.3333333333 | H66: 13595.20328 | I66: 84 | J66: 13679.20328 | K66: 13679 | L66: 0.2032758116 | M66: 168 | N66: 12220 | O66: 1543.203276
A67: 1985 | B67: Miscellaneous Fixed Assets | G67: 0 | H67: 0 | I67: 0 | J67: 0 | L67: 0 | M67: 0 | O67: 0
A68: 1990 | B68: Other Tangible Property | G68: 0 | H68: 0 | I68: 0 | J68: 0 | L68: 0 | M68: 0 | O68: 0
A69: 1995 | B69: Contributions & Grants | C69: -1560739 | D69: -35216.98 | E69: 22.71 | F69: 40 | G69: 0.025 | H69: -68724.74681 | I69: -440.21225 | J69: -69164.95906 | K69: -69166 | L69: 1.040942426 | M69: -880.4245 | N69: 1576 | O69: -71181.17131
B70: Total | C70: =SUM(C17:C69) -> 7921308 | D70: =SUM(D17:D69) -> 1339021.64 | H70: =SUM(H17:H69) -> 687442.9873 | I70: 54264.82918 | J70: 741707.8164 | K70: 741704.41 | L70: 3.406433096 | M70: 108529.6584 | N70: 45708 | O70: 746676.6234
A72: Notes:
A74: 1 | B74: Board policy of the "half-year" rule - the applicant must ensure that additions in the year attract a half-year depreciation expense in the first year. Deviations from this standard practice must be supported in the application.
A75: 2 | B75: The applicant must provide an explanation of material variances in evidence.
A76: 3 | B76: The applicant should ensure that the years for new additions of assets are the asset useful lives determined by management in accordance with the Board's regulatory accounting policies. The capitalization and depreciation expense accounting changes should be implemented consistent with the Board’s regulatory accounting policies as set out for modified IFRS as contained in the Report of the Board, Transition to International Financial Reporting Standards, EB-2008-0408, the Kinectrics Report, and the Revised 2012 Accounting Procedures Handbook for Electricity Distributors (“APH”).
A77: 4 | B77: A recalculation should be performed to determine the average remaining life of opening balance of assets (i.e. excluding 2012 additions) under the change in policies under CGAAP. For example, Asset A had a useful life of 20 years under CGAAP without the change in policies. On January 1, 2012, the effective date of the changes in policies, Asset A was 3 years depreciated. As a result, Asset A would have a remaining service life of 17 years (20 years less 3 years) as of January 1, 2012. Due to making the change in policies under CGAAP, management re-assessed the asset useful lives and concluded that the revised useful life of Asset A is now 30 years. Therefore, the average remaining useful life of the opening balance of Asset A is determined to be 27 years (30 years less 3 years) under the revised CGAAP as of January 1, 2012.
A78: 5 | B78: NBV must exclude assets still on the books but which have been fully amortized or depreciated.
A79: 6 | B79: This column refers to the calculated full year depreciation but excludes the depreciation expense on assets fully depreciated during the year. This column is used for the purpose of calculating depreciation expense in the following year on the next worksheet.
A81: General: | B81: Applicants must provide a breakdown of depreciation and amortization expense in the above format for all relevant accounts. Asset Retirement Obligations (AROs), depreciation and accretion expense should be disclosed separately consistent with the Notes of historical Audited Financial Statements.

Sheet App.2-CD_MIFRS_DepExp_2014
J1: File Number: | K1: =EBNUMBER -> 
J2: Exhibit:
J3: Tab:
J4: Schedule:
J5: Page:
J7: Date:
A9: Appendix 2-CD
A10: Depreciation and Amortization Expense
A11: Assumes the applicant made capitalization and depreciation expense accounting policy changes under CGAAP effective January 1, 2013 and will adopt IFRS for financial reporting purposes effective January 1, 2015.
E13: 2014 | F13: MIFRS
A15: Account | B15: Description | C15: Additions | D15: Years (new additions only) | E15: Depreciation Rate on New Additions | F15: 2014 Depreciation Expense 1 | G15: 2014 Depreciation Expense per Apppendix 2-BA Fixed Assets, Column J (l) | H15: Variance 2 | I15: Depreciation Expense on 2014 Full Year Additions | J15: Less Depreciation Expense on Assets Fully Depreciated during the year (o) | K15: 2014 Full Year Depreciation 3
C16: (d) | D16: (f) | E16: (g) = 1 / (f) | F16: (h)=2013 Full Year Deprecation + ((d)*0.5)/(f) | H16: (m) = (h) - (l) | I16: (n)=((d))/(f) | K16: (p) = 2013 Full Year Depreciation + (n) - (o)
A17: 1611 | B17: Computer Software (Formally known as Account 1925) | C17: 40967 | D17: 3 | E17: =IF(D17=0,0,1/D17) -> 0.3333333333 | F17: =IF(D17=0,+'App.2-CC_NewCGAAP_DepExp_2013'!O17,+'App.2-CC_NewCGAAP_DepExp_2013'!O17+((C17*0.5)/D17)) -> 23808.206 | G17: 23809 | H17: =IF(ISERROR(+F17-G17), 0, +F17-G17) -> -0.7939958592 | I17: =IF(D17=0,0,+(C17)/D17) -> 13655.66667 | J17: 1441 | K17: =IF(ISERROR(+I17+'App.2-CC_NewCGAAP_DepExp_2013'!O17-J17), 0, +I17+'App.2-CC_NewCGAAP_DepExp_2013'!O17-J17) -> 29195.03934
A18: 1612 | B18: Land Rights (Formally known as Account 1906) | E18: 0 | F18: =IF(D18=0,+'App.2-CC_NewCGAAP_DepExp_2013'!O18,+'App.2-CC_NewCGAAP_DepExp_2013'!O18+((C18*0.5)/D18)) -> 335.1086957 | G18: 335 | H18: 0.1086956522 | I18: 0 | K18: =IF(ISERROR(+I18+'App.2-CC_NewCGAAP_DepExp_2013'!O18-J18), 0, +I18+'App.2-CC_NewCGAAP_DepExp_2013'!O18-J18) -> 335.1086957
A19: 1805 | B19: Land | E19: 0 | F19: =IF(D19=0,+'App.2-CC_NewCGAAP_DepExp_2013'!O19,+'App.2-CC_NewCGAAP_DepExp_2013'!O19+((C19*0.5)/D19)) -> 0 | H19: 0 | I19: 0 | K19: =IF(ISERROR(+I19+'App.2-CC_NewCGAAP_DepExp_2013'!O19-J19), 0, +I19+'App.2-CC_NewCGAAP_DepExp_2013'!O19-J19) -> 0
A20: 1808 | B20: Buildings | E20: 0 | F20: =IF(D20=0,+'App.2-CC_NewCGAAP_DepExp_2013'!O20,+'App.2-CC_NewCGAAP_DepExp_2013'!O20+((C20*0.5)/D20)) -> 11445.84762 | G20: 11445 | H20: 0.8476190476 | I20: 0 | K20: =IF(ISERROR(+I20+'App.2-CC_NewCGAAP_DepExp_2013'!O20-J20), 0, +I20+'App.2-CC_NewCGAAP_DepExp_2013'!O20-J20) -> 11445.84762
A21: 1808 | B21: Buildings | C21: 24730 | D21: 25 | E21: 0.04 | F21: =IF(D21=0,+'App.2-CC_NewCGAAP_DepExp_2013'!O21,+'App.2-CC_NewCGAAP_DepExp_2013'!O21+((C21*0.5)/D21)) -> 3952.591605 | G21: 3953 | H21: -0.4083952212 | I21: 989.2 | K21: =IF(ISERROR(+I21+'App.2-CC_NewCGAAP_DepExp_2013'!O21-J21), 0, +I21+'App.2-CC_NewCGAAP_DepExp_2013'!O21-J21) -> 4447.191605
A22: 1810 | B22: Leasehold Improvements | E22: 0 | F22: =IF(D22=0,+'App.2-CC_NewCGAAP_DepExp_2013'!O22,+'App.2-CC_NewCGAAP_DepExp_2013'!O22+((C22*0.5)/D22)) -> 0 | H22: =IF(ISERROR(+F22-G22), 0, +F22-G22) -> 0 | I22: 0 | K22: =IF(ISERROR(+I22+'App.2-CG_NewCGAAP_DepExp_2013'!O22-J22), 0, +I22+'App.2-CG_NewCGAAP_DepExp_2013'!O22-J22) -> 0
A23: 1815 | B23: Transformer Station Equipment >50 kV | E23: 0 | F23: =IF(D23=0,+'App.2-CC_NewCGAAP_DepExp_2013'!O23,+'App.2-CC_NewCGAAP_DepExp_2013'!O23+((C23*0.5)/D23)) -> 0 | H23: =IF(ISERROR(+F23-G23), 0, +F23-G23) -> 0 | I23: 0 | K23: =IF(ISERROR(+I23+'App.2-CC_NewCGAAP_DepExp_2013'!O23-J23), 0, +I23+'App.2-CC_NewCGAAP_DepExp_2013'!O23-J23) -> 0
A24: 1820 | B24: Distribution Station Equipment <50 kV | E24: 0 | F24: =IF(D24=0,+'App.2-CC_NewCGAAP_DepExp_2013'!O24,+'App.2-CC_NewCGAAP_DepExp_2013'!O24+((C24*0.5)/D24)) -> 29759.86508 | G24: 29760 | H24: -0.1349209575 | I24: 0 | K24: =IF(ISERROR(+I24+'App.2-CC_NewCGAAP_DepExp_2013'!O24-J24), 0, +I24+'App.2-CC_NewCGAAP_DepExp_2013'!O24-J24) -> 29759.86508
A25: 1820 | B25: Distribution Station Equipment <50 kV | C25: 2203 | D25: 40 | E25: 0.025 | F25: =IF(D25=0,+'App.2-CC_NewCGAAP_DepExp_2013'!O25,+'App.2-CC_NewCGAAP_DepExp_2013'!O25+((C25*0.5)/D25)) -> 13437.9125 | G25: 13438 | H25: -0.0875 | I25: 55.075 | K25: =IF(ISERROR(+I25+'App.2-CC_NewCGAAP_DepExp_2013'!O25-J25), 0, +I25+'App.2-CC_NewCGAAP_DepExp_2013'!O25-J25) -> 13465.45
A26: 1820 | B26: Distribution Station Equipment <50 kV | C26: 84326 | D26: 45 | E26: 0.02222222222 | F26: =IF(D26=0,+'App.2-CC_NewCGAAP_DepExp_2013'!O26,+'App.2-CC_NewCGAAP_DepExp_2013'!O26+((C26*0.5)/D26)) -> 18715.31111 | G26: 18705 | H26: 10.31111111 | I26: 1873.911111 | K26: =IF(ISERROR(+I26+'App.2-CC_NewCGAAP_DepExp_2013'!O26-J26), 0, +I26+'App.2-CC_NewCGAAP_DepExp_2013'!O26-J26) -> 19652.26667
A27: 1820 | B27: Distribution Station Equipment <50 kV | C27: 20935 | D27: 15 | E27: 0.06666666667 | F27: =IF(D27=0,+'App.2-CC_NewCGAAP_DepExp_2013'!O27,+'App.2-CC_NewCGAAP_DepExp_2013'!O27+((C27*0.5)/D27)) -> 697.8333333 | G27: 698 | H27: -0.1666666667 | I27: 1395.666667 | K27: =IF(ISERROR(+I27+'App.2-CC_NewCGAAP_DepExp_2013'!O27-J27), 0, +I27+'App.2-CC_NewCGAAP_DepExp_2013'!O27-J27) -> 1395.666667
A28: 1825 | B28: Storage Battery Equipment | E28: 0 | F28: 0 | H28: 0 | I28: 0 | K28: =IF(ISERROR(+I28+'App.2-CC_NewCGAAP_DepExp_2013'!O27-J28), 0, +I28+'App.2-CC_NewCGAAP_DepExp_2013'!O27-J28) -> 0
A29: 1830 | B29: Poles, Towers & Fixtures | E29: 0 | F29: =IF(D29=0,+'App.2-CC_NewCGAAP_DepExp_2013'!O28,+'App.2-CC_NewCGAAP_DepExp_2013'!O28+((C29*0.5)/D29)) -> 173813.1781 | G29: 173812.99 | H29: 0.1881082312 | I29: 0 | J29: =10628+1661 -> 12289 | K29: =IF(ISERROR(+I29+'App.2-CC_NewCGAAP_DepExp_2013'!O28-J29), 0, +I29+'App.2-CC_NewCGAAP_DepExp_2013'!O28-J29) -> 161524.1781
A30: 1830 | B30: Poles, Towers & Fixtures | C30: 74730 | D30: 45 | E30: 0.02222222222 | F30: =IF(D30=0,+'App.2-CC_NewCGAAP_DepExp_2013'!O29,+'App.2-CC_NewCGAAP_DepExp_2013'!O29+((C30*0.5)/D30)) -> 830.3333333 | G30: 830 | H30: 0.3333333333 | I30: 1660.666667 | K30: =IF(ISERROR(+I30+'App.2-CC_NewCGAAP_DepExp_2013'!O29-J30), 0, +I30+'App.2-CC_NewCGAAP_DepExp_2013'!O29-J30) -> 1660.666667
A31: 1835 | B31: Overhead Conductors & Devices | F31: =IF(D31=0,+'App.2-CC_NewCGAAP_DepExp_2013'!O30,+'App.2-CC_NewCGAAP_DepExp_2013'!O30+((C31*0.5)/D31)) -> 110116.074 | G31: 110116 | H31: 0.07395974422 | I31: 0 | K31: =IF(ISERROR(+I31+'App.2-CC_NewCGAAP_DepExp_2013'!O30-J31), 0, +I31+'App.2-CC_NewCGAAP_DepExp_2013'!O30-J31) -> 110116.074
A32: 1835 | B32: Overhead Conductors & Devices | C32: 313555 | D32: 60 | E32: 0.01666666667 | F32: =IF(D32=0,+'App.2-CC_NewCGAAP_DepExp_2013'!O31,+'App.2-CC_NewCGAAP_DepExp_2013'!O31+((C32*0.5)/D32)) -> 6076.263833 | G32: 6076 | H32: 0.2638333333 | I32: 5225.916667 | K32: =IF(ISERROR(+I32+'App.2-CC_NewCGAAP_DepExp_2013'!O31-J32), 0, +I32+'App.2-CC_NewCGAAP_DepExp_2013'!O31-J32) -> 8689.222167
A33: 1835 | B33: Overhead Conductors & Devices | C33: 28281 | D33: 45 | E33: 0.02222222222 | F33: =IF(D33=0,+'App.2-CC_NewCGAAP_DepExp_2013'!O32,+'App.2-CC_NewCGAAP_DepExp_2013'!O32+((C33*0.5)/D33)) -> 663.428 | G33: 663 | H33: 0.428 | I33: 628.4666667 | K33: =IF(ISERROR(+I33+'App.2-CC_NewCGAAP_DepExp_2013'!O32-J33), 0, +I33+'App.2-CC_NewCGAAP_DepExp_2013'!O32-J33) -> 977.6613333
A34: 1835 | B34: Overhead Conductors & Devices | C34: 2763 | D34: 40 | E34: 0.025 | F34: =IF(D34=0,+'App.2-CC_NewCGAAP_DepExp_2013'!O33,+'App.2-CC_NewCGAAP_DepExp_2013'!O33+((C34*0.5)/D34)) -> 62.55075 | G34: 63 | H34: -0.44925 | I34: 69.075 | K34: =IF(ISERROR(+I34+'App.2-CC_NewCGAAP_DepExp_2013'!O33-J34), 0, +I34+'App.2-CC_NewCGAAP_DepExp_2013'!O33-J34) -> 97.08825
A35: 1840 | B35: Underground Conduit | E35: 0 | F35: =IF(D35=0,+'App.2-CC_NewCGAAP_DepExp_2013'!O34,+'App.2-CC_NewCGAAP_DepExp_2013'!O34+((C35*0.5)/D35)) -> 92782.06767 | G35: 92782 | H35: 0.06767131077 | I35: 0 | J35: 14271 | K35: =IF(ISERROR(+I35+'App.2-CC_NewCGAAP_DepExp_2013'!O34-J35), 0, +I35+'App.2-CC_NewCGAAP_DepExp_2013'!O34-J35) -> 78511.06767
A36: 1840 | B36: Underground Conduit | C36: 43881 | D36: 40 | E36: 0.025 | F36: =IF(D36=0,+'App.2-CC_NewCGAAP_DepExp_2013'!O35,+'App.2-CC_NewCGAAP_DepExp_2013'!O35+((C36*0.5)/D36)) -> 589.7925 | G36: 590 | H36: -0.2075 | I36: 1097.025 | K36: =IF(ISERROR(+I36+'App.2-CC_NewCGAAP_DepExp_2013'!O35-J36), 0, +I36+'App.2-CC_NewCGAAP_DepExp_2013'!O35-J36) -> 1138.305
A37: 1845 | B37: Underground Conductors & Devices | E37: 0 | F37: =IF(D37=0,+'App.2-CC_NewCGAAP_DepExp_2013'!O36,+'App.2-CC_NewCGAAP_DepExp_2013'!O36+((C37*0.5)/D37)) -> 19828.5457 | G37: 19830 | H37: -1.454299865 | I37: 0 | K37: =IF(ISERROR(+I38+'App.2-CC_NewCGAAP_DepExp_2013'!O36-J37), 0, +I38+'App.2-CC_NewCGAAP_DepExp_2013'!O36-J37) -> 24229.3207
A38: 1845 | B38: Underground Conductors & Devices | C38: 176031 | D38: 40 | E38: 0.025 | F38: =IF(D38=0,+'App.2-CC_NewCGAAP_DepExp_2013'!O37,+'App.2-CC_NewCGAAP_DepExp_2013'!O37+((C38*0.5)/D38)) -> 3046.8875 | G38: 3047 | H38: -0.1125 | I38: 4400.775 | K38: =IF(ISERROR(+I39+'App.2-CC_NewCGAAP_DepExp_2013'!O37-J38), 0, +I39+'App.2-CC_NewCGAAP_DepExp_2013'!O37-J38) -> 846.5
A39: 1850 | B39: Line Transformers | E39: 0 | F39: =IF(D39=0,+'App.2-CC_NewCGAAP_DepExp_2013'!O38,+'App.2-CC_NewCGAAP_DepExp_2013'!O38+((C39*0.5)/D39)) -> 92057.3023 | G39: 92057 | H39: 0.3022988331 | I39: 0 | J39: 10680 | K39: =IF(ISERROR(+I39+'App.2-CC_NewCGAAP_DepExp_2013'!O38-J39), 0, +I39+'App.2-CC_NewCGAAP_DepExp_2013'!O38-J39) -> 81377.3023
A40: 1850 | B40: Line Transformers | C40: 158090 | D40: 40 | E40: 0.025 | F40: =IF(D40=0,+'App.2-CC_NewCGAAP_DepExp_2013'!O39,+'App.2-CC_NewCGAAP_DepExp_2013'!O39+((C40*0.5)/D40)) -> 3823.9 | G40: 3824 | H40: -0.1 | I40: 3952.25 | K40: =IF(ISERROR(+I40+'App.2-CC_NewCGAAP_DepExp_2013'!O39-J40), 0, +I40+'App.2-CC_NewCGAAP_DepExp_2013'!O39-J40) -> 5800.025
A41: 1855 | B41: Services (Overhead & Underground) | E41: 0 | F41: =IF(D41=0,+'App.2-CC_NewCGAAP_DepExp_2013'!O40,+'App.2-CC_NewCGAAP_DepExp_2013'!O40+((C41*0.5)/D41)) -> 42483.32414 | G41: 42483 | H41: 0.3241386228 | I41: 0 | K41: =IF(ISERROR(+I41+'App.2-CC_NewCGAAP_DepExp_2013'!O40-J41), 0, +I41+'App.2-CC_NewCGAAP_DepExp_2013'!O40-J41) -> 42483.32414
A42: 1855 | B42: Services (Overhead & Underground) | C42: 13559 | D42: 60 | E42: 0.01666666667 | F42: =IF(D42=0,+'App.2-CC_NewCGAAP_DepExp_2013'!O41,+'App.2-CC_NewCGAAP_DepExp_2013'!O41+((C42*0.5)/D42)) -> 323.2916667 | G42: 323 | H42: 0.2916666667 | I42: 225.9833333 | K42: =IF(ISERROR(+I42+'App.2-CC_NewCGAAP_DepExp_2013'!O41-J42), 0, +I42+'App.2-CC_NewCGAAP_DepExp_2013'!O41-J42) -> 436.2833333
A43: 1855 | B43: Services (Overhead & Underground) | C43: 66725 | D43: 40 | E43: 0.025 | F43: =IF(D43=0,+'App.2-CC_NewCGAAP_DepExp_2013'!O42,+'App.2-CC_NewCGAAP_DepExp_2013'!O42+((C43*0.5)/D43)) -> 3493.3875 | G43: 3493 | H43: 0.3875 | I43: 1668.125 | J43: 79 | K43: =IF(ISERROR(+I43+'App.2-CC_NewCGAAP_DepExp_2013'!O42-J43), 0, +I43+'App.2-CC_NewCGAAP_DepExp_2013'!O42-J43) -> 4248.45
A44: 1860 | B44: Meters | E44: 0 | F44: =IF(D44=0,+'App.2-CC_NewCGAAP_DepExp_2013'!O43,+'App.2-CC_NewCGAAP_DepExp_2013'!O43+((C44*0.5)/D44)) -> 74.12 | G44: 74 | H44: 0.12 | I44: 0 | K44: =IF(ISERROR(+I44+'App.2-CC_NewCGAAP_DepExp_2013'!O43-J44), 0, +I44+'App.2-CC_NewCGAAP_DepExp_2013'!O43-J44) -> 74.12
A45: 1860 | B45: Meters | E45: 0 | F45: =IF(D45=0,+'App.2-CC_NewCGAAP_DepExp_2013'!O44,+'App.2-CC_NewCGAAP_DepExp_2013'!O44+((C45*0.5)/D45)) -> 2783.250532 | G45: 2783 | H45: 0.2505322924 | I45: 0 | K45: =IF(ISERROR(+I45+'App.2-CC_NewCGAAP_DepExp_2013'!O44-J45), 0, +I45+'App.2-CC_NewCGAAP_DepExp_2013'!O44-J45) -> 2783.250532
A46: 1860 | B46: Meters (Smart Meters) | C46: 31909 | D46: 15 | E46: 0.06666666667 | F46: =IF(D46=0,+'App.2-CC_NewCGAAP_DepExp_2013'!O45,+'App.2-CC_NewCGAAP_DepExp_2013'!O45+((C46*0.5)/D46)) -> 1063.633333 | G46: 1064 | H46: -0.3666666667 | I46: 2127.266667 | K46: =IF(ISERROR(+I46+'App.2-CC_NewCGAAP_DepExp_2013'!O45-J46), 0, +I46+'App.2-CC_NewCGAAP_DepExp_2013'!O45-J46) -> 2127.266667
A47: 1905 | B47: Land | E47: 0 | F47: =IF(D47=0,+'App.2-CC_NewCGAAP_DepExp_2013'!O46,+'App.2-CC_NewCGAAP_DepExp_2013'!O46+((C47*0.5)/D47)) -> 0 | H47: 0 | I47: 0 | K47: =IF(ISERROR(+I47+'App.2-CC_NewCGAAP_DepExp_2013'!O46-J47), 0, +I47+'App.2-CC_NewCGAAP_DepExp_2013'!O46-J47) -> 0
A48: 1908 | B48: Buildings & Fixtures | E48: 0 | F48: =IF(D48=0,+'App.2-CC_NewCGAAP_DepExp_2013'!O47,+'App.2-CC_NewCGAAP_DepExp_2013'!O47+((C48*0.5)/D48)) -> 0 | H48: 0 | I48: 0 | K48: =IF(ISERROR(+I48+'App.2-CC_NewCGAAP_DepExp_2013'!O47-J48), 0, +I48+'App.2-CC_NewCGAAP_DepExp_2013'!O47-J48) -> 0
A49: 1910 | B49: Leasehold Improvements | E49: 0 | F49: =IF(D49=0,+'App.2-CC_NewCGAAP_DepExp_2013'!O48,+'App.2-CC_NewCGAAP_DepExp_2013'!O48+((C49*0.5)/D49)) -> 0 | H49: 0 | I49: 0 | K49: =IF(ISERROR(+I49+'App.2-CC_NewCGAAP_DepExp_2013'!O48-J49), 0, +I49+'App.2-CC_NewCGAAP_DepExp_2013'!O48-J49) -> 0
A50: 1915 | B50: Office Furniture & Equipment (10 years) | C50: 3337 | D50: 10 | E50: 0.1 | F50: =IF(D50=0,+'App.2-CC_NewCGAAP_DepExp_2013'!O49,+'App.2-CC_NewCGAAP_DepExp_2013'!O49+((C50*0.5)/D50)) -> 1150.670794 | G50: 1151 | H50: -0.3292060491 | I50: 333.7 | K50: =IF(ISERROR(+I50+'App.2-CC_NewCGAAP_DepExp_2013'!O49-J50), 0, +I50+'App.2-CC_NewCGAAP_DepExp_2013'!O49-J50) -> 1317.520794
A51: 1915 | B51: Office Furniture & Equipment (5 years) | E51: 0 | F51: =IF(D51=0,+'App.2-CC_NewCGAAP_DepExp_2013'!O50,+'App.2-CC_NewCGAAP_DepExp_2013'!O50+((C51*0.5)/D51)) -> 0 | H51: 0 | I51: 0 | K51: =IF(ISERROR(+I51+'App.2-CC_NewCGAAP_DepExp_2013'!O50-J51), 0, +I51+'App.2-CC_NewCGAAP_DepExp_2013'!O50-J51) -> 0
A52: 1920 | B52: Computer Equipment - Hardware | E52: 0 | F52: =IF(D52=0,+'App.2-CC_NewCGAAP_DepExp_2013'!O51,+'App.2-CC_NewCGAAP_DepExp_2013'!O51+((C52*0.5)/D52)) -> 0 | H52: 0 | I52: 0 | K52: =IF(ISERROR(+I52+'App.2-CC_NewCGAAP_DepExp_2013'!O51-J52), 0, +I52+'App.2-CC_NewCGAAP_DepExp_2013'!O51-J52) -> 0
A53: 1920 | B53: Computer Equip.-Hardware(Post Mar. 22/04) | E53: 0 | F53: =IF(D53=0,+'App.2-CC_NewCGAAP_DepExp_2013'!O52,+'App.2-CC_NewCGAAP_DepExp_2013'!O52+((C53*0.5)/D53)) -> 0 | H53: 0 | I53: 0 | K53: =IF(ISERROR(+I53+'App.2-CC_NewCGAAP_DepExp_2013'!O52-J53), 0, +I53+'App.2-CC_NewCGAAP_DepExp_2013'!O52-J53) -> 0
A54: 1920 | B54: Computer Equip.-Hardware(Post Mar. 19/07) | C54: 10557 | D54: 3 | E54: 0.3333333333 | F54: =IF(D54=0,+'App.2-CC_NewCGAAP_DepExp_2013'!O53,+'App.2-CC_NewCGAAP_DepExp_2013'!O53+((C54*0.5)/D54)) -> 14293.48535 | G54: 14294 | H54: -0.5146520147 | I54: 3519 | J54: 2274 | K54: =IF(ISERROR(+I54+'App.2-CC_NewCGAAP_DepExp_2013'!O53-J54), 0, +I54+'App.2-CC_NewCGAAP_DepExp_2013'!O53-J54) -> 13778.98535
A55: 1930 | B55: Transportation Equipment | E55: 0 | F55: =IF(D55=0,+'App.2-CC_NewCGAAP_DepExp_2013'!O54,+'App.2-CC_NewCGAAP_DepExp_2013'!O54+((C55*0.5)/D55)) -> 50165.75 | G55: 50166 | H55: -0.25 | I55: 0 | K55: =IF(ISERROR(+I55+'App.2-CC_NewCGAAP_DepExp_2013'!O54-J55), 0, +I55+'App.2-CC_NewCGAAP_DepExp_2013'!O54-J55) -> 50165.75
A56: 1930 | B56: Transportation Equipment | C56: 28236 | D56: 5 | E56: 0.2 | F56: =IF(D56=0,+'App.2-CC_NewCGAAP_DepExp_2013'!O55,+'App.2-CC_NewCGAAP_DepExp_2013'!O55+((C56*0.5)/D56)) -> 14006.8 | G56: 14007 | H56: -0.2 | I56: 5647.2 | K56: =IF(ISERROR(+I56+'App.2-CC_NewCGAAP_DepExp_2013'!O55-J56), 0, +I56+'App.2-CC_NewCGAAP_DepExp_2013'!O55-J56) -> 16830.4
A57: 1930 | B57: Transportation Equipment | C57: 30643 | D57: 8 | E57: 0.125 | F57: =IF(D57=0,+'App.2-CC_NewCGAAP_DepExp_2013'!O56,+'App.2-CC_NewCGAAP_DepExp_2013'!O56+((C57*0.5)/D57)) -> 96823.55642 | G57: 96966 | H57: -142.4435778 | I57: 3830.375 | J57: 10250 | K57: =IF(ISERROR(+I57+'App.2-CC_NewCGAAP_DepExp_2013'!O56-J57), 0, +I57+'App.2-CC_NewCGAAP_DepExp_2013'!O56-J57) -> 88488.74392
A58: 1935 | B58: Stores Equipment | E58: 0 | F58: =IF(D58=0,+'App.2-CC_NewCGAAP_DepExp_2013'!O57,+'App.2-CC_NewCGAAP_DepExp_2013'!O57+((C58*0.5)/D58)) -> 0 | H58: 0 | I58: 0 | K58: =IF(ISERROR(+I58+'App.2-CC_NewCGAAP_DepExp_2013'!O57-J58), 0, +I58+'App.2-CC_NewCGAAP_DepExp_2013'!O57-J58) -> 0
A59: 1940 | B59: Tools, Shop & Garage Equipment | C59: 39977 | D59: 10 | E59: 0.1 | F59: =IF(D59=0,+'App.2-CC_NewCGAAP_DepExp_2013'!O58,+'App.2-CC_NewCGAAP_DepExp_2013'!O58+((C59*0.5)/D59)) -> 7520.766285 | G59: 7521 | H59: -0.233715489 | I59: 3997.7 | J59: 1101 | K59: =IF(ISERROR(+I59+'App.2-CC_NewCGAAP_DepExp_2013'!O58-J59), 0, +I59+'App.2-CC_NewCGAAP_DepExp_2013'!O58-J59) -> 8418.616285
A60: 1945 | B60: Measurement & Testing Equipment | E60: 0 | F60: =IF(D60=0,+'App.2-CC_NewCGAAP_DepExp_2013'!O59,+'App.2-CC_NewCGAAP_DepExp_2013'!O59+((C60*0.5)/D60)) -> 1809 | G60: 1809 | H60: 0 | I60: 0 | K60: =IF(ISERROR(+I60+'App.2-CC_NewCGAAP_DepExp_2013'!O59-J60), 0, +I60+'App.2-CC_NewCGAAP_DepExp_2013'!O59-J60) -> 1809
A61: 1950 | B61: Power Operated Equipment | E61: 0 | F61: =IF(D61=0,+'App.2-CC_NewCGAAP_DepExp_2013'!O60,+'App.2-CC_NewCGAAP_DepExp_2013'!O60+((C61*0.5)/D61)) -> 0 | H61: 0 | I61: 0 | K61: =IF(ISERROR(+I61+'App.2-CC_NewCGAAP_DepExp_2013'!O60-J61), 0, +I61+'App.2-CC_NewCGAAP_DepExp_2013'!O60-J61) -> 0
A62: 1955 | B62: Communications Equipment | C62: 2148 | D62: 5 | E62: 0.2 | F62: =IF(D62=0,+'App.2-CC_NewCGAAP_DepExp_2013'!O61,+'App.2-CC_NewCGAAP_DepExp_2013'!O61+((C62*0.5)/D62)) -> 1661.478024 | G62: 1661 | H62: 0.4780238501 | I62: 429.6 | J62: 566 | K62: =IF(ISERROR(+I62+'App.2-CC_NewCGAAP_DepExp_2013'!O61-J62), 0, +I62+'App.2-CC_NewCGAAP_DepExp_2013'!O61-J62) -> 1310.278024
A63: 1955 | B63: Communication Equipment (Smart Meters) | E63: 0 | F63: =IF(D63=0,+'App.2-CC_NewCGAAP_DepExp_2013'!O62,+'App.2-CC_NewCGAAP_DepExp_2013'!O62+((C63*0.5)/D63)) -> 0 | H63: 0 | I63: 0 | K63: =IF(ISERROR(+I63+'App.2-CC_NewCGAAP_DepExp_2013'!O62-J63), 0, +I63+'App.2-CC_NewCGAAP_DepExp_2013'!O62-J63) -> 0
A64: 1960 | B64: Miscellaneous Equipment | E64: 0 | F64: =IF(D64=0,+'App.2-CC_NewCGAAP_DepExp_2013'!O63,+'App.2-CC_NewCGAAP_DepExp_2013'!O63+((C64*0.5)/D64)) -> 1210.4 | G64: 1210 | H64: 0.4 | I64: 0 | K64: =IF(ISERROR(+I64+'App.2-CC_NewCGAAP_DepExp_2013'!O63-J64), 0, +I64+'App.2-CC_NewCGAAP_DepExp_2013'!O63-J64) -> 1210.4
A65: 1970 | B65: Load Management Controls Customer Premises | E65: 0 | F65: =IF(D65=0,+'App.2-CC_NewCGAAP_DepExp_2013'!O64,+'App.2-CC_NewCGAAP_DepExp_2013'!O64+((C65*0.5)/D65)) -> 0 | H65: 0 | I65: 0 | K65: =IF(ISERROR(+I65+'App.2-CC_NewCGAAP_DepExp_2013'!O64-J65), 0, +I65+'App.2-CC_NewCGAAP_DepExp_2013'!O64-J65) -> 0
A66: 1975 | B66: Load Management Controls Utility Premises | E66: 0 | F66: =IF(D66=0,+'App.2-CC_NewCGAAP_DepExp_2013'!O65,+'App.2-CC_NewCGAAP_DepExp_2013'!O65+((C66*0.5)/D66)) -> 0 | H66: 0 | I66: 0 | K66: =IF(ISERROR(+I66+'App.2-CC_NewCGAAP_DepExp_2013'!O65-J66), 0, +I66+'App.2-CC_NewCGAAP_DepExp_2013'!O65-J66) -> 0
A67: 1980 | B67: System Supervisor Equipment | C67: 611 | D67: 3 | E67: 0.3333333333 | F67: =IF(D67=0,+'App.2-CC_NewCGAAP_DepExp_2013'!O66,+'App.2-CC_NewCGAAP_DepExp_2013'!O66+((C67*0.5)/D67)) -> 1645.036609 | G67: 1645 | H67: 0.03660914497 | I67: 203.6666667 | J67: 685 | K67: =IF(ISERROR(+I67+'App.2-CC_NewCGAAP_DepExp_2013'!O66-J67), 0, +I67+'App.2-CC_NewCGAAP_DepExp_2013'!O66-J67) -> 1061.869942
A68: 1985 | B68: Miscellaneous Fixed Assets | E68: 0 | F68: =IF(D68=0,+'App.2-CC_NewCGAAP_DepExp_2013'!O67,+'App.2-CC_NewCGAAP_DepExp_2013'!O67+((C68*0.5)/D68)) -> 0 | H68: 0 | I68: 0 | K68: =IF(ISERROR(+I68+'App.2-CC_NewCGAAP_DepExp_2013'!O67-J68), 0, +I68+'App.2-CC_NewCGAAP_DepExp_2013'!O67-J68) -> 0
A69: 1990 | B69: Other Tangible Property | E69: 0 | F69: =IF(D69=0,+'App.2-CC_NewCGAAP_DepExp_2013'!O68,+'App.2-CC_NewCGAAP_DepExp_2013'!O68+((C69*0.5)/D69)) -> 0 | H69: 0 | I69: 0 | K69: =IF(ISERROR(+I69+'App.2-CC_NewCGAAP_DepExp_2013'!O68-J69), 0, +I69+'App.2-CC_NewCGAAP_DepExp_2013'!O68-J69) -> 0
A70: 1995 | B70: Contributions & Grants | E70: 0 | F70: =IF(D70=0,+'App.2-CC_NewCGAAP_DepExp_2013'!O69,+'App.2-CC_NewCGAAP_DepExp_2013'!O69+((C70*0.5)/D70)) -> -71181.17131 | G70: -71181 | H70: -0.1713075737 | I70: 0 | K70: =IF(ISERROR(+I70+'App.2-CC_NewCGAAP_DepExp_2013'!O69-J70), 0, +I70+'App.2-CC_NewCGAAP_DepExp_2013'!O69-J70) -> -71181.17131
A71: 4245 | B71: Other Operating Revenues | C71: -114792 | D71: 40 | E71: 0.025 | F71: -1435 | G71: -1435 | H71: 0 | K71: =+G71*2 -> -2870
A72: 4245 | B72: Other Operating Revenues | C72: -34000 | D72: 3 | E72: 0.3333333333 | F72: =IF(D72=0,+'App.2-CC_NewCGAAP_DepExp_2013'!O71,+'App.2-CC_NewCGAAP_DepExp_2013'!O71+((C72*0.5)/D72)) -> -5666.666667 | G72: -5667 | H72: 0.3333333333 | K72: =+G72*2 -> -11334
B74: Total | C74: =SUM(C17:C73) -> 1049402 | F74: =SUM(F17:F73) -> 768068.1123 | G74: 768200.99 | H74: -132.8777197 | I74: 56986.31111 | J74: 53636 | K74: 735822.9345
B75: Depreciation exp. adj. from gain or loss on the retirement of assets (pool of like assets) | F75: 0
B76: Total Depreciation Expense | F76: =+F75+F74 -> 768068.1123
A78: Notes:
A79: 1 | B79: Board policy of the "half-year" rule - the applicant must ensure that additions in the year attract a half-year depreciation expense in the first year. Deviations from this standard practice must be supported in the application.
A80: 2 | B80: The applicant must provide an explanation of material variances in evidence.
A81: 3 | B81: This column refers to the calculated full year depreciation but excludes the depreciation expense on assets fully depreciated during the year. This column is used for the purpose of calculating depreciation expense in the following year on the next worksheet.
A83: General: | B83: Applicants must provide a breakdown of depreciation and amortization expense in the above format for all relevant accounts. Asset Retirement Obligations (AROs), depreciation and accretion expense should be disclosed separately consistent with the Notes of historical Audited Financial Statements.

Sheet App.2-CD_MIFRS_DepExp_2015
J1: File Number: | K1: =EBNUMBER -> 
J2: Exhibit:
J3: Tab:
J4: Schedule:
J5: Page:
J7: Date:
A9: Appendix 2-CD
A10: Depreciation and Amortization Expense
A11: Assumes the applicant made capitalization and depreciation expense accounting policy changes under CGAAP effective January 1, 2013 and will adopt IFRS for financial reporting purposes effective January 1, 2015.
E13: 2015 | F13: MIFRS
A15: Account | B15: Description | C15: Additions | D15: Years (new additions only) | E15: Depreciation Rate on New Additions | F15: 2015 Depreciation Expense 1 | G15: 2015 Depreciation Expense per Apppendix 2-BA Fixed Assets, Column J (l) | H15: Variance 2 | I15: Depreciation Expense on 2014 Full Year Additions | J15: Less Depreciation Expense on Assets Fully Depreciated during the year (o) | K15: 2015 Full Year Depreciation 3
C16: (d) | D16: (f) | E16: (g) = 1 / (f) | F16: (h)=2014 Full Year Deprecation + ((d)*0.5)/(f) | H16: (m) = (h) - (l) | I16: (n)=((d))/(f) | K16: (p) = 2014 Full Year Depreciation + (n) - (o)
A17: 1611 | B17: Computer Software (Formally known as Account 1925) | C17: 34000 | D17: 3 | E17: =IF(D17=0,0,1/D17) -> 0.3333333333 | F17: =IF(D17=0,+'App.2-CD_MIFRS_DepExp_2014'!K17,+'App.2-CD_MIFRS_DepExp_2014'!K17+((C17*0.5)/D17)) -> 34861.706 | G17: 34862 | H17: =IF(ISERROR(+F17-G17), 0, +F17-G17) -> -0.2939958592 | I17: =IF(D17=0,0,+(C17)/D17) -> 11333.33333 | J17: 7769 | K17: =IF(ISERROR(+I17+'App.2-CD_MIFRS_DepExp_2014'!K17-J17), 0, +I17+'App.2-CD_MIFRS_DepExp_2014'!K17-J17) -> 32759.37267
A18: 1612 | B18: Computer Software (Formally known as Account 1925) | F18: 0 | G18: 0 | K18: 0
A19: 1612 | B19: Land Rights (Formally known as Account 1906) | E19: 0 | F19: =IF(D19=0,+'App.2-CD_MIFRS_DepExp_2014'!K18,+'App.2-CD_MIFRS_DepExp_2014'!K18+((C19*0.5)/D19)) -> 335.1086957 | G19: 335 | H19: 0.1086956522 | I19: 0 | K19: =IF(ISERROR(+I19+'App.2-CD_MIFRS_DepExp_2014'!K18-J19), 0, +I19+'App.2-CD_MIFRS_DepExp_2014'!K18-J19) -> 335.1086957
A20: 1805 | B20: Land | E20: 0 | F20: =IF(D20=0,+'App.2-CD_MIFRS_DepExp_2014'!K19,+'App.2-CD_MIFRS_DepExp_2014'!K19+((C20*0.5)/D20)) -> 0 | H20: 0 | I20: 0 | K20: =IF(ISERROR(+I20+'App.2-CD_MIFRS_DepExp_2014'!K19-J20), 0, +I20+'App.2-CD_MIFRS_DepExp_2014'!K19-J20) -> 0
A21: 1808 | B21: Buildings | C21: 106000 | D21: 25 | E21: 0.04 | F21: =IF(D21=0,+'App.2-CD_MIFRS_DepExp_2014'!K20,+'App.2-CD_MIFRS_DepExp_2014'!K20+((C21*0.5)/D21)) -> 13565.84762 | G21: 13566 | H21: -0.1523809524 | I21: 4240 | K21: =IF(ISERROR(+I21+'App.2-CD_MIFRS_DepExp_2014'!K20-J21), 0, +I21+'App.2-CD_MIFRS_DepExp_2014'!K20-J21) -> 15685.84762
A22: 1808 | B22: Buildings | E22: 0 | F22: =IF(D22=0,+'App.2-CD_MIFRS_DepExp_2014'!K21,+'App.2-CD_MIFRS_DepExp_2014'!K21+((C22*0.5)/D22)) -> 4447.191605 | G22: 4447 | H22: 0.1916047788 | I22: 0 | K22: =IF(ISERROR(+I22+'App.2-CD_MIFRS_DepExp_2014'!K21-J22), 0, +I22+'App.2-CD_MIFRS_DepExp_2014'!K21-J22) -> 4447.191605
A23: 1810 | B23: Leasehold Improvements | E23: 0 | F23: =IF(D23=0,+'App.2-CD_MIFRS_DepExp_2014'!K22,+'App.2-CD_MIFRS_DepExp_2014'!K22+((C23*0.5)/D23)) -> 0 | H23: =IF(ISERROR(+F23-G23), 0, +F23-G23) -> 0 | I23: 0 | K23: =IF(ISERROR(+I23+'App.2-CD_MIFRS_DepExp_2014'!K22-J23), 0, +I23+'App.2-CD_MIFRS_DepExp_2014'!K22-J23) -> 0
A24: 1815 | B24: Transformer Station Equipment >50 kV | E24: 0 | F24: =IF(D24=0,+'App.2-CD_MIFRS_DepExp_2014'!K23,+'App.2-CD_MIFRS_DepExp_2014'!K23+((C24*0.5)/D24)) -> 0 | H24: =IF(ISERROR(+F24-G24), 0, +F24-G24) -> 0 | I24: 0 | K24: =IF(ISERROR(+I24+'App.2-CD_MIFRS_DepExp_2014'!K23-J24), 0, +I24+'App.2-CD_MIFRS_DepExp_2014'!K23-J24) -> 0
A25: 1820 | B25: Distribution Station Equipment <50 kV | C25: 139500 | D25: 30 | E25: 0.03333333333 | F25: =IF(D25=0,+'App.2-CD_MIFRS_DepExp_2014'!K24,+'App.2-CD_MIFRS_DepExp_2014'!K24+((C25*0.5)/D25)) -> 32084.86508 | G25: 32085 | H25: -0.1349209575 | I25: 4650 | K25: =IF(ISERROR(+I25+'App.2-CD_MIFRS_DepExp_2014'!K24-J25), 0, +I25+'App.2-CD_MIFRS_DepExp_2014'!K24-J25) -> 34409.86508
A26: 1820 | B26: Distribution Station Equipment <50 kV | E26: 0 | F26: =IF(D26=0,+'App.2-CD_MIFRS_DepExp_2014'!K25,+'App.2-CD_MIFRS_DepExp_2014'!K25+((C26*0.5)/D26)) -> 13465.45 | G26: 13465 | H26: 0.45 | I26: 0 | K26: =IF(ISERROR(+I26+'App.2-CD_MIFRS_DepExp_2014'!K25-J26), 0, +I26+'App.2-CD_MIFRS_DepExp_2014'!K25-J26) -> 13465.45
A27: 1820 | B27: Distribution Station Equipment <50 kV | E27: 0 | F27: =IF(D27=0,+'App.2-CD_MIFRS_DepExp_2014'!K26,+'App.2-CD_MIFRS_DepExp_2014'!K26+((C27*0.5)/D27)) -> 19652.26667 | G27: 19652 | H27: 0.2666666667 | I27: 0 | K27: =IF(ISERROR(+I27+'App.2-CD_MIFRS_DepExp_2014'!K26-J27), 0, +I27+'App.2-CD_MIFRS_DepExp_2014'!K26-J27) -> 19652.26667
A28: 1825 | B28: Storage Battery Equipment | E28: 0 | F28: =IF(D28=0,+'App.2-CD_MIFRS_DepExp_2014'!K28,+'App.2-CD_MIFRS_DepExp_2014'!K28+((C28*0.5)/D28)) -> 0 | H28: 0 | I28: 0 | K28: =IF(ISERROR(+I28+'App.2-CD_MIFRS_DepExp_2014'!K28-J28), 0, +I28+'App.2-CD_MIFRS_DepExp_2014'!K28-J28) -> 0
A29: 1830 | B29: Poles, Towers & Fixtures | C29: 154820 | D29: 45 | E29: 0.02222222222 | F29: =IF(D29=0,+'App.2-CD_MIFRS_DepExp_2014'!K29,+'App.2-CD_MIFRS_DepExp_2014'!K29+((C29*0.5)/D29)) -> 163244.4003 | G29: =164905.01-1661 -> 163244.01 | H29: 0.3903304534 | I29: 3440.444444 | J29: =10771-1661 -> 9110 | K29: =IF(ISERROR(+I29+'App.2-CD_MIFRS_DepExp_2014'!K29-J29), 0, +I29+'App.2-CD_MIFRS_DepExp_2014'!K29-J29) -> 155854.6226
A30: 1830 | B30: Poles, Towers & Fixtures | E30: 0 | F30: =IF(D30=0,+'App.2-CD_MIFRS_DepExp_2014'!K30,+'App.2-CD_MIFRS_DepExp_2014'!K30+((C30*0.5)/D30)) -> 1660.666667 | G30: 1661 | H30: -0.3333333333 | I30: 0 | K30: =IF(ISERROR(+I30+'App.2-CD_MIFRS_DepExp_2014'!K30-J30), 0, +I30+'App.2-CD_MIFRS_DepExp_2014'!K30-J30) -> 1660.666667
A31: 1835 | B31: Overhead Conductors & Devices | E31: 0 | F31: =IF(D31=0,+'App.2-CD_MIFRS_DepExp_2014'!K31,+'App.2-CD_MIFRS_DepExp_2014'!K31+((C31*0.5)/D31)) -> 110116.074 | G31: 110116 | H31: 0.07395974422 | I31: 0 | K31: =IF(ISERROR(+I31+'App.2-CD_MIFRS_DepExp_2014'!K31-J31), 0, +I31+'App.2-CD_MIFRS_DepExp_2014'!K31-J31) -> 110116.074
A32: 1835 | B32: Overhead Conductors & Devices | C32: 189100 | D32: 60 | E32: 0.01666666667 | F32: =IF(D32=0,+'App.2-CD_MIFRS_DepExp_2014'!K32,+'App.2-CD_MIFRS_DepExp_2014'!K32+((C32*0.5)/D32)) -> 10265.0555 | G32: 10265 | H32: 0.0555 | I32: 3151.666667 | K32: =IF(ISERROR(+I32+'App.2-CD_MIFRS_DepExp_2014'!K32-J32), 0, +I32+'App.2-CD_MIFRS_DepExp_2014'!K32-J32) -> 11840.88883
A33: 1835 | B33: Overhead Conductors & Devices | C33: 18910 | D33: 45 | E33: 0.02222222222 | F33: =IF(D33=0,+'App.2-CD_MIFRS_DepExp_2014'!K33,+'App.2-CD_MIFRS_DepExp_2014'!K33+((C33*0.5)/D33)) -> 1187.772444 | G33: 1188 | H33: -0.2275555556 | I33: 420.2222222 | K33: =IF(ISERROR(+I33+'App.2-CD_MIFRS_DepExp_2014'!K33-J33), 0, +I33+'App.2-CD_MIFRS_DepExp_2014'!K33-J33) -> 1397.883556
A34: 1835 | B34: Overhead Conductors & Devices | C34: 1990 | D34: 40 | E34: 0.025 | F34: =IF(D34=0,+'App.2-CD_MIFRS_DepExp_2014'!K34,+'App.2-CD_MIFRS_DepExp_2014'!K34+((C34*0.5)/D34)) -> 121.96325 | G34: 122 | H34: -0.03675 | I34: 49.75 | K34: =IF(ISERROR(+I34+'App.2-CD_MIFRS_DepExp_2014'!K34-J34), 0, +I34+'App.2-CD_MIFRS_DepExp_2014'!K34-J34) -> 146.83825
A35: 1840 | B35: Underground Conduit | C35: 73000 | D35: 50 | E35: 0.02 | F35: =IF(D35=0,+'App.2-CD_MIFRS_DepExp_2014'!K35,+'App.2-CD_MIFRS_DepExp_2014'!K35+((C35*0.5)/D35)) -> 79241.06767 | G35: 79241 | H35: 0.06767131077 | I35: 1460 | J35: 3189 | K35: =IF(ISERROR(+I35+'App.2-CD_MIFRS_DepExp_2014'!K35-J35), 0, +I35+'App.2-CD_MIFRS_DepExp_2014'!K35-J35) -> 76782.06767
A36: 1840 | B36: Underground Conduit | E36: 0 | F36: =IF(D36=0,+'App.2-CD_MIFRS_DepExp_2014'!K36,+'App.2-CD_MIFRS_DepExp_2014'!K36+((C36*0.5)/D36)) -> 1138.305 | G36: 1138 | H36: 0.305 | I36: 0 | K36: =IF(ISERROR(+I36+'App.2-CD_MIFRS_DepExp_2014'!K36-J36), 0, +I36+'App.2-CD_MIFRS_DepExp_2014'!K36-J36) -> 1138.305
A37: 1845 | B37: Underground Conductors & Devices | E37: 0 | F37: =IF(D37=0,+'App.2-CD_MIFRS_DepExp_2014'!K37,+'App.2-CD_MIFRS_DepExp_2014'!K37+((C37*0.5)/D37)) -> 24229.3207 | G37: 24229 | H37: 0.3207001351 | I37: 0 | J37: 2044 | K37: =IF(ISERROR(+I37+'App.2-CD_MIFRS_DepExp_2014'!K37-J37), 0, +I37+'App.2-CD_MIFRS_DepExp_2014'!K37-J37) -> 22185.3207
A38: 1845 | B38: Underground Conductors & Devices | C38: 243650 | D38: 40 | E38: 0.025 | F38: =IF(D38=0,+'App.2-CD_MIFRS_DepExp_2014'!K38,+'App.2-CD_MIFRS_DepExp_2014'!K38+((C38*0.5)/D38)) -> 3892.125 | G38: 3892 | H38: 0.125 | I38: 6091.25 | K38: =IF(ISERROR(+I38+'App.2-CD_MIFRS_DepExp_2014'!K38-J38), 0, +I38+'App.2-CD_MIFRS_DepExp_2014'!K38-J38) -> 6937.75
A39: 1850 | B39: Line Transformers | E39: 0 | F39: =IF(D39=0,+'App.2-CD_MIFRS_DepExp_2014'!K39,+'App.2-CD_MIFRS_DepExp_2014'!K39+((C39*0.5)/D39)) -> 81377.3023 | G39: 81377 | H39: 0.3022988331 | I39: 0 | J39: 2582 | K39: =IF(ISERROR(+I39+'App.2-CD_MIFRS_DepExp_2014'!K39-J39), 0, +I39+'App.2-CD_MIFRS_DepExp_2014'!K39-J39) -> 78795.3023
A40: 1850 | B40: Line Transformers | C40: 187000 | D40: 40 | E40: 0.025 | F40: =IF(D40=0,+'App.2-CD_MIFRS_DepExp_2014'!K40,+'App.2-CD_MIFRS_DepExp_2014'!K40+((C40*0.5)/D40)) -> 8137.525 | G40: 8138 | H40: -0.475 | I40: 4675 | K40: =IF(ISERROR(+I40+'App.2-CD_MIFRS_DepExp_2014'!K40-J40), 0, +I40+'App.2-CD_MIFRS_DepExp_2014'!K40-J40) -> 10475.025
A41: 1855 | B41: Services (Overhead & Underground) | E41: 0 | F41: =IF(D41=0,+'App.2-CD_MIFRS_DepExp_2014'!K41,+'App.2-CD_MIFRS_DepExp_2014'!K41+((C41*0.5)/D41)) -> 42483.32414 | G41: 42483 | H41: 0.3241386228 | I41: 0 | J41: 6088 | K41: =IF(ISERROR(+I41+'App.2-CD_MIFRS_DepExp_2014'!K41-J41), 0, +I41+'App.2-CD_MIFRS_DepExp_2014'!K41-J41) -> 36395.32414
A42: 1855 | B42: Services (Overhead & Underground) | C42: 85850 | D42: 60 | E42: 0.01666666667 | F42: =IF(D42=0,+'App.2-CD_MIFRS_DepExp_2014'!K42,+'App.2-CD_MIFRS_DepExp_2014'!K42+((C42*0.5)/D42)) -> 1151.7 | G42: 1152 | H42: -0.3 | I42: 1430.833333 | K42: =IF(ISERROR(+I42+'App.2-CD_MIFRS_DepExp_2014'!K42-J42), 0, +I42+'App.2-CD_MIFRS_DepExp_2014'!K42-J42) -> 1867.116667
A43: 1855 | B43: Services (Overhead & Underground) | C43: 15150 | D43: 40 | E43: 0.025 | F43: =IF(D43=0,+'App.2-CD_MIFRS_DepExp_2014'!K43,+'App.2-CD_MIFRS_DepExp_2014'!K43+((C43*0.5)/D43)) -> 4437.825 | G43: 4438 | H43: -0.175 | I43: 378.75 | K43: =IF(ISERROR(+I43+'App.2-CD_MIFRS_DepExp_2014'!K43-J43), 0, +I43+'App.2-CD_MIFRS_DepExp_2014'!K43-J43) -> 4627.2
A44: 1860 | B44: Meters | C44: 10000 | E44: 0 | F44: =IF(D44=0,+'App.2-CD_MIFRS_DepExp_2014'!K44,+'App.2-CD_MIFRS_DepExp_2014'!K44+((C44*0.5)/D44)) -> 74.12 | G44: 74 | H44: 0.12 | I44: 0 | K44: =IF(ISERROR(+I44+'App.2-CD_MIFRS_DepExp_2014'!K44-J44), 0, +I44+'App.2-CD_MIFRS_DepExp_2014'!K44-J44) -> 74.12
A45: 1860 | B45: Meters | E45: 0 | F45: =IF(D45=0,+'App.2-CD_MIFRS_DepExp_2014'!K45,+'App.2-CD_MIFRS_DepExp_2014'!K45+((C45*0.5)/D45)) -> 2783.250532 | G45: 2783 | H45: 0.2505322924 | I45: 0 | K45: =IF(ISERROR(+I45+'App.2-CD_MIFRS_DepExp_2014'!K45-J45), 0, +I45+'App.2-CD_MIFRS_DepExp_2014'!K45-J45) -> 2783.250532
A46: 1860 | B46: Meters (Smart Meters) | C46: 65000 | D46: 15 | E46: 0.06666666667 | F46: =IF(D46=0,+'App.2-CD_MIFRS_DepExp_2014'!K46,+'App.2-CD_MIFRS_DepExp_2014'!K46+((C46*0.5)/D46)) -> 4293.933333 | G46: 4294 | H46: -0.06666666667 | I46: 4333.333333 | K46: =IF(ISERROR(+I46+'App.2-CD_MIFRS_DepExp_2014'!K46-J46), 0, +I46+'App.2-CD_MIFRS_DepExp_2014'!K46-J46) -> 6460.6
A47: 1860 | B47: Meters (Smart Meters) | K47: 102942
A48: 1905 | B48: Land | E48: 0 | H48: 0 | I48: 0 | K48: =IF(ISERROR(+I48+'App.2-CD_MIFRS_DepExp_2014'!K47-J48), 0, +I48+'App.2-CD_MIFRS_DepExp_2014'!K47-J48) -> 0
A49: 1908 | B49: Buildings & Fixtures | E49: 0 | F49: =IF(D49=0,+'App.2-CD_MIFRS_DepExp_2014'!K48,+'App.2-CD_MIFRS_DepExp_2014'!K48+((C49*0.5)/D49)) -> 0 | H49: 0 | I49: 0 | K49: =IF(ISERROR(+I49+'App.2-CD_MIFRS_DepExp_2014'!K48-J49), 0, +I49+'App.2-CD_MIFRS_DepExp_2014'!K48-J49) -> 0
A50: 1910 | B50: Leasehold Improvements | E50: 0 | F50: =IF(D50=0,+'App.2-CD_MIFRS_DepExp_2014'!K49,+'App.2-CD_MIFRS_DepExp_2014'!K49+((C50*0.5)/D50)) -> 0 | H50: 0 | I50: 0 | K50: =IF(ISERROR(+I50+'App.2-CD_MIFRS_DepExp_2014'!K49-J50), 0, +I50+'App.2-CD_MIFRS_DepExp_2014'!K49-J50) -> 0
A51: 1915 | B51: Office Furniture & Equipment (10 years) | C51: 5000 | D51: 10 | E51: 0.1 | F51: =IF(D51=0,+'App.2-CD_MIFRS_DepExp_2014'!K50,+'App.2-CD_MIFRS_DepExp_2014'!K50+((C51*0.5)/D51)) -> 1567.520794 | G51: 1568 | H51: -0.4792060491 | I51: 500 | K51: =IF(ISERROR(+I51+'App.2-CD_MIFRS_DepExp_2014'!K50-J51), 0, +I51+'App.2-CD_MIFRS_DepExp_2014'!K50-J51) -> 1817.520794
A52: 1915 | B52: Office Furniture & Equipment (5 years) | E52: 0 | F52: =IF(D52=0,+'App.2-CD_MIFRS_DepExp_2014'!K51,+'App.2-CD_MIFRS_DepExp_2014'!K51+((C52*0.5)/D52)) -> 0 | H52: 0 | I52: 0 | K52: =IF(ISERROR(+I52+'App.2-CD_MIFRS_DepExp_2014'!K51-J52), 0, +I52+'App.2-CD_MIFRS_DepExp_2014'!K51-J52) -> 0
A53: 1920 | B53: Computer Equipment - Hardware | E53: 0 | F53: =IF(D53=0,+'App.2-CD_MIFRS_DepExp_2014'!K52,+'App.2-CD_MIFRS_DepExp_2014'!K52+((C53*0.5)/D53)) -> 0 | H53: 0 | I53: 0 | K53: =IF(ISERROR(+I53+'App.2-CD_MIFRS_DepExp_2014'!K52-J53), 0, +I53+'App.2-CD_MIFRS_DepExp_2014'!K52-J53) -> 0
A54: 1920 | B54: Computer Equip.-Hardware(Post Mar. 22/04) | E54: 0 | F54: =IF(D54=0,+'App.2-CD_MIFRS_DepExp_2014'!K53,+'App.2-CD_MIFRS_DepExp_2014'!K53+((C54*0.5)/D54)) -> 0 | H54: 0 | I54: 0 | K54: =IF(ISERROR(+I54+'App.2-CD_MIFRS_DepExp_2014'!K53-J54), 0, +I54+'App.2-CD_MIFRS_DepExp_2014'!K53-J54) -> 0
A55: 1920 | B55: Computer Equip.-Hardware(Post Mar. 19/07) | C55: 10000 | D55: 3 | E55: 0.3333333333 | F55: =IF(D55=0,+'App.2-CD_MIFRS_DepExp_2014'!K54,+'App.2-CD_MIFRS_DepExp_2014'!K54+((C55*0.5)/D55)) -> 15445.65201 | G55: 15446 | H55: -0.347985348 | I55: 3333.333333 | J55: 5573 | K55: =IF(ISERROR(+I55+'App.2-CD_MIFRS_DepExp_2014'!K54-J55), 0, +I55+'App.2-CD_MIFRS_DepExp_2014'!K54-J55) -> 11539.31868
A56: 1920 | B56: Computer Equip.-Hardware(Post Mar. 19/07) | K56: 890
A57: 1930 | B57: Transportation Equipment | C57: 61000 | D57: 8 | E57: 0.125 | F57: =IF(D57=0,+'App.2-CD_MIFRS_DepExp_2014'!K55,+'App.2-CD_MIFRS_DepExp_2014'!K55+((C57*0.5)/D57)) -> 53978.25 | G57: 53978 | H57: 0.25 | I57: 7625 | K57: =IF(ISERROR(+I57+'App.2-CD_MIFRS_DepExp_2014'!K55-J57), 0, +I57+'App.2-CD_MIFRS_DepExp_2014'!K55-J57) -> 57790.75
A58: 1930 | B58: Transportation Equipment | E58: 0 | F58: =IF(D58=0,+'App.2-CD_MIFRS_DepExp_2014'!K56,+'App.2-CD_MIFRS_DepExp_2014'!K56+((C58*0.5)/D58)) -> 16830.4 | G58: 16830 | H58: 0.4 | I58: 0 | K58: =IF(ISERROR(+I58+'App.2-CD_MIFRS_DepExp_2014'!K56-J58), 0, +I58+'App.2-CD_MIFRS_DepExp_2014'!K56-J58) -> 16830.4
A59: 1930 | B59: Transportation Equipment | E59: 0 | F59: =IF(D59=0,+'App.2-CD_MIFRS_DepExp_2014'!K57,+'App.2-CD_MIFRS_DepExp_2014'!K57+((C59*0.5)/D59)) -> 88488.74392 | G59: 88489 | H59: -0.2560778264 | I59: 0 | J59: 25867 | K59: =IF(ISERROR(+I59+'App.2-CD_MIFRS_DepExp_2014'!K57-J59), 0, +I59+'App.2-CD_MIFRS_DepExp_2014'!K57-J59) -> 62621.74392
A60: 1935 | B60: Stores Equipment | E60: 0 | F60: =IF(D60=0,+'App.2-CD_MIFRS_DepExp_2014'!K58,+'App.2-CD_MIFRS_DepExp_2014'!K58+((C60*0.5)/D60)) -> 0 | H60: 0 | I60: 0 | K60: =IF(ISERROR(+I60+'App.2-CD_MIFRS_DepExp_2014'!K58-J60), 0, +I60+'App.2-CD_MIFRS_DepExp_2014'!K58-J60) -> 0
A61: 1940 | B61: Tools, Shop & Garage Equipment | C61: 10000 | D61: 10 | E61: 0.1 | F61: =IF(D61=0,+'App.2-CD_MIFRS_DepExp_2014'!K59,+'App.2-CD_MIFRS_DepExp_2014'!K59+((C61*0.5)/D61)) -> 8918.616285 | G61: 8919 | H61: -0.383715489 | I61: 1000 | J61: 1600 | K61: =IF(ISERROR(+I61+'App.2-CD_MIFRS_DepExp_2014'!K59-J61), 0, +I61+'App.2-CD_MIFRS_DepExp_2014'!K59-J61) -> 7818.616285
A62: 1945 | B62: Measurement & Testing Equipment | E62: 0 | F62: =IF(D62=0,+'App.2-CD_MIFRS_DepExp_2014'!K60,+'App.2-CD_MIFRS_DepExp_2014'!K60+((C62*0.5)/D62)) -> 1809 | G62: 1809 | H62: 0 | I62: 0 | K62: =IF(ISERROR(+I62+'App.2-CD_MIFRS_DepExp_2014'!K60-J62), 0, +I62+'App.2-CD_MIFRS_DepExp_2014'!K60-J62) -> 1809
A63: 1950 | B63: Power Operated Equipment | E63: 0 | F63: =IF(D63=0,+'App.2-CD_MIFRS_DepExp_2014'!K61,+'App.2-CD_MIFRS_DepExp_2014'!K61+((C63*0.5)/D63)) -> 0 | H63: 0 | I63: 0 | K63: =IF(ISERROR(+I63+'App.2-CD_MIFRS_DepExp_2014'!K61-J63), 0, +I63+'App.2-CD_MIFRS_DepExp_2014'!K61-J63) -> 0
A64: 1955 | B64: Communications Equipment | C64: 1200 | D64: 5 | E64: 0.2 | F64: =IF(D64=0,+'App.2-CD_MIFRS_DepExp_2014'!K62,+'App.2-CD_MIFRS_DepExp_2014'!K62+((C64*0.5)/D64)) -> 1430.278024 | G64: 1430 | H64: 0.2780238501 | I64: 240 | J64: 566 | K64: =IF(ISERROR(+I64+'App.2-CD_MIFRS_DepExp_2014'!K62-J64), 0, +I64+'App.2-CD_MIFRS_DepExp_2014'!K62-J64) -> 984.2780239
A65: 1955 | B65: Communication Equipment (Smart Meters) | E65: 0 | F65: =IF(D65=0,+'App.2-CD_MIFRS_DepExp_2014'!K63,+'App.2-CD_MIFRS_DepExp_2014'!K63+((C65*0.5)/D65)) -> 0 | H65: 0 | I65: 0 | K65: =IF(ISERROR(+I65+'App.2-CD_MIFRS_DepExp_2014'!K63-J65), 0, +I65+'App.2-CD_MIFRS_DepExp_2014'!K63-J65) -> 0
A66: 1960 | B66: Miscellaneous Equipment | E66: 0 | F66: =IF(D66=0,+'App.2-CD_MIFRS_DepExp_2014'!K64,+'App.2-CD_MIFRS_DepExp_2014'!K64+((C66*0.5)/D66)) -> 1210.4 | G66: 1210 | H66: 0.4 | I66: 0 | K66: =IF(ISERROR(+I66+'App.2-CD_MIFRS_DepExp_2014'!K64-J66), 0, +I66+'App.2-CD_MIFRS_DepExp_2014'!K64-J66) -> 1210.4
A67: 1970 | B67: Load Management Controls Customer Premises | E67: 0 | F67: =IF(D67=0,+'App.2-CD_MIFRS_DepExp_2014'!K65,+'App.2-CD_MIFRS_DepExp_2014'!K65+((C67*0.5)/D67)) -> 0 | H67: 0 | I67: 0 | K67: =IF(ISERROR(+I67+'App.2-CD_MIFRS_DepExp_2014'!K65-J67), 0, +I67+'App.2-CD_MIFRS_DepExp_2014'!K65-J67) -> 0
A68: 1975 | B68: Load Management Controls Utility Premises | E68: 0 | F68: =IF(D68=0,+'App.2-CD_MIFRS_DepExp_2014'!K66,+'App.2-CD_MIFRS_DepExp_2014'!K66+((C68*0.5)/D68)) -> 0 | H68: 0 | I68: 0 | K68: =IF(ISERROR(+I68+'App.2-CD_MIFRS_DepExp_2014'!K66-J68), 0, +I68+'App.2-CD_MIFRS_DepExp_2014'!K66-J68) -> 0
A69: 1980 | B69: System Supervisor Equipment | C69: 22500 | D69: 3 | E69: 0.3333333333 | F69: =IF(D69=0,+'App.2-CD_MIFRS_DepExp_2014'!K67,+'App.2-CD_MIFRS_DepExp_2014'!K67+((C69*0.5)/D69)) -> 4811.869942 | G69: 4812 | H69: -0.1300575217 | I69: 7500 | K69: =IF(ISERROR(+I69+'App.2-CD_MIFRS_DepExp_2014'!K67-J69), 0, +I69+'App.2-CD_MIFRS_DepExp_2014'!K67-J69) -> 8561.869942
A70: 1985 | B70: Miscellaneous Fixed Assets | E70: 0 | F70: =IF(D70=0,+'App.2-CD_MIFRS_DepExp_2014'!K68,+'App.2-CD_MIFRS_DepExp_2014'!K68+((C70*0.5)/D70)) -> 0 | H70: 0 | I70: 0 | K70: =IF(ISERROR(+I70+'App.2-CD_MIFRS_DepExp_2014'!K68-J70), 0, +I70+'App.2-CD_MIFRS_DepExp_2014'!K68-J70) -> 0
A71: 1990 | B71: Other Tangible Property | E71: 0 | F71: =IF(D71=0,+'App.2-CD_MIFRS_DepExp_2014'!K69,+'App.2-CD_MIFRS_DepExp_2014'!K69+((C71*0.5)/D71)) -> 0 | H71: 0 | I71: 0 | K71: =IF(ISERROR(+I71+'App.2-CD_MIFRS_DepExp_2014'!K69-J71), 0, +I71+'App.2-CD_MIFRS_DepExp_2014'!K69-J71) -> 0
A72: 1995 | B72: Contributions & Grants | E72: 0 | F72: =IF(D72=0,+'App.2-CD_MIFRS_DepExp_2014'!K70,+'App.2-CD_MIFRS_DepExp_2014'!K70+((C72*0.5)/D72)) -> -71181.17131 | G72: -71181 | H72: -0.1713075737 | I72: 0 | K72: =IF(ISERROR(+I72+'App.2-CD_MIFRS_DepExp_2014'!K70-J72), 0, +I72+'App.2-CD_MIFRS_DepExp_2014'!K70-J72) -> -71181.17131
A73: 4245 | B73: Other Operating Revenues | C73: -324000 | D73: 40 | E73: =IF(D73=0,0,1/D73) -> 0.025 | F73: =IF(D73=0,+'App.2-CD_MIFRS_DepExp_2014'!K71,+'App.2-CD_MIFRS_DepExp_2014'!K71+((C73*0.5)/D73)) -> -6920 | G73: -6920 | H73: =IF(ISERROR(+F73-G73), 0, +F73-G73) -> 0 | I73: =IF(D73=0,0,+(C73)/D73) -> -8100 | K73: =IF(ISERROR(+I73+'App.2-CD_MIFRS_DepExp_2014'!K71-J73), 0, +I73+'App.2-CD_MIFRS_DepExp_2014'!K71-J73) -> -10970
F74: =IF(D74=0,+'App.2-CD_MIFRS_DepExp_2014'!K72,+'App.2-CD_MIFRS_DepExp_2014'!K72+((C74*0.5)/D74)) -> -11334 | G74: -11334 | K74: =IF(ISERROR(+I74+'App.2-CD_MIFRS_DepExp_2014'!K72-J74), 0, +I74+'App.2-CD_MIFRS_DepExp_2014'!K72-J74) -> -11334
B75: Total | C75: =SUM(C17:C74) -> 1109670 | F75: =SUM(F17:F74) -> 763303.7262 | G75: 763303.01 | H75: 0.716169207 | I75: 57752.91667 | J75: 64388 | K75: 831624.1845
B76: Depreciation exp. adj. from gain or loss on the retirement of assets (pool of like assets) | F76: 0
B77: Total Depreciation Expense | F77: =+F76+F75 -> 763303.7262
A79: Notes:
A80: 1 | B80: Board policy of the "half-year" rule - the applicant must ensure that additions in the year attract a half-year depreciation expense in the first year. Deviations from this standard practice must be supported in the application.
A81: 2 | B81: The applicant must provide an explanation of material variances in evidence.
A82: 3 | B82: This column refers to the calculated full year depreciation but excludes the depreciation expense on assets fully depreciated during the year. This column is used for the purpose of calculating depreciation expense in the following year on the next worksheet.
A84: General: | B84: Applicants must provide a breakdown of depreciation and amortization expense in the above format for all relevant accounts. Asset Retirement Obligations (AROs), depreciation and accretion expense should be disclosed separately consistent with the Notes of historical Audited Financial Statements.

Sheet App.2-CE_MIFRS_DepExp_2016
G1: File Number: | H1: =EBNUMBER -> 
G2: Exhibit:
G3: Tab:
G4: Schedule:
G5: Page:
G7: Date:
A9: Appendix 2-CE
A10: Depreciation and Amortization Expense
A11: Assumes the applicant made capitalization and depreciation expense accounting policy changes under CGAAP effective January 1, 2013 and will adopt IFRS for financial reporting purposes effective January 1, 2015.
C13: 2016 | D13: MIFRS
A15: Account | B15: Description | C15: Additions | D15: Years (new additions only) | E15: Depreciation Rate on New Additions | F15: 2016 Depreciation Expense 1 | G15: 2016 Depreciation Expense per Appendix 2-BA Fixed Assets, Column J (l) | H15: Variance 2
C16: (d) | D16: (f) | E16: (g) = 1 / (f) | F16: (h)=2015 Full Year Depreciation + ((d)*0.5)/(f) | H16: (m) = (h) - (l)
A17: 1611 | B17: Computer Software (Formally known as Account 1925) | C17: 19000 | D17: 3 | E17: =IF(D17=0,0,1/D17) -> 0.3333333333 | F17: =IF(D17=0,'App.2-CD_MIFRS_DepExp_2015'!K17,+'App.2-CD_MIFRS_DepExp_2015'!K17+((C17*0.5)/D17)) -> 35926.03934 | G17: 35925.57 | H17: =IF(ISERROR(+F17-G17), 0, +F17-G17) -> 0.4693374741
A18: 1611 | B18: Computer Software (Formally known as Account 1925) | H18: 0
A19: 1612 | B19: Land Rights (Formally known as Account 1906) | E19: 0 | F19: =IF(D19=0,'App.2-CD_MIFRS_DepExp_2015'!K19,+'App.2-CD_MIFRS_DepExp_2015'!K19+((C19*0.5)/D19)) -> 335.1086957 | G19: 335 | H19: 0.1086956522
A20: 1805 | B20: Land | E20: 0 | F20: =IF(D20=0,'App.2-CD_MIFRS_DepExp_2015'!K20,+'App.2-CD_MIFRS_DepExp_2015'!K20+((C20*0.5)/D20)) -> 0 | H20: 0
A21: 1808 | B21: Buildings | C21: 38000 | D21: 25 | E21: 0.04 | F21: =IF(D21=0,'App.2-CD_MIFRS_DepExp_2015'!K21,+'App.2-CD_MIFRS_DepExp_2015'!K21+((C21*0.5)/D21)) -> 16445.84762 | G21: 16446 | H21: -0.1523809524
A22: 1808 | B22: Buildings | E22: 0 | F22: =IF(D22=0,'App.2-CD_MIFRS_DepExp_2015'!K22,+'App.2-CD_MIFRS_DepExp_2015'!K22+((C22*0.5)/D22)) -> 4447.191605 | G22: 4447 | H22: 0.1916047788
A23: 1810 | B23: Leasehold Improvements | E23: 0 | F23: =IF(D23=0,'App.2-CD_MIFRS_DepExp_2015'!K23,+'App.2-CD_MIFRS_DepExp_2015'!K23+((C23*0.5)/D23)) -> 0 | H23: 0
A24: 1815 | B24: Transformer Station Equipment >50 kV | E24: 0 | F24: =IF(D24=0,'App.2-CD_MIFRS_DepExp_2015'!K24,+'App.2-CD_MIFRS_DepExp_2015'!K24+((C24*0.5)/D24)) -> 0 | H24: 0
A25: 1820 | B25: Distribution Station Equipment <50 kV | C25: 193500 | D25: 30 | E25: 0.03333333333 | F25: =IF(D25=0,'App.2-CD_MIFRS_DepExp_2015'!K25,+'App.2-CD_MIFRS_DepExp_2015'!K25+((C25*0.5)/D25)) -> 37634.86508 | G25: 37635 | H25: -0.1349209575
A26: 1820 | B26: Distribution Station Equipment <50 kV | E26: 0 | F26: =IF(D26=0,'App.2-CD_MIFRS_DepExp_2015'!K26,+'App.2-CD_MIFRS_DepExp_2015'!K26+((C26*0.5)/D26)) -> 13465.45 | G26: 13465 | H26: 0.45
A27: 1820 | B27: Distribution Station Equipment <50 kV | E27: 0 | F27: =IF(D27=0,'App.2-CD_MIFRS_DepExp_2015'!K27,+'App.2-CD_MIFRS_DepExp_2015'!K27+((C27*0.5)/D27)) -> 19652.26667 | G27: 19652 | H27: 0.2666666667
A28: 1825 | B28: Storage Battery Equipment | E28: 0 | F28: =IF(D28=0,'App.2-CD_MIFRS_DepExp_2015'!K28,+'App.2-CD_MIFRS_DepExp_2015'!K28+((C28*0.5)/D28)) -> 0 | H28: 0
A29: 1830 | B29: Poles, Towers & Fixtures | C29: 137700 | D29: 45 | E29: 0.02222222222 | F29: =IF(D29=0,'App.2-CD_MIFRS_DepExp_2015'!K29,+'App.2-CD_MIFRS_DepExp_2015'!K29+((C29*0.5)/D29)) -> 157384.6226 | G29: 157385 | H29: -0.3774473244
A30: 1830 | B30: Poles, Towers & Fixtures | E30: 0 | F30: =IF(D30=0,'App.2-CD_MIFRS_DepExp_2015'!K30,+'App.2-CD_MIFRS_DepExp_2015'!K30+((C30*0.5)/D30)) -> 1660.666667 | G30: 1661 | H30: -0.3333333333
A31: 1835 | B31: Overhead Conductors & Devices | E31: 0 | F31: =IF(D31=0,'App.2-CD_MIFRS_DepExp_2015'!K31,+'App.2-CD_MIFRS_DepExp_2015'!K31+((C31*0.5)/D31)) -> 110116.074 | G31: 110116 | H31: 0.07395974422
A32: 1835 | B32: Overhead Conductors & Devices | C32: 172080 | D32: 60 | E32: 0.01666666667 | F32: =IF(D32=0,'App.2-CD_MIFRS_DepExp_2015'!K32,+'App.2-CD_MIFRS_DepExp_2015'!K32+((C32*0.5)/D32)) -> 13274.88883 | G32: 13275 | H32: -0.1111666667
A33: 1835 | B33: Overhead Conductors & Devices | C33: 17208 | D33: 45 | E33: 0.02222222222 | F33: =IF(D33=0,'App.2-CD_MIFRS_DepExp_2015'!K33,+'App.2-CD_MIFRS_DepExp_2015'!K33+((C33*0.5)/D33)) -> 1589.083556 | G33: 1589 | H33: 0.08355555556
A34: 1835 | B34: Overhead Conductors & Devices | C34: 1912 | D34: 40 | E34: 0.025 | F34: =IF(D34=0,'App.2-CD_MIFRS_DepExp_2015'!K34,+'App.2-CD_MIFRS_DepExp_2015'!K34+((C34*0.5)/D34)) -> 170.73825 | G34: 171 | H34: -0.26175
A35: 1840 | B35: Underground Conduit | E35: 0 | F35: =IF(D35=0,'App.2-CD_MIFRS_DepExp_2015'!K35,+'App.2-CD_MIFRS_DepExp_2015'!K35+((C35*0.5)/D35)) -> 76782.06767 | G35: 76782 | H35: 0.06767131077
A36: 1840 | B36: Underground Conduit | E36: 0 | F36: =IF(D36=0,'App.2-CD_MIFRS_DepExp_2015'!K36,+'App.2-CD_MIFRS_DepExp_2015'!K36+((C36*0.5)/D36)) -> 1138.305 | G36: 1138 | H36: 0.305
A37: 1845 | B37: Underground Conductors & Devices | E37: 0 | F37: =IF(D37=0,'App.2-CD_MIFRS_DepExp_2015'!K37,+'App.2-CD_MIFRS_DepExp_2015'!K37+((C37*0.5)/D37)) -> 22185.3207 | G37: 22185 | H37: 0.3207001351
A38: 1845 | B38: Underground Conductors & Devices | C38: 163650 | D38: 40 | E38: 0.025 | F38: =IF(D38=0,'App.2-CD_MIFRS_DepExp_2015'!K38,+'App.2-CD_MIFRS_DepExp_2015'!K38+((C38*0.5)/D38)) -> 8983.375 | G38: 8983 | H38: 0.375
A39: 1850 | B39: Line Transformers | E39: 0 | F39: =IF(D39=0,'App.2-CD_MIFRS_DepExp_2015'!K39,+'App.2-CD_MIFRS_DepExp_2015'!K39+((C39*0.5)/D39)) -> 78795.3023 | G39: 78795 | H39: 0.3022988331
A40: 1850 | B40: Line Transformers | C40: 172000 | D40: 40 | E40: 0.025 | F40: =IF(D40=0,'App.2-CD_MIFRS_DepExp_2015'!K40,+'App.2-CD_MIFRS_DepExp_2015'!K40+((C40*0.5)/D40)) -> 12625.025 | G40: 12625 | H40: 0.025
A41: 1855 | B41: Services (Overhead & Underground) | E41: 0 | F41: =IF(D41=0,'App.2-CD_MIFRS_DepExp_2015'!K41,+'App.2-CD_MIFRS_DepExp_2015'!K41+((C41*0.5)/D41)) -> 36395.32414 | G41: =44715.75-741-7579 -> 36395.75 | H41: -0.4258613772
A42: 1855 | B42: Services (Overhead & Underground) | C42: 15150 | D42: 60 | E42: 0.01666666667 | F42: =IF(D42=0,'App.2-CD_MIFRS_DepExp_2015'!K42,+'App.2-CD_MIFRS_DepExp_2015'!K42+((C42*0.5)/D42)) -> 1993.366667 | G42: 1993 | H42: 0.3666666667
A43: 1855 | B43: Services (Overhead & Underground) | C43: 85850 | D43: 40 | E43: 0.025 | F43: =IF(D43=0,'App.2-CD_MIFRS_DepExp_2015'!K43,+'App.2-CD_MIFRS_DepExp_2015'!K43+((C43*0.5)/D43)) -> 5700.325 | G43: 5700 | H43: 0.325
A44: 1860 | B44: Meters | E44: 0 | F44: =IF(D44=0,'App.2-CD_MIFRS_DepExp_2015'!K44,+'App.2-CD_MIFRS_DepExp_2015'!K44+((C44*0.5)/D44)) -> 74.12 | G44: 74 | H44: 0.12
A45: 1860 | B45: Meters | C45: 7500 | D45: 25 | E45: 0.04 | F45: =IF(D45=0,'App.2-CD_MIFRS_DepExp_2015'!K45,+'App.2-CD_MIFRS_DepExp_2015'!K45+((C45*0.5)/D45)) -> 2933.250532 | G45: 2933 | H45: 0.2505322924
A46: 1860 | B46: Meters (Smart Meters) | C46: 35200 | D46: 15 | E46: 0.06666666667 | F46: =IF(D46=0,'App.2-CD_MIFRS_DepExp_2015'!K46,+'App.2-CD_MIFRS_DepExp_2015'!K46+((C46*0.5)/D46)) -> 7633.933333 | G46: 7634 | H46: -0.06666666667
A47: 1860 | B47: Meters (Smart Meters) | F47: 102942 | G47: 102942 | H47: 0
A48: 1905 | B48: Land | E48: 0 | F48: =IF(D48=0,'App.2-CD_MIFRS_DepExp_2015'!K48,+'App.2-CD_MIFRS_DepExp_2015'!K48+((C48*0.5)/D48)) -> 0 | H48: 0
A49: 1908 | B49: Buildings & Fixtures | E49: 0 | F49: =IF(D49=0,'App.2-CD_MIFRS_DepExp_2015'!K49,+'App.2-CD_MIFRS_DepExp_2015'!K49+((C49*0.5)/D49)) -> 0 | H49: 0
A50: 1910 | B50: Leasehold Improvements | E50: 0 | F50: =IF(D50=0,'App.2-CD_MIFRS_DepExp_2015'!K50,+'App.2-CD_MIFRS_DepExp_2015'!K50+((C50*0.5)/D50)) -> 0 | H50: 0
A51: 1915 | B51: Office Furniture & Equipment (10 years) | C51: 8000 | D51: 10 | E51: 0.1 | F51: =IF(D51=0,'App.2-CD_MIFRS_DepExp_2015'!K51,+'App.2-CD_MIFRS_DepExp_2015'!K51+((C51*0.5)/D51)) -> 2217.520794 | G51: 2218 | H51: -0.4792060491
A52: 1915 | B52: Office Furniture & Equipment (5 years) | E52: 0 | F52: =IF(D52=0,'App.2-CD_MIFRS_DepExp_2015'!K52,+'App.2-CD_MIFRS_DepExp_2015'!K52+((C52*0.5)/D52)) -> 0 | H52: 0
A53: 1920 | B53: Computer Equipment - Hardware | E53: 0 | F53: =IF(D53=0,'App.2-CD_MIFRS_DepExp_2015'!K53,+'App.2-CD_MIFRS_DepExp_2015'!K53+((C53*0.5)/D53)) -> 0 | H53: 0
A54: 1920 | B54: Computer Equip.-Hardware(Post Mar. 22/04) | E54: 0 | F54: =IF(D54=0,'App.2-CD_MIFRS_DepExp_2015'!K54,+'App.2-CD_MIFRS_DepExp_2015'!K54+((C54*0.5)/D54)) -> 0 | H54: 0
A55: 1920 | B55: Computer Equip.-Hardware(Post Mar. 19/07) | C55: 10000 | D55: 3 | E55: 0.3333333333 | F55: =IF(D55=0,'App.2-CD_MIFRS_DepExp_2015'!K55,+'App.2-CD_MIFRS_DepExp_2015'!K55+((C55*0.5)/D55)) -> 13205.98535 | G55: 13206 | H55: -0.01465201465
A56: 1920 | B56: Computer Equip.-Hardware(Post Mar. 19/07) | F56: 891 | G56: 891 | H56: 0
A57: 1930 | B57: Transportation Equipment | C57: 328000 | D57: 8 | E57: 0.125 | F57: =IF(D57=0,'App.2-CD_MIFRS_DepExp_2015'!K57,+'App.2-CD_MIFRS_DepExp_2015'!K57+((C57*0.5)/D57)) -> 78290.75 | G57: 78291 | H57: -0.25
A58: 1930 | B58: Transportation Equipment | E58: 0 | F58: =IF(D58=0,'App.2-CD_MIFRS_DepExp_2015'!K58,+'App.2-CD_MIFRS_DepExp_2015'!K58+((C58*0.5)/D58)) -> 16830.4 | G58: 16830 | H58: 0.4
A59: 1930 | B59: Transportation Equipment | E59: 0 | F59: =IF(D59=0,'App.2-CD_MIFRS_DepExp_2015'!K59,+'App.2-CD_MIFRS_DepExp_2015'!K59+((C59*0.5)/D59)) -> 62621.74392 | G59: 62622 | H59: -0.2560778264
A60: 1935 | B60: Stores Equipment | E60: 0 | F60: =IF(D60=0,'App.2-CD_MIFRS_DepExp_2015'!K60,+'App.2-CD_MIFRS_DepExp_2015'!K60+((C60*0.5)/D60)) -> 0 | H60: 0
A61: 1940 | B61: Tools, Shop & Garage Equipment | C61: 10000 | D61: 10 | E61: 0.1 | F61: =IF(D61=0,'App.2-CD_MIFRS_DepExp_2015'!K61,+'App.2-CD_MIFRS_DepExp_2015'!K61+((C61*0.5)/D61)) -> 8318.616285 | G61: 8319 | H61: -0.383715489
A62: 1945 | B62: Measurement & Testing Equipment | E62: 0 | F62: =IF(D62=0,'App.2-CD_MIFRS_DepExp_2015'!K62,+'App.2-CD_MIFRS_DepExp_2015'!K62+((C62*0.5)/D62)) -> 1809 | G62: 1809 | H62: 0
A63: 1950 | B63: Power Operated Equipment | E63: 0 | F63: =IF(D63=0,'App.2-CD_MIFRS_DepExp_2015'!K63,+'App.2-CD_MIFRS_DepExp_2015'!K63+((C63*0.5)/D63)) -> 0 | H63: 0
A64: 1955 | B64: Communications Equipment | C64: 1200 | D64: 5 | E64: 0.2 | F64: =IF(D64=0,'App.2-CD_MIFRS_DepExp_2015'!K64,+'App.2-CD_MIFRS_DepExp_2015'!K64+((C64*0.5)/D64)) -> 1104.278024 | G64: 1104 | H64: 0.2780238501
A65: 1955 | B65: Communication Equipment (Smart Meters) | E65: 0 | F65: =IF(D65=0,'App.2-CD_MIFRS_DepExp_2015'!K65,+'App.2-CD_MIFRS_DepExp_2015'!K65+((C65*0.5)/D65)) -> 0 | H65: 0
A66: 1960 | B66: Miscellaneous Equipment | E66: 0 | F66: =IF(D66=0,'App.2-CD_MIFRS_DepExp_2015'!K66,+'App.2-CD_MIFRS_DepExp_2015'!K66+((C66*0.5)/D66)) -> 1210.4 | G66: 1210 | H66: 0.4
A67: 1970 | B67: Load Management Controls Customer Premises | E67: 0 | F67: =IF(D67=0,'App.2-CD_MIFRS_DepExp_2015'!K67,+'App.2-CD_MIFRS_DepExp_2015'!K67+((C67*0.5)/D67)) -> 0 | H67: 0
A68: 1975 | B68: Load Management Controls Utility Premises | E68: 0 | F68: =IF(D68=0,'App.2-CD_MIFRS_DepExp_2015'!K68,+'App.2-CD_MIFRS_DepExp_2015'!K68+((C68*0.5)/D68)) -> 0 | H68: 0
A69: 1980 | B69: System Supervisor Equipment | C69: 130000 | D69: 3 | E69: 0.3333333333 | F69: =IF(D69=0,'App.2-CD_MIFRS_DepExp_2015'!K69,+'App.2-CD_MIFRS_DepExp_2015'!K69+((C69*0.5)/D69)) -> 30228.53661 | G69: 30229 | H69: -0.463390855
A70: 1985 | B70: Miscellaneous Fixed Assets | E70: 0 | F70: =IF(D70=0,'App.2-CD_MIFRS_DepExp_2015'!K70,+'App.2-CD_MIFRS_DepExp_2015'!K70+((C70*0.5)/D70)) -> 0 | H70: 0
A71: 1990 | B71: Other Tangible Property | E71: 0 | F71: =IF(D71=0,'App.2-CD_MIFRS_DepExp_2015'!K71,+'App.2-CD_MIFRS_DepExp_2015'!K71+((C71*0.5)/D71)) -> 0 | H71: 0
A72: 1995 | B72: Contributions & Grants | E72: 0 | F72: =IF(D72=0,'App.2-CD_MIFRS_DepExp_2015'!K72,+'App.2-CD_MIFRS_DepExp_2015'!K72+((C72*0.5)/D72)) -> -71181.17131 | G72: -71181.3 | H72: 0.1286924263
A73: 4245 | B73: Other Operating Revenues | C73: -300000 | D73: 40 | E73: 0.025 | F73: =IF(D73=0,'App.2-CD_MIFRS_DepExp_2015'!K73,+'App.2-CD_MIFRS_DepExp_2015'!K73+((C73*0.5)/D73)) -> -14720 | G73: -14720 | H73: 0
A74: 4245 | B74: Other Operating Revenues | E74: 0 | F74: =IF(D74=0,'App.2-CD_MIFRS_DepExp_2015'!K74,+'App.2-CD_MIFRS_DepExp_2015'!K74+((C74*0.5)/D74)) -> -11334 | G74: -11334 | H74: 0
B75: Total | C75: =SUM(C17:C74) -> 1245950 | F75: =SUM(F17:F74) -> 889777.6178 | G75: =SUM(G17:G74) -> 889776.02 | H75: =SUM(H17:H74) -> 1.597835874
B76: Depreciation exp. adj. from gain or loss on the retirement of assets (pool of like assets)
B77: Total Depreciation expense to be included in the test year revenue requirement | F77: =SUM(F75:F76) -> 889777.6178
A78: Notes:
A79: 1 | B79: Board policy of the "half-year" rule - the applicant must ensure that additions in the year attract a half-year depreciation expense in the first year. Deviations from this standard practice must be supported in the application.
A80: 2 | B80: The applicant must provide an explanation of material variances in evidence.
A83: General: | B83: Applicants must provide a breakdown of depreciation and amortization expense in the above format for all relevant accounts. Asset Retirement Obligations (AROs), depreciation and accretion expense should be disclosed separately consistent with the Notes of historical Audited Financial Statements.

Sheet App.2-CF_OldCGAAP_DepExp_2013 (hidden)
K1: File Number: | L1: =EBNUMBER -> 
K2: Exhibit:
K3: Tab:
K4: Schedule:
K5: Page:
K7: Date:
A9: Appendix 2-CF
A10: Depreciation and Amortization Expense
B11: Assumes the applicant made capitalization and depreciation expense accounting policy changes under CGAAP effective January 1, 2013 and will adopt IFRS for financial reporting purposes effective January 1, 2015.
C13: Year | D13: 2013 | E13: Former CGAAP
A15: Account | B15: Description | C15: Opening Regulatory Gross PP&E as at Jan 1, 2013 | D15: Less Fully Depreciated | E15: Net for Depreciation | F15: Additions | G15: Total for Depreciation | H15: Years | I15: Depreciation Rate | J15: Depreciation Expense | K15: 2013 Depreciation Expense per Appendix 2-BA Fixed Assets, Column J (l) | L15: Variance 2
C16: (a) | D16: (b) | E16: (c) | F16: (d) | G16: (e) = (c) + ½ x (d) 1 | H16: (f) | I16: (g) = 1 / (f) | J16: (h) = (e) / (f) | L16: (m) = (h) - (l)
A17: 1611 | B17: Computer Software (Formally known as Account 1925) | E17: =C17-D17 -> 0 | G17: =E17+0.5*F17 -> 0 | I17: =IF(H17=0,0,1/H17) -> 0 | J17: =IF(H17=0,0,G17/H17) -> 0 | L17: =IF(ISERROR(+J17-K17), 0, +J17-K17) -> 0
A18: 1612 | B18: Land Rights (Formally known as Account 1906) | E18: =C18-D18 -> 0 | G18: =E18+0.5*F18 -> 0 | I18: 0 | J18: 0 | L18: 0
A19: 1805 | B19: Land | E19: 0 | G19: 0 | I19: 0 | J19: 0 | L19: 0
A20: 1808 | B20: Buildings | E20: 0 | G20: 0 | I20: 0 | J20: 0 | L20: 0
A21: 1810 | B21: Leasehold Improvements | E21: 0 | G21: 0 | I21: 0 | J21: 0 | L21: 0
A22: 1815 | B22: Transformer Station Equipment >50 kV | E22: 0 | G22: 0 | I22: 0 | J22: 0 | L22: 0
A23: 1820 | B23: Distribution Station Equipment <50 kV | E23: 0 | G23: 0 | I23: 0 | J23: 0 | L23: 0
A24: 1825 | B24: Storage Battery Equipment | E24: 0 | G24: 0 | I24: 0 | J24: 0 | L24: 0
A25: 1830 | B25: Poles, Towers & Fixtures | E25: 0 | G25: 0 | I25: 0 | J25: 0 | L25: 0
A26: 1835 | B26: Overhead Conductors & Devices | E26: 0 | G26: 0 | I26: 0 | J26: 0 | L26: 0
A27: 1840 | B27: Underground Conduit | E27: 0 | G27: 0 | I27: 0 | J27: 0 | L27: 0
A28: 1845 | B28: Underground Conductors & Devices | E28: 0 | G28: 0 | I28: 0 | J28: 0 | L28: 0
A29: 1850 | B29: Line Transformers | E29: 0 | G29: 0 | I29: 0 | J29: 0 | L29: 0
A30: 1855 | B30: Services (Overhead & Underground) | E30: 0 | G30: 0 | I30: 0 | J30: 0 | L30: 0
A31: 1860 | B31: Meters | E31: 0 | G31: 0 | I31: 0 | J31: 0 | L31: 0
A32: 1860 | B32: Meters (Smart Meters) | E32: 0 | G32: 0 | I32: 0 | J32: 0 | L32: 0
A33: 1905 | B33: Land | E33: 0 | G33: 0 | I33: 0 | J33: 0 | L33: 0
A34: 1908 | B34: Buildings & Fixtures | E34: 0 | G34: 0 | I34: 0 | J34: 0 | L34: 0
A35: 1910 | B35: Leasehold Improvements | E35: 0 | G35: 0 | I35: 0 | J35: 0 | L35: 0
A36: 1915 | B36: Office Furniture & Equipment (10 years) | E36: 0 | G36: 0 | I36: 0 | J36: 0 | L36: 0
A37: 1915 | B37: Office Furniture & Equipment (5 years) | E37: 0 | G37: 0 | I37: 0 | J37: 0 | L37: 0
A38: 1920 | B38: Computer Equipment - Hardware | E38: 0 | G38: 0 | I38: 0 | J38: 0 | L38: 0
A39: 1920 | B39: Computer Equip.-Hardware(Post Mar. 22/04) | E39: 0 | G39: 0 | I39: 0 | J39: 0 | L39: 0
A40: 1920 | B40: Computer Equip.-Hardware(Post Mar. 19/07) | E40: 0 | G40: 0 | I40: 0 | J40: 0 | L40: 0
A41: 1930 | B41: Transportation Equipment | E41: 0 | G41: 0 | I41: 0 | J41: 0 | L41: 0
A42: 1935 | B42: Stores Equipment | E42: 0 | G42: 0 | I42: 0 | J42: 0 | L42: 0
A43: 1940 | B43: Tools, Shop & Garage Equipment | E43: 0 | G43: 0 | I43: 0 | J43: 0 | L43: 0
A44: 1945 | B44: Measurement & Testing Equipment | E44: 0 | G44: 0 | I44: 0 | J44: 0 | L44: 0
A45: 1950 | B45: Power Operated Equipment | E45: 0 | G45: 0 | I45: 0 | J45: 0 | L45: 0
A46: 1955 | B46: Communications Equipment | E46: 0 | G46: 0 | I46: 0 | J46: 0 | L46: 0
A47: 1955 | B47: Communication Equipment (Smart Meters) | E47: 0 | G47: 0 | I47: 0 | J47: 0 | L47: 0
A48: 1960 | B48: Miscellaneous Equipment | E48: 0 | G48: 0 | I48: 0 | J48: 0 | L48: 0
A49: 1970 | B49: Load Management Controls - Customer Premises | E49: 0 | G49: 0 | I49: 0 | J49: 0 | L49: 0
A50: 1975 | B50: Load Management Controls Utility Premises | E50: 0 | G50: 0 | I50: 0 | J50: 0 | L50: 0
A51: 1980 | B51: System Supervisor Equipment | E51: 0 | G51: 0 | I51: 0 | J51: 0 | L51: 0
A52: 1985 | B52: Miscellaneous Fixed Assets | E52: 0 | G52: 0 | I52: 0 | J52: 0 | L52: 0
A53: 1990 | B53: Other Tangible Property | E53: 0 | G53: 0 | I53: 0 | J53: 0 | L53: 0
A54: 1995 | B54: Contributions & Grants | E54: 0 | G54: 0 | I54: 0 | J54: 0 | L54: 0
B55: Total | C55: =SUM(C17:C54) -> 0 | D55: =SUM(D17:D54) -> 0 | E55: =SUM(E17:E54) -> 0 | F55: =SUM(F17:F54) -> 0 | G55: =SUM(G17:G54) -> 0 | J55: =SUM(J17:J54) -> 0 | K55: =SUM(K17:K54) -> 0 | L55: =SUM(L17:L54) -> 0
A57: Notes:
A59: 1 | B59: Board policy of the "half-year" rule - the applicant must ensure that additions in the year attract a half-year depreciation expense in the first year. Deviations from this standard practice must be supported in the application.
A60: 2 | B60: The applicant must provide an explanation of material variances in evidence.
A62: General | B62: Applicants must provide a breakdown of depreciation and amortization expense in the above format for all relevant accounts. Asset Retirement Obligations (AROs), depreciation and accretion expense should be disclosed separately consistent with the Notes of historical Audited Financial Statements.

Sheet App.2-CG_NewCGAAP_DepExp_2013 (hidden)
N1: File Number: | O1: =EBNUMBER -> 
N2: Exhibit:
N3: Tab:
N4: Schedule:
N5: Page:
N7: Date:
A9: Appendix 2-CO
A10: Depreciation and Amortization Expense
A11: Assumes the applicant made capitalization and depreciation expense accounting policy changes under CGAAP effective January 1, 2013 and will adopt IFRS for financial reporting purposes effective January 1, 2015.
C13: Year | D13: 2013 | E13: Revised CGAAP
A15: Account | B15: Description | C15: Opening NBV as at Jan 1, 2013 5 | D15: Additions | E15: Average Remaining Life of Opening NBV 4 | F15: Years (new additions only) 3 | G15: Depreciation Rate on New Additions | H15: Depreciation Expense on Opening NBV | I15: Depreciation Expense on Additions 1 | J15: 2013 Depreciation Expense | K15: 2013 Depreciation Expense per Appendix 2-BA Fixed Assets, Column J (l) | L15: Variance 2 | M15: Depreciation Expense on 2013 Full Year Additions | N15: Less Depreciation Expense on Assets Fully Depreciated during the year (o) | O15: 2013 Full Year Depreciation 6
C16: (a) | D16: (d) | E16: (i) | F16: (f) | G16: (g) = 1 / (f) | H16: (j) = (a) / (i) | I16: (h)=((d)*0.5)/(f) | J16: (k) = (j) + (h) | L16: (m) = (k) - (l) | M16: (n) = (d)/(f) | O16: (p) = (j) + (n) - (o)
A17: 1611 | B17: Computer Software (Formally known as Account 1925) | G17: =IF(F17=0,0,1/F17) -> 0 | H17: =IF(E17=0,0,+C17/E17) -> 0 | I17: =IF(F17=0,0,+(D17*0.5)/F17) -> 0 | J17: =IF(ISERROR(+H17+I17), 0, +H17+I17) -> 0 | L17: =IF(ISERROR(+J17-K17), 0, +J17-K17) -> 0 | M17: =IF(F17=0,0,+(D17)/F17) -> 0 | O17: =IF(ISERROR(+M17+H17-N17), 0, +M17+H17-N17) -> 0
A18: 1612 | B18: Land Rights (Formally known as Account 1906) | G18: 0 | H18: 0 | I18: 0 | J18: 0 | L18: 0 | M18: 0 | O18: =IF(ISERROR(+M18+H18-N18), 0, +M18+H18-N18) -> 0
A19: 1805 | B19: Land | G19: 0 | H19: 0 | I19: 0 | J19: 0 | L19: 0 | M19: 0 | O19: 0
A20: 1808 | B20: Buildings | G20: 0 | H20: 0 | I20: 0 | J20: 0 | L20: 0 | M20: 0 | O20: 0
A21: 1810 | B21: Leasehold Improvements | G21: 0 | H21: 0 | I21: 0 | J21: 0 | L21: 0 | M21: 0 | O21: 0
A22: 1815 | B22: Transformer Station Equipment >50 kV | G22: 0 | H22: 0 | I22: 0 | J22: 0 | L22: 0 | M22: 0 | O22: 0
A23: 1820 | B23: Distribution Station Equipment <50 kV | G23: 0 | H23: 0 | I23: 0 | J23: 0 | L23: 0 | M23: 0 | O23: 0
A24: 1825 | B24: Storage Battery Equipment | G24: 0 | H24: 0 | I24: 0 | J24: 0 | L24: 0 | M24: 0 | O24: 0
A25: 1830 | B25: Poles, Towers & Fixtures | G25: 0 | H25: 0 | I25: 0 | J25: 0 | L25: 0 | M25: 0 | O25: 0
A26: 1835 | B26: Overhead Conductors & Devices | G26: 0 | H26: 0 | I26: 0 | J26: 0 | L26: 0 | M26: 0 | O26: 0
A27: 1840 | B27: Underground Conduit | G27: 0 | H27: 0 | I27: 0 | J27: 0 | L27: 0 | M27: 0 | O27: 0
A28: 1845 | B28: Underground Conductors & Devices | G28: 0 | H28: 0 | I28: 0 | J28: 0 | L28: 0 | M28: 0 | O28: 0
A29: 1850 | B29: Line Transformers | G29: 0 | H29: 0 | I29: 0 | J29: 0 | L29: 0 | M29: 0 | O29: 0
A30: 1855 | B30: Services (Overhead & Underground) | G30: 0 | H30: 0 | I30: 0 | J30: 0 | L30: 0 | M30: 0 | O30: 0
A31: 1860 | B31: Meters | G31: 0 | H31: 0 | I31: 0 | J31: 0 | L31: 0 | M31: 0 | O31: 0
A32: 1860 | B32: Meters (Smart Meters) | G32: 0 | H32: 0 | I32: 0 | J32: 0 | L32: 0 | M32: 0 | O32: 0
A33: 1905 | B33: Land | G33: 0 | H33: 0 | I33: 0 | J33: 0 | L33: 0 | M33: 0 | O33: 0
A34: 1908 | B34: Buildings & Fixtures | G34: 0 | H34: 0 | I34: 0 | J34: 0 | L34: 0 | M34: 0 | O34: 0
A35: 1910 | B35: Leasehold Improvements | G35: 0 | H35: 0 | I35: 0 | J35: 0 | L35: 0 | M35: 0 | O35: 0
A36: 1915 | B36: Office Furniture & Equipment (10 years) | G36: 0 | H36: 0 | I36: 0 | J36: 0 | L36: 0 | M36: 0 | O36: 0
A37: 1915 | B37: Office Furniture & Equipment (5 years) | G37: 0 | H37: 0 | I37: 0 | J37: 0 | L37: 0 | M37: 0 | O37: 0
A38: 1920 | B38: Computer Equipment - Hardware | G38: 0 | H38: 0 | I38: 0 | J38: 0 | L38: 0 | M38: 0 | O38: 0
A39: 1920 | B39: Computer Equip.-Hardware(Post Mar. 22/04) | G39: 0 | H39: 0 | I39: 0 | J39: 0 | L39: 0 | M39: 0 | O39: 0
A40: 1920 | B40: Computer Equip.-Hardware(Post Mar. 19/07) | G40: 0 | H40: 0 | I40: 0 | J40: 0 | L40: 0 | M40: 0 | O40: 0
A41: 1930 | B41: Transportation Equipment | G41: 0 | H41: 0 | I41: 0 | J41: 0 | L41: 0 | M41: 0 | O41: 0
A42: 1935 | B42: Stores Equipment | G42: 0 | H42: 0 | I42: 0 | J42: 0 | L42: 0 | M42: 0 | O42: 0
A43: 1940 | B43: Tools, Shop & Garage Equipment | G43: 0 | H43: 0 | I43: 0 | J43: 0 | L43: 0 | M43: 0 | O43: 0
A44: 1945 | B44: Measurement & Testing Equipment | G44: 0 | H44: 0 | I44: 0 | J44: 0 | L44: 0 | M44: 0 | O44: 0
A45: 1950 | B45: Power Operated Equipment | G45: 0 | H45: 0 | I45: 0 | J45: 0 | L45: 0 | M45: 0 | O45: 0
A46: 1955 | B46: Communications Equipment | G46: 0 | H46: 0 | I46: 0 | J46: 0 | L46: 0 | M46: 0 | O46: 0
A47: 1955 | B47: Communication Equipment (Smart Meters) | G47: 0 | H47: 0 | I47: 0 | J47: 0 | L47: 0 | M47: 0 | O47: 0
A48: 1960 | B48: Miscellaneous Equipment | G48: 0 | H48: 0 | I48: 0 | J48: 0 | L48: 0 | M48: 0 | O48: 0
A49: 1970 | B49: Load Management Controls - Customer Premises | G49: 0 | H49: 0 | I49: 0 | J49: 0 | L49: 0 | M49: 0 | O49: 0
A50: 1975 | B50: Load Management Controls Utility Premises | G50: 0 | H50: 0 | I50: 0 | J50: 0 | L50: 0 | M50: 0 | O50: 0
A51: 1980 | B51: System Supervisor Equipment | G51: 0 | H51: 0 | I51: 0 | J51: 0 | L51: 0 | M51: 0 | O51: 0
A52: 1985 | B52: Miscellaneous Fixed Assets | G52: 0 | H52: 0 | I52: 0 | J52: 0 | L52: 0 | M52: 0 | O52: 0
A53: 1990 | B53: Other Tangible Property | G53: 0 | H53: 0 | I53: 0 | J53: 0 | L53: 0 | M53: 0 | O53: 0
A54: 1995 | B54: Contributions & Grants | G54: 0 | H54: 0 | I54: 0 | J54: 0 | L54: 0 | M54: 0 | O54: 0
B55: Total | C55: =SUM(C17:C54) -> 0 | D55: =SUM(D17:D54) -> 0 | H55: =SUM(H17:H54) -> 0 | I55: 0 | J55: 0 | K55: 0 | L55: 0 | M55: 0 | N55: 0 | O55: 0
A57: Notes:
A59: 1 | B59: Board policy of the "half-year" rule - the applicant must ensure that additions in the year attract a half-year depreciation expense in the first year. Deviations from this standard practice must be supported in the application.
A60: 2 | B60: The applicant must provide an explanation of material variances in evidence.
A61: 3 | B61: The applicant should ensure that the years for new additions of assets are the asset useful lives determined by management in accordance with the Board's regulatory accounting policies. The capitalization and depreciation expense accounting changes should be implemented consistent with the Board’s regulatory accounting policies as set out for MIFRS as contained in the Report of the Board, Transition to International Financial Reporting Standards, EB-2008-0408, the Kinectrics Report, and the Revised 2012 Accounting Procedures Handbook for Electricity Distributors.
A62: 4 | B62: A recalculation should be performed to determine the average remaining life of opening balance of assets (i.e. excluding 2013 additions) under the change in policies under CGAAP. For example, Asset A had a useful life of 20 years under CGAAP without the change in policies. On January 1, 2013, the effective date of the changes in policies, Asset A was 3 years depreciated. As a result, Asset A would have a remaining service life of 17 years (20 years less 3 years) as of January 1, 2013. Due to making the change in policies under CGAAP, management re-assessed the asset useful lives and concluded that the revised useful life of Asset A is now 30 years. Therefore, the average remaining useful life of the opening balance of Asset A is determined to be 27 years (30 years less 3 years) under the revised CGAAP as of January 1, 2013.
A63: 5 | B63: NBV must exclude assets still on the books but which have been fully amortized or depreciated.
A64: 6 | B64: This column refers to the calculated full year depreciation but excludes the depreciation expense on assets fully depreciated during the year. This column is used for the purpose of calculating depreciation expense in the following year on the next worksheet.
A66: General: | B66: Applicants must provide a breakdown of depreciation and amortization expense in the above format for all relevant accounts. Asset Retirement Obligations (AROs), depreciation and accretion expense should be disclosed separately consistent with the Notes of historical Audited Financial Statements.

Sheet App.2-CH_MIFRS_DepExp_2014 (hidden)
J1: File Number: | K1: =EBNUMBER -> 
J2: Exhibit:
J3: Tab:
J4: Schedule:
J5: Page:
J7: Date:
A9: Appendix 2-CP
A10: Depreciation and Amortization Expense
A11: Assumes the applicant made capitalization and depreciation expense accounting policy changes under CGAAP effective January 1, 2013 and will adopt IFRS for financial reporting purposes effective January 1, 2015.
E13: 2014 | F13: MIFRS
A15: Account | B15: Description | C15: Additions | D15: Years (new additions only) | E15: Depreciation Rate on New Additions | F15: 2014 Depreciation Expense 1 | G15: 2014 Depreciation Expense per Apppendix 2-BA Fixed Assets, Column J (l) | H15: Variance 2 | I15: Depreciation Expense on 2014 Full Year Additions | J15: Less Depreciation Expense on Assets Fully Depreciated during the year (o) | K15: 2014 Full Year Depreciation 3
C16: (d) | D16: (f) | E16: (g) = 1 / (f) | F16: (h)=2013 Full Year Deprecation + ((d)*0.5)/(f) | H16: (m) = (h) - (l) | I16: (n)=((d))/(f) | K16: (p) = 2013 Full Year Depreciation + (n) - (o)
A17: 1611 | B17: Computer Software (Formally known as Account 1925) | E17: =IF(D17=0,0,1/D17) -> 0 | F17: =IF(D17=0,+'App.2-CG_NewCGAAP_DepExp_2013'!O17,+'App.2-CG_NewCGAAP_DepExp_2013'!O17+((C17*0.5)/D17)) -> 0 | H17: =IF(ISERROR(+F17-G17), 0, +F17-G17) -> 0 | I17: =IF(D17=0,0,+(C17)/D17) -> 0 | K17: =IF(ISERROR(+I17+'App.2-CG_NewCGAAP_DepExp_2013'!O17-J17), 0, +I17+'App.2-CG_NewCGAAP_DepExp_2013'!O17-J17) -> 0
A18: 1612 | B18: Land Rights (Formally known as Account 1906) | E18: 0 | F18: =IF(D18=0,+'App.2-CG_NewCGAAP_DepExp_2013'!O18,+'App.2-CG_NewCGAAP_DepExp_2013'!O18+((C18*0.5)/D18)) -> 0 | H18: 0 | I18: 0 | K18: =IF(ISERROR(+I18+'App.2-CG_NewCGAAP_DepExp_2013'!O18-J18), 0, +I18+'App.2-CG_NewCGAAP_DepExp_2013'!O18-J18) -> 0
A19: 1805 | B19: Land | E19: 0 | F19: =IF(D19=0,+'App.2-CG_NewCGAAP_DepExp_2013'!O19,+'App.2-CG_NewCGAAP_DepExp_2013'!O19+((C19*0.5)/D19)) -> 0 | H19: 0 | I19: 0 | K19: =IF(ISERROR(+I19+'App.2-CG_NewCGAAP_DepExp_2013'!O19-J19), 0, +I19+'App.2-CG_NewCGAAP_DepExp_2013'!O19-J19) -> 0
A20: 1808 | B20: Buildings | E20: 0 | F20: =IF(D20=0,+'App.2-CG_NewCGAAP_DepExp_2013'!O20,+'App.2-CG_NewCGAAP_DepExp_2013'!O20+((C20*0.5)/D20)) -> 0 | H20: 0 | I20: 0 | K20: =IF(ISERROR(+I20+'App.2-CG_NewCGAAP_DepExp_2013'!O20-J20), 0, +I20+'App.2-CG_NewCGAAP_DepExp_2013'!O20-J20) -> 0
A21: 1810 | B21: Leasehold Improvements | E21: 0 | F21: =IF(D21=0,+'App.2-CG_NewCGAAP_DepExp_2013'!O21,+'App.2-CG_NewCGAAP_DepExp_2013'!O21+((C21*0.5)/D21)) -> 0 | H21: 0 | I21: 0 | K21: =IF(ISERROR(+I21+'App.2-CG_NewCGAAP_DepExp_2013'!O21-J21), 0, +I21+'App.2-CG_NewCGAAP_DepExp_2013'!O21-J21) -> 0
A22: 1815 | B22: Transformer Station Equipment >50 kV | E22: 0 | F22: =IF(D22=0,+'App.2-CG_NewCGAAP_DepExp_2013'!O22,+'App.2-CG_NewCGAAP_DepExp_2013'!O22+((C22*0.5)/D22)) -> 0 | H22: 0 | I22: 0 | K22: =IF(ISERROR(+I22+'App.2-CG_NewCGAAP_DepExp_2013'!O22-J22), 0, +I22+'App.2-CG_NewCGAAP_DepExp_2013'!O22-J22) -> 0
A23: 1820 | B23: Distribution Station Equipment <50 kV | E23: 0 | F23: =IF(D23=0,+'App.2-CG_NewCGAAP_DepExp_2013'!O23,+'App.2-CG_NewCGAAP_DepExp_2013'!O23+((C23*0.5)/D23)) -> 0 | H23: 0 | I23: 0 | K23: =IF(ISERROR(+I23+'App.2-CG_NewCGAAP_DepExp_2013'!O23-J23), 0, +I23+'App.2-CG_NewCGAAP_DepExp_2013'!O23-J23) -> 0
A24: 1825 | B24: Storage Battery Equipment | E24: 0 | F24: =IF(D24=0,+'App.2-CG_NewCGAAP_DepExp_2013'!O24,+'App.2-CG_NewCGAAP_DepExp_2013'!O24+((C24*0.5)/D24)) -> 0 | H24: 0 | I24: 0 | K24: =IF(ISERROR(+I24+'App.2-CG_NewCGAAP_DepExp_2013'!O24-J24), 0, +I24+'App.2-CG_NewCGAAP_DepExp_2013'!O24-J24) -> 0
A25: 1830 | B25: Poles, Towers & Fixtures | E25: 0 | F25: =IF(D25=0,+'App.2-CG_NewCGAAP_DepExp_2013'!O25,+'App.2-CG_NewCGAAP_DepExp_2013'!O25+((C25*0.5)/D25)) -> 0 | H25: 0 | I25: 0 | K25: =IF(ISERROR(+I25+'App.2-CG_NewCGAAP_DepExp_2013'!O25-J25), 0, +I25+'App.2-CG_NewCGAAP_DepExp_2013'!O25-J25) -> 0
A26: 1835 | B26: Overhead Conductors & Devices | E26: 0 | F26: =IF(D26=0,+'App.2-CG_NewCGAAP_DepExp_2013'!O26,+'App.2-CG_NewCGAAP_DepExp_2013'!O26+((C26*0.5)/D26)) -> 0 | H26: 0 | I26: 0 | K26: =IF(ISERROR(+I26+'App.2-CG_NewCGAAP_DepExp_2013'!O26-J26), 0, +I26+'App.2-CG_NewCGAAP_DepExp_2013'!O26-J26) -> 0
A27: 1840 | B27: Underground Conduit | E27: 0 | F27: =IF(D27=0,+'App.2-CG_NewCGAAP_DepExp_2013'!O27,+'App.2-CG_NewCGAAP_DepExp_2013'!O27+((C27*0.5)/D27)) -> 0 | H27: 0 | I27: 0 | K27: =IF(ISERROR(+I27+'App.2-CG_NewCGAAP_DepExp_2013'!O27-J27), 0, +I27+'App.2-CG_NewCGAAP_DepExp_2013'!O27-J27) -> 0
A28: 1845 | B28: Underground Conductors & Devices | E28: 0 | F28: =IF(D28=0,+'App.2-CG_NewCGAAP_DepExp_2013'!O28,+'App.2-CG_NewCGAAP_DepExp_2013'!O28+((C28*0.5)/D28)) -> 0 | H28: 0 | I28: 0 | K28: =IF(ISERROR(+I28+'App.2-CG_NewCGAAP_DepExp_2013'!O28-J28), 0, +I28+'App.2-CG_NewCGAAP_DepExp_2013'!O28-J28) -> 0
A29: 1850 | B29: Line Transformers | E29: 0 | F29: =IF(D29=0,+'App.2-CG_NewCGAAP_DepExp_2013'!O29,+'App.2-CG_NewCGAAP_DepExp_2013'!O29+((C29*0.5)/D29)) -> 0 | H29: 0 | I29: 0 | K29: =IF(ISERROR(+I29+'App.2-CG_NewCGAAP_DepExp_2013'!O29-J29), 0, +I29+'App.2-CG_NewCGAAP_DepExp_2013'!O29-J29) -> 0
A30: 1855 | B30: Services (Overhead & Underground) | E30: 0 | F30: =IF(D30=0,+'App.2-CG_NewCGAAP_DepExp_2013'!O30,+'App.2-CG_NewCGAAP_DepExp_2013'!O30+((C30*0.5)/D30)) -> 0 | H30: 0 | I30: 0 | K30: =IF(ISERROR(+I30+'App.2-CG_NewCGAAP_DepExp_2013'!O30-J30), 0, +I30+'App.2-CG_NewCGAAP_DepExp_2013'!O30-J30) -> 0
A31: 1860 | B31: Meters | E31: 0 | F31: =IF(D31=0,+'App.2-CG_NewCGAAP_DepExp_2013'!O31,+'App.2-CG_NewCGAAP_DepExp_2013'!O31+((C31*0.5)/D31)) -> 0 | H31: 0 | I31: 0 | K31: =IF(ISERROR(+I31+'App.2-CG_NewCGAAP_DepExp_2013'!O31-J31), 0, +I31+'App.2-CG_NewCGAAP_DepExp_2013'!O31-J31) -> 0
A32: 1860 | B32: Meters (Smart Meters) | E32: 0 | F32: =IF(D32=0,+'App.2-CG_NewCGAAP_DepExp_2013'!O32,+'App.2-CG_NewCGAAP_DepExp_2013'!O32+((C32*0.5)/D32)) -> 0 | H32: 0 | I32: 0 | K32: =IF(ISERROR(+I32+'App.2-CG_NewCGAAP_DepExp_2013'!O32-J32), 0, +I32+'App.2-CG_NewCGAAP_DepExp_2013'!O32-J32) -> 0
A33: 1905 | B33: Land | E33: 0 | F33: =IF(D33=0,+'App.2-CG_NewCGAAP_DepExp_2013'!O33,+'App.2-CG_NewCGAAP_DepExp_2013'!O33+((C33*0.5)/D33)) -> 0 | H33: 0 | I33: 0 | K33: =IF(ISERROR(+I33+'App.2-CG_NewCGAAP_DepExp_2013'!O33-J33), 0, +I33+'App.2-CG_NewCGAAP_DepExp_2013'!O33-J33) -> 0
A34: 1908 | B34: Buildings & Fixtures | E34: 0 | F34: =IF(D34=0,+'App.2-CG_NewCGAAP_DepExp_2013'!O34,+'App.2-CG_NewCGAAP_DepExp_2013'!O34+((C34*0.5)/D34)) -> 0 | H34: 0 | I34: 0 | K34: =IF(ISERROR(+I34+'App.2-CG_NewCGAAP_DepExp_2013'!O34-J34), 0, +I34+'App.2-CG_NewCGAAP_DepExp_2013'!O34-J34) -> 0
A35: 1910 | B35: Leasehold Improvements | E35: 0 | F35: =IF(D35=0,+'App.2-CG_NewCGAAP_DepExp_2013'!O35,+'App.2-CG_NewCGAAP_DepExp_2013'!O35+((C35*0.5)/D35)) -> 0 | H35: 0 | I35: 0 | K35: =IF(ISERROR(+I35+'App.2-CG_NewCGAAP_DepExp_2013'!O35-J35), 0, +I35+'App.2-CG_NewCGAAP_DepExp_2013'!O35-J35) -> 0
A36: 1915 | B36: Office Furniture & Equipment (10 years) | E36: 0 | F36: =IF(D36=0,+'App.2-CG_NewCGAAP_DepExp_2013'!O36,+'App.2-CG_NewCGAAP_DepExp_2013'!O36+((C36*0.5)/D36)) -> 0 | H36: 0 | I36: 0 | K36: =IF(ISERROR(+I36+'App.2-CG_NewCGAAP_DepExp_2013'!O36-J36), 0, +I36+'App.2-CG_NewCGAAP_DepExp_2013'!O36-J36) -> 0
A37: 1915 | B37: Office Furniture & Equipment (5 years) | E37: 0 | F37: =IF(D37=0,+'App.2-CG_NewCGAAP_DepExp_2013'!O37,+'App.2-CG_NewCGAAP_DepExp_2013'!O37+((C37*0.5)/D37)) -> 0 | H37: 0 | I37: 0 | K37: =IF(ISERROR(+I37+'App.2-CG_NewCGAAP_DepExp_2013'!O37-J37), 0, +I37+'App.2-CG_NewCGAAP_DepExp_2013'!O37-J37) -> 0
A38: 1920 | B38: Computer Equipment - Hardware | E38: 0 | F38: =IF(D38=0,+'App.2-CG_NewCGAAP_DepExp_2013'!O38,+'App.2-CG_NewCGAAP_DepExp_2013'!O38+((C38*0.5)/D38)) -> 0 | H38: 0 | I38: 0 | K38: =IF(ISERROR(+I38+'App.2-CG_NewCGAAP_DepExp_2013'!O38-J38), 0, +I38+'App.2-CG_NewCGAAP_DepExp_2013'!O38-J38) -> 0
A39: 1920 | B39: Computer Equip.-Hardware(Post Mar. 22/04) | E39: 0 | F39: =IF(D39=0,+'App.2-CG_NewCGAAP_DepExp_2013'!O39,+'App.2-CG_NewCGAAP_DepExp_2013'!O39+((C39*0.5)/D39)) -> 0 | H39: 0 | I39: 0 | K39: =IF(ISERROR(+I39+'App.2-CG_NewCGAAP_DepExp_2013'!O39-J39), 0, +I39+'App.2-CG_NewCGAAP_DepExp_2013'!O39-J39) -> 0
A40: 1920 | B40: Computer Equip.-Hardware(Post Mar. 19/07) | E40: 0 | F40: =IF(D40=0,+'App.2-CG_NewCGAAP_DepExp_2013'!O40,+'App.2-CG_NewCGAAP_DepExp_2013'!O40+((C40*0.5)/D40)) -> 0 | H40: 0 | I40: 0 | K40: =IF(ISERROR(+I40+'App.2-CG_NewCGAAP_DepExp_2013'!O40-J40), 0, +I40+'App.2-CG_NewCGAAP_DepExp_2013'!O40-J40) -> 0
A41: 1930 | B41: Transportation Equipment | E41: 0 | F41: =IF(D41=0,+'App.2-CG_NewCGAAP_DepExp_2013'!O41,+'App.2-CG_NewCGAAP_DepExp_2013'!O41+((C41*0.5)/D41)) -> 0 | H41: 0 | I41: 0 | K41: =IF(ISERROR(+I41+'App.2-CG_NewCGAAP_DepExp_2013'!O41-J41), 0, +I41+'App.2-CG_NewCGAAP_DepExp_2013'!O41-J41) -> 0
A42: 1935 | B42: Stores Equipment | E42: 0 | F42: =IF(D42=0,+'App.2-CG_NewCGAAP_DepExp_2013'!O42,+'App.2-CG_NewCGAAP_DepExp_2013'!O42+((C42*0.5)/D42)) -> 0 | H42: 0 | I42: 0 | K42: =IF(ISERROR(+I42+'App.2-CG_NewCGAAP_DepExp_2013'!O42-J42), 0, +I42+'App.2-CG_NewCGAAP_DepExp_2013'!O42-J42) -> 0
A43: 1940 | B43: Tools, Shop & Garage Equipment | E43: 0 | F43: =IF(D43=0,+'App.2-CG_NewCGAAP_DepExp_2013'!O43,+'App.2-CG_NewCGAAP_DepExp_2013'!O43+((C43*0.5)/D43)) -> 0 | H43: 0 | I43: 0 | K43: =IF(ISERROR(+I43+'App.2-CG_NewCGAAP_DepExp_2013'!O43-J43), 0, +I43+'App.2-CG_NewCGAAP_DepExp_2013'!O43-J43) -> 0
A44: 1945 | B44: Measurement & Testing Equipment | E44: 0 | F44: =IF(D44=0,+'App.2-CG_NewCGAAP_DepExp_2013'!O44,+'App.2-CG_NewCGAAP_DepExp_2013'!O44+((C44*0.5)/D44)) -> 0 | H44: 0 | I44: 0 | K44: =IF(ISERROR(+I44+'App.2-CG_NewCGAAP_DepExp_2013'!O44-J44), 0, +I44+'App.2-CG_NewCGAAP_DepExp_2013'!O44-J44) -> 0
A45: 1950 | B45: Power Operated Equipment | E45: 0 | F45: =IF(D45=0,+'App.2-CG_NewCGAAP_DepExp_2013'!O45,+'App.2-CG_NewCGAAP_DepExp_2013'!O45+((C45*0.5)/D45)) -> 0 | H45: 0 | I45: 0 | K45: =IF(ISERROR(+I45+'App.2-CG_NewCGAAP_DepExp_2013'!O45-J45), 0, +I45+'App.2-CG_NewCGAAP_DepExp_2013'!O45-J45) -> 0
A46: 1955 | B46: Communications Equipment | E46: 0 | F46: =IF(D46=0,+'App.2-CG_NewCGAAP_DepExp_2013'!O46,+'App.2-CG_NewCGAAP_DepExp_2013'!O46+((C46*0.5)/D46)) -> 0 | H46: 0 | I46: 0 | K46: =IF(ISERROR(+I46+'App.2-CG_NewCGAAP_DepExp_2013'!O46-J46), 0, +I46+'App.2-CG_NewCGAAP_DepExp_2013'!O46-J46) -> 0
A47: 1955 | B47: Communication Equipment (Smart Meters) | E47: 0 | F47: =IF(D47=0,+'App.2-CG_NewCGAAP_DepExp_2013'!O47,+'App.2-CG_NewCGAAP_DepExp_2013'!O47+((C47*0.5)/D47)) -> 0 | H47: 0 | I47: 0 | K47: =IF(ISERROR(+I47+'App.2-CG_NewCGAAP_DepExp_2013'!O47-J47), 0, +I47+'App.2-CG_NewCGAAP_DepExp_2013'!O47-J47) -> 0
A48: 1960 | B48: Miscellaneous Equipment | E48: 0 | F48: =IF(D48=0,+'App.2-CG_NewCGAAP_DepExp_2013'!O48,+'App.2-CG_NewCGAAP_DepExp_2013'!O48+((C48*0.5)/D48)) -> 0 | H48: 0 | I48: 0 | K48: =IF(ISERROR(+I48+'App.2-CG_NewCGAAP_DepExp_2013'!O48-J48), 0, +I48+'App.2-CG_NewCGAAP_DepExp_2013'!O48-J48) -> 0
A49: 1970 | B49: Load Management Controls - Customer Premises | E49: 0 | F49: =IF(D49=0,+'App.2-CG_NewCGAAP_DepExp_2013'!O49,+'App.2-CG_NewCGAAP_DepExp_2013'!O49+((C49*0.5)/D49)) -> 0 | H49: 0 | I49: 0 | K49: =IF(ISERROR(+I49+'App.2-CG_NewCGAAP_DepExp_2013'!O49-J49), 0, +I49+'App.2-CG_NewCGAAP_DepExp_2013'!O49-J49) -> 0
A50: 1975 | B50: Load Management Controls Utility Premises | E50: 0 | F50: =IF(D50=0,+'App.2-CG_NewCGAAP_DepExp_2013'!O50,+'App.2-CG_NewCGAAP_DepExp_2013'!O50+((C50*0.5)/D50)) -> 0 | H50: 0 | I50: 0 | K50: =IF(ISERROR(+I50+'App.2-CG_NewCGAAP_DepExp_2013'!O50-J50), 0, +I50+'App.2-CG_NewCGAAP_DepExp_2013'!O50-J50) -> 0
A51: 1980 | B51: System Supervisor Equipment | E51: 0 | F51: =IF(D51=0,+'App.2-CG_NewCGAAP_DepExp_2013'!O51,+'App.2-CG_NewCGAAP_DepExp_2013'!O51+((C51*0.5)/D51)) -> 0 | H51: 0 | I51: 0 | K51: =IF(ISERROR(+I51+'App.2-CG_NewCGAAP_DepExp_2013'!O51-J51), 0, +I51+'App.2-CG_NewCGAAP_DepExp_2013'!O51-J51) -> 0
A52: 1985 | B52: Miscellaneous Fixed Assets | E52: 0 | F52: =IF(D52=0,+'App.2-CG_NewCGAAP_DepExp_2013'!O52,+'App.2-CG_NewCGAAP_DepExp_2013'!O52+((C52*0.5)/D52)) -> 0 | H52: 0 | I52: 0 | K52: =IF(ISERROR(+I52+'App.2-CG_NewCGAAP_DepExp_2013'!O52-J52), 0, +I52+'App.2-CG_NewCGAAP_DepExp_2013'!O52-J52) -> 0
A53: 1990 | B53: Other Tangible Property | E53: 0 | F53: =IF(D53=0,+'App.2-CG_NewCGAAP_DepExp_2013'!O53,+'App.2-CG_NewCGAAP_DepExp_2013'!O53+((C53*0.5)/D53)) -> 0 | H53: 0 | I53: 0 | K53: =IF(ISERROR(+I53+'App.2-CG_NewCGAAP_DepExp_2013'!O53-J53), 0, +I53+'App.2-CG_NewCGAAP_DepExp_2013'!O53-J53) -> 0
E54: 0 | F54: =IF(D54=0,+'App.2-CG_NewCGAAP_DepExp_2013'!O54,+'App.2-CG_NewCGAAP_DepExp_2013'!O54+((C54*0.5)/D54)) -> 0 | H54: 0 | I54: 0 | K54: =IF(ISERROR(+I54+'App.2-CG_NewCGAAP_DepExp_2013'!O54-J54), 0, +I54+'App.2-CG_NewCGAAP_DepExp_2013'!O54-J54) -> 0
B55: Total | C55: =SUM(C17:C54) -> 0 | F55: =SUM(F17:F54) -> 0 | G55: 0 | H55: 0 | I55: 0 | J55: 0 | K55: 0
B56: Depreciation exp. adj. from gain or loss on the retirement of assets (pool of like assets)
B57: Total Depreciation Expense | F57: =SUM(F55:F56) -> 0
A59: Notes:
A60: 1 | B60: Board policy of the "half-year" rule - the applicant must ensure that additions in the year attract a half-year depreciation expense in the first year. Deviations from this standard practice must be supported in the application.
A61: 2 | B61: The applicant must provide an explanation of material variances in evidence.
A62: 3 | B62: This column refers to the calculated full year depreciation but excludes the depreciation expense on assets fully depreciated during the year. This column is used for the purpose of calculating depreciation expense in the following year on the next worksheet.
A64: General: | B64: Applicants must provide a breakdown of depreciation and amortization expense in the above format for all relevant accounts. Asset Retirement Obligations (AROs), depreciation and accretion expense should be disclosed separately consistent with the Notes of historical Audited Financial Statements.

Sheet App.2-CI MIFRS_DepExp_2015 (hidden)
G1: File Number: | H1: =EBNUMBER -> 
G2: Exhibit:
G3: Tab:
G4: Schedule:
G5: Page:
G7: Date:
A9: Appendix 2-CQ
A10: Depreciation and Amortization Expense
A11: Assumes the applicant made capitalization and depreciation expense accounting policy changes under CGAAP effective January 1, 2013 and will adopt IFRS for financial reporting purposes effective January 1, 2015.
D13: 2015 | E13: MIFRS
A15: Account | B15: Description | C15: Additions | D15: Years (new additions only) | E15: Depreciation Rate on New Additions | F15: 2015 Depreciation Expense 1 | G15: 2015 Depreciation Expense per Appendix 2-BA Fixed Assets, Column J (l) | H15: Variance 2
C16: (d) | D16: (f) | E16: (g) = 1 / (f) | F16: (h)=2014 Full Year Depreciation + ((d)*0.5)/(f) | H16: (m) = (h) - (l)
A17: 1611 | B17: Computer Software (Formally known as Account 1925) | E17: =IF(D17=0,0,1/D17) -> 0 | F17: =IF(D17=0,'App.2-CH_MIFRS_DepExp_2014'!K17,+'App.2-CH_MIFRS_DepExp_2014'!K17+((C17*0.5)/D17)) -> 0 | H17: =IF(ISERROR(+F17-G17), 0, +F17-G17) -> 0
A18: 1612 | B18: Land Rights (Formally known as Account 1906) | E18: 0 | F18: =IF(D18=0,'App.2-CH_MIFRS_DepExp_2014'!K18,+'App.2-CH_MIFRS_DepExp_2014'!K18+((C18*0.5)/D18)) -> 0 | H18: 0
A19: 1805 | B19: Land | E19: 0 | F19: =IF(D19=0,'App.2-CH_MIFRS_DepExp_2014'!K19,+'App.2-CH_MIFRS_DepExp_2014'!K19+((C19*0.5)/D19)) -> 0 | H19: 0
A20: 1808 | B20: Buildings | E20: 0 | F20: =IF(D20=0,'App.2-CH_MIFRS_DepExp_2014'!K20,+'App.2-CH_MIFRS_DepExp_2014'!K20+((C20*0.5)/D20)) -> 0 | H20: 0
A21: 1810 | B21: Leasehold Improvements | E21: 0 | F21: =IF(D21=0,'App.2-CH_MIFRS_DepExp_2014'!K21,+'App.2-CH_MIFRS_DepExp_2014'!K21+((C21*0.5)/D21)) -> 0 | H21: 0
A22: 1815 | B22: Transformer Station Equipment >50 kV | E22: 0 | F22: =IF(D22=0,'App.2-CH_MIFRS_DepExp_2014'!K22,+'App.2-CH_MIFRS_DepExp_2014'!K22+((C22*0.5)/D22)) -> 0 | H22: 0
A23: 1820 | B23: Distribution Station Equipment <50 kV | E23: 0 | F23: =IF(D23=0,'App.2-CH_MIFRS_DepExp_2014'!K23,+'App.2-CH_MIFRS_DepExp_2014'!K23+((C23*0.5)/D23)) -> 0 | H23: 0
A24: 1825 | B24: Storage Battery Equipment | E24: 0 | F24: =IF(D24=0,'App.2-CH_MIFRS_DepExp_2014'!K24,+'App.2-CH_MIFRS_DepExp_2014'!K24+((C24*0.5)/D24)) -> 0 | H24: 0
A25: 1830 | B25: Poles, Towers & Fixtures | E25: 0 | F25: =IF(D25=0,'App.2-CH_MIFRS_DepExp_2014'!K25,+'App.2-CH_MIFRS_DepExp_2014'!K25+((C25*0.5)/D25)) -> 0 | H25: 0
A26: 1835 | B26: Overhead Conductors & Devices | E26: 0 | F26: =IF(D26=0,'App.2-CH_MIFRS_DepExp_2014'!K26,+'App.2-CH_MIFRS_DepExp_2014'!K26+((C26*0.5)/D26)) -> 0 | H26: 0
A27: 1840 | B27: Underground Conduit | E27: 0 | F27: =IF(D27=0,'App.2-CH_MIFRS_DepExp_2014'!K27,+'App.2-CH_MIFRS_DepExp_2014'!K27+((C27*0.5)/D27)) -> 0 | H27: 0
A28: 1845 | B28: Underground Conductors & Devices | E28: 0 | F28: =IF(D28=0,'App.2-CH_MIFRS_DepExp_2014'!K28,+'App.2-CH_MIFRS_DepExp_2014'!K28+((C28*0.5)/D28)) -> 0 | H28: 0
A29: 1850 | B29: Line Transformers | E29: 0 | F29: =IF(D29=0,'App.2-CH_MIFRS_DepExp_2014'!K29,+'App.2-CH_MIFRS_DepExp_2014'!K29+((C29*0.5)/D29)) -> 0 | H29: 0
